Workbook

Sheet Sheet1 (hidden)
B1: Beginning Date | C1: 2011-07-01 | R1: =+R2+N2 -> 161877
N2: =SUM(L5:N5) -> 61515 | R2: =SUM(P5:R5) -> 100362
L3: 11 | T3: 19 | V3: 21
B4: Select A Name | C4: Grant # | D4: PO# | E4: Program | F4: C1 | H4: C2 | J4: Federal Funds | L4: Cash Match C1 | M4: In-Kind Match C1 | N4: Program Income C1 | O4: Cash Non-Match | P4: Cash Match C2 | Q4: In-Kind Match C2 | R4: Program Income C2 | T4: Contact | U4: Phone | V4: Address
A5: 1 | B5: Camarillo Health Care District | C5: 3C-002-071213-R1 | D5: PC5700BTBD | E5: VCAAA Senior Nutrition Program | F5: =0.38*J5 -> 26423.68 | G5: =+F5/J5 -> 0.38 | H5: =0.62*J5 -> 43112.32 | I5: =+H5/J5 -> 0.62 | J5: 69536 | L5: =46681-M5+8 -> 29689 | M5: 17000 | N5: 14826 | O5: 0 | P5: =76163-Q5+8 -> 48434 | Q5: 27737 | R5: 24191 | T5: Yvonne Ontiveros | U5: (805) 388-1952 x143 | V5: 3639 E. Las Posas Rd., Camarillo, CA 93010.
A6: 2 | B6: City of Fillmore | C6: 3C-004-071213-R1 | D6: PC5700BTBD | E6: VCAAA Senior Nutrition Program | F6: 10601 | G6: =+F6/J6 -> 0.53005 | H6: 9399 | I6: =+H6/J6 -> 0.46995 | J6: 20000 | L6: =18227-M6 -> 8242 | M6: 9985 | N6: 2831 | P6: =16163-Q6 -> 7308 | Q6: 8855 | R6: 3682 | T6: Annette Cardona | U6: (805) 524-1500 x216 | V6: 250 Central Ave, Fillmore, CA
A7: 3 | B7: City of Moorpark | C7: 3C-006-071213-R1 | D7: PC5700BTBD | E7: VCAAA Senior Nutrition Program | F7: 9815 | G7: 0.4500229253 | H7: 11995 | I7: 0.5499770747 | J7: =+F7+H7 -> 21810 | L7: =34026.4-M7 -> 30559.4 | M7: 3467 | N7: 2936.4 | P7: =41586.5-Q7 -> 25866.5 | Q7: 15720 | R7: 3575.5 | T7: Peggy Rothschild | U7: (805) 517-6260 | V7: 799 Moorpark Ave, Moorpark, CA 93021
A8: 4 | B8: City of Oxnard | C8: 3C-007-071213-R1 | D8: PC5700BTBD | E8: VCAAA Senior Nutrition Program | F8: 23547 | G8: 0.3001682686 | H8: 54899 | I8: 0.6998317314 | J8: =+F8+H8 -> 78446 | L8: =44331-M8 -> 22136 | M8: 22195 | N8: 20000 | O8: 7250 | P8: 31990 | Q8: =17982-926-926 -> 16130 | R8: 5926 | T8: Beth Vo | U8: (805) 385-7464 | V8: 300 W. Third St., Ste 302, Oxnard, CA 93030
A9: 5 | B9: City of Port Hueneme | C9: 3C-008-071213-R1 | D9: PC5700BTBD | E9: VCAAA Senior Nutrition Program | F9: 0 | G9: 0 | H9: 15000 | I9: 1 | J9: =+H9 -> 15000 | P9: 11500 | Q9: 8000 | R9: 5400 | T9: Shelly Kluksdahl | U9: (805) 986-6554 | V9: 250 N. Ventura Rd., Port Hueneme, CA 93041
A10: 6 | B10: City of Santa Paula | C10: 3C-010-071213-R1 | D10: PC5700BTBD | E10: VCAAA Senior Nutrition Program | F10: =+J10 -> 20000 | G10: 1 | H10: 0 | I10: 0 | J10: 20000 | L10: 20000 | M10: 2900 | N10: 12016 | T10: Susan Williams | U10: (805) 933-4204 | V10: PO Box 569, Santa Paula, CA 93061
A11: 7 | B11: City of Simi Valley | C11: 3C-011-071213-R1 | D11: PC5700BTBD | E11: VCAAA Senior Nutrition Program | F11: 14915 | G11: 0.2162220934 | H11: 54065 | I11: 0.7837779066 | J11: =+F11+H11 -> 68980 | M11: 45100 | N11: 32900 | R11: 56600 | T11: Mark Oyler | U11: (805) 583-6758 | V11: 3900 Avenida Simi, Simi Valley, CA3063
A12: 8 | B12: City of Ventura (W) | C12: 3C-012-071213-R1 | D12: PC5700BTBD | E12: VCAAA Senior Nutrition Program | F12: 25090 | G12: 0.4112777641 | H12: 35915 | I12: 0.5887222359 | J12: 61005 | M12: 2083 | N12: 16220 | Q12: 4043 | R12: 2780 | T12: Kathi Lowe | U12: (805) 624-7866 | V12: PO Box 99 Ventura, CA 93002
A13: 9 | B13: Conejo Recreation & Parks District | C13: 3C-003-071213-R1 | D13: PC5700BTBD | E13: VCAAA Senior Nutrition Program | F13: =J13 -> 28460 | G13: 1 | H13: 0 | I13: 0 | J13: 28460 | L13: =101445-M13 -> 69405 | M13: 32040 | N13: 30016 | T13: Andrea Koval | U13: (805) 381-2744 | V13: 403 W Hillcrest, Thousand Oaks, CA 91360
A14: 10 | B14: San Salvador Mission - Piru | C14: 3C-009-071213-R1 | D14: PC5700BTBD | E14: VCAAA Senior Nutrition Program
A15: 11 | B15: HELP of Ojai | C15: 3C-005-071213-R1 | D15: PC5700BTBD | E15: VCAAA Senior Nutrition Program | F15: =0.23*J15 -> 16100 | G15: 0.23 | H15: =0.77*J15 -> 53900 | I15: 0.77 | J15: 70000 | L15: 3658 | M15: =12186-3658 -> 8528 | N15: 8196 | P15: 12245 | Q15: =104397-12245 -> 92152 | R15: 32943 | T15: Terri Wolfe | U15: (805) 646-5122 | V15: 111 W. Santa Ana, Ojai, CA 93024
B20: Dianne Beeler | D20: PC5700B120326 | F20: =J20*0.47 -> 9400 | H20: =J20*0.53 -> 10600 | J20: 20000
B21: Jordanos | C21: 3C-001-071213-R1 | D21: PC5700BTBD | F21: =J21-H21 -> 305500 | H21: 344500 | J21: 650000
B22: Marianne Murphy | D22: PC5700B120330 | F22: =0.47*J22 -> 940 | H22: =0.53*J22 -> 1060 | J22: 2000
B23: Patti Jaeger | D23: PC5700B120095 | F23: =0.47*J23 -> 18800 | H23: =0.53*J23 -> 21200 | J23: 40000
F25: =SUM(F18:F23) -> 334640 | H25: =SUM(H18:H23) -> 377360 | J25: =SUM(J18:J23) -> 712000

Sheet Budget
B1: VCAAA Senior Nutrition Program | L1: VCAAA Senior Nutrition Program | V1: VCAAA Senior Nutrition Program | Y1: SNP RFP "ATTACHMENT B" | AC1: Enter budget data in light blue cells!
B2: PROJECT BUDGET - July 1, 2020 through June 30, 2021 | E2: Congregate Meals - C1 | L2: =+B2 -> PROJECT BUDGET - July 1, 2020 through June 30, 2021 | O2: Home Delivered Meals - C2 | V2: =+L2 -> PROJECT BUDGET - July 1, 2020 through June 30, 2021 | AB2: 2020-07-01 | AC2: 2021-06-30
B5: AGENCY NAME: | C5: =+W5 -> Agency Name | D5: =LEFT(#REF!,FIND(" ",#REF!))&MID(#REF!,FIND(" ",#REF!,1)+1,LEN(#REF!)) ->  | E5: =LEFT(#REF!,FIND(" ",#REF!))&MID(#REF!,FIND(" ",#REF!,1)+1,LEN(#REF!)) ->  | F5: =LEFT(#REF!,FIND(" ",#REF!))&MID(#REF!,FIND(" ",#REF!,1)+1,LEN(#REF!)) ->  | G5: =LEFT(#REF!,FIND(" ",#REF!))&MID(#REF!,FIND(" ",#REF!,1)+1,LEN(#REF!)) ->  | H5: =LEFT(#REF!,FIND(" ",#REF!))&MID(#REF!,FIND(" ",#REF!,1)+1,LEN(#REF!)) ->  | I5: =LEFT(#REF!,FIND(" ",#REF!))&MID(#REF!,FIND(" ",#REF!,1)+1,LEN(#REF!)) ->  | J5: =LEFT(#REF!,FIND(" ",#REF!))&MID(#REF!,FIND(" ",#REF!,1)+1,LEN(#REF!)) ->  | L5: AGENCY NAME: | M5: =LEFT(C5,FIND(" ",C5))&MID(C5,FIND(" ",C5,1)+1,LEN(C5)) -> Agency Name | N5: =LEFT(#REF!,FIND(" ",#REF!))&MID(#REF!,FIND(" ",#REF!,1)+1,LEN(#REF!)) ->  | O5: =LEFT(#REF!,FIND(" ",#REF!))&MID(#REF!,FIND(" ",#REF!,1)+1,LEN(#REF!)) ->  | P5: =LEFT(#REF!,FIND(" ",#REF!))&MID(#REF!,FIND(" ",#REF!,1)+1,LEN(#REF!)) ->  | Q5: =LEFT(#REF!,FIND(" ",#REF!))&MID(#REF!,FIND(" ",#REF!,1)+1,LEN(#REF!)) ->  | R5: =LEFT(#REF!,FIND(" ",#REF!))&MID(#REF!,FIND(" ",#REF!,1)+1,LEN(#REF!)) ->  | S5: =LEFT(#REF!,FIND(" ",#REF!))&MID(#REF!,FIND(" ",#REF!,1)+1,LEN(#REF!)) ->  | T5: =LEFT(#REF!,FIND(" ",#REF!))&MID(#REF!,FIND(" ",#REF!,1)+1,LEN(#REF!)) ->  | V5: AGENCY NAME: | W5: Agency Name
B6: ESTIMATED NUMBER OF MEALS (ANNUAL): | C6: 1000 | D6: Cost/Meal | E6: Grant/Meal | F6: CONTACT NAME | H6: =+R6 -> First Last | L6: ESTIMATED NUMBER OF MEALS (ANNUAL): | M6: 1000 | N6: Cost/Meal | O6: Grant/Meal | P6: CONTACT NAME | R6: =+AA6 -> First Last | V6: ESTIMATED NUMBER OF MEALS (ANNUAL): | W6: =+C6+M6 -> 2000 | Y6: CONTACT NAME | AA6: First Last
D7: =IFERROR(+D50/C6,0) -> 0 | E7: =IFERROR(+E50/C6,0) -> 0 | F7: PHONE NUMBER | H7: =+R7 -> (XXX) XXX-XXXX | N7: =+N50/M6 -> 0 | O7: =+O50/M6 -> 0 | P7: PHONE NUMBER | R7: =+AA7 -> (XXX) XXX-XXXX | Y7: PHONE NUMBER | AA7: (XXX) XXX-XXXX
B8: PROJECT BUDGET CATEGORIES | D8: C1 Total Program Costs | E8: VCAAA | F8: MATCH | H8: NON-MATCH | J8: PROGRAM | L8: PROJECT BUDGET CATEGORIES | N8: C2 Total Program Costs | O8: VCAAA | P8: MATCH | R8: NON-MATCH | T8: PROGRAM | V8: PO# | Y8: ADDRESS | AA8: Street Address, City, CA 93XXX
E9: GRANT | F9: CASH | G9: IN-KIND | H9: CASH | I9: IN-KIND | J9: INCOME* | O9: GRANT | P9: CASH | Q9: IN-KIND | R9: CASH | S9: IN-KIND | T9: INCOME* | V9: Contract#:
B10: PERSONNEL (List title & pay): | L10: PERSONNEL (List title & pay): | X10: Catalog of Federal Domestic Assistance (CFDA)#: | AC10: Title III C - 93.045
B11: Admin/Fiscal | C11: Position Title $XX.XX/hr | D11: =SUM(E11:J11) -> 0 | L11: =+B11 -> Admin/Fiscal | M11: =+C11 -> Position Title $XX.XX/hr | N11: =SUM(O11:T11) -> 0
B12: Site/ HDM/MOW Coordinator | C12: Position Title $XX.XX/hr | D12: 0 | L12: =+B12 -> Site/ HDM/MOW Coordinator | M12: =+C12 -> Position Title $XX.XX/hr | N12: 0 | V12: Service Component(s):
B13: Cook | C13: Position Title $XX.XX/hr | D13: 0 | L13: Cook | M13: Position Title $XX.XX/hr | N13: 0 | X13: CONGREGATE MEALS OPERATIONS (Title III C1) | AA13: HOME-DELIVERED MEALS OPERATIONS (Title III C2)
B14: Volunteers: | C14: Position Title $XX.XX/hr | D14: 0 | L14: Volunteers: | M14: Position Title $XX.XX/hr | N14: 0 | V14: Check any that apply --> | X14: X | AA14: X
B15: Volunteers: | C15: Position Title $XX.XX/hr | D15: 0 | L15: Volunteers: | M15: Position Title $XX.XX/hr | N15: 0
D16: 0 | L16: 0 | M16: 0 | N16: 0 | X16: Choose from drop-down boxes
D17: 0 | L17: 0 | M17: 0 | N17: 0 | V17: Service Region(s): | X17: All (includes the entire county)
D18: 0 | L18: 0 | N18: 0
B20: A. TOTAL PERSONNEL | D20: =SUM(D11:D19) -> 0 | E20: 0 | F20: 0 | G20: 0 | H20: 0 | I20: 0 | J20: 0 | L20: A. TOTAL PERSONNEL | N20: =SUM(N11:N19) -> 0 | O20: 0 | P20: 0 | Q20: 0 | R20: 0 | S20: 0 | T20: 0 | V20: Total Project Cost: | X20: =+AB32 -> 0 | AB20: VCAAA Grant Amount: | AD20: =+AB40 -> 0
B21: TRAVEL & TRAINING: | L21: TRAVEL & TRAINING: | V21: Cost per Meal | X21: =+X20/$W$6 -> 0 | AB21: Reimbursement per Meal: | AD21: =+AD20/$W$6 -> 0
B22: Travel/Mileage | D22: =SUM(E22:J22) -> 0 | L22: =+B22 -> Travel/Mileage | N22: =SUM(O22:T22) -> 0 | W22: BUDGET SUMMARY :
B23: Training | D23: =SUM(E23:J23) -> 0 | L23: =+B23 -> Training | N23: =SUM(O23:T23) -> 0
D24: =SUM(E24:J24) -> 0 | L24: =+B24 -> 0 | N24: =SUM(O24:T24) -> 0 | W24: Cost Category | Z24: C1 | AA24: C2 | AB24: Total
B25: B. TOTAL TRAVEL & TRAINING | D25: =SUM(D22:D24) -> 0 | E25: 0 | F25: 0 | G25: 0 | H25: 0 | I25: 0 | J25: 0 | L25: B. TOTAL TRAVEL & TRAINING | N25: =SUM(N22:N24) -> 0 | O25: 0 | P25: 0 | Q25: 0 | R25: 0 | S25: 0 | T25: 0 | W25: Personnel | Z25: =+D20 -> 0 | AA25: =+N20 -> 0 | AB25: =+Z25+AA25 -> 0
B26: EQUIPMENT Etc | L26: EQUIPMENT Etc | W26: Travel & Training | Z26: =+D25 -> 0 | AA26: =+N25 -> 0 | AB26: 0
B27: Equipment | D27: =SUM(E27:J27) -> 0 | L27: Equipment | N27: =SUM(O27:T27) -> 0 | W27: Equipment | Z27: =+D29 -> 0 | AA27: =+N29 -> 0 | AB27: 0
D28: =SUM(E28:J28) -> 0 | N28: =SUM(O28:T28) -> 0 | W28: Consultants | Z28: =+D33 -> 0 | AA28: =+N33 -> 0 | AB28: 0
B29: C. TOTAL EQUIPMENT | D29: =SUM(D27:D28) -> 0 | E29: 0 | F29: 0 | G29: 0 | H29: 0 | I29: 0 | J29: 0 | L29: C. TOTAL EQUIPMENT | N29: =SUM(N27:N28) -> 0 | O29: 0 | P29: 0 | Q29: 0 | R29: 0 | S29: 0 | T29: 0 | W29: Food | Z29: =+D36 -> 0 | AA29: =+N36 -> 0 | AB29: 0
B30: CONSULTANTS/SUB-CONTRACTORS: | L30: CONSULTANTS/SUB-CONTRACTORS: | W30: Other | Z30: =+D48-Z31 -> 0 | AA30: =+N48-AA31 -> 0 | AB30: 0 | AD30: All numbers in this section will populate automatically from the Budget Detail Sheets
B31: Congregate or HDM Meals | D31: =SUM(E31:J31) -> 0 | L31: =+B31 -> Congregate or HDM Meals | N31: =SUM(O31:T31) -> 0 | W31: Indirect Costs (no more than 10%) | Z31: =+D44 -> 0 | AA31: =+N44 -> 0 | AB31: 0
B32: Food Share Delivery Cost | D32: =SUM(E32:J32) -> 0 | L32: =+B32 -> Food Share Delivery Cost | N32: =SUM(O32:T32) -> 0 | W32: TOTAL PROGRAM COSTS | Z32: =SUM(Z25:Z31) -> 0 | AA32: =SUM(AA25:AA31) -> 0 | AB32: =SUM(AB25:AB31) -> 0
B33: D. TOTAL CONSULTANTS | D33: =SUM(D31:D32) -> 0 | E33: 0 | F33: 0 | G33: 0 | H33: 0 | I33: 0 | J33: 0 | L33: D. TOTAL CONSULTANTS | N33: =SUM(N31:N32) -> 0 | O33: 0 | P33: 0 | Q33: 0 | R33: 0 | S33: 0 | T33: 0 | W33: LESS:
B34: FOOD: | L34: FOOD: | W34: Cash Match | Z34: =+F50 -> 0 | AA34: =+P50 -> 0 | AB34: =+Z34+AA34 -> 0
B35: Food Cost | D35: =SUM(E35:J35) -> 0 | L35: =+B35 -> Food Cost | N35: =SUM(O35:T35) -> 0 | W35: In-Kind Match | Z35: =+G50 -> 0 | AA35: =+Q50 -> 0 | AB35: =+Z35+AA35 -> 0
B36: E. TOTAL FOOD | D36: =SUM(D35:D35) -> 0 | E36: 0 | F36: 0 | G36: 0 | H36: 0 | I36: 0 | J36: 0 | L36: E. TOTAL FOOD | N36: =SUM(N35:N35) -> 0 | O36: 0 | P36: 0 | Q36: 0 | R36: 0 | S36: 0 | T36: 0 | W36: Non-Match | Z36: =+H50+I50 -> 0 | AA36: =+R50+S50 -> 0 | AB36: =+Z36+AA36 -> 0
B37: OTHER COSTS: | L37: OTHER COSTS: | W37: TOTAL MATCH/NON MATCH | Z37: =SUM(Z34:Z36) -> 0 | AA37: =SUM(AA34:AA36) -> 0 | AB37: =SUM(AB34:AB36) -> 0
B38: Supplies:Non food(Bags,liners etc) | D38: =SUM(E38:J38) -> 0 | L38: =+B38 -> Supplies:Non food(Bags,liners etc) | N38: =SUM(O38:T38) -> 0 | W38: Donations for meal service | Z38: =+J50 -> 0 | AA38: =+T50 -> 0 | AB38: =+Z38+AA38 -> 0
B39: Health permit | D39: 0 | L39: Health permit | N39: 0 | W39: TOTAL PROGRAM INCOME | Z39: =+Z38 -> 0 | AA39: =+AA38 -> 0 | AB39: =+AB38 -> 0
B40: Rent | D40: 0 | L40: Rent | N40: 0 | W40: TOTAL GRANT AWARD | Z40: =+Z32-Z37-Z39 -> 0 | AA40: =+AA32-AA37-AA39 -> 0 | AB40: =+Z40+AA40 -> 0
B41: Program Publicity | D41: 0 | L41: Program Publicity | N41: 0
B42: Other | D42: 0 | L42: Other | N42: 0
B43: Other | D43: 0 | L43: Other | N43: 0 | V43: Describe Source of Cash Match:
B44: Indirect Costs (no more than 10% of grant funds) | D44: 0 | L44: Indirect Costs (no more than 10% of grant funds) | N44: 0 | V44: E.g., Salaries and other costs paid for by own organization
V46: Describe Source of In-Kind Match:
V47: E.g., Kitchen, greeters and driver volunteers, rent etc.
B48: F. TOTAL OTHER COSTS | D48: =SUM(D38:D47) -> 0 | E48: =SUM(E38:E47) -> 0 | F48: 0 | G48: 0 | H48: 0 | I48: 0 | J48: 0 | L48: TOTAL OTHER COSTS | N48: =SUM(N38:N47) -> 0 | O48: =SUM(O38:O47) -> 0 | P48: 0 | Q48: 0 | R48: 0 | S48: 0 | T48: 0 | V48: GRANTEE BUDGET AUTHORIZATION
B50: TOTAL PROGRAM COSTS | D50: =+D20+D25+D29+D33+D36+D48 -> 0 | E50: =+E20+E25+E29+E33+E36+E48 -> 0 | F50: 0 | G50: 0 | H50: 0 | I50: 0 | J50: 0 | L50: TOTAL PROGRAM COSTS | N50: =+N20+N25+N29+N33+N36+N48 -> 0 | O50: =+O20+O25+O29+O33+O36+O48 -> 0 | P50: 0 | Q50: 0 | R50: 0 | S50: 0 | T50: 0 | V50: Authorized Signature: | Z50: Project Director Signature :
V52: Print Name & Title: | Y52: Date | Z52: Print Name & Title: | AF52: Date
V54: APPROVALS - FOR VCAAA USE ONLY
V55: Grants Manager | Z55: Date | AA55: Fiscal Officer | AF55: Date
Y76: Camarillo, Somis, Santa Rosa Valley
Y77: Fillmore
Y78: Moorpark
Y79: Oxnard, El Rio, Nyeland Acres, Del Norte, Hollywood Beach
Y80: Port Hueneme
Y81: Santa Paula
Y82: Simi Valley
Y83: Ventura, Saticoy, Montalvo
Y84: Thousand Oaks, Newbury Park
Y85: Ojai Valley
Y86: Piru, Rancho Sespe
Y87: All (includes the entire county)
B115: Admin/Fiscal | D115: MEAL PREPARATION, PACKAGING & DELIVERY | H115: Camarillo Health Care District
B116: Meal Site Coordinator | D116: LOCAL STORAGE & DELIVERY | H116: City of Fillmore
B117: Congregate Coordinator | D117: CONGREGATE MEALS OPERATIONS (Title III C1) | H117: City of Moorpark
B118: HDM/MOW Coordinator | D118: HOME-DELIVERED MEALS OPERATIONS (Title III C2) | H118: City of Oxnard
B119: Cook | D119: ALL | H119: City of Port Hueneme
B120: Kitchen Staff/Assts | H120: City of Santa Paula
B121: PR CP Coordinator | H121: City of Simi Valley
B122: Volunteer Servers | H122: City of Ventura (E)
B123: Volunteer Hosts | H123: City of Ventura (W)
B124: Volunteer Kitchen | H124: Conejo Recreation & Parks District
B125: Volunteer Drivers | H125: HELP of Ojai
H126: San Salvador Mission - Piru

Sheet Jul (hidden)
A1: Contractor Name: | B1: =+Budget!C5 -> Agency Name | E1: Month: | F1: =+Budget!AB2 -> 2020-07-01 | I1: PO# | J1: =+Budget!W8 -> 0 | M1: GRANT AWARD AMOUNT: | O1: C1: | P1: =+Budget!Z40 -> 0 | Q1: C2: | R1: =+Budget!AA40 -> 0
A2: Project Name: | B2: =VLOOKUP($B$1,Sheet1!$B$5:$V$17,4,FALSE) ->  | E2: Grant#: | F2: =+Budget!V10 -> 0 | I2: Contact: | J2: =+Budget!AA6 -> First Last | L2: Phone: | M2: =+Budget!AA7 -> (XXX) XXX-XXXX | P2: Total C1/C2: | R2: =+P1+R1 -> 0
I3: Address: | J3: =+Budget!AA8 -> Street Address, City, CA 93XXX | K3: =VLOOKUP($B$1,Sheet1!$B$5:$V$17,19,FALSE) ->  | L3: =VLOOKUP($B$1,Sheet1!$B$5:$V$17,19,FALSE) ->  | M3: =VLOOKUP($B$1,Sheet1!$B$5:$V$17,19,FALSE) ->  | N3: =VLOOKUP($B$1,Sheet1!$B$5:$V$17,19,FALSE) -> 
A4: Number of Meals Served | C4: C1 | D4: C2
B5: Month | C5: 0 | D5: 0 | I5: Current Month Expenditures by Funding Source
B6: YTD | C6: =+C5 -> 0 | D6: =+D5 -> 0 | T6: YTD
A7: Item Description | C7: Authorized Budget C1 | D7: Authorized Budget C2 | E7: YTD Actual Expenses C1 | F7: YTD Actual Expenses C2 | G7: Current Month Expenses C1 | H7: Current Month Expenses C2 | I7: Grant Share C1 | J7: Grant Share C2 | K7: Cash Match C1 | L7: Cash Match C2 | M7: In-Kind Match C1 | N7: In-Kind Match C2 | O7: Program Income C1 | P7: Program Income C2 | Q7: Cash Non-Match C1 | R7: =+Budget!AA36 -> 0 | T7: Grant Share C1 | U7: Grant Share C2 | V7: Cash Match C1 | W7: Cash Match C2 | X7: In-Kind Match C1 | Y7: In-Kind Match C2 | Z7: Program Income C1 | AA7: Program Income C2 | AB7: Cash Non-Match C1 | AC7: Cash Non-Match C2
A8: APPROVED BUDGET | C8: =+C53 -> 0 | D8: =+D53 -> 0 | E8: =+G8 -> 0 | F8: =+H8 -> 0 | G8: =+G52 -> 0 | H8: =+H52 -> 0 | I8: =+P1 -> 0 | J8: =+R1 -> 0 | K8: =+Budget!Z34 -> 0 | L8: =+Budget!AA34 -> 0 | M8: =+Budget!Z35 -> 0 | N8: =+Budget!AA35 -> 0 | O8: =+Budget!Z38 -> 0 | P8: =+Budget!AA39 -> 0 | Q8: =+Budget!Z36 -> 0 | R8: =+Jul!R9 -> 0
A9: % OF TOTAL | C9: =IFERROR(+C$8/($C8+$D8),0) -> 0 | D9: =IFERROR(+D$8/($C8+$D8),0) -> 0
A10: TOTAL BUDGET | C10: =+C8+D8 -> 0 | I10: =+I52 -> 0 | J10: =+J52 -> 0 | K10: =+K52 -> 0 | L10: 0 | M10: 0 | N10: 0 | O10: 0 | P10: 0 | Q10: 0 | R10: 0
A12: A. PERSONNEL (Title / Name)
A13: =+Budget!B11 -> Admin/Fiscal | B13: =+Budget!C11 -> Position Title $XX.XX/hr | C13: =+Budget!D11 -> 0 | D13: =+Budget!N11 -> 0 | E13: =+G13 -> 0 | F13: =+H13 -> 0 | G13: =SUM(I13+K13+M13+O13+Q13) -> 0 | H13: =SUM(J13+L13+N13+P13+R13) -> 0 | T13: =+I13 -> 0 | U13: =+J13 -> 0 | V13: 0 | W13: 0 | X13: 0 | Y13: 0 | Z13: 0 | AA13: 0 | AB13: 0 | AC13: 0
A14: =+Budget!B12 -> Site/ HDM/MOW Coordinator | B14: =+Budget!C12 -> Position Title $XX.XX/hr | C14: =+Budget!D12 -> 0 | D14: =+Budget!N12 -> 0 | E14: =+G14 -> 0 | F14: =+H14 -> 0 | G14: =SUM(I14+K14+M14+O14+Q14) -> 0 | H14: =SUM(J14+L14+N14+P14+R14) -> 0 | T14: =+I14 -> 0 | U14: 0 | V14: 0 | W14: 0 | X14: 0 | Y14: 0 | Z14: 0 | AA14: 0 | AB14: 0 | AC14: 0
A15: =+Budget!B13 -> Cook | B15: =+Budget!C13 -> Position Title $XX.XX/hr | C15: =+Budget!D13 -> 0 | D15: =+Budget!N13 -> 0 | E15: 0 | F15: 0 | G15: 0 | H15: 0 | T15: 0 | U15: 0 | V15: 0 | W15: 0 | X15: 0 | Y15: 0 | Z15: 0 | AA15: 0 | AB15: 0 | AC15: 0
A16: =+Budget!B14 -> Volunteers: | B16: =+Budget!C14 -> Position Title $XX.XX/hr | C16: =+Budget!D14 -> 0 | D16: =+Budget!N14 -> 0 | E16: 0 | F16: 0 | G16: 0 | H16: 0 | T16: 0 | U16: 0 | V16: 0 | W16: 0 | X16: 0 | Y16: 0 | Z16: 0 | AA16: 0 | AB16: 0 | AC16: 0
A17: =+Budget!B15 -> Volunteers: | B17: =+Budget!C15 -> Position Title $XX.XX/hr | C17: =+Budget!D15 -> 0 | D17: =+Budget!N15 -> 0 | E17: 0 | F17: 0 | G17: 0 | H17: 0 | T17: 0 | U17: 0 | V17: 0 | W17: 0 | X17: 0 | Y17: 0 | Z17: 0 | AA17: 0 | AB17: 0 | AC17: 0
A18: =+Budget!B16 -> 0 | B18: =+Budget!C18 -> 0 | C18: =+Budget!D16 -> 0 | D18: =+Budget!N16 -> 0 | E18: 0 | F18: 0 | G18: 0 | H18: 0 | T18: 0 | U18: 0 | V18: 0 | W18: 0 | X18: 0 | Y18: 0 | Z18: 0 | AA18: 0 | AB18: 0 | AC18: 0
A19: =+Budget!B17 -> 0 | B19: =+Budget!C16 -> 0 | C19: =+Budget!D17 -> 0 | D19: =+Budget!N17 -> 0 | E19: 0 | F19: 0 | G19: 0 | H19: 0 | T19: 0 | U19: 0 | V19: 0 | W19: 0 | X19: 0 | Y19: 0 | Z19: 0 | AA19: 0 | AB19: 0 | AC19: 0
A20: =+Budget!B18 -> 0 | B20: =+Budget!C17 -> 0 | C20: =+Budget!D18 -> 0 | D20: =+Budget!N18 -> 0 | E20: 0 | F20: 0 | G20: 0 | H20: 0 | T20: 0 | U20: 0 | V20: 0 | W20: 0 | X20: 0 | Y20: 0 | Z20: 0 | AA20: 0 | AB20: 0 | AC20: 0
E21: =+G21 -> 0 | F21: =+H21 -> 0 | G21: =SUM(I21+K21+M21+O21+Q21) -> 0 | H21: =SUM(J21+L21+N21+P21+R21) -> 0 | T21: 0 | U21: 0 | V21: 0 | W21: 0 | X21: 0 | Y21: 0 | Z21: 0 | AA21: 0 | AB21: 0 | AC21: 0
A22: Total Personnel: | C22: =SUM(C13:C21) -> 0 | D22: =SUM(D13:D21) -> 0 | E22: =SUM(E13:E21) -> 0 | F22: 0 | G22: 0 | H22: 0 | I22: 0 | J22: 0 | K22: =SUM(K13:K21) -> 0 | L22: =SUM(L13:L21) -> 0 | M22: 0 | N22: 0 | O22: 0 | P22: 0 | Q22: 0 | R22: 0
A23: B. TRAVEL & TRAINING
A24: =+Budget!L22 -> Travel/Mileage | C24: =+Budget!D22 -> 0 | D24: =+Budget!N22 -> 0 | E24: =+G24 -> 0 | F24: 0 | G24: =SUM(I24+K24+M24+O24+Q24) -> 0 | H24: 0 | T24: =+I24 -> 0 | U24: 0 | V24: 0 | W24: 0 | X24: 0 | Y24: 0 | Z24: 0 | AA24: 0 | AB24: 0 | AC24: 0
A25: =+Budget!L23 -> Training | C25: =+Budget!D23 -> 0 | D25: =+Budget!N23 -> 0 | E25: 0 | F25: 0 | G25: 0 | H25: 0 | T25: 0 | U25: 0 | V25: 0 | W25: 0 | X25: 0 | Y25: 0 | Z25: 0 | AA25: 0 | AB25: 0 | AC25: 0
A26: =+Budget!L24 -> 0 | C26: =+Budget!D24 -> 0 | D26: =+Budget!N24 -> 0 | E26: 0 | F26: 0 | G26: 0 | H26: 0 | T26: 0 | U26: 0 | V26: 0 | W26: 0 | X26: 0 | Y26: 0 | Z26: 0 | AA26: 0 | AB26: 0 | AC26: 0
A27: Total Travel & Training: | C27: =SUM(C24:C26) -> 0 | D27: =SUM(D24:D26) -> 0 | E27: =SUM(E24:E26) -> 0 | F27: 0 | G27: 0 | H27: 0 | I27: 0 | J27: 0 | K27: 0 | L27: 0 | M27: 0 | N27: 0 | O27: 0 | P27: 0 | Q27: 0 | R27: 0
A28: C. EQUIPMENT
A29: =+Budget!L27 -> Equipment | C29: =+Budget!D27 -> 0 | D29: =+Budget!N27 -> 0 | E29: =+G29 -> 0 | F29: =+H29 -> 0 | G29: =SUM(I29+K29+M29+O29+Q29) -> 0 | H29: =SUM(J29+L29+N29+P29+R29) -> 0 | T29: =+I29 -> 0 | U29: 0 | V29: 0 | W29: 0 | X29: 0 | Y29: 0 | Z29: 0 | AA29: 0 | AB29: 0 | AC29: 0
A30: =+Budget!L28 -> 0 | C30: =+Budget!D28 -> 0 | D30: =+Budget!N28 -> 0 | E30: =+G30 -> 0 | F30: =+H30 -> 0 | G30: =SUM(I30+K30+M30+O30+Q30) -> 0 | H30: =SUM(J30+L30+N30+P30+R30) -> 0 | T30: 0 | U30: 0 | V30: 0 | W30: 0 | X30: 0 | Y30: 0 | Z30: 0 | AA30: 0 | AB30: 0 | AC30: 0
A31: Total Equipment: | C31: =SUM(C29:C30) -> 0 | D31: =SUM(D29:D30) -> 0 | E31: =SUM(E29:E30) -> 0 | F31: 0 | G31: 0 | H31: 0 | I31: 0 | J31: 0 | K31: 0 | L31: 0 | M31: 0 | N31: 0 | O31: 0 | P31: 0 | Q31: 0 | R31: 0
A32: D. CONSULTANTS
A33: =+Budget!L31 -> Congregate or HDM Meals | C33: =+Budget!D31 -> 0 | D33: =+Budget!N31 -> 0 | E33: =+G33 -> 0 | F33: =+H33 -> 0 | G33: =SUM(I33+K33+M33+O33+Q33) -> 0 | H33: =SUM(J33+L33+N33+P33+R33) -> 0 | T33: =+I33 -> 0 | U33: 0 | V33: 0 | W33: 0 | X33: 0 | Y33: 0 | Z33: 0 | AA33: 0 | AB33: 0 | AC33: 0
A34: =+Budget!L32 -> Food Share Delivery Cost | C34: =+Budget!D32 -> 0 | D34: =+Budget!N32 -> 0 | E34: =+G34 -> 0 | F34: =+H34 -> 0 | G34: =SUM(I34+K34+M34+O34+Q34) -> 0 | H34: =SUM(J34+L34+N34+P34+R34) -> 0 | T34: 0 | U34: 0 | V34: 0 | W34: 0 | X34: 0 | Y34: 0 | Z34: 0 | AA34: 0 | AB34: 0 | AC34: 0
A35: Total Consultants: | C35: =SUM(C33:C34) -> 0 | D35: =SUM(D33:D34) -> 0 | E35: =SUM(E33:E34) -> 0 | F35: 0 | G35: 0 | H35: 0 | I35: 0 | J35: 0 | K35: 0 | L35: 0 | M35: 0 | N35: 0 | O35: 0 | P35: 0 | Q35: 0 | R35: 0
A36: E. FOOD COSTS (Senior Nutrition Program Only)
A37: =+Budget!L35 -> Food Cost | C37: =+Budget!D35 -> 0 | D37: =+Budget!N35 -> 0 | E37: =+G37 -> 0 | F37: =+H37 -> 0 | G37: =SUM(I37+K37+M37+O37+Q37) -> 0 | H37: =SUM(J37+L37+N37+P37+R37) -> 0 | T37: =+I37 -> 0 | U37: 0 | V37: 0 | W37: 0 | X37: 0 | Y37: 0 | Z37: 0 | AA37: 0 | AB37: 0 | AC37: 0
A38: Total Food Costs: | C38: =+C37 -> 0 | D38: =+D37 -> 0 | E38: =SUM(E37:E37) -> 0 | F38: 0 | G38: 0 | H38: 0 | I38: 0 | J38: 0 | K38: 0 | L38: 0 | M38: 0 | N38: 0 | O38: 0 | P38: 0 | Q38: 0 | R38: 0
A39: F. OTHER COSTS
A40: =+Budget!L38 -> Supplies:Non food(Bags,liners etc) | C40: =+Budget!D38 -> 0 | D40: =+Budget!N38 -> 0 | E40: =+G40 -> 0 | F40: =+H40 -> 0 | G40: =SUM(I40+K40+M40+O40+Q40) -> 0 | H40: =SUM(J40+L40+N40+P40+R40) -> 0 | T40: =+I40 -> 0 | U40: 0 | V40: 0 | W40: 0 | X40: 0 | Y40: 0 | Z40: 0 | AA40: 0 | AB40: 0 | AC40: 0
A41: =+Budget!L39 -> Health permit | C41: =+Budget!D39 -> 0 | D41: =+Budget!N39 -> 0 | E41: 0 | F41: 0 | G41: 0 | H41: 0 | T41: 0 | U41: 0 | V41: 0 | W41: 0 | X41: 0 | Y41: 0 | Z41: 0 | AA41: 0 | AB41: 0 | AC41: 0
A42: =+Budget!L40 -> Rent | C42: =+Budget!D40 -> 0 | D42: =+Budget!N40 -> 0 | E42: 0 | F42: 0 | G42: 0 | H42: 0 | T42: 0 | U42: 0 | V42: 0 | W42: 0 | X42: 0 | Y42: 0 | Z42: 0 | AA42: 0 | AB42: 0 | AC42: 0
A43: =+Budget!L41 -> Program Publicity | C43: =+Budget!D41 -> 0 | D43: =+Budget!N41 -> 0 | E43: 0 | F43: 0 | G43: 0 | H43: 0 | T43: 0 | U43: 0 | V43: 0 | W43: 0 | X43: 0 | Y43: 0 | Z43: 0 | AA43: 0 | AB43: 0 | AC43: 0
A44: =+Budget!L42 -> Other | C44: =+Budget!D42 -> 0 | D44: =+Budget!N42 -> 0 | E44: =+G44 -> 0 | F44: 0 | G44: =SUM(I44+K44+M44+O44+Q44) -> 0 | H44: 0 | T44: 0 | U44: 0 | V44: 0 | W44: 0 | X44: 0 | Y44: 0 | Z44: 0 | AA44: 0 | AB44: 0 | AC44: 0
A45: =+Budget!L43 -> Other | C45: =+Budget!D43 -> 0 | D45: =+Budget!N43 -> 0 | E45: 0 | F45: 0 | G45: 0 | H45: 0 | T45: 0 | U45: 0 | V45: 0 | W45: 0 | X45: 0 | Y45: 0 | Z45: 0 | AA45: 0 | AB45: 0 | AC45: 0
A46: =+Budget!L44 -> Indirect Costs (no more than 10% of grant funds) | C46: =+Budget!D44 -> 0 | D46: =+Budget!N44 -> 0 | E46: 0 | F46: 0 | G46: 0 | H46: 0 | T46: 0 | U46: 0 | V46: 0 | W46: 0 | X46: 0 | Y46: 0 | Z46: 0 | AA46: 0 | AB46: 0 | AC46: 0
A47: =+Budget!L45 -> 0 | C47: =+Budget!D45 -> 0 | D47: =+Budget!N45 -> 0 | E47: 0 | F47: 0 | G47: 0 | H47: 0 | T47: 0 | U47: 0 | V47: 0 | W47: 0 | X47: 0 | Y47: 0 | Z47: 0 | AA47: 0 | AB47: 0 | AC47: 0
A48: =+Budget!L46 -> 0 | C48: =+Budget!D46 -> 0 | D48: =+Budget!N46 -> 0 | E48: 0 | F48: 0 | G48: 0 | H48: 0 | T48: 0 | U48: 0 | V48: 0 | W48: 0 | X48: 0 | Y48: 0 | Z48: 0 | AA48: 0 | AB48: 0 | AC48: 0
A49: =+Budget!L47 -> 0 | C49: =+Budget!D47 -> 0 | D49: =+Budget!N47 -> 0 | E49: 0 | F49: 0 | G49: 0 | H49: 0 | T49: 0 | U49: 0 | V49: 0 | W49: 0 | X49: 0 | Y49: 0 | Z49: 0 | AA49: 0 | AB49: 0 | AC49: 0
A50: Total Other Costs: | C50: =SUM(C40:C49) -> 0 | D50: 0 | E50: 0 | F50: 0 | G50: 0 | H50: 0 | I50: 0 | J50: 0 | K50: 0 | L50: 0 | M50: 0 | N50: 0 | O50: 0 | P50: 0 | Q50: 0 | R50: 0
A52: 1. Current Month Total | E52: =SUM(E50,E38,E35,E31,E27,E22) -> 0 | F52: 0 | G52: 0 | H52: 0 | I52: 0 | J52: 0 | K52: 0 | L52: 0 | M52: 0 | N52: 0 | O52: 0 | P52: 0 | Q52: 0 | R52: 0
A53: 2. Year-to-Date Total** | C53: =+C50+C38+C35+C31+C27+C22 -> 0 | D53: =+D50+D38+D35+D31+D27+D22 -> 0 | E53: =+E22+E27+E31+E35+E38+E50 -> 0 | F53: =+F22+F27+F31+F35+F38+F50 -> 0 | I53: =+I52 -> 0 | J53: =+J52 -> 0 | K53: 0 | L53: 0 | M53: 0 | N53: 0 | O53: 0 | P53: 0 | Q53: 0 | R53: 0 | T53: =SUM(T13:T52) -> 0 | U53: =SUM(U13:U52) -> 0 | V53: 0 | W53: 0 | X53: 0 | Y53: 0 | Z53: 0 | AA53: 0 | AB53: 0 | AC53: 0
A54: 3. Grant Funds Remaining | I54: =+I8-I67 -> 0 | J54: =+J8-J67 -> 0 | K54: =+I54+J54 -> 0 | T54: =+T53/P1 ->  | U54: =+U53/R1 -> 
A55: EQUIPMENT INFO | G55: Model # | H55: Serial # | I55: Date Acquired | N55: Equipment Location | S55: Total Grant | T55: =+T53+U53 -> 0
A58: *Equipment is property of the VCAAA/CDA. Consult VCAAA Contractor Manual for more information
A59: I hereby certify that the above figures and attached expenditure report are accurate to the best of my knowledge.
A60: Prepared By: | F60: Signature: | K60: Date: | P60: Title
F61: Name
A62: Authorized By: | F62: Signature: | K62: Date: | P62: Title
F63: Name:
A64: AAA USE ONLY
A65: Grants Management Approval | E65: Date: | G65: Amount Requested - Month | I65: =+I52 -> 0 | J65: =+J52 -> 0 | K65: =+I65+J65 -> 0 | L65: Date Received | P65: Fiscal Approval: | R65: Date:
G66: Amount Approved - Month | I66: =+I65 -> 0 | J66: =+J65 -> 0 | K66: =+I66+J66 -> 0
G67: Amount Approved - YTD | I67: =+I66 -> 0 | J67: =+J66 -> 0 | K67: =+I67+J67 -> 0
J69: Check total: | K69: =+K67+K54 -> 0

Sheet Aug (hidden)
A1: Contractor Name: | B1: =+Jul!B1 -> Agency Name | E1: Month: | F1: =+Jul!F1+31 -> 2020-08-01 | I1: PO# | J1: =+Jul!J1 -> 0 | M1: GRANT AWARD AMOUNT: | O1: C1: | P1: =+Jul!P1 -> 0 | Q1: C2: | R1: =+Jul!R1 -> 0
A2: Project Name: | B2: =+Budget!B1 -> VCAAA Senior Nutrition Program | E2: Grant#: | F2: =+Jul!F2 -> 0 | I2: Contact: | J2: =+Jul!J2 -> First Last | L2: Phone: | M2: =+Jul!M2 -> (XXX) XXX-XXXX | P2: =+Jul!P2 -> Total C1/C2: | R2: =+P1+R1 -> 0
I3: Address: | J3: =+Jul!J3 -> Street Address, City, CA 93XXX
A4: Number of Meals Served | C4: C1 | D4: C2
B5: Month | I5: Current Month Expenditures by Funding Source
B6: YTD | C6: =+C5+Jul!C6 -> 0 | D6: =+D5+Jul!D6 -> 0
A7: Item Description | C7: Authorized Budget by Allocation C1 | D7: Authorized Budget by Allocation C2 | E7: YTD Actual Expenses C1 | F7: YTD Actual Expenses C2 | G7: Total Current Month Expenses C1 | H7: Total Current Month Expenses C2 | I7: Grant Share C1 | J7: Grant Share C2 | K7: Cash Match C1 | L7: Cash Match C2 | M7: In-Kind Match C1 | N7: In-Kind Match C2 | O7: Program Income C1 | P7: Program Income C2 | Q7: Cash Non-Match C1 | R7: Cash Non-Match C2 | T7: Grant Share C1 | U7: Grant Share C2 | V7: Cash Match C1 | W7: Cash Match C2 | X7: In-Kind Match C1 | Y7: In-Kind Match C2 | Z7: Program Income C1 | AA7: Program Income C2 | AB7: Cash Non-Match C1 | AC7: Cash Non-Match C2
A8: APPROVED BUDGET | C8: =+Jul!C8 -> 0 | D8: =+Jul!D8 -> 0 | E8: =+E53 -> 0 | F8: =+F53 -> 0 | G8: =+G52 -> 0 | H8: =+H52 -> 0 | I8: =+P1 -> 0 | J8: =+R1 -> 0 | K8: =+Budget!Z34 -> 0 | L8: =+Budget!AA34 -> 0 | M8: =+Budget!Z35 -> 0 | N8: =+Budget!AA35 -> 0 | O8: =+Budget!Z38 -> 0 | P8: =+Budget!AA39 -> 0 | Q8: =+Budget!Z36 -> 0 | R8: =+Jul!R9 -> 0
A9: % OF TOTAL | C9: =IFERROR(+C$8/($C8+$D8),0) -> 0 | D9: =IFERROR(+D$8/($C8+$D8),0) -> 0
A10: TOTAL BUDGET | C10: =+C8+D8 -> 0 | I10: =+I52 -> 0 | J10: =+J52 -> 0 | K10: =+K52 -> 0 | L10: 0 | M10: 0 | N10: 0 | O10: 0 | P10: 0 | Q10: 0 | R10: 0
A12: A. PERSONNEL (Title / Name)
A13: =+Jul!A13 -> Admin/Fiscal | B13: =+Jul!B13 -> Position Title $XX.XX/hr | C13: =+Jul!C13 -> 0 | D13: =+Jul!D13 -> 0 | E13: =SUM(G13)+Jul!E13 -> 0 | F13: =SUM(H13)+Jul!F13 -> 0 | G13: =SUM(I13+K13+M13+O13+Q13) -> 0 | H13: =SUM(J13+L13+N13+P13+R13) -> 0 | T13: =+I13+Jul!T13 -> 0 | U13: =+J13+Jul!U13 -> 0 | V13: =+K13+Jul!V13 -> 0 | W13: =+L13+Jul!W13 -> 0 | X13: =+M13+Jul!X13 -> 0 | Y13: =+N13+Jul!Y13 -> 0 | Z13: =+O13+Jul!Z13 -> 0 | AA13: =+P13+Jul!AA13 -> 0 | AB13: =+Q13+Jul!AB13 -> 0 | AC13: =+R13+Jul!AC13 -> 0
A14: =+Jul!A14 -> Site/ HDM/MOW Coordinator | B14: =+Jul!B14 -> Position Title $XX.XX/hr | C14: =+Jul!C14 -> 0 | D14: =+Jul!D14 -> 0 | E14: =SUM(G14)+Jul!E14 -> 0 | F14: =SUM(H14)+Jul!F14 -> 0 | G14: =SUM(I14+K14+M14+O14+Q14) -> 0 | H14: =SUM(J14+L14+N14+P14+R14) -> 0 | T14: =+I14+Jul!T14 -> 0 | U14: =+J14+Jul!U14 -> 0 | V14: =+K14+Jul!V14 -> 0 | W14: =+L14+Jul!W14 -> 0 | X14: =+M14+Jul!X14 -> 0 | Y14: =+N14+Jul!Y14 -> 0 | Z14: =+O14+Jul!Z14 -> 0 | AA14: =+P14+Jul!AA14 -> 0 | AB14: =+Q14+Jul!AB14 -> 0 | AC14: =+R14+Jul!AC14 -> 0
A15: =+Jul!A15 -> Cook | B15: =+Jul!B15 -> Position Title $XX.XX/hr | C15: =+Jul!C15 -> 0 | D15: =+Jul!D15 -> 0 | E15: =SUM(G15)+Jul!E15 -> 0 | F15: =SUM(H15)+Jul!F15 -> 0 | G15: 0 | H15: 0 | T15: =+I15+Jul!T15 -> 0 | U15: =+J15+Jul!U15 -> 0 | V15: =+K15+Jul!V15 -> 0 | W15: =+L15+Jul!W15 -> 0 | X15: =+M15+Jul!X15 -> 0 | Y15: =+N15+Jul!Y15 -> 0 | Z15: =+O15+Jul!Z15 -> 0 | AA15: =+P15+Jul!AA15 -> 0 | AB15: =+Q15+Jul!AB15 -> 0 | AC15: =+R15+Jul!AC15 -> 0
A16: =+Jul!A16 -> Volunteers: | B16: =+Jul!B16 -> Position Title $XX.XX/hr | C16: =+Jul!C16 -> 0 | D16: =+Jul!D16 -> 0 | E16: =SUM(G16)+Jul!E16 -> 0 | F16: =SUM(H16)+Jul!F16 -> 0 | G16: 0 | H16: 0 | T16: =+I16+Jul!T16 -> 0 | U16: =+J16+Jul!U16 -> 0 | V16: =+K16+Jul!V16 -> 0 | W16: =+L16+Jul!W16 -> 0 | X16: =+M16+Jul!X16 -> 0 | Y16: =+N16+Jul!Y16 -> 0 | Z16: =+O16+Jul!Z16 -> 0 | AA16: =+P16+Jul!AA16 -> 0 | AB16: =+Q16+Jul!AB16 -> 0 | AC16: =+R16+Jul!AC16 -> 0
A17: =+Jul!A17 -> Volunteers: | B17: =+Jul!B17 -> Position Title $XX.XX/hr | C17: =+Jul!C17 -> 0 | D17: =+Jul!D17 -> 0 | E17: =SUM(G17)+Jul!E17 -> 0 | F17: =SUM(H17)+Jul!F17 -> 0 | G17: 0 | H17: 0 | T17: =+I17+Jul!T17 -> 0 | U17: =+J17+Jul!U17 -> 0 | V17: =+K17+Jul!V17 -> 0 | W17: =+L17+Jul!W17 -> 0 | X17: =+M17+Jul!X17 -> 0 | Y17: =+N17+Jul!Y17 -> 0 | Z17: =+O17+Jul!Z17 -> 0 | AA17: =+P17+Jul!AA17 -> 0 | AB17: =+Q17+Jul!AB17 -> 0 | AC17: =+R17+Jul!AC17 -> 0
A18: Volunteers | B18: =+Jul!B18 -> 0 | C18: =+Jul!C18 -> 0 | D18: =+Jul!D18 -> 0 | E18: =SUM(G18)+Jul!E18 -> 0 | F18: =SUM(H18)+Jul!F18 -> 0 | G18: 0 | H18: 0 | T18: =+I18+Jul!T18 -> 0 | U18: =+J18+Jul!U18 -> 0 | V18: =+K18+Jul!V18 -> 0 | W18: =+L18+Jul!W18 -> 0 | X18: =+M18+Jul!X18 -> 0 | Y18: =+N18+Jul!Y18 -> 0 | Z18: =+O18+Jul!Z18 -> 0 | AA18: =+P18+Jul!AA18 -> 0 | AB18: =+Q18+Jul!AB18 -> 0 | AC18: =+R18+Jul!AC18 -> 0
A19: Volunteers | B19: =+Jul!B19 -> 0 | C19: =+Jul!C19 -> 0 | D19: =+Jul!D19 -> 0 | E19: =SUM(G19)+Jul!E19 -> 0 | F19: =SUM(H19)+Jul!F19 -> 0 | G19: 0 | H19: 0 | T19: =+I19+Jul!T19 -> 0 | U19: =+J19+Jul!U19 -> 0 | V19: =+K19+Jul!V19 -> 0 | W19: =+L19+Jul!W19 -> 0 | X19: =+M19+Jul!X19 -> 0 | Y19: =+N19+Jul!Y19 -> 0 | Z19: =+O19+Jul!Z19 -> 0 | AA19: =+P19+Jul!AA19 -> 0 | AB19: =+Q19+Jul!AB19 -> 0 | AC19: =+R19+Jul!AC19 -> 0
A20: =+Jul!A20 -> 0 | B20: =+Jul!B20 -> 0 | C20: =+Jul!C20 -> 0 | D20: =+Jul!D20 -> 0 | E20: =SUM(G20)+Jul!E20 -> 0 | F20: =SUM(H20)+Jul!F20 -> 0 | G20: 0 | H20: 0 | T20: =+I20+Jul!T20 -> 0 | U20: =+J20+Jul!U20 -> 0 | V20: =+K20+Jul!V20 -> 0 | W20: =+L20+Jul!W20 -> 0 | X20: =+M20+Jul!X20 -> 0 | Y20: =+N20+Jul!Y20 -> 0 | Z20: =+O20+Jul!Z20 -> 0 | AA20: =+P20+Jul!AA20 -> 0 | AB20: =+Q20+Jul!AB20 -> 0 | AC20: =+R20+Jul!AC20 -> 0
A21: =+Jul!A21 -> 0 | B21: =+Jul!B21 -> 0 | E21: =SUM(G21)+Jul!E21 -> 0 | F21: =SUM(H21)+Jul!F21 -> 0 | G21: =SUM(I21+K21+M21+O21+Q21) -> 0 | H21: =SUM(J21+L21+N21+P21+R21) -> 0 | T21: =+I21+Jul!T21 -> 0 | U21: =+J21+Jul!U21 -> 0 | V21: =+K21+Jul!V21 -> 0 | W21: =+L21+Jul!W21 -> 0 | X21: =+M21+Jul!X21 -> 0 | Y21: =+N21+Jul!Y21 -> 0 | Z21: =+O21+Jul!Z21 -> 0 | AA21: =+P21+Jul!AA21 -> 0 | AB21: =+Q21+Jul!AB21 -> 0 | AC21: =+R21+Jul!AC21 -> 0
A22: Total Personnel: | C22: =SUM(C13:C21) -> 0 | D22: 0 | E22: 0 | F22: 0 | G22: 0 | H22: 0 | I22: =SUM(I13:I21) -> 0 | J22: 0 | K22: 0 | L22: 0 | M22: 0 | N22: 0 | O22: 0 | P22: 0 | Q22: 0 | R22: 0
A23: B. TRAVEL & TRAINING
A24: =+Jul!A24 -> Travel/Mileage | C24: =+Jul!C24 -> 0 | D24: =+Jul!D24 -> 0 | E24: =SUM(G24)+Jul!E24 -> 0 | F24: =SUM(H24)+Jul!F24 -> 0 | G24: =SUM(I24+K24+M24+O24+Q24) -> 0 | H24: 0 | T24: =+I24+Jul!T24 -> 0 | U24: =+J24+Jul!U24 -> 0 | V24: =+K24+Jul!V24 -> 0 | W24: =+L24+Jul!W24 -> 0 | X24: =+M24+Jul!X24 -> 0 | Y24: =+N24+Jul!Y24 -> 0 | Z24: =+O24+Jul!Z24 -> 0 | AA24: =+P24+Jul!AA24 -> 0 | AB24: =+Q24+Jul!AB24 -> 0 | AC24: =+R24+Jul!AC24 -> 0
A25: =+Jul!A25 -> Training | C25: =+Jul!C25 -> 0 | D25: =+Jul!D25 -> 0 | E25: =SUM(G25)+Jul!E25 -> 0 | F25: =SUM(H25)+Jul!F25 -> 0 | G25: 0 | H25: 0 | T25: =+I25+Jul!T25 -> 0 | U25: =+J25+Jul!U25 -> 0 | V25: =+K25+Jul!V25 -> 0 | W25: =+L25+Jul!W25 -> 0 | X25: =+M25+Jul!X25 -> 0 | Y25: =+N25+Jul!Y25 -> 0 | Z25: =+O25+Jul!Z25 -> 0 | AA25: =+P25+Jul!AA25 -> 0 | AB25: =+Q25+Jul!AB25 -> 0 | AC25: =+R25+Jul!AC25 -> 0
A26: =+Jul!A26 -> 0 | C26: =+Jul!C26 -> 0 | D26: =+Jul!D26 -> 0 | E26: =SUM(G26)+Jul!E26 -> 0 | F26: =SUM(H26)+Jul!F26 -> 0 | G26: 0 | H26: 0 | T26: =+I26+Jul!T26 -> 0 | U26: =+J26+Jul!U26 -> 0 | V26: =+K26+Jul!V26 -> 0 | W26: =+L26+Jul!W26 -> 0 | X26: =+M26+Jul!X26 -> 0 | Y26: =+N26+Jul!Y26 -> 0 | Z26: =+O26+Jul!Z26 -> 0 | AA26: =+P26+Jul!AA26 -> 0 | AB26: =+Q26+Jul!AB26 -> 0 | AC26: =+R26+Jul!AC26 -> 0
A27: Total Travel & Training: | C27: =SUM(C24:C26) -> 0 | D27: 0 | E27: 0 | F27: 0 | G27: 0 | H27: 0 | I27: =SUM(I24:I26) -> 0 | J27: 0 | K27: 0 | L27: 0 | M27: 0 | N27: 0 | O27: 0 | P27: 0 | Q27: 0 | R27: =SUM(R24:R26) -> 0
A28: C. EQUIPMENT
A29: =+Jul!A29 -> Equipment | C29: =+Jul!C29 -> 0 | D29: =+Jul!D29 -> 0 | E29: =SUM(G29)+Jul!E29 -> 0 | F29: =SUM(H29)+Jul!F29 -> 0 | G29: =SUM(I29+K29+M29+O29+Q29) -> 0 | H29: =SUM(J29+L29+N29+P29+R29) -> 0 | T29: =+I29+Jul!T29 -> 0 | U29: =+J29+Jul!U29 -> 0 | V29: =+K29+Jul!V29 -> 0 | W29: =+L29+Jul!W29 -> 0 | X29: =+M29+Jul!X29 -> 0 | Y29: =+N29+Jul!Y29 -> 0 | Z29: =+O29+Jul!Z29 -> 0 | AA29: =+P29+Jul!AA29 -> 0 | AB29: =+Q29+Jul!AB29 -> 0 | AC29: =+R29+Jul!AC29 -> 0
A30: =+Jul!A30 -> 0 | C30: =+Jul!C30 -> 0 | D30: =+Jul!D30 -> 0 | E30: =SUM(G30)+Jul!E30 -> 0 | F30: =SUM(H30)+Jul!F30 -> 0 | G30: =SUM(I30+K30+M30+O30+Q30) -> 0 | H30: =SUM(J30+L30+N30+P30+R30) -> 0 | T30: =+I30+Jul!T30 -> 0 | U30: =+J30+Jul!U30 -> 0 | V30: =+K30+Jul!V30 -> 0 | W30: =+L30+Jul!W30 -> 0 | X30: =+M30+Jul!X30 -> 0 | Y30: =+N30+Jul!Y30 -> 0 | Z30: =+O30+Jul!Z30 -> 0 | AA30: =+P30+Jul!AA30 -> 0 | AB30: =+Q30+Jul!AB30 -> 0 | AC30: =+R30+Jul!AC30 -> 0
A31: Total Equipment: | C31: =SUM(C29:C30) -> 0 | D31: 0 | E31: 0 | F31: 0 | G31: 0 | H31: 0 | I31: 0 | J31: 0 | K31: =SUM(K29:K30) -> 0 | L31: 0 | M31: 0 | N31: 0 | O31: 0 | P31: 0 | Q31: 0 | R31: 0
A32: D. CONSULTANTS
A33: =+Jul!A33 -> Congregate or HDM Meals | C33: =+Jul!C33 -> 0 | D33: =+Jul!D33 -> 0 | E33: =SUM(G33)+Jul!E33 -> 0 | F33: =SUM(H33)+Jul!F33 -> 0 | G33: =SUM(I33+K33+M33+O33+Q33) -> 0 | H33: =SUM(J33+L33+N33+P33+R33) -> 0 | T33: =+I33+Jul!T33 -> 0 | U33: =+J33+Jul!U33 -> 0 | V33: =+K33+Jul!V33 -> 0 | W33: =+L33+Jul!W33 -> 0 | X33: =+M33+Jul!X33 -> 0 | Y33: =+N33+Jul!Y33 -> 0 | Z33: =+O33+Jul!Z33 -> 0 | AA33: =+P33+Jul!AA33 -> 0 | AB33: =+Q33+Jul!AB33 -> 0 | AC33: =+R33+Jul!AC33 -> 0
A34: =+Jul!A34 -> Food Share Delivery Cost | C34: =+Jul!C34 -> 0 | D34: =+Jul!D34 -> 0 | E34: =SUM(G34)+Jul!E34 -> 0 | F34: =SUM(H34)+Jul!F34 -> 0 | G34: =SUM(I34+K34+M34+O34+Q34) -> 0 | H34: =SUM(J34+L34+N34+P34+R34) -> 0 | T34: =+I34+Jul!T34 -> 0 | U34: =+J34+Jul!U34 -> 0 | V34: =+K34+Jul!V34 -> 0 | W34: =+L34+Jul!W34 -> 0 | X34: =+M34+Jul!X34 -> 0 | Y34: =+N34+Jul!Y34 -> 0 | Z34: =+O34+Jul!Z34 -> 0 | AA34: =+P34+Jul!AA34 -> 0 | AB34: =+Q34+Jul!AB34 -> 0 | AC34: =+R34+Jul!AC34 -> 0
A35: Total Consultants: | C35: =SUM(C33:C34) -> 0 | D35: 0 | E35: 0 | F35: 0 | G35: 0 | H35: 0 | I35: =SUM(I33:I34) -> 0 | J35: 0 | K35: 0 | L35: 0 | M35: 0 | N35: 0 | O35: 0 | P35: 0 | Q35: 0 | R35: 0
A36: E. FOOD COSTS (Senior Nutrition Program Only)
A37: =+Jul!A37 -> Food Cost | C37: =+Jul!C37 -> 0 | D37: =+Jul!D37 -> 0 | E37: =SUM(G37)+Jul!E37 -> 0 | F37: =SUM(H37)+Jul!F37 -> 0 | G37: =SUM(I37+K37+M37+O37+Q37) -> 0 | H37: =SUM(J37+L37+N37+P37+R37) -> 0 | T37: =+I37+Jul!T37 -> 0 | U37: =+J37+Jul!U37 -> 0 | V37: =+K37+Jul!V37 -> 0 | W37: =+L37+Jul!W37 -> 0 | X37: =+M37+Jul!X37 -> 0 | Y37: =+N37+Jul!Y37 -> 0 | Z37: =+O37+Jul!Z37 -> 0 | AA37: =+P37+Jul!AA37 -> 0 | AB37: =+Q37+Jul!AB37 -> 0 | AC37: =+R37+Jul!AC37 -> 0
A38: Total Food Costs: | C38: =+C37 -> 0 | D38: =+D37 -> 0 | E38: =SUM(E37:E37) -> 0 | F38: =SUM(F37:F37) -> 0 | G38: =SUM(G37:G37) -> 0 | H38: =SUM(H37:H37) -> 0 | I38: =SUM(I37:I37) -> 0 | J38: 0 | K38: 0 | L38: 0 | M38: 0 | N38: 0 | O38: 0 | P38: 0 | Q38: 0 | R38: 0
A39: F. OTHER COSTS
A40: =+Jul!A40 -> Supplies:Non food(Bags,liners etc) | C40: =+Jul!C40 -> 0 | D40: =+Jul!D40 -> 0 | E40: =SUM(G40)+Jul!E40 -> 0 | F40: =SUM(H40)+Jul!F40 -> 0 | G40: =SUM(I40+K40+M40+O40+Q40) -> 0 | H40: =SUM(J40+L40+N40+P40+R40) -> 0 | T40: =+I40+Jul!T40 -> 0 | U40: =+J40+Jul!U40 -> 0 | V40: =+K40+Jul!V40 -> 0 | W40: =+L40+Jul!W40 -> 0 | X40: =+M40+Jul!X40 -> 0 | Y40: =+N40+Jul!Y40 -> 0 | Z40: =+O40+Jul!Z40 -> 0 | AA40: =+P40+Jul!AA40 -> 0 | AB40: =+Q40+Jul!AB40 -> 0 | AC40: =+R40+Jul!AC40 -> 0
A41: =+Jul!A41 -> Health permit | C41: =+Jul!C41 -> 0 | D41: =+Jul!D41 -> 0 | E41: =SUM(G41)+Jul!E41 -> 0 | F41: =SUM(H41)+Jul!F41 -> 0 | G41: 0 | H41: 0 | T41: =+I41+Jul!T41 -> 0 | U41: =+J41+Jul!U41 -> 0 | V41: =+K41+Jul!V41 -> 0 | W41: =+L41+Jul!W41 -> 0 | X41: =+M41+Jul!X41 -> 0 | Y41: =+N41+Jul!Y41 -> 0 | Z41: =+O41+Jul!Z41 -> 0 | AA41: =+P41+Jul!AA41 -> 0 | AB41: =+Q41+Jul!AB41 -> 0 | AC41: =+R41+Jul!AC41 -> 0
A42: =+Jul!A42 -> Rent | C42: =+Jul!C42 -> 0 | D42: =+Jul!D42 -> 0 | E42: =SUM(G42)+Jul!E42 -> 0 | F42: =SUM(H42)+Jul!F42 -> 0 | G42: 0 | H42: 0 | T42: =+I42+Jul!T42 -> 0 | U42: =+J42+Jul!U42 -> 0 | V42: =+K42+Jul!V42 -> 0 | W42: =+L42+Jul!W42 -> 0 | X42: =+M42+Jul!X42 -> 0 | Y42: =+N42+Jul!Y42 -> 0 | Z42: =+O42+Jul!Z42 -> 0 | AA42: =+P42+Jul!AA42 -> 0 | AB42: =+Q42+Jul!AB42 -> 0 | AC42: =+R42+Jul!AC42 -> 0
A43: =+Jul!A43 -> Program Publicity | C43: =+Jul!C43 -> 0 | D43: =+Jul!D43 -> 0 | E43: =SUM(G43)+Jul!E43 -> 0 | F43: =SUM(H43)+Jul!F43 -> 0 | G43: 0 | H43: 0 | T43: =+I43+Jul!T43 -> 0 | U43: =+J43+Jul!U43 -> 0 | V43: =+K43+Jul!V43 -> 0 | W43: =+L43+Jul!W43 -> 0 | X43: =+M43+Jul!X43 -> 0 | Y43: =+N43+Jul!Y43 -> 0 | Z43: =+O43+Jul!Z43 -> 0 | AA43: =+P43+Jul!AA43 -> 0 | AB43: =+Q43+Jul!AB43 -> 0 | AC43: =+R43+Jul!AC43 -> 0
A44: =+Jul!A44 -> Other | C44: =+Jul!C44 -> 0 | D44: =+Jul!D44 -> 0 | E44: =SUM(G44)+Jul!E44 -> 0 | F44: =SUM(H44)+Jul!F44 -> 0 | G44: =SUM(I44+K44+M44+O44+Q44) -> 0 | H44: 0 | T44: =+I44+Jul!T44 -> 0 | U44: =+J44+Jul!U44 -> 0 | V44: =+K44+Jul!V44 -> 0 | W44: =+L44+Jul!W44 -> 0 | X44: =+M44+Jul!X44 -> 0 | Y44: =+N44+Jul!Y44 -> 0 | Z44: =+O44+Jul!Z44 -> 0 | AA44: =+P44+Jul!AA44 -> 0 | AB44: =+Q44+Jul!AB44 -> 0 | AC44: =+R44+Jul!AC44 -> 0
A45: =+Jul!A45 -> Other | C45: =+Jul!C45 -> 0 | D45: =+Jul!D45 -> 0 | E45: =SUM(G45)+Jul!E45 -> 0 | F45: =SUM(H45)+Jul!F45 -> 0 | G45: 0 | H45: 0 | T45: =+I45+Jul!T45 -> 0 | U45: =+J45+Jul!U45 -> 0 | V45: =+K45+Jul!V45 -> 0 | W45: =+L45+Jul!W45 -> 0 | X45: =+M45+Jul!X45 -> 0 | Y45: =+N45+Jul!Y45 -> 0 | Z45: =+O45+Jul!Z45 -> 0 | AA45: =+P45+Jul!AA45 -> 0 | AB45: =+Q45+Jul!AB45 -> 0 | AC45: =+R45+Jul!AC45 -> 0
A46: =+Jul!A46 -> Indirect Costs (no more than 10% of grant funds) | C46: =+Jul!C46 -> 0 | D46: =+Jul!D46 -> 0 | E46: =SUM(G46)+Jul!E46 -> 0 | F46: =SUM(H46)+Jul!F46 -> 0 | G46: 0 | H46: 0 | T46: =+I46+Jul!T46 -> 0 | U46: =+J46+Jul!U46 -> 0 | V46: =+K46+Jul!V46 -> 0 | W46: =+L46+Jul!W46 -> 0 | X46: =+M46+Jul!X46 -> 0 | Y46: =+N46+Jul!Y46 -> 0 | Z46: =+O46+Jul!Z46 -> 0 | AA46: =+P46+Jul!AA46 -> 0 | AB46: =+Q46+Jul!AB46 -> 0 | AC46: =+R46+Jul!AC46 -> 0
T47: =+I47+Jul!T47 -> 0 | U47: =+J47+Jul!U47 -> 0 | V47: =+K47+Jul!V47 -> 0 | W47: =+L47+Jul!W47 -> 0 | X47: =+M47+Jul!X47 -> 0 | Y47: =+N47+Jul!Y47 -> 0 | Z47: =+O47+Jul!Z47 -> 0 | AA47: =+P47+Jul!AA47 -> 0 | AB47: =+Q47+Jul!AB47 -> 0 | AC47: =+R47+Jul!AC47 -> 0
T48: =+I48+Jul!T48 -> 0 | U48: =+J48+Jul!U48 -> 0 | V48: =+K48+Jul!V48 -> 0 | W48: =+L48+Jul!W48 -> 0 | X48: =+M48+Jul!X48 -> 0 | Y48: =+N48+Jul!Y48 -> 0 | Z48: =+O48+Jul!Z48 -> 0 | AA48: =+P48+Jul!AA48 -> 0 | AB48: =+Q48+Jul!AB48 -> 0 | AC48: =+R48+Jul!AC48 -> 0
A49: =+Jul!A49 -> 0 | C49: =+Jul!C49 -> 0 | D49: =+Jul!D49 -> 0 | E49: =SUM(G49)+Jul!E49 -> 0 | F49: =SUM(H49)+Jul!F49 -> 0 | G49: 0 | H49: 0 | T49: =+I49+Jul!T49 -> 0 | U49: =+J49+Jul!U49 -> 0 | V49: =+K49+Jul!V49 -> 0 | W49: =+L49+Jul!W49 -> 0 | X49: =+M49+Jul!X49 -> 0 | Y49: =+N49+Jul!Y49 -> 0 | Z49: =+O49+Jul!Z49 -> 0 | AA49: =+P49+Jul!AA49 -> 0 | AB49: =+Q49+Jul!AB49 -> 0 | AC49: =+R49+Jul!AC49 -> 0
A50: Total Other Costs: | C50: =SUM(C40:C49) -> 0 | D50: 0 | E50: 0 | F50: 0 | G50: 0 | H50: 0 | I50: 0 | J50: 0 | K50: 0 | L50: 0 | M50: 0 | N50: 0 | O50: 0 | P50: 0 | Q50: 0 | R50: 0
A52: 1. Current Month Total | G52: =SUM(G50,G38,G35,G31,G27,G22) -> 0 | H52: 0 | I52: 0 | J52: 0 | K52: 0 | L52: 0 | M52: 0 | N52: 0 | O52: 0 | P52: 0 | Q52: 0 | R52: 0
A53: 2. Year-to-Date Total** | C53: =+C50+C38+C35+C31+C27+C22 -> 0 | D53: =+D50+D38+D35+D31+D27+D22 -> 0 | E53: =+E22+E27+E31+E35+E38+E50 -> 0 | F53: =+F22+F27+F31+F35+F38+F50 -> 0 | I53: =+Jul!I53+I52 -> 0 | J53: =+Jul!J53+J52 -> 0 | K53: =+Jul!K53+K52 -> 0 | L53: =+Jul!L53+L52 -> 0 | M53: =+Jul!M53+M52 -> 0 | N53: =+Jul!N53+N52 -> 0 | O53: =+Jul!O53+O52 -> 0 | P53: =+Jul!P53+P52 -> 0 | Q53: =+Jul!Q53+Q52 -> 0 | R53: =+Jul!R53+R52 -> 0 | T53: =SUM(T13:T52) -> 0 | U53: =SUM(U13:U52) -> 0 | V53: 0 | W53: 0 | X53: 0 | Y53: 0 | Z53: 0 | AA53: 0 | AB53: 0 | AC53: 0
A54: 3. Grant Funds Remaining | I54: =+I8-I67 -> 0 | J54: =+J8-J67 -> 0 | K54: =+I54+J54 -> 0 | T54: =+T53/P1 ->  | U54: =+U53/R1 -> 
A55: EQUIPMENT INFO | I55: Date Acquired | N55: Equipment Location | T55: =+T53+U53 -> 0
A58: *Equipment is property of the VCAAA. Consult VCAAA Contractor Manual for more information
A59: I hereby certify that the above figures and attached expenditure report are accurate to the best of my knowledge.
A60: Prepared By: | B60: Angel Sierra | F60: Signature: | K60: Date: | P60: Title | Q60: Active Adult Center Supervisor
A62: Authorized By: | B62: Jeremy Laurentowski | F62: Signature: | P62: Title | Q62: Parks & Recreation Director
A64: AAA USE ONLY
A65: Grants Management Approval | G65: Amount Requested - Month | I65: =+I52 -> 0 | J65: =+J52 -> 0 | K65: =+I65+J65 -> 0 | L65: Date Received | P65: Fiscal Approval
G66: Amount Approved - Month | I66: =+I65 -> 0 | J66: =+J65 -> 0 | K66: =+I66+J66 -> 0
G67: Amount Approved - YTD | I67: =+Jul!I67+Aug!I66 -> 0 | J67: =+Jul!J67+Aug!J66 -> 0 | K67: =+I67+J67 -> 0
J69: Check total: | K69: =+K67+K54 -> 0

Sheet Sep (hidden)
A1: =+Aug!A1 -> Contractor Name: | B1: =+Aug!B1 -> Agency Name | E1: Month: | F1: =+Aug!F1+31 -> 2020-09-01 | I1: PO# | J1: =+Aug!J1 -> 0 | M1: GRANT AWARD AMOUNT: | O1: C1: | P1: =+Jul!P1 -> 0 | Q1: C2: | R1: =+Jul!R1 -> 0
A2: =+Aug!A2 -> Project Name: | B2: =+Budget!B1 -> VCAAA Senior Nutrition Program | E2: Grant#: | F2: =+Aug!F2 -> 0 | I2: Contact: | J2: =+Aug!J2 -> First Last | L2: =+Aug!L2 -> Phone: | M2: =+Aug!M2 -> (XXX) XXX-XXXX | P2: Total C: | R2: =+P1+R1 -> 0
I3: Address: | J3: =+Aug!J3 -> Street Address, City, CA 93XXX
A4: Number of Meals Served | C4: C1 | D4: C2
B5: Month | I5: Current Month Expenditures by Funding Source
B6: YTD | C6: =+C5+Aug!C6 -> 0 | D6: =+D5+Aug!D6 -> 0
A7: Item Description | C7: Authorized Budget by Allocation C1 | D7: Authorized Budget by Allocation C2 | E7: YTD Actual Expenses C1 | F7: YTD Actual Expenses C2 | G7: Total Current Month Expenses C1 | H7: Total Current Month Expenses C2 | I7: Grant Share C1 | J7: Grant Share C2 | K7: Cash Match C1 | L7: Cash Match C2 | M7: In-Kind Match C1 | N7: In-Kind Match C2 | O7: Program Income C1 | P7: Program Income C2 | Q7: Cash Non-Match C1 | R7: Cash Non-Match C2 | T7: Grant Share C1 | U7: Grant Share C2 | V7: Cash Match C1 | W7: Cash Match C2 | X7: In-Kind Match C1 | Y7: In-Kind Match C2 | Z7: Program Income C1 | AA7: Program Income C2 | AB7: Cash Non-Match C1 | AC7: Cash Non-Match C2
A8: APPROVED BUDGET | C8: =+Aug!C8 -> 0 | D8: =+Aug!D8 -> 0 | E8: =+E53 -> 0 | F8: =+F53 -> 0 | G8: =+G52 -> 0 | H8: =+H52 -> 0 | I8: =+P1 -> 0 | J8: =+R1 -> 0 | K8: =+Budget!Z34 -> 0 | L8: =+Budget!AA34 -> 0 | M8: =+Budget!Z35 -> 0 | N8: =+Budget!AA35 -> 0 | O8: =+Budget!Z38 -> 0 | P8: =+Budget!AA39 -> 0 | Q8: =+Budget!Z36 -> 0 | R8: =+Jul!R9 -> 0
A9: % OF TOTAL | C9: =IFERROR(+C$8/($C8+$D8),0) -> 0 | D9: =IFERROR(+D$8/($C8+$D8),0) -> 0
A10: TOTAL BUDGET | C10: =+C8+D8 -> 0 | H10: ACT YTD--> | I10: =+I52 -> 0 | J10: =+J52 -> 0 | K10: =+K52 -> 0 | L10: 0 | M10: 0 | N10: 0 | O10: 0 | P10: 0 | Q10: 0 | R10: 0
A12: A. PERSONNEL (Title / Name)
A13: =+Aug!A13 -> Admin/Fiscal | B13: =+Jul!B13 -> Position Title $XX.XX/hr | C13: =+Aug!C13 -> 0 | D13: =+Aug!D13 -> 0 | E13: =+G13+Aug!E13 -> 0 | F13: =+H13+Aug!F13 -> 0 | G13: =SUM(I13+K13+M13+O13+Q13) -> 0 | H13: =SUM(J13+L13+N13+P13+R13) -> 0 | T13: =+I13+Aug!T13 -> 0 | U13: =+J13+Aug!U13 -> 0 | V13: =+K13+Aug!V13 -> 0 | W13: =+L13+Aug!W13 -> 0 | X13: =+M13+Aug!X13 -> 0 | Y13: =+N13+Aug!Y13 -> 0 | Z13: =+O13+Aug!Z13 -> 0 | AA13: =+P13+Aug!AA13 -> 0 | AB13: =+Q13+Aug!AB13 -> 0 | AC13: =+R13+Aug!AC13 -> 0
A14: =+Aug!A14 -> Site/ HDM/MOW Coordinator | B14: =+Jul!B14 -> Position Title $XX.XX/hr | C14: =+Aug!C14 -> 0 | D14: =+Aug!D14 -> 0 | E14: =+G14+Aug!E14 -> 0 | F14: =+H14+Aug!F14 -> 0 | G14: =SUM(I14+K14+M14+O14+Q14) -> 0 | H14: =SUM(J14+L14+N14+P14+R14) -> 0 | T14: =+I14+Aug!T14 -> 0 | U14: =+J14+Aug!U14 -> 0 | V14: =+K14+Aug!V14 -> 0 | W14: =+L14+Aug!W14 -> 0 | X14: =+M14+Aug!X14 -> 0 | Y14: =+N14+Aug!Y14 -> 0 | Z14: =+O14+Aug!Z14 -> 0 | AA14: =+P14+Aug!AA14 -> 0 | AB14: =+Q14+Aug!AB14 -> 0 | AC14: =+R14+Aug!AC14 -> 0
A15: =+Aug!A15 -> Cook | B15: =+Jul!B15 -> Position Title $XX.XX/hr | C15: =+Aug!C15 -> 0 | D15: =+Aug!D15 -> 0 | E15: =+G15+Aug!E15 -> 0 | F15: =+H15+Aug!F15 -> 0 | G15: 0 | H15: 0 | T15: =+I15+Aug!T15 -> 0 | U15: =+J15+Aug!U15 -> 0 | V15: =+K15+Aug!V15 -> 0 | W15: =+L15+Aug!W15 -> 0 | X15: =+M15+Aug!X15 -> 0 | Y15: =+N15+Aug!Y15 -> 0 | Z15: =+O15+Aug!Z15 -> 0 | AA15: =+P15+Aug!AA15 -> 0 | AB15: =+Q15+Aug!AB15 -> 0 | AC15: =+R15+Aug!AC15 -> 0
A16: =+Aug!A16 -> Volunteers: | B16: =+Jul!B16 -> Position Title $XX.XX/hr | C16: =+Aug!C16 -> 0 | D16: =+Aug!D16 -> 0 | E16: =+G16+Aug!E16 -> 0 | F16: =+H16+Aug!F16 -> 0 | G16: 0 | H16: 0 | T16: =+I16+Aug!T16 -> 0 | U16: =+J16+Aug!U16 -> 0 | V16: =+K16+Aug!V16 -> 0 | W16: =+L16+Aug!W16 -> 0 | X16: =+M16+Aug!X16 -> 0 | Y16: =+N16+Aug!Y16 -> 0 | Z16: =+O16+Aug!Z16 -> 0 | AA16: =+P16+Aug!AA16 -> 0 | AB16: =+Q16+Aug!AB16 -> 0 | AC16: =+R16+Aug!AC16 -> 0
A17: =+Aug!A17 -> Volunteers: | B17: =+Jul!B17 -> Position Title $XX.XX/hr | C17: =+Aug!C17 -> 0 | D17: =+Aug!D17 -> 0 | E17: =+G17+Aug!E17 -> 0 | F17: =+H17+Aug!F17 -> 0 | G17: 0 | H17: 0 | T17: =+I17+Aug!T17 -> 0 | U17: =+J17+Aug!U17 -> 0 | V17: =+K17+Aug!V17 -> 0 | W17: =+L17+Aug!W17 -> 0 | X17: =+M17+Aug!X17 -> 0 | Y17: =+N17+Aug!Y17 -> 0 | Z17: =+O17+Aug!Z17 -> 0 | AA17: =+P17+Aug!AA17 -> 0 | AB17: =+Q17+Aug!AB17 -> 0 | AC17: =+R17+Aug!AC17 -> 0
A18: Volunteers | B18: =+Jul!B18 -> 0 | C18: =+Aug!C18 -> 0 | D18: =+Aug!D18 -> 0 | E18: =+G18+Aug!E18 -> 0 | F18: =+H18+Aug!F18 -> 0 | G18: 0 | H18: 0 | T18: =+I18+Aug!T18 -> 0 | U18: =+J18+Aug!U18 -> 0 | V18: =+K18+Aug!V18 -> 0 | W18: =+L18+Aug!W18 -> 0 | X18: =+M18+Aug!X18 -> 0 | Y18: =+N18+Aug!Y18 -> 0 | Z18: =+O18+Aug!Z18 -> 0 | AA18: =+P18+Aug!AA18 -> 0 | AB18: =+Q18+Aug!AB18 -> 0 | AC18: =+R18+Aug!AC18 -> 0
A19: Volunteers | B19: =+Jul!B19 -> 0 | C19: =+Aug!C19 -> 0 | D19: =+Aug!D19 -> 0 | E19: =+G19+Aug!E19 -> 0 | F19: =+H19+Aug!F19 -> 0 | G19: 0 | H19: 0 | T19: =+I19+Aug!T19 -> 0 | U19: =+J19+Aug!U19 -> 0 | V19: =+K19+Aug!V19 -> 0 | W19: =+L19+Aug!W19 -> 0 | X19: =+M19+Aug!X19 -> 0 | Y19: =+N19+Aug!Y19 -> 0 | Z19: =+O19+Aug!Z19 -> 0 | AA19: =+P19+Aug!AA19 -> 0 | AB19: =+Q19+Aug!AB19 -> 0 | AC19: =+R19+Aug!AC19 -> 0
A20: =+Aug!A20 -> 0 | B20: =+Jul!B20 -> 0 | C20: =+Aug!C20 -> 0 | D20: =+Aug!D20 -> 0 | E20: =+G20+Aug!E20 -> 0 | F20: =+H20+Aug!F20 -> 0 | G20: 0 | H20: 0 | T20: =+I20+Aug!T20 -> 0 | U20: =+J20+Aug!U20 -> 0 | V20: =+K20+Aug!V20 -> 0 | W20: =+L20+Aug!W20 -> 0 | X20: =+M20+Aug!X20 -> 0 | Y20: =+N20+Aug!Y20 -> 0 | Z20: =+O20+Aug!Z20 -> 0 | AA20: =+P20+Aug!AA20 -> 0 | AB20: =+Q20+Aug!AB20 -> 0 | AC20: =+R20+Aug!AC20 -> 0
A21: =+Aug!A21 -> 0 | B21: =+Jul!B21 -> 0 | C21: =+Aug!C21 -> 0 | D21: =+Aug!D21 -> 0 | E21: =+G21+Aug!E21 -> 0 | F21: =+H21+Aug!F21 -> 0 | G21: 0 | H21: 0 | T21: =+I21+Aug!T21 -> 0 | U21: =+J21+Aug!U21 -> 0 | V21: =+K21+Aug!V21 -> 0 | W21: =+L21+Aug!W21 -> 0 | X21: =+M21+Aug!X21 -> 0 | Y21: =+N21+Aug!Y21 -> 0 | Z21: =+O21+Aug!Z21 -> 0 | AA21: =+P21+Aug!AA21 -> 0 | AB21: =+Q21+Aug!AB21 -> 0 | AC21: =+R21+Aug!AC21 -> 0
A22: Total Personnel: | C22: =SUM(C13:C21) -> 0 | D22: 0 | E22: 0 | F22: 0 | G22: 0 | H22: 0 | I22: 0 | J22: 0 | K22: =SUM(K13:K21) -> 0 | L22: 0 | M22: 0 | N22: 0 | O22: 0 | P22: 0 | Q22: 0 | R22: 0
A23: B. TRAVEL & TRAINING
A24: =+Aug!A24 -> Travel/Mileage | C24: =+Aug!C24 -> 0 | D24: =+Aug!D24 -> 0 | E24: =+G24+Aug!E24 -> 0 | F24: =+H24+Aug!F24 -> 0 | G24: =SUM(I24+K24+M24+O24+Q24) -> 0 | H24: 0 | T24: =+I24+Aug!T24 -> 0 | U24: =+J24+Aug!U24 -> 0 | V24: =+K24+Aug!V24 -> 0 | W24: =+L24+Aug!W24 -> 0 | X24: =+M24+Aug!X24 -> 0 | Y24: =+N24+Aug!Y24 -> 0 | Z24: =+O24+Aug!Z24 -> 0 | AA24: =+P24+Aug!AA24 -> 0 | AB24: =+Q24+Aug!AB24 -> 0 | AC24: =+R24+Aug!AC24 -> 0
A25: =+Aug!A25 -> Training | C25: =+Aug!C25 -> 0 | D25: =+Aug!D25 -> 0 | E25: =+G25+Aug!E25 -> 0 | F25: =+H25+Aug!F25 -> 0 | G25: 0 | H25: 0 | T25: =+I25+Aug!T25 -> 0 | U25: =+J25+Aug!U25 -> 0 | V25: =+K25+Aug!V25 -> 0 | W25: =+L25+Aug!W25 -> 0 | X25: =+M25+Aug!X25 -> 0 | Y25: =+N25+Aug!Y25 -> 0 | Z25: =+O25+Aug!Z25 -> 0 | AA25: =+P25+Aug!AA25 -> 0 | AB25: =+Q25+Aug!AB25 -> 0 | AC25: =+R25+Aug!AC25 -> 0
A26: =+Aug!A26 -> 0 | C26: =+Aug!C26 -> 0 | D26: =+Aug!D26 -> 0 | E26: =+G26+Aug!E26 -> 0 | F26: =+H26+Aug!F26 -> 0 | G26: 0 | H26: 0 | T26: =+I26+Aug!T26 -> 0 | U26: =+J26+Aug!U26 -> 0 | V26: =+K26+Aug!V26 -> 0 | W26: =+L26+Aug!W26 -> 0 | X26: =+M26+Aug!X26 -> 0 | Y26: =+N26+Aug!Y26 -> 0 | Z26: =+O26+Aug!Z26 -> 0 | AA26: =+P26+Aug!AA26 -> 0 | AB26: =+Q26+Aug!AB26 -> 0 | AC26: =+R26+Aug!AC26 -> 0
A27: Total Travel & Training: | C27: =SUM(C24:C26) -> 0 | D27: 0 | E27: 0 | F27: 0 | G27: 0 | H27: 0 | I27: 0 | J27: 0 | K27: =SUM(K24:K26) -> 0 | L27: 0 | M27: 0 | N27: 0 | O27: 0 | P27: 0 | Q27: 0 | R27: 0
A28: C. EQUIPMENT
A29: =+Aug!A29 -> Equipment | C29: =+Aug!C29 -> 0 | D29: =+Aug!D29 -> 0 | E29: =SUM(G29)+Aug!E29 -> 0 | F29: =SUM(H29)+Aug!F29 -> 0 | G29: =SUM(I29+K29+M29+O29+Q29) -> 0 | H29: =SUM(J29+L29+N29+P29+R29) -> 0 | Q29: 0 | T29: =+I29+Aug!T29 -> 0 | U29: =+J29+Aug!U29 -> 0 | V29: =+K29+Aug!V29 -> 0 | W29: =+L29+Aug!W29 -> 0 | X29: =+M29+Aug!X29 -> 0 | Y29: =+N29+Aug!Y29 -> 0 | Z29: =+O29+Aug!Z29 -> 0 | AA29: =+P29+Aug!AA29 -> 0 | AB29: =+Q29+Aug!AB29 -> 0 | AC29: =+R29+Aug!AC29 -> 0
A30: =+Aug!A30 -> 0 | C30: =+Aug!C30 -> 0 | D30: =+Aug!D30 -> 0 | E30: =SUM(G30)+Aug!E30 -> 0 | F30: =SUM(H30)+Aug!F30 -> 0 | G30: =SUM(I30+K30+M30+O30+Q30) -> 0 | H30: =SUM(J30+L30+N30+P30+R30) -> 0 | T30: =+I30+Aug!T30 -> 0 | U30: =+J30+Aug!U30 -> 0 | V30: =+K30+Aug!V30 -> 0 | W30: =+L30+Aug!W30 -> 0 | X30: =+M30+Aug!X30 -> 0 | Y30: =+N30+Aug!Y30 -> 0 | Z30: =+O30+Aug!Z30 -> 0 | AA30: =+P30+Aug!AA30 -> 0 | AB30: =+Q30+Aug!AB30 -> 0 | AC30: =+R30+Aug!AC30 -> 0
A31: Total Equipment: | C31: =SUM(C29:C30) -> 0 | D31: 0 | E31: 0 | F31: 0 | G31: 0 | H31: 0 | I31: 0 | J31: 0 | K31: =SUM(K29:K30) -> 0 | L31: 0 | M31: 0 | N31: 0 | O31: 0 | P31: 0 | Q31: 0 | R31: 0
A32: D. CONSULTANTS
A33: =+Aug!A33 -> Congregate or HDM Meals | C33: =+Aug!C33 -> 0 | D33: =+Aug!D33 -> 0 | E33: =SUM(G33)+Aug!E33 -> 0 | F33: =SUM(H33)+Aug!F33 -> 0 | G33: =SUM(I33+K33+M33+O33+Q33) -> 0 | H33: =SUM(J33+L33+N33+P33+R33) -> 0 | T33: =+I33+Aug!T33 -> 0 | U33: =+J33+Aug!U33 -> 0 | V33: =+K33+Aug!V33 -> 0 | W33: =+L33+Aug!W33 -> 0 | X33: =+M33+Aug!X33 -> 0 | Y33: =+N33+Aug!Y33 -> 0 | Z33: =+O33+Aug!Z33 -> 0 | AA33: =+P33+Aug!AA33 -> 0 | AB33: =+Q33+Aug!AB33 -> 0 | AC33: =+R33+Aug!AC33 -> 0
A34: =+Aug!A34 -> Food Share Delivery Cost | C34: =+Aug!C34 -> 0 | D34: =+Aug!D34 -> 0 | E34: =SUM(G34)+Aug!E34 -> 0 | F34: =SUM(H34)+Aug!F34 -> 0 | G34: =SUM(I34+K34+M34+O34+Q34) -> 0 | H34: =SUM(J34+L34+N34+P34+R34) -> 0 | T34: =+I34+Aug!T34 -> 0 | U34: =+J34+Aug!U34 -> 0 | V34: =+K34+Aug!V34 -> 0 | W34: =+L34+Aug!W34 -> 0 | X34: =+M34+Aug!X34 -> 0 | Y34: =+N34+Aug!Y34 -> 0 | Z34: =+O34+Aug!Z34 -> 0 | AA34: =+P34+Aug!AA34 -> 0 | AB34: =+Q34+Aug!AB34 -> 0 | AC34: =+R34+Aug!AC34 -> 0
A35: Total Consultants: | C35: =SUM(C33:C34) -> 0 | D35: 0 | E35: 0 | F35: 0 | G35: 0 | H35: 0 | I35: 0 | J35: 0 | K35: =SUM(K33:K34) -> 0 | L35: 0 | M35: 0 | N35: 0 | O35: 0 | P35: 0 | Q35: 0 | R35: 0
A36: E. FOOD COSTS (Senior Nutrition Program Only)
A37: =+Aug!A37 -> Food Cost | C37: =+Aug!C37 -> 0 | D37: =+Aug!D37 -> 0 | E37: =SUM(G37)+Aug!E37 -> 0 | F37: =SUM(H37)+Aug!F37 -> 0 | G37: =SUM(I37+K37+M37+O37+Q37) -> 0 | H37: =SUM(J37+L37+N37+P37+R37) -> 0 | T37: =+I37+Aug!T37 -> 0 | U37: =+J37+Aug!U37 -> 0 | V37: =+K37+Aug!V37 -> 0 | W37: =+L37+Aug!W37 -> 0 | X37: =+M37+Aug!X37 -> 0 | Y37: =+N37+Aug!Y37 -> 0 | Z37: =+O37+Aug!Z37 -> 0 | AA37: =+P37+Aug!AA37 -> 0 | AB37: =+Q37+Aug!AB37 -> 0 | AC37: =+R37+Aug!AC37 -> 0
A38: Total Food Costs: | C38: =+C37 -> 0 | D38: =+D37 -> 0 | E38: =SUM(E37:E37) -> 0 | F38: 0 | G38: 0 | H38: 0 | I38: 0 | J38: 0 | K38: =SUM(K37:K37) -> 0 | L38: 0 | M38: 0 | N38: 0 | O38: 0 | P38: 0 | Q38: 0 | R38: 0
A39: F. OTHER COSTS
A40: =+Aug!A40 -> Supplies:Non food(Bags,liners etc) | C40: =+Aug!C40 -> 0 | D40: =+Aug!D40 -> 0 | E40: =SUM(G40)+Aug!E40 -> 0 | F40: =SUM(H40)+Aug!F40 -> 0 | G40: =SUM(I40+K40+M40+O40+Q40) -> 0 | H40: =SUM(J40+L40+N40+P40+R40) -> 0 | T40: =IFERROR(+I40+Aug!T40,0) -> 0 | U40: =IFERROR(+J40+Aug!U40,0) -> 0 | V40: =IFERROR(+K40+Aug!V40,0) -> 0 | W40: =IFERROR(+L40+Aug!W40,0) -> 0 | X40: =IFERROR(+M40+Aug!X40,0) -> 0 | Y40: =IFERROR(+N40+Aug!Y40,0) -> 0 | Z40: =IFERROR(+O40+Aug!Z40,0) -> 0 | AA40: =IFERROR(+P40+Aug!AA40,0) -> 0 | AB40: =IFERROR(+Q40+Aug!AB40,0) -> 0 | AC40: =IFERROR(+R40+Aug!AC40,0) -> 0
A41: =+Aug!A41 -> Health permit | C41: =+Aug!C41 -> 0 | D41: =+Aug!D41 -> 0 | E41: =SUM(G41)+Aug!E41 -> 0 | F41: =SUM(H41)+Aug!F41 -> 0 | G41: =SUM(I41+K41+M41+O41+Q41) -> 0 | H41: =SUM(J41+L41+N41+P41+R41) -> 0 | T41: =IFERROR(+I41+Aug!T41,0) -> 0 | U41: =IFERROR(+J41+Aug!U41,0) -> 0 | V41: =IFERROR(+K41+Aug!V41,0) -> 0 | W41: =IFERROR(+L41+Aug!W41,0) -> 0 | X41: =IFERROR(+M41+Aug!X41,0) -> 0 | Y41: =IFERROR(+N41+Aug!Y41,0) -> 0 | Z41: =IFERROR(+O41+Aug!Z41,0) -> 0 | AA41: =IFERROR(+P41+Aug!AA41,0) -> 0 | AB41: =IFERROR(+Q41+Aug!AB41,0) -> 0 | AC41: =IFERROR(+R41+Aug!AC41,0) -> 0
A42: =+Aug!A42 -> Rent | C42: =+Aug!C42 -> 0 | D42: =+Aug!D42 -> 0 | E42: =SUM(G42)+Aug!E42 -> 0 | F42: =SUM(H42)+Aug!F42 -> 0 | G42: 0 | H42: 0 | T42: =IFERROR(+I42+Aug!T42,0) -> 0 | U42: =IFERROR(+J42+Aug!U42,0) -> 0 | V42: =IFERROR(+K42+Aug!V42,0) -> 0 | W42: =IFERROR(+L42+Aug!W42,0) -> 0 | X42: =IFERROR(+M42+Aug!X42,0) -> 0 | Y42: =IFERROR(+N42+Aug!Y42,0) -> 0 | Z42: =IFERROR(+O42+Aug!Z42,0) -> 0 | AA42: =IFERROR(+P42+Aug!AA42,0) -> 0 | AB42: =IFERROR(+Q42+Aug!AB42,0) -> 0 | AC42: =IFERROR(+R42+Aug!AC42,0) -> 0
A43: =+Aug!A43 -> Program Publicity | C43: =+Aug!C43 -> 0 | D43: =+Aug!D43 -> 0 | E43: =SUM(G43)+Aug!E43 -> 0 | F43: =SUM(H43)+Aug!F43 -> 0 | G43: 0 | H43: 0 | T43: =IFERROR(+I43+Aug!T43,0) -> 0 | U43: =IFERROR(+J43+Aug!U43,0) -> 0 | V43: =IFERROR(+K43+Aug!V43,0) -> 0 | W43: =IFERROR(+L43+Aug!W43,0) -> 0 | X43: =IFERROR(+M43+Aug!X43,0) -> 0 | Y43: =IFERROR(+N43+Aug!Y43,0) -> 0 | Z43: =IFERROR(+O43+Aug!Z43,0) -> 0 | AA43: =IFERROR(+P43+Aug!AA43,0) -> 0 | AB43: =IFERROR(+Q43+Aug!AB43,0) -> 0 | AC43: =IFERROR(+R43+Aug!AC43,0) -> 0
A44: =+Aug!A44 -> Other | C44: =+Aug!C44 -> 0 | D44: =+Aug!D44 -> 0 | E44: =SUM(G44)+Aug!E44 -> 0 | F44: =SUM(H44)+Aug!F44 -> 0 | G44: =SUM(I44+K44+M44+O44+Q44) -> 0 | H44: =SUM(J44+L44+N44+P44+R44) -> 0 | T44: =IFERROR(+I44+Aug!T44,0) -> 0 | U44: =IFERROR(+J44+Aug!U44,0) -> 0 | V44: =IFERROR(+K44+Aug!V44,0) -> 0 | W44: =IFERROR(+L44+Aug!W44,0) -> 0 | X44: =IFERROR(+M44+Aug!X44,0) -> 0 | Y44: =IFERROR(+N44+Aug!Y44,0) -> 0 | Z44: =IFERROR(+O44+Aug!Z44,0) -> 0 | AA44: =IFERROR(+P44+Aug!AA44,0) -> 0 | AB44: =IFERROR(+Q44+Aug!AB44,0) -> 0 | AC44: =IFERROR(+R44+Aug!AC44,0) -> 0
A45: =+Aug!A45 -> Other | C45: =+Aug!C45 -> 0 | D45: =+Aug!D45 -> 0 | E45: =SUM(G45)+Aug!E45 -> 0 | F45: =SUM(H45)+Aug!F45 -> 0 | G45: =SUM(I45+K45+M45+O45+Q45) -> 0 | H45: =SUM(J45+L45+N45+P45+R45) -> 0 | T45: =IFERROR(+I45+Aug!T45,0) -> 0 | U45: =IFERROR(+J45+Aug!U45,0) -> 0 | V45: =IFERROR(+K45+Aug!V45,0) -> 0 | W45: =IFERROR(+L45+Aug!W45,0) -> 0 | X45: =IFERROR(+M45+Aug!X45,0) -> 0 | Y45: =IFERROR(+N45+Aug!Y45,0) -> 0 | Z45: =IFERROR(+O45+Aug!Z45,0) -> 0 | AA45: =IFERROR(+P45+Aug!AA45,0) -> 0 | AB45: =IFERROR(+Q45+Aug!AB45,0) -> 0 | AC45: =IFERROR(+R45+Aug!AC45,0) -> 0
A46: =+Aug!A46 -> Indirect Costs (no more than 10% of grant funds) | T46: =IFERROR(+I46+Aug!T46,0) -> 0 | U46: =IFERROR(+J46+Aug!U46,0) -> 0 | V46: =IFERROR(+K46+Aug!V46,0) -> 0 | W46: =IFERROR(+L46+Aug!W46,0) -> 0 | X46: =IFERROR(+M46+Aug!X46,0) -> 0 | Y46: =IFERROR(+N46+Aug!Y46,0) -> 0 | Z46: =IFERROR(+O46+Aug!Z46,0) -> 0 | AA46: =IFERROR(+P46+Aug!AA46,0) -> 0 | AB46: =IFERROR(+Q46+Aug!AB46,0) -> 0 | AC46: =IFERROR(+R46+Aug!AC46,0) -> 0
T47: =IFERROR(+I47+Aug!T47,0) -> 0 | U47: =IFERROR(+J47+Aug!U47,0) -> 0 | V47: =IFERROR(+K47+Aug!V47,0) -> 0 | W47: =IFERROR(+L47+Aug!W47,0) -> 0 | X47: =IFERROR(+M47+Aug!X47,0) -> 0 | Y47: =IFERROR(+N47+Aug!Y47,0) -> 0 | Z47: =IFERROR(+O47+Aug!Z47,0) -> 0 | AA47: =IFERROR(+P47+Aug!AA47,0) -> 0 | AB47: =IFERROR(+Q47+Aug!AB47,0) -> 0 | AC47: =IFERROR(+R47+Aug!AC47,0) -> 0
T48: =IFERROR(+I48+Aug!T48,0) -> 0 | U48: =IFERROR(+J48+Aug!U48,0) -> 0 | V48: =IFERROR(+K48+Aug!V48,0) -> 0 | W48: =IFERROR(+L48+Aug!W48,0) -> 0 | X48: =IFERROR(+M48+Aug!X48,0) -> 0 | Y48: =IFERROR(+N48+Aug!Y48,0) -> 0 | Z48: =IFERROR(+O48+Aug!Z48,0) -> 0 | AA48: =IFERROR(+P48+Aug!AA48,0) -> 0 | AB48: =IFERROR(+Q48+Aug!AB48,0) -> 0 | AC48: =IFERROR(+R48+Aug!AC48,0) -> 0
A49: =+Aug!A49 -> 0 | C49: =+Aug!C49 -> 0 | D49: =+Aug!D49 -> 0 | E49: =SUM(G49)+Aug!E49 -> 0 | F49: =SUM(H49)+Aug!F49 -> 0 | G49: 0 | H49: 0 | T49: =IFERROR(+I49+Aug!T49,0) -> 0 | U49: =IFERROR(+J49+Aug!U49,0) -> 0 | V49: =IFERROR(+K49+Aug!V49,0) -> 0 | W49: =IFERROR(+L49+Aug!W49,0) -> 0 | X49: =IFERROR(+M49+Aug!X49,0) -> 0 | Y49: =IFERROR(+N49+Aug!Y49,0) -> 0 | Z49: =IFERROR(+O49+Aug!Z49,0) -> 0 | AA49: =IFERROR(+P49+Aug!AA49,0) -> 0 | AB49: =IFERROR(+Q49+Aug!AB49,0) -> 0 | AC49: =IFERROR(+R49+Aug!AC49,0) -> 0
A50: Total Other Costs: | C50: =SUM(C40:C49) -> 0 | D50: 0 | E50: 0 | F50: 0 | G50: 0 | H50: 0 | I50: 0 | J50: 0 | K50: 0 | L50: 0 | M50: 0 | N50: 0 | O50: 0 | P50: 0 | Q50: 0 | R50: 0
A52: 1. Current Month Total | G52: =SUM(G50,G38,G35,G31,G27,G22) -> 0 | H52: 0 | I52: 0 | J52: 0 | K52: 0 | L52: 0 | M52: 0 | N52: 0 | O52: 0 | P52: 0 | Q52: 0 | R52: 0
A53: 2. Year-to-Date Total** | C53: =+C50+C38+C35+C31+C27+C22 -> 0 | D53: =+D50+D38+D35+D31+D27+D22 -> 0 | E53: =+E22+E27+E31+E35+E38+E50 -> 0 | F53: =+F22+F27+F31+F35+F38+F50 -> 0 | I53: =+I52+Aug!I53 -> 0 | J53: =+J52+Aug!J53 -> 0 | K53: =+K52+Aug!K53 -> 0 | L53: =+L52+Aug!L53 -> 0 | M53: =+M52+Aug!M53 -> 0 | N53: =+N52+Aug!N53 -> 0 | O53: =+O52+Aug!O53 -> 0 | P53: =+P52+Aug!P53 -> 0 | Q53: =+Q52+Aug!Q53 -> 0 | R53: =+R52+Aug!R53 -> 0 | T53: =SUM(T13:T52) -> 0 | U53: =SUM(U13:U52) -> 0 | V53: 0 | W53: 0 | X53: 0 | Y53: 0 | Z53: 0 | AA53: 0 | AB53: 0 | AC53: 0
A54: 3. Grant Funds Remaining | I54: =+I8-I67 -> 0 | J54: =+J8-J67 -> 0 | K54: =+I54+J54 -> 0 | T54: =IFERROR(+T53/P1,0) -> 0 | U54: =IFERROR(+U53/Q1,0) -> 0
A55: EQUIPMENT INFO | I55: Date Acquired | N55: Equipment Location | T55: =+T53+U53 -> 0
A58: *Equipment is property of the VCAAA. Consult VCAAA Contractor Manual for more information
A59: I hereby certify that the above figures and attached expenditure report are accurate to the best of my knowledge.
A60: Prepared By: | F60: Signature: | K60: Date: | P60: Title
B61: Angel Sierra | Q61: Active Adult Center Supervisor
A62: Authorized By: | F62: Signature: | P62: Title
B63: Jeremy Laurentowski | Q63: Parks & Recreation Director
A64: AAA USE ONLY
A65: Grants Management Approval | G65: Amount Requested - Month | I65: =+I52 -> 0 | J65: =+J52 -> 0 | K65: =+I65+J65 -> 0 | L65: Date Received | P65: Fiscal Approval
G66: Amount Approved - Month | I66: =+I65 -> 0 | J66: =+J65 -> 0 | K66: =+I66+J66 -> 0
G67: Amount Approved - YTD | I67: =+I66+Aug!I67 -> 0 | J67: =+J66+Aug!J67 -> 0 | K67: =+I67+J67 -> 0
J69: Check total: | K69: =+K67+K54 -> 0

Sheet Oct (hidden)
A1: =+Sep!A1 -> Contractor Name: | B1: =+Sep!B1 -> Agency Name | E1: Month: | F1: =+Sep!F1+31 -> 2020-10-02 | I1: PO# | J1: =+Sep!J1 -> 0 | M1: GRANT AWARD AMOUNT: | O1: C1: | P1: =+Budget!Z40 -> 0 | Q1: C2: | R1: =+Budget!AA40 -> 0
A2: =+Sep!A2 -> Project Name: | B2: =+Budget!B1 -> VCAAA Senior Nutrition Program | E2: Grant#: | F2: =+Budget!V10 -> 0 | I2: Contact: | J2: =+Sep!J2 -> First Last | L2: =+Sep!L2 -> Phone: | M2: =+Sep!M2 -> (XXX) XXX-XXXX | P2: Total C: | R2: =+P1+R1 -> 0
I3: Address: | J3: =+Sep!J3 -> Street Address, City, CA 93XXX
A4: Number of Meals Served | C4: C1 | D4: C2
B5: Month | I5: Current Month Expenditures by Funding Source
B6: YTD | C6: =+C5+Sep!C6 -> 0 | D6: =+D5+Sep!D6 -> 0
A7: Item Description | C7: Authorized Budget by Allocation C1 | D7: Authorized Budget by Allocation C2 | E7: YTD Actual Expenses C1 | F7: YTD Actual Expenses C2 | G7: Total Current Month Expenses C1 | H7: Total Current Month Expenses C2 | I7: Grant Share C1 | J7: Grant Share C2 | K7: Cash Match C1 | L7: Cash Match C2 | M7: In-Kind Match C1 | N7: In-Kind Match C2 | O7: Program Income C1 | P7: Program Income C2 | Q7: Cash Non-Match C1 | R7: Cash Non-Match C2 | T7: Grant Share C1 | U7: Grant Share C2 | V7: Cash Match C1 | W7: Cash Match C2 | X7: In-Kind Match C1 | Y7: In-Kind Match C2 | Z7: Program Income C1 | AA7: Program Income C2 | AB7: Cash Non-Match C1 | AC7: Cash Non-Match C2
A8: APPROVED BUDGET | C8: =+C53 -> 0 | D8: =+D53 -> 0 | E8: =+E53 -> 0 | F8: =+F53 -> 0 | G8: =+G52 -> 0 | H8: =+H52 -> 0 | I8: =+P1 -> 0 | J8: =+R1 -> 0 | K8: =+Budget!Z34 -> 0 | L8: =+Budget!AA34 -> 0 | M8: =+Budget!Z35 -> 0 | N8: =+Budget!AA35 -> 0 | O8: =+Budget!Z38 -> 0 | P8: =+Budget!AA39 -> 0 | Q8: =+Budget!Z36 -> 0 | R8: =+Jul!R9 -> 0
A9: % OF TOTAL | C9: =IFERROR(+C$8/($C8+$D8),0) -> 0 | D9: =IFERROR(+D$8/($C8+$D8),0) -> 0
A10: TOTAL BUDGET | C10: =+C8+D8 -> 0 | H10: ACT YTD--> | I10: =+I52 -> 0 | J10: =+J52 -> 0 | K10: =+K52 -> 0 | L10: 0 | M10: 0 | N10: 0 | O10: 0 | P10: 0 | Q10: 0 | R10: 0
A12: A. PERSONNEL (Title / Name)
A13: =+Sep!A13 -> Admin/Fiscal | B13: =+Jul!B13 -> Position Title $XX.XX/hr | C13: =+Budget!D11 -> 0 | D13: =+Budget!N11 -> 0 | E13: =+G13+Sep!E13 -> 0 | F13: =+H13+Sep!F13 -> 0 | G13: =SUM(I13+K13+M13+O13+Q13) -> 0 | H13: =SUM(J13+L13+N13+P13+R13) -> 0 | T13: =+I13+Sep!T13 -> 0 | U13: =+J13+Sep!U13 -> 0 | V13: =+K13+Sep!V13 -> 0 | W13: =+L13+Sep!W13 -> 0 | X13: =+M13+Sep!X13 -> 0 | Y13: =+N13+Sep!Y13 -> 0 | Z13: =+O13+Sep!Z13 -> 0 | AA13: =+P13+Sep!AA13 -> 0 | AB13: =+Q13+Sep!AB13 -> 0 | AC13: =+R13+Sep!AC13 -> 0
A14: =+Sep!A14 -> Site/ HDM/MOW Coordinator | B14: =+Jul!B14 -> Position Title $XX.XX/hr | C14: =+Budget!D12 -> 0 | D14: =+Budget!N12 -> 0 | E14: =+G14+Sep!E14 -> 0 | F14: =+H14+Sep!F14 -> 0 | G14: =SUM(I14+K14+M14+O14+Q14) -> 0 | H14: =SUM(J14+L14+N14+P14+R14) -> 0 | T14: =+I14+Sep!T14 -> 0 | U14: =+J14+Sep!U14 -> 0 | V14: =+K14+Sep!V14 -> 0 | W14: =+L14+Sep!W14 -> 0 | X14: =+M14+Sep!X14 -> 0 | Y14: =+N14+Sep!Y14 -> 0 | Z14: =+O14+Sep!Z14 -> 0 | AA14: =+P14+Sep!AA14 -> 0 | AB14: =+Q14+Sep!AB14 -> 0 | AC14: =+R14+Sep!AC14 -> 0
A15: =+Sep!A15 -> Cook | B15: =+Jul!B15 -> Position Title $XX.XX/hr | C15: =+Budget!D13 -> 0 | D15: =+Budget!N13 -> 0 | E15: =+G15+Sep!E15 -> 0 | F15: =+H15+Sep!F15 -> 0 | G15: 0 | H15: 0 | T15: =+I15+Sep!T15 -> 0 | U15: =+J15+Sep!U15 -> 0 | V15: =+K15+Sep!V15 -> 0 | W15: =+L15+Sep!W15 -> 0 | X15: =+M15+Sep!X15 -> 0 | Y15: =+N15+Sep!Y15 -> 0 | Z15: =+O15+Sep!Z15 -> 0 | AA15: =+P15+Sep!AA15 -> 0 | AB15: =+Q15+Sep!AB15 -> 0 | AC15: =+R15+Sep!AC15 -> 0
A16: =+Sep!A16 -> Volunteers: | B16: =+Jul!B16 -> Position Title $XX.XX/hr | C16: =+Budget!D14 -> 0 | D16: =+Budget!N14 -> 0 | E16: =+G16+Sep!E16 -> 0 | F16: =+H16+Sep!F16 -> 0 | G16: 0 | H16: 0 | T16: =+I16+Sep!T16 -> 0 | U16: =+J16+Sep!U16 -> 0 | V16: =+K16+Sep!V16 -> 0 | W16: =+L16+Sep!W16 -> 0 | X16: =+M16+Sep!X16 -> 0 | Y16: =+N16+Sep!Y16 -> 0 | Z16: =+O16+Sep!Z16 -> 0 | AA16: =+P16+Sep!AA16 -> 0 | AB16: =+Q16+Sep!AB16 -> 0 | AC16: =+R16+Sep!AC16 -> 0
A17: =+Sep!A17 -> Volunteers: | B17: =+Jul!B17 -> Position Title $XX.XX/hr | C17: =+Budget!D15 -> 0 | D17: =+Budget!N15 -> 0 | E17: =+G17+Sep!E17 -> 0 | F17: =+H17+Sep!F17 -> 0 | G17: 0 | H17: 0 | T17: =+I17+Sep!T17 -> 0 | U17: =+J17+Sep!U17 -> 0 | V17: =+K17+Sep!V17 -> 0 | W17: =+L17+Sep!W17 -> 0 | X17: =+M17+Sep!X17 -> 0 | Y17: =+N17+Sep!Y17 -> 0 | Z17: =+O17+Sep!Z17 -> 0 | AA17: =+P17+Sep!AA17 -> 0 | AB17: =+Q17+Sep!AB17 -> 0 | AC17: =+R17+Sep!AC17 -> 0
A18: Volunteers | B18: =+Jul!B18 -> 0 | C18: =+Budget!D16 -> 0 | D18: =+Budget!N16 -> 0 | E18: =+G18+Sep!E18 -> 0 | F18: =+H18+Sep!F18 -> 0 | G18: 0 | H18: 0 | T18: =+I18+Sep!T18 -> 0 | U18: =+J18+Sep!U18 -> 0 | V18: =+K18+Sep!V18 -> 0 | W18: =+L18+Sep!W18 -> 0 | X18: =+M18+Sep!X18 -> 0 | Y18: =+N18+Sep!Y18 -> 0 | Z18: =+O18+Sep!Z18 -> 0 | AA18: =+P18+Sep!AA18 -> 0 | AB18: =+Q18+Sep!AB18 -> 0 | AC18: =+R18+Sep!AC18 -> 0
A19: Volunteers | B19: =+Jul!B19 -> 0 | C19: =+Budget!D17 -> 0 | D19: =+Budget!N17 -> 0 | E19: =+G19+Sep!E19 -> 0 | F19: =+H19+Sep!F19 -> 0 | G19: 0 | H19: 0 | T19: =+I19+Sep!T19 -> 0 | U19: =+J19+Sep!U19 -> 0 | V19: =+K19+Sep!V19 -> 0 | W19: =+L19+Sep!W19 -> 0 | X19: =+M19+Sep!X19 -> 0 | Y19: =+N19+Sep!Y19 -> 0 | Z19: =+O19+Sep!Z19 -> 0 | AA19: =+P19+Sep!AA19 -> 0 | AB19: =+Q19+Sep!AB19 -> 0 | AC19: =+R19+Sep!AC19 -> 0
A20: =+Sep!A20 -> 0 | B20: =+Jul!B20 -> 0 | C20: =+Budget!D18 -> 0 | D20: =+Budget!N18 -> 0 | E20: =+G20+Sep!E20 -> 0 | F20: =+H20+Sep!F20 -> 0 | G20: 0 | H20: 0 | T20: =+I20+Sep!T20 -> 0 | U20: =+J20+Sep!U20 -> 0 | V20: =+K20+Sep!V20 -> 0 | W20: =+L20+Sep!W20 -> 0 | X20: =+M20+Sep!X20 -> 0 | Y20: =+N20+Sep!Y20 -> 0 | Z20: =+O20+Sep!Z20 -> 0 | AA20: =+P20+Sep!AA20 -> 0 | AB20: =+Q20+Sep!AB20 -> 0 | AC20: =+R20+Sep!AC20 -> 0
A21: =+Sep!A21 -> 0 | B21: =+Jul!B21 -> 0 | C21: =+Budget!D19 -> 0 | D21: =+Budget!N19 -> 0 | E21: =+G21+Sep!E21 -> 0 | F21: =+H21+Sep!F21 -> 0 | G21: 0 | H21: 0 | T21: =+I21+Sep!T21 -> 0 | U21: =+J21+Sep!U21 -> 0 | V21: =+K21+Sep!V21 -> 0 | W21: =+L21+Sep!W21 -> 0 | X21: =+M21+Sep!X21 -> 0 | Y21: =+N21+Sep!Y21 -> 0 | Z21: =+O21+Sep!Z21 -> 0 | AA21: =+P21+Sep!AA21 -> 0 | AB21: =+Q21+Sep!AB21 -> 0 | AC21: =+R21+Sep!AC21 -> 0
A22: Total Personnel: | C22: =SUM(C13:C21) -> 0 | D22: 0 | E22: 0 | F22: 0 | G22: 0 | H22: 0 | I22: =SUM(I13:I21) -> 0 | J22: 0 | K22: 0 | L22: 0 | M22: 0 | N22: 0 | O22: 0 | P22: 0 | Q22: 0 | R22: 0
A23: B. TRAVEL & TRAINING
A24: =+Sep!A24 -> Travel/Mileage | C24: =+Budget!D22 -> 0 | D24: =+Budget!N22 -> 0 | E24: =+G24+Sep!E24 -> 0 | F24: =+H24+Sep!F24 -> 0 | G24: =SUM(I24+K24+M24+O24+Q24) -> 0 | H24: 0 | T24: =+I24+Sep!T24 -> 0 | U24: =+J24+Sep!U24 -> 0 | V24: =+K24+Sep!V24 -> 0 | W24: =+L24+Sep!W24 -> 0 | X24: =+M24+Sep!X24 -> 0 | Y24: =+N24+Sep!Y24 -> 0 | Z24: =+O24+Sep!Z24 -> 0 | AA24: =+P24+Sep!AA24 -> 0 | AB24: =+Q24+Sep!AB24 -> 0 | AC24: =+R24+Sep!AC24 -> 0
A25: =+Sep!A25 -> Training | C25: =+Budget!D23 -> 0 | D25: =+Budget!N23 -> 0 | E25: =+G25+Sep!E25 -> 0 | F25: =+H25+Sep!F25 -> 0 | G25: 0 | H25: 0 | T25: =+I25+Sep!T25 -> 0 | U25: =+J25+Sep!U25 -> 0 | V25: =+K25+Sep!V25 -> 0 | W25: =+L25+Sep!W25 -> 0 | X25: =+M25+Sep!X25 -> 0 | Y25: =+N25+Sep!Y25 -> 0 | Z25: =+O25+Sep!Z25 -> 0 | AA25: =+P25+Sep!AA25 -> 0 | AB25: =+Q25+Sep!AB25 -> 0 | AC25: =+R25+Sep!AC25 -> 0
A26: =+Sep!A26 -> 0 | C26: =+Budget!D24 -> 0 | D26: =+Budget!N24 -> 0 | E26: =+G26+Sep!E26 -> 0 | F26: =+H26+Sep!F26 -> 0 | G26: 0 | H26: 0 | T26: =+I26+Sep!T26 -> 0 | U26: =+J26+Sep!U26 -> 0 | V26: =+K26+Sep!V26 -> 0 | W26: =+L26+Sep!W26 -> 0 | X26: =+M26+Sep!X26 -> 0 | Y26: =+N26+Sep!Y26 -> 0 | Z26: =+O26+Sep!Z26 -> 0 | AA26: =+P26+Sep!AA26 -> 0 | AB26: =+Q26+Sep!AB26 -> 0 | AC26: =+R26+Sep!AC26 -> 0
A27: Total Travel & Training: | C27: =SUM(C24:C26) -> 0 | D27: 0 | E27: 0 | F27: 0 | G27: 0 | H27: 0 | I27: 0 | J27: 0 | K27: =SUM(K24:K26) -> 0 | L27: 0 | M27: 0 | N27: 0 | O27: 0 | P27: 0 | Q27: 0 | R27: 0
A28: C. EQUIPMENT
A29: =+Budget!L27 -> Equipment | C29: =+Budget!D27 -> 0 | D29: =+Budget!N27 -> 0 | E29: =+G29+Sep!E29 -> 0 | F29: =+H29+Sep!F29 -> 0 | G29: =SUM(I29+K29+M29+O29+Q29) -> 0 | H29: =SUM(J29+L29+N29+P29+R29) -> 0 | T29: =+I29+Sep!T29 -> 0 | U29: =+J29+Sep!U29 -> 0 | V29: =+K29+Sep!V29 -> 0 | W29: =+L29+Sep!W29 -> 0 | X29: =+M29+Sep!X29 -> 0 | Y29: =+N29+Sep!Y29 -> 0 | Z29: =+O29+Sep!Z29 -> 0 | AA29: =+P29+Sep!AA29 -> 0 | AB29: =+Q29+Sep!AB29 -> 0 | AC29: =+R29+Sep!AC29 -> 0
A30: =+Budget!L28 -> 0 | C30: =+Budget!D28 -> 0 | D30: =+Budget!N28 -> 0 | E30: =+G30+Sep!E30 -> 0 | F30: =+H30+Sep!F30 -> 0 | G30: =SUM(I30+K30+M30+O30+Q30) -> 0 | H30: =SUM(J30+L30+N30+P30+R30) -> 0 | T30: =+I30+Sep!T30 -> 0 | U30: =+J30+Sep!U30 -> 0 | V30: =+K30+Sep!V30 -> 0 | W30: =+L30+Sep!W30 -> 0 | X30: =+M30+Sep!X30 -> 0 | Y30: =+N30+Sep!Y30 -> 0 | Z30: =+O30+Sep!Z30 -> 0 | AA30: =+P30+Sep!AA30 -> 0 | AB30: =+Q30+Sep!AB30 -> 0 | AC30: =+R30+Sep!AC30 -> 0
A31: Total Equipment: | C31: =SUM(C29:C30) -> 0 | D31: 0 | E31: 0 | F31: 0 | G31: 0 | H31: 0 | I31: 0 | J31: 0 | K31: =SUM(K29:K30) -> 0 | L31: 0 | M31: 0 | N31: 0 | O31: 0 | P31: 0 | Q31: 0 | R31: 0
A32: D. CONSULTANTS
A33: =+Sep!A33 -> Congregate or HDM Meals | C33: =+Budget!D31 -> 0 | D33: =+Budget!N31 -> 0 | E33: =+G33+Sep!E33 -> 0 | F33: =+H33+Sep!F33 -> 0 | G33: =SUM(I33+K33+M33+O33+Q33) -> 0 | H33: =SUM(J33+L33+N33+P33+R33) -> 0 | T33: =+I33+Sep!T33 -> 0 | U33: =+J33+Sep!U33 -> 0 | V33: =+K33+Sep!V33 -> 0 | W33: =+L33+Sep!W33 -> 0 | X33: =+M33+Sep!X33 -> 0 | Y33: =+N33+Sep!Y33 -> 0 | Z33: =+O33+Sep!Z33 -> 0 | AA33: =+P33+Sep!AA33 -> 0 | AB33: =+Q33+Sep!AB33 -> 0 | AC33: =+R33+Sep!AC33 -> 0
A34: =+Sep!A34 -> Food Share Delivery Cost | C34: =+Budget!D32 -> 0 | D34: =+Budget!N32 -> 0 | E34: =+G34+Sep!E34 -> 0 | F34: =+H34+Sep!F34 -> 0 | G34: =SUM(I34+K34+M34+O34+Q34) -> 0 | H34: =SUM(J34+L34+N34+P34+R34) -> 0 | T34: =+I34+Sep!T34 -> 0 | U34: =+J34+Sep!U34 -> 0 | V34: =+K34+Sep!V34 -> 0 | W34: =+L34+Sep!W34 -> 0 | X34: =+M34+Sep!X34 -> 0 | Y34: =+N34+Sep!Y34 -> 0 | Z34: =+O34+Sep!Z34 -> 0 | AA34: =+P34+Sep!AA34 -> 0 | AB34: =+Q34+Sep!AB34 -> 0 | AC34: =+R34+Sep!AC34 -> 0
A35: Total Consultants: | C35: =SUM(C33:C34) -> 0 | D35: 0 | E35: 0 | F35: 0 | G35: 0 | H35: 0 | I35: 0 | J35: 0 | K35: =SUM(K33:K34) -> 0 | L35: 0 | M35: 0 | N35: 0 | O35: 0 | P35: 0 | Q35: 0 | R35: 0
A36: E. FOOD COSTS (Senior Nutrition Program Only)
A37: =+Sep!A37 -> Food Cost | C37: =+Budget!D35 -> 0 | D37: =+Budget!N35 -> 0 | E37: =+G37+Sep!E37 -> 0 | F37: =+H37+Sep!F37 -> 0 | G37: =SUM(I37+K37+M37+O37+Q37) -> 0 | H37: =SUM(J37+L37+N37+P37+R37) -> 0 | T37: =+I37+Sep!T37 -> 0 | U37: =+J37+Sep!U37 -> 0 | V37: =+K37+Sep!V37 -> 0 | W37: =+L37+Sep!W37 -> 0 | X37: =+M37+Sep!X37 -> 0 | Y37: =+N37+Sep!Y37 -> 0 | Z37: =+O37+Sep!Z37 -> 0 | AA37: =+P37+Sep!AA37 -> 0 | AB37: =+Q37+Sep!AB37 -> 0 | AC37: =+R37+Sep!AC37 -> 0
A38: Total Food Costs: | C38: =+C37 -> 0 | D38: =+D37 -> 0 | E38: =SUM(E37:E37) -> 0 | F38: 0 | G38: 0 | H38: 0 | I38: 0 | J38: 0 | K38: =SUM(K37:K37) -> 0 | L38: 0 | M38: 0 | N38: 0 | O38: 0 | P38: 0 | Q38: 0 | R38: 0
A39: F. OTHER COSTS
A40: =+Budget!L38 -> Supplies:Non food(Bags,liners etc) | C40: =+Budget!D38 -> 0 | D40: =+Budget!N38 -> 0 | E40: =+G40+Sep!E40 -> 0 | F40: =+H40+Sep!F40 -> 0 | G40: =SUM(I40+K40+M40+O40+Q40) -> 0 | H40: =SUM(J40+L40+N40+P40+R40) -> 0 | T40: =+I40+Sep!T40 -> 0 | U40: =+J40+Sep!U40 -> 0 | V40: =+K40+Sep!V40 -> 0 | W40: =+L40+Sep!W40 -> 0 | X40: =+M40+Sep!X40 -> 0 | Y40: =+N40+Sep!Y40 -> 0 | Z40: =+O40+Sep!Z40 -> 0 | AA40: =+P40+Sep!AA40 -> 0 | AB40: =+Q40+Sep!AB40 -> 0 | AC40: =+R40+Sep!AC40 -> 0
A41: =+Budget!L39 -> Health permit | C41: =+Budget!D39 -> 0 | D41: =+Budget!N39 -> 0 | E41: =+G41+Sep!E41 -> 0 | F41: =+H41+Sep!F41 -> 0 | G41: =SUM(I41+K41+M41+O41+Q41) -> 0 | H41: =SUM(J41+L41+N41+P41+R41) -> 0 | T41: =+I41+Sep!T41 -> 0 | U41: =+J41+Sep!U41 -> 0 | V41: =+K41+Sep!V41 -> 0 | W41: =+L41+Sep!W41 -> 0 | X41: =+M41+Sep!X41 -> 0 | Y41: =+N41+Sep!Y41 -> 0 | Z41: =+O41+Sep!Z41 -> 0 | AA41: =+P41+Sep!AA41 -> 0 | AB41: =+Q41+Sep!AB41 -> 0 | AC41: =+R41+Sep!AC41 -> 0
A42: =+Budget!L40 -> Rent | C42: =+Budget!D40 -> 0 | D42: =+Budget!N40 -> 0 | E42: =+G42+Sep!E42 -> 0 | F42: =+H42+Sep!F42 -> 0 | G42: 0 | H42: 0 | T42: =+I42+Sep!T42 -> 0 | U42: =+J42+Sep!U42 -> 0 | V42: =+K42+Sep!V42 -> 0 | W42: =+L42+Sep!W42 -> 0 | X42: =+M42+Sep!X42 -> 0 | Y42: =+N42+Sep!Y42 -> 0 | Z42: =+O42+Sep!Z42 -> 0 | AA42: =+P42+Sep!AA42 -> 0 | AB42: =+Q42+Sep!AB42 -> 0 | AC42: =+R42+Sep!AC42 -> 0
A43: =+Budget!L41 -> Program Publicity | C43: =+Budget!D41 -> 0 | D43: =+Budget!N41 -> 0 | E43: =+G43+Sep!E43 -> 0 | F43: =+H43+Sep!F43 -> 0 | G43: 0 | H43: 0 | T43: =+I43+Sep!T43 -> 0 | U43: =+J43+Sep!U43 -> 0 | V43: =+K43+Sep!V43 -> 0 | W43: =+L43+Sep!W43 -> 0 | X43: =+M43+Sep!X43 -> 0 | Y43: =+N43+Sep!Y43 -> 0 | Z43: =+O43+Sep!Z43 -> 0 | AA43: =+P43+Sep!AA43 -> 0 | AB43: =+Q43+Sep!AB43 -> 0 | AC43: =+R43+Sep!AC43 -> 0
A44: =+Budget!L42 -> Other | C44: =+Budget!D42 -> 0 | D44: =+Budget!N42 -> 0 | E44: =+G44+Sep!E44 -> 0 | F44: =+H44+Sep!F44 -> 0 | G44: 0 | H44: 0 | T44: =+I44+Sep!T44 -> 0 | U44: =+J44+Sep!U44 -> 0 | V44: =+K44+Sep!V44 -> 0 | W44: =+L44+Sep!W44 -> 0 | X44: =+M44+Sep!X44 -> 0 | Y44: =+N44+Sep!Y44 -> 0 | Z44: =+O44+Sep!Z44 -> 0 | AA44: =+P44+Sep!AA44 -> 0 | AB44: =+Q44+Sep!AB44 -> 0 | AC44: =+R44+Sep!AC44 -> 0
A45: =+Budget!L43 -> Other | C45: =+Budget!D43 -> 0 | D45: =+Budget!N43 -> 0 | E45: =+G45+Sep!E45 -> 0 | F45: =+H45+Sep!F45 -> 0 | G45: 0 | H45: 0 | T45: =+I45+Sep!T45 -> 0 | U45: =+J45+Sep!U45 -> 0 | V45: =+K45+Sep!V45 -> 0 | W45: =+L45+Sep!W45 -> 0 | X45: =+M45+Sep!X45 -> 0 | Y45: =+N45+Sep!Y45 -> 0 | Z45: =+O45+Sep!Z45 -> 0 | AA45: =+P45+Sep!AA45 -> 0 | AB45: =+Q45+Sep!AB45 -> 0 | AC45: =+R45+Sep!AC45 -> 0
A46: =+Budget!L44 -> Indirect Costs (no more than 10% of grant funds) | C46: =+Budget!D44 -> 0 | D46: =+Budget!N44 -> 0 | E46: =+G46+Sep!E46 -> 0 | F46: =+H46+Sep!F46 -> 0 | G46: 0 | H46: 0 | T46: =+I46+Sep!T46 -> 0 | U46: =+J46+Sep!U46 -> 0 | V46: =+K46+Sep!V46 -> 0 | W46: =+L46+Sep!W46 -> 0 | X46: =+M46+Sep!X46 -> 0 | Y46: =+N46+Sep!Y46 -> 0 | Z46: =+O46+Sep!Z46 -> 0 | AA46: =+P46+Sep!AA46 -> 0 | AB46: =+Q46+Sep!AB46 -> 0 | AC46: =+R46+Sep!AC46 -> 0
C47: =+Budget!D45 -> 0 | D47: =+Budget!N45 -> 0 | E47: =+G47+Sep!E47 -> 0 | F47: =+H47+Sep!F47 -> 0 | G47: =SUM(I47+K47+M47+O47+Q47) -> 0 | H47: 0 | T47: =+I47+Sep!T47 -> 0 | U47: =+J47+Sep!U47 -> 0 | V47: =+K47+Sep!V47 -> 0 | W47: =+L47+Sep!W47 -> 0 | X47: =+M47+Sep!X47 -> 0 | Y47: =+N47+Sep!Y47 -> 0 | Z47: =+O47+Sep!Z47 -> 0 | AA47: =+P47+Sep!AA47 -> 0 | AB47: =+Q47+Sep!AB47 -> 0 | AC47: =+R47+Sep!AC47 -> 0
C48: =+Budget!D46 -> 0 | D48: =+Budget!N46 -> 0 | E48: =+G48+Sep!E48 -> 0 | F48: =+H48+Sep!F48 -> 0 | G48: 0 | H48: 0 | T48: =+I48+Sep!T48 -> 0 | U48: =+J48+Sep!U48 -> 0 | V48: =+K48+Sep!V48 -> 0 | W48: =+L48+Sep!W48 -> 0 | X48: =+M48+Sep!X48 -> 0 | Y48: =+N48+Sep!Y48 -> 0 | Z48: =+O48+Sep!Z48 -> 0 | AA48: =+P48+Sep!AA48 -> 0 | AB48: =+Q48+Sep!AB48 -> 0 | AC48: =+R48+Sep!AC48 -> 0
A49: =+Sep!A49 -> 0 | C49: =+Budget!D47 -> 0 | D49: =+Budget!N47 -> 0 | E49: =+G49 -> 0 | F49: =+H49 -> 0 | G49: 0 | H49: 0 | T49: =+I49+Sep!T49 -> 0 | U49: =+J49+Sep!U49 -> 0 | V49: =+K49+Sep!V49 -> 0 | W49: =+L49+Sep!W49 -> 0 | X49: =+M49+Sep!X49 -> 0 | Y49: =+N49+Sep!Y49 -> 0 | Z49: =+O49+Sep!Z49 -> 0 | AA49: =+P49+Sep!AA49 -> 0 | AB49: =+Q49+Sep!AB49 -> 0 | AC49: =+R49+Sep!AC49 -> 0
A50: Total Other Costs: | C50: =SUM(C40:C49) -> 0 | D50: 0 | E50: 0 | F50: 0 | G50: 0 | H50: 0 | I50: 0 | J50: 0 | K50: 0 | L50: 0 | M50: 0 | N50: 0 | O50: 0 | P50: 0 | Q50: 0 | R50: 0
A52: 1. Current Month Total | G52: =SUM(G50,G38,G35,G31,G27,G22) -> 0 | H52: 0 | I52: 0 | J52: 0 | K52: 0 | L52: 0 | M52: 0 | N52: 0 | O52: 0 | P52: 0 | Q52: 0 | R52: 0
A53: 2. Year-to-Date Total** | C53: =+C50+C38+C35+C31+C27+C22 -> 0 | D53: =+D50+D38+D35+D31+D27+D22 -> 0 | E53: =+E22+E27+E31+E35+E38+E50 -> 0 | F53: =+F22+F27+F31+F35+F38+F50 -> 0 | I53: =+I52+Sep!I53 -> 0 | J53: =+J52+Sep!J53 -> 0 | K53: =+K52+Sep!K53 -> 0 | L53: =+L52+Sep!L53 -> 0 | M53: =+M52+Sep!M53 -> 0 | N53: =+N52+Sep!N53 -> 0 | O53: =+O52+Sep!O53 -> 0 | P53: =+P52+Sep!P53 -> 0 | Q53: =+Q52+Sep!Q53 -> 0 | R53: =+R52+Sep!R53 -> 0 | T53: =SUM(T13:T52) -> 0 | U53: =SUM(U13:U52) -> 0 | V53: 0 | W53: 0 | X53: 0 | Y53: 0 | Z53: 0 | AA53: 0 | AB53: 0 | AC53: 0
A54: 3. Grant Funds Remaining | I54: =+I8-I67 -> 0 | J54: =+J8-J67 -> 0 | K54: =+I54+J54 -> 0 | T54: =+T53/P1 ->  | U54: =+U53/R1 -> 
A55: EQUIPMENT INFO | I55: Date Acquired | N55: Equipment Location | T55: =+T53+U53 -> 0
A58: *Equipment is property of the VCAAA. Consult VCAAA Contractor Manual for more information
A59: I hereby certify that the above figures and attached expenditure report are accurate to the best of my knowledge.
A60: Prepared By: | F60: Signature: | K60: Date: | P60: Title | Q60: Accounting Manager
A62: Authorized By: | F62: Signature: | P62: Title | Q62: Community Services Officer
A64: AAA USE ONLY
A65: Grants Management Approval | G65: Amount Requested - Month | I65: =+I52 -> 0 | J65: =+J52 -> 0 | K65: =+I65+J65 -> 0 | L65: Date Received | P65: Fiscal Approval
G66: Amount Approved - Month | I66: =+I65 -> 0 | J66: =+J65 -> 0 | K66: =+I66+J66 -> 0
G67: Amount Approved - YTD | I67: =+I66+Sep!I67 -> 0 | J67: =+J66+Sep!J67 -> 0 | K67: =+I67+J67 -> 0
J69: Check total: | K69: =+K67+K54 -> 0

Sheet Nov (hidden)
A1: =+Oct!A1 -> Contractor Name: | B1: =+Oct!B1 -> Agency Name | E1: Month: | F1: =+Oct!F1+31 -> 2020-11-02 | I1: PO# | J1: =+Oct!J1 -> 0 | M1: GRANT AWARD AMOUNT: | O1: C1: | P1: =+Budget!Z40 -> 0 | Q1: C2: | R1: =+Budget!AA40 -> 0
A2: =+Oct!A2 -> Project Name: | B2: =+Budget!B1 -> VCAAA Senior Nutrition Program | E2: Grant#: | F2: =+Oct!F2 -> 0 | I2: Contact: | J2: =+Oct!J2 -> First Last | L2: =+Oct!L2 -> Phone: | M2: =+Oct!M2 -> (XXX) XXX-XXXX | P2: Total C: | R2: =+P1+R1 -> 0
I3: Address: | J3: =+Oct!J3 -> Street Address, City, CA 93XXX
A4: Number of Meals Served | C4: C1 | D4: C2
B5: Month | I5: Current Month Expenditures by Funding Source
B6: YTD | C6: =+C5+Oct!C6 -> 0 | D6: =+D5+Oct!D6 -> 0
A7: Item Description | C7: Authorized Budget by Allocation C1 | D7: Authorized Budget by Allocation C2 | E7: YTD Actual Expenses C1 | F7: YTD Actual Expenses C2 | G7: Total Current Month Expenses C1 | H7: Total Current Month Expenses C2 | I7: Grant Share C1 | J7: Grant Share C2 | K7: Cash Match C1 | L7: Cash Match C2 | M7: In-Kind Match C1 | N7: In-Kind Match C2 | O7: Program Income C1 | P7: Program Income C2 | Q7: Cash Non-Match C1 | R7: Cash Non-Match C2 | T7: Grant Share C1 | U7: Grant Share C2 | V7: Cash Match C1 | W7: Cash Match C2 | X7: In-Kind Match C1 | Y7: In-Kind Match C2 | Z7: Program Income C1 | AA7: Program Income C2 | AB7: Cash Non-Match C1 | AC7: Cash Non-Match C2
A8: APPROVED BUDGET | C8: =+Oct!C8 -> 0 | D8: =+Oct!D8 -> 0 | E8: =+E53 -> 0 | F8: =+F53 -> 0 | G8: =+G52 -> 0 | H8: =+H52 -> 0 | I8: =+P1 -> 0 | J8: =+R1 -> 0 | K8: =+Budget!Z34 -> 0 | L8: =+Budget!AA34 -> 0 | M8: =+Budget!Z35 -> 0 | N8: =+Budget!AA35 -> 0 | O8: =+Budget!Z38 -> 0 | P8: =+Budget!AA39 -> 0 | Q8: =+Budget!Z36 -> 0 | R8: =+Jul!R9 -> 0
A9: % OF TOTAL | C9: =IFERROR(+C$8/($C8+$D8),0) -> 0 | D9: =IFERROR(+D$8/($C8+$D8),0) -> 0
A10: TOTAL BUDGET | C10: =+C8+D8 -> 0 | H10: ACT YTD--> | I10: =+I52 -> 0 | J10: =+J52 -> 0 | K10: =+K52 -> 0 | L10: 0 | M10: 0 | N10: 0 | O10: 0 | P10: 0 | Q10: 0 | R10: 0
A12: A. PERSONNEL (Title / Name)
A13: =+Oct!A13 -> Admin/Fiscal | B13: =+Jul!B13 -> Position Title $XX.XX/hr | C13: =+Oct!C13 -> 0 | D13: =+Oct!D13 -> 0 | E13: =SUM(G13)+Oct!E13 -> 0 | F13: =SUM(H13)+Oct!F13 -> 0 | G13: =SUM(I13+K13+M13+O13+Q13) -> 0 | H13: =SUM(J13+L13+N13+P13+R13) -> 0 | T13: =+I13+Oct!T13 -> 0 | U13: =+J13+Oct!U13 -> 0 | V13: =+K13+Oct!V13 -> 0 | W13: =+L13+Oct!W13 -> 0 | X13: =+M13+Oct!X13 -> 0 | Y13: =+N13+Oct!Y13 -> 0 | Z13: =+O13+Oct!Z13 -> 0 | AA13: =+P13+Oct!AA13 -> 0 | AB13: =+Q13+Oct!AB13 -> 0 | AC13: =+R13+Oct!AC13 -> 0
A14: =+Oct!A14 -> Site/ HDM/MOW Coordinator | B14: =+Jul!B14 -> Position Title $XX.XX/hr | C14: =+Oct!C14 -> 0 | D14: =+Oct!D14 -> 0 | E14: =SUM(G14)+Oct!E14 -> 0 | F14: =SUM(H14)+Oct!F14 -> 0 | G14: =SUM(I14+K14+M14+O14+Q14) -> 0 | H14: =SUM(J14+L14+N14+P14+R14) -> 0 | T14: =+I14+Oct!T14 -> 0 | U14: =+J14+Oct!U14 -> 0 | V14: =+K14+Oct!V14 -> 0 | W14: =+L14+Oct!W14 -> 0 | X14: =+M14+Oct!X14 -> 0 | Y14: =+N14+Oct!Y14 -> 0 | Z14: =+O14+Oct!Z14 -> 0 | AA14: =+P14+Oct!AA14 -> 0 | AB14: =+Q14+Oct!AB14 -> 0 | AC14: =+R14+Oct!AC14 -> 0
A15: =+Oct!A15 -> Cook | B15: =+Jul!B15 -> Position Title $XX.XX/hr | C15: =+Oct!C15 -> 0 | D15: =+Oct!D15 -> 0 | E15: =SUM(G15)+Oct!E15 -> 0 | F15: =SUM(H15)+Oct!F15 -> 0 | G15: 0 | H15: 0 | T15: =+I15+Oct!T15 -> 0 | U15: =+J15+Oct!U15 -> 0 | V15: =+K15+Oct!V15 -> 0 | W15: =+L15+Oct!W15 -> 0 | X15: =+M15+Oct!X15 -> 0 | Y15: =+N15+Oct!Y15 -> 0 | Z15: =+O15+Oct!Z15 -> 0 | AA15: =+P15+Oct!AA15 -> 0 | AB15: =+Q15+Oct!AB15 -> 0 | AC15: =+R15+Oct!AC15 -> 0
A16: =+Oct!A16 -> Volunteers: | B16: =+Jul!B16 -> Position Title $XX.XX/hr | C16: =+Oct!C16 -> 0 | D16: =+Oct!D16 -> 0 | E16: =SUM(G16)+Oct!E16 -> 0 | F16: =SUM(H16)+Oct!F16 -> 0 | G16: 0 | H16: 0 | T16: =+I16+Oct!T16 -> 0 | U16: =+J16+Oct!U16 -> 0 | V16: =+K16+Oct!V16 -> 0 | W16: =+L16+Oct!W16 -> 0 | X16: =+M16+Oct!X16 -> 0 | Y16: =+N16+Oct!Y16 -> 0 | Z16: =+O16+Oct!Z16 -> 0 | AA16: =+P16+Oct!AA16 -> 0 | AB16: =+Q16+Oct!AB16 -> 0 | AC16: =+R16+Oct!AC16 -> 0
A17: =+Oct!A17 -> Volunteers: | B17: =+Jul!B17 -> Position Title $XX.XX/hr | C17: =+Oct!C17 -> 0 | D17: =+Oct!D17 -> 0 | E17: =SUM(G17)+Oct!E17 -> 0 | F17: =SUM(H17)+Oct!F17 -> 0 | G17: 0 | H17: 0 | T17: =+I17+Oct!T17 -> 0 | U17: =+J17+Oct!U17 -> 0 | V17: =+K17+Oct!V17 -> 0 | W17: =+L17+Oct!W17 -> 0 | X17: =+M17+Oct!X17 -> 0 | Y17: =+N17+Oct!Y17 -> 0 | Z17: =+O17+Oct!Z17 -> 0 | AA17: =+P17+Oct!AA17 -> 0 | AB17: =+Q17+Oct!AB17 -> 0 | AC17: =+R17+Oct!AC17 -> 0
A18: Volunteers | B18: =+Jul!B18 -> 0 | C18: =+Oct!C18 -> 0 | D18: =+Oct!D18 -> 0 | E18: =SUM(G18)+Oct!E18 -> 0 | F18: =SUM(H18)+Oct!F18 -> 0 | G18: 0 | H18: 0 | T18: =+I18+Oct!T18 -> 0 | U18: =+J18+Oct!U18 -> 0 | V18: =+K18+Oct!V18 -> 0 | W18: =+L18+Oct!W18 -> 0 | X18: =+M18+Oct!X18 -> 0 | Y18: =+N18+Oct!Y18 -> 0 | Z18: =+O18+Oct!Z18 -> 0 | AA18: =+P18+Oct!AA18 -> 0 | AB18: =+Q18+Oct!AB18 -> 0 | AC18: =+R18+Oct!AC18 -> 0
A19: Volunteers | B19: =+Jul!B19 -> 0 | C19: =+Oct!C19 -> 0 | D19: =+Oct!D19 -> 0 | E19: =SUM(G19)+Oct!E19 -> 0 | F19: =SUM(H19)+Oct!F19 -> 0 | G19: 0 | H19: 0 | T19: =+I19+Oct!T19 -> 0 | U19: =+J19+Oct!U19 -> 0 | V19: =+K19+Oct!V19 -> 0 | W19: =+L19+Oct!W19 -> 0 | X19: =+M19+Oct!X19 -> 0 | Y19: =+N19+Oct!Y19 -> 0 | Z19: =+O19+Oct!Z19 -> 0 | AA19: =+P19+Oct!AA19 -> 0 | AB19: =+Q19+Oct!AB19 -> 0 | AC19: =+R19+Oct!AC19 -> 0
A20: =+Oct!A20 -> 0 | B20: =+Jul!B20 -> 0 | C20: =+Oct!C20 -> 0 | D20: =+Oct!D20 -> 0 | E20: =SUM(G20)+Oct!E20 -> 0 | F20: =SUM(H20)+Oct!F20 -> 0 | G20: 0 | H20: 0 | T20: =+I20+Oct!T20 -> 0 | U20: =+J20+Oct!U20 -> 0 | V20: =+K20+Oct!V20 -> 0 | W20: =+L20+Oct!W20 -> 0 | X20: =+M20+Oct!X20 -> 0 | Y20: =+N20+Oct!Y20 -> 0 | Z20: =+O20+Oct!Z20 -> 0 | AA20: =+P20+Oct!AA20 -> 0 | AB20: =+Q20+Oct!AB20 -> 0 | AC20: =+R20+Oct!AC20 -> 0
A21: =+Oct!A21 -> 0 | B21: =+Jul!B21 -> 0 | C21: =+Oct!C21 -> 0 | D21: =+Oct!D21 -> 0 | E21: =SUM(G21)+Oct!E21 -> 0 | F21: =SUM(H21)+Oct!F21 -> 0 | G21: 0 | H21: 0 | T21: =+I21+Oct!T21 -> 0 | U21: =+J21+Oct!U21 -> 0 | V21: =+K21+Oct!V21 -> 0 | W21: =+L21+Oct!W21 -> 0 | X21: =+M21+Oct!X21 -> 0 | Y21: =+N21+Oct!Y21 -> 0 | Z21: =+O21+Oct!Z21 -> 0 | AA21: =+P21+Oct!AA21 -> 0 | AB21: =+Q21+Oct!AB21 -> 0 | AC21: =+R21+Oct!AC21 -> 0
A22: Total Personnel: | C22: =SUM(C13:C21) -> 0 | D22: 0 | E22: 0 | F22: 0 | G22: 0 | H22: 0 | I22: =SUM(I13:I21) -> 0 | J22: 0 | K22: 0 | L22: 0 | M22: 0 | N22: 0 | O22: 0 | P22: 0 | Q22: 0 | R22: 0
A23: B. TRAVEL & TRAINING
A24: =+Oct!A24 -> Travel/Mileage | C24: =+Oct!C24 -> 0 | D24: =+Oct!D24 -> 0 | E24: =SUM(G24)+Oct!E24 -> 0 | F24: =SUM(H24)+Oct!F24 -> 0 | G24: =SUM(I24+K24+M24+O24+Q24) -> 0 | H24: 0 | T24: =+I24+Oct!T24 -> 0 | U24: =+J24+Oct!U24 -> 0 | V24: =+K24+Oct!V24 -> 0 | W24: =+L24+Oct!W24 -> 0 | X24: =+M24+Oct!X24 -> 0 | Y24: =+N24+Oct!Y24 -> 0 | Z24: =+O24+Oct!Z24 -> 0 | AA24: =+P24+Oct!AA24 -> 0 | AB24: =+Q24+Oct!AB24 -> 0 | AC24: =+R24+Oct!AC24 -> 0
A25: =+Oct!A25 -> Training | C25: =+Oct!C25 -> 0 | D25: =+Oct!D25 -> 0 | E25: =SUM(G25)+Oct!E25 -> 0 | F25: =SUM(H25)+Oct!F25 -> 0 | G25: 0 | H25: 0 | T25: =+I25+Oct!T25 -> 0 | U25: =+J25+Oct!U25 -> 0 | V25: =+K25+Oct!V25 -> 0 | W25: =+L25+Oct!W25 -> 0 | X25: =+M25+Oct!X25 -> 0 | Y25: =+N25+Oct!Y25 -> 0 | Z25: =+O25+Oct!Z25 -> 0 | AA25: =+P25+Oct!AA25 -> 0 | AB25: =+Q25+Oct!AB25 -> 0 | AC25: =+R25+Oct!AC25 -> 0
A26: =+Oct!A26 -> 0 | C26: =+Oct!C26 -> 0 | D26: =+Oct!D26 -> 0 | E26: =SUM(G26)+Oct!E26 -> 0 | F26: =SUM(H26)+Oct!F26 -> 0 | G26: 0 | H26: 0 | T26: =+I26+Oct!T26 -> 0 | U26: =+J26+Oct!U26 -> 0 | V26: =+K26+Oct!V26 -> 0 | W26: =+L26+Oct!W26 -> 0 | X26: =+M26+Oct!X26 -> 0 | Y26: =+N26+Oct!Y26 -> 0 | Z26: =+O26+Oct!Z26 -> 0 | AA26: =+P26+Oct!AA26 -> 0 | AB26: =+Q26+Oct!AB26 -> 0 | AC26: =+R26+Oct!AC26 -> 0
A27: Total Travel & Training: | C27: =SUM(C24:C26) -> 0 | D27: 0 | E27: 0 | F27: 0 | G27: 0 | H27: 0 | I27: 0 | J27: 0 | K27: =SUM(K24:K26) -> 0 | L27: 0 | M27: 0 | N27: 0 | O27: 0 | P27: 0 | Q27: 0 | R27: 0
A28: C. EQUIPMENT
A29: =+Oct!A29 -> Equipment | C29: =+Oct!C29 -> 0 | D29: =+Oct!D29 -> 0 | E29: =SUM(G29)+Oct!E29 -> 0 | F29: =SUM(H29)+Oct!F29 -> 0 | G29: =SUM(I29+K29+M29+O29+Q29) -> 0 | H29: =SUM(J29+L29+N29+P29+R29) -> 0 | T29: =+I29+Oct!T29 -> 0 | U29: =+J29+Oct!U29 -> 0 | V29: =+K29+Oct!V29 -> 0 | W29: =+L29+Oct!W29 -> 0 | X29: =+M29+Oct!X29 -> 0 | Y29: =+N29+Oct!Y29 -> 0 | Z29: =+O29+Oct!Z29 -> 0 | AA29: =+P29+Oct!AA29 -> 0 | AB29: =+Q29+Oct!AB29 -> 0 | AC29: =+R29+Oct!AC29 -> 0
A30: =+Oct!A30 -> 0 | C30: =+Oct!C30 -> 0 | D30: =+Oct!D30 -> 0 | E30: =SUM(G30)+Oct!E30 -> 0 | F30: =SUM(H30)+Oct!F30 -> 0 | G30: =SUM(I30+K30+M30+O30+Q30) -> 0 | H30: =SUM(J30+L30+N30+P30+R30) -> 0 | T30: =+I30+Oct!T30 -> 0 | U30: =+J30+Oct!U30 -> 0 | V30: =+K30+Oct!V30 -> 0 | W30: =+L30+Oct!W30 -> 0 | X30: =+M30+Oct!X30 -> 0 | Y30: =+N30+Oct!Y30 -> 0 | Z30: =+O30+Oct!Z30 -> 0 | AA30: =+P30+Oct!AA30 -> 0 | AB30: =+Q30+Oct!AB30 -> 0 | AC30: =+R30+Oct!AC30 -> 0
A31: Total Equipment: | C31: =SUM(C29:C30) -> 0 | D31: 0 | E31: 0 | F31: 0 | G31: 0 | H31: 0 | I31: 0 | J31: 0 | K31: =SUM(K29:K30) -> 0 | L31: 0 | M31: 0 | N31: 0 | O31: 0 | P31: 0 | Q31: 0 | R31: 0
A32: D. CONSULTANTS
A33: =+Oct!A33 -> Congregate or HDM Meals | C33: =+Oct!C33 -> 0 | D33: =+Oct!D33 -> 0 | E33: =SUM(G33)+Oct!E33 -> 0 | F33: =SUM(H33)+Oct!F33 -> 0 | G33: =SUM(I33+K33+M33+O33+Q33) -> 0 | H33: =SUM(J33+L33+N33+P33+R33) -> 0 | T33: =+I33+Oct!T33 -> 0 | U33: =+J33+Oct!U33 -> 0 | V33: =+K33+Oct!V33 -> 0 | W33: =+L33+Oct!W33 -> 0 | X33: =+M33+Oct!X33 -> 0 | Y33: =+N33+Oct!Y33 -> 0 | Z33: =+O33+Oct!Z33 -> 0 | AA33: =+P33+Oct!AA33 -> 0 | AB33: =+Q33+Oct!AB33 -> 0 | AC33: =+R33+Oct!AC33 -> 0
A34: =+Oct!A34 -> Food Share Delivery Cost | C34: =+Oct!C34 -> 0 | D34: =+Oct!D34 -> 0 | E34: =SUM(G34)+Oct!E34 -> 0 | F34: =SUM(H34)+Oct!F34 -> 0 | G34: =SUM(I34+K34+M34+O34+Q34) -> 0 | H34: =SUM(J34+L34+N34+P34+R34) -> 0 | T34: =+I34+Oct!T34 -> 0 | U34: =+J34+Oct!U34 -> 0 | V34: =+K34+Oct!V34 -> 0 | W34: =+L34+Oct!W34 -> 0 | X34: =+M34+Oct!X34 -> 0 | Y34: =+N34+Oct!Y34 -> 0 | Z34: =+O34+Oct!Z34 -> 0 | AA34: =+P34+Oct!AA34 -> 0 | AB34: =+Q34+Oct!AB34 -> 0 | AC34: =+R34+Oct!AC34 -> 0
A35: Total Consultants: | C35: =SUM(C33:C34) -> 0 | D35: 0 | E35: 0 | F35: 0 | G35: 0 | H35: 0 | I35: 0 | J35: 0 | K35: =SUM(K33:K34) -> 0 | L35: 0 | M35: 0 | N35: 0 | O35: 0 | P35: 0 | Q35: 0 | R35: 0
A36: E. FOOD COSTS (Senior Nutrition Program Only)
A37: =+Oct!A37 -> Food Cost | C37: =+Oct!C37 -> 0 | D37: =+Oct!D37 -> 0 | E37: =SUM(G37)+Oct!E37 -> 0 | F37: =SUM(H37)+Oct!F37 -> 0 | G37: =SUM(I37+K37+M37+O37+Q37) -> 0 | H37: =SUM(J37+L37+N37+P37+R37) -> 0 | T37: =+I37+Oct!T37 -> 0 | U37: =+J37+Oct!U37 -> 0 | V37: =+K37+Oct!V37 -> 0 | W37: =+L37+Oct!W37 -> 0 | X37: =+M37+Oct!X37 -> 0 | Y37: =+N37+Oct!Y37 -> 0 | Z37: =+O37+Oct!Z37 -> 0 | AA37: =+P37+Oct!AA37 -> 0 | AB37: =+Q37+Oct!AB37 -> 0 | AC37: =+R37+Oct!AC37 -> 0
A38: Total Food Costs: | C38: =+C37 -> 0 | D38: =+D37 -> 0 | E38: =SUM(E37:E37) -> 0 | F38: 0 | G38: 0 | H38: 0 | I38: 0 | J38: 0 | K38: =SUM(K37:K37) -> 0 | L38: 0 | M38: 0 | N38: 0 | O38: 0 | P38: 0 | Q38: 0 | R38: 0
A39: F. OTHER COSTS
A40: =+Oct!A40 -> Supplies:Non food(Bags,liners etc) | C40: =+Oct!C40 -> 0 | D40: =+Oct!D40 -> 0 | E40: =SUM(G40)+Oct!E40 -> 0 | F40: =SUM(H40)+Oct!F40 -> 0 | G40: =SUM(I40+K40+M40+O40+Q40) -> 0 | H40: =SUM(J40+L40+N40+P40+R40) -> 0 | T40: =+I40+Oct!T40 -> 0 | U40: =+J40+Oct!U40 -> 0 | V40: =+K40+Oct!V40 -> 0 | W40: =+L40+Oct!W40 -> 0 | X40: =+M40+Oct!X40 -> 0 | Y40: =+N40+Oct!Y40 -> 0 | Z40: =+O40+Oct!Z40 -> 0 | AA40: =+P40+Oct!AA40 -> 0 | AB40: =+Q40+Oct!AB40 -> 0 | AC40: =+R40+Oct!AC40 -> 0
A41: =+Oct!A41 -> Health permit | C41: =+Oct!C41 -> 0 | D41: =+Oct!D41 -> 0 | E41: =SUM(G41)+Oct!E41 -> 0 | F41: =SUM(H41)+Oct!F41 -> 0 | G41: =SUM(I41+K41+M41+O41+Q41) -> 0 | H41: =SUM(J41+L41+N41+P41+R41) -> 0 | T41: =+I41+Oct!T41 -> 0 | U41: =+J41+Oct!U41 -> 0 | V41: =+K41+Oct!V41 -> 0 | W41: =+L41+Oct!W41 -> 0 | X41: =+M41+Oct!X41 -> 0 | Y41: =+N41+Oct!Y41 -> 0 | Z41: =+O41+Oct!Z41 -> 0 | AA41: =+P41+Oct!AA41 -> 0 | AB41: =+Q41+Oct!AB41 -> 0 | AC41: =+R41+Oct!AC41 -> 0
A42: =+Oct!A42 -> Rent | C42: =+Oct!C42 -> 0 | D42: =+Oct!D42 -> 0 | E42: =SUM(G42)+Oct!E42 -> 0 | F42: =SUM(H42)+Oct!F42 -> 0 | G42: 0 | H42: 0 | T42: =+I42+Oct!T42 -> 0 | U42: =+J42+Oct!U42 -> 0 | V42: =+K42+Oct!V42 -> 0 | W42: =+L42+Oct!W42 -> 0 | X42: =+M42+Oct!X42 -> 0 | Y42: =+N42+Oct!Y42 -> 0 | Z42: =+O42+Oct!Z42 -> 0 | AA42: =+P42+Oct!AA42 -> 0 | AB42: =+Q42+Oct!AB42 -> 0 | AC42: =+R42+Oct!AC42 -> 0
A43: =+Oct!A43 -> Program Publicity | C43: =+Oct!C43 -> 0 | D43: =+Oct!D43 -> 0 | E43: =SUM(G43)+Oct!E43 -> 0 | F43: =SUM(H43)+Oct!F43 -> 0 | G43: 0 | H43: 0 | T43: =+I43+Oct!T43 -> 0 | U43: =+J43+Oct!U43 -> 0 | V43: =+K43+Oct!V43 -> 0 | W43: =+L43+Oct!W43 -> 0 | X43: =+M43+Oct!X43 -> 0 | Y43: =+N43+Oct!Y43 -> 0 | Z43: =+O43+Oct!Z43 -> 0 | AA43: =+P43+Oct!AA43 -> 0 | AB43: =+Q43+Oct!AB43 -> 0 | AC43: =+R43+Oct!AC43 -> 0
A44: =+Oct!A44 -> Other | C44: =+Oct!C44 -> 0 | D44: =+Oct!D44 -> 0 | E44: =SUM(G44)+Oct!E44 -> 0 | F44: =SUM(H44)+Oct!F44 -> 0 | G44: =SUM(I44+K44+M44+O44+Q44) -> 0 | H44: =SUM(J44+L44+N44+P44+R44) -> 0 | T44: =+I44+Oct!T44 -> 0 | U44: =+J44+Oct!U44 -> 0 | V44: =+K44+Oct!V44 -> 0 | W44: =+L44+Oct!W44 -> 0 | X44: =+M44+Oct!X44 -> 0 | Y44: =+N44+Oct!Y44 -> 0 | Z44: =+O44+Oct!Z44 -> 0 | AA44: =+P44+Oct!AA44 -> 0 | AB44: =+Q44+Oct!AB44 -> 0 | AC44: =+R44+Oct!AC44 -> 0
A45: =+Oct!A45 -> Other | C45: =+Oct!C45 -> 0 | D45: =+Oct!D45 -> 0 | E45: =SUM(G45)+Oct!E45 -> 0 | F45: =SUM(H45)+Oct!F45 -> 0 | G45: =SUM(I45+K45+M45+O45+Q45) -> 0 | H45: =SUM(J45+L45+N45+P45+R45) -> 0 | T45: =+I45+Oct!T45 -> 0 | U45: =+J45+Oct!U45 -> 0 | V45: =+K45+Oct!V45 -> 0 | W45: =+L45+Oct!W45 -> 0 | X45: =+M45+Oct!X45 -> 0 | Y45: =+N45+Oct!Y45 -> 0 | Z45: =+O45+Oct!Z45 -> 0 | AA45: =+P45+Oct!AA45 -> 0 | AB45: =+Q45+Oct!AB45 -> 0 | AC45: =+R45+Oct!AC45 -> 0
A46: =+Oct!A46 -> Indirect Costs (no more than 10% of grant funds) | T46: =+I46+Oct!T46 -> 0 | U46: =+J46+Oct!U46 -> 0 | V46: =+K46+Oct!V46 -> 0 | W46: =+L46+Oct!W46 -> 0 | X46: =+M46+Oct!X46 -> 0 | Y46: =+N46+Oct!Y46 -> 0 | Z46: =+O46+Oct!Z46 -> 0 | AA46: =+P46+Oct!AA46 -> 0 | AB46: =+Q46+Oct!AB46 -> 0 | AC46: =+R46+Oct!AC46 -> 0
T47: =+I47+Oct!T47 -> 0 | U47: =+J47+Oct!U47 -> 0 | V47: =+K47+Oct!V47 -> 0 | W47: =+L47+Oct!W47 -> 0 | X47: =+M47+Oct!X47 -> 0 | Y47: =+N47+Oct!Y47 -> 0 | Z47: =+O47+Oct!Z47 -> 0 | AA47: =+P47+Oct!AA47 -> 0 | AB47: =+Q47+Oct!AB47 -> 0 | AC47: =+R47+Oct!AC47 -> 0
T48: =+I48+Oct!T48 -> 0 | U48: =+J48+Oct!U48 -> 0 | V48: =+K48+Oct!V48 -> 0 | W48: =+L48+Oct!W48 -> 0 | X48: =+M48+Oct!X48 -> 0 | Y48: =+N48+Oct!Y48 -> 0 | Z48: =+O48+Oct!Z48 -> 0 | AA48: =+P48+Oct!AA48 -> 0 | AB48: =+Q48+Oct!AB48 -> 0 | AC48: =+R48+Oct!AC48 -> 0
A49: =+Oct!A49 -> 0 | C49: =+Oct!C49 -> 0 | D49: =+Oct!D49 -> 0 | E49: =SUM(G49)+Oct!E49 -> 0 | F49: =SUM(H49)+Oct!F49 -> 0 | G49: 0 | H49: 0 | T49: =+I49+Oct!T49 -> 0 | U49: =+J49+Oct!U49 -> 0 | V49: =+K49+Oct!V49 -> 0 | W49: =+L49+Oct!W49 -> 0 | X49: =+M49+Oct!X49 -> 0 | Y49: =+N49+Oct!Y49 -> 0 | Z49: =+O49+Oct!Z49 -> 0 | AA49: =+P49+Oct!AA49 -> 0 | AB49: =+Q49+Oct!AB49 -> 0 | AC49: =+R49+Oct!AC49 -> 0
A50: Total Other Costs: | C50: =SUM(C40:C49) -> 0 | D50: 0 | E50: 0 | F50: 0 | G50: 0 | H50: 0 | I50: 0 | J50: 0 | K50: 0 | L50: 0 | M50: 0 | N50: 0 | O50: 0 | P50: 0 | Q50: 0 | R50: 0
A52: 1. Current Month Total | G52: =SUM(G50,G38,G35,G31,G27,G22) -> 0 | H52: 0 | I52: 0 | J52: 0 | K52: 0 | L52: 0 | M52: 0 | N52: 0 | O52: 0 | P52: 0 | Q52: 0 | R52: 0
A53: 2. Year-to-Date Total** | C53: =+C50+C38+C35+C31+C27+C22 -> 0 | D53: =+D50+D38+D35+D31+D27+D22 -> 0 | E53: =+E22+E27+E31+E35+E38+E50 -> 0 | F53: =+F22+F27+F31+F35+F38+F50 -> 0 | I53: =+I52+Oct!I53 -> 0 | J53: =+J52+Oct!J53 -> 0 | K53: =+K52+Oct!K53 -> 0 | L53: =+L52+Oct!L53 -> 0 | M53: =+M52+Oct!M53 -> 0 | N53: =+N52+Oct!N53 -> 0 | O53: =+O52+Oct!O53 -> 0 | P53: =+P52+Oct!P53 -> 0 | Q53: =+Q52+Oct!Q53 -> 0 | R53: =+R52+Oct!R53 -> 0 | T53: =SUM(T13:T52) -> 0 | U53: =SUM(U13:U52) -> 0 | V53: 0 | W53: 0 | X53: 0 | Y53: 0 | Z53: 0 | AA53: 0 | AB53: 0 | AC53: 0
A54: 3. Grant Funds Remaining | I54: =+I8-I67 -> 0 | J54: =+J8-J67 -> 0 | K54: =+I54+J54 -> 0 | T54: =+T53/P1 ->  | U54: =+U53/R1 -> 
A55: EQUIPMENT INFO | I55: Date Acquired | N55: Equipment Location | T55: =+T53+U53 -> 0
A56: 1500 | B56: 1500
A58: *Equipment is property of the VCAAA. Consult VCAAA Contractor Manual for more information
A59: I hereby certify that the above figures and attached expenditure report are accurate to the best of my knowledge.
A60: Prepared By: | F60: Signature: | K60: Date: | L60: Accounting Manager | P60: Title
A62: Authorized By: | F62: Signature: | L62: Community Services Officer | P62: Title
A64: AAA USE ONLY
A65: Grants Management Approval | G65: Amount Requested - Month | I65: =+I52 -> 0 | J65: =+J52 -> 0 | K65: =+I65+J65 -> 0 | L65: Date Received | P65: Fiscal Approval
G66: Amount Approved - Month | I66: =+I65 -> 0 | J66: =+J65 -> 0 | K66: =+I66+J66 -> 0
G67: Amount Approved - YTD | I67: =+I66+Oct!I67 -> 0 | J67: =+J66+Oct!J67 -> 0 | K67: =+I67+J67 -> 0
J69: Check total: | K69: =+K67+K54 -> 0

Sheet Dec (hidden)
A1: =+Nov!A1 -> Contractor Name: | B1: =+Nov!B1 -> Agency Name | E1: Month: | F1: =+Nov!F1+30 -> 2020-12-02 | I1: PO# | J1: =+Nov!J1 -> 0 | M1: GRANT AWARD AMOUNT: | O1: C1: | P1: =+Budget!Z40 -> 0 | Q1: C2: | R1: =+Budget!AA40 -> 0
A2: =+Nov!A2 -> Project Name: | B2: =+Budget!B1 -> VCAAA Senior Nutrition Program | E2: Grant#: | F2: =+Nov!F2 -> 0 | I2: Contact: | J2: =+Nov!J2 -> First Last | L2: =+Nov!L2 -> Phone: | M2: =+Nov!M2 -> (XXX) XXX-XXXX | P2: Total C: | R2: =+P1+R1 -> 0
I3: Address: | J3: =+Aug!J3 -> Street Address, City, CA 93XXX
A4: Number of Meals Served | C4: C1 | D4: C2
B5: Month | I5: Current Month Expenditures by Funding Source
B6: YTD | C6: =+C5+Nov!C6 -> 0 | D6: =+D5+Nov!D6 -> 0
A7: Item Description | C7: Authorized Budget by Allocation C1 | D7: Authorized Budget by Allocation C2 | E7: YTD Actual Expenses C1 | F7: YTD Actual Expenses C2 | G7: Total Current Month Expenses C1 | H7: Total Current Month Expenses C2 | I7: Grant Share C1 | J7: Grant Share C2 | K7: Cash Match C1 | L7: Cash Match C2 | M7: In-Kind Match C1 | N7: In-Kind Match C2 | O7: Program Income C1 | P7: Program Income C2 | Q7: Cash Non-Match C1 | R7: Cash Non-Match C2 | T7: Grant Share C1 | U7: Grant Share C2 | V7: Cash Match C1 | W7: Cash Match C2 | X7: In-Kind Match C1 | Y7: In-Kind Match C2 | Z7: Program Income C1 | AA7: Program Income C2 | AB7: Cash Non-Match C1 | AC7: Cash Non-Match C2
A8: APPROVED BUDGET | C8: =+Nov!C8 -> 0 | D8: =+Nov!D8 -> 0 | E8: =+E53 -> 0 | F8: =+F53 -> 0 | G8: =+G52 -> 0 | H8: =+H52 -> 0 | I8: =+P1 -> 0 | J8: =+R1 -> 0 | K8: =+Budget!Z34 -> 0 | L8: =+Budget!AA34 -> 0 | M8: =+Budget!Z35 -> 0 | N8: =+Budget!AA35 -> 0 | O8: =+Budget!Z38 -> 0 | P8: =+Budget!AA39 -> 0 | Q8: =+Budget!Z36 -> 0 | R8: =+Jul!R9 -> 0
A9: % OF TOTAL | C9: =IFERROR(+C$8/($C8+$D8),0) -> 0 | D9: =IFERROR(+D$8/($C8+$D8),0) -> 0
A10: TOTAL BUDGET | C10: =+C8+D8 -> 0 | H10: ACT YTD--> | I10: =+I52 -> 0 | J10: =+J52 -> 0 | K10: =+K52 -> 0 | L10: 0 | M10: 0 | N10: 0 | O10: 0 | P10: 0 | Q10: 0 | R10: 0
A12: A. PERSONNEL (Title / Name)
A13: =+Nov!A13 -> Admin/Fiscal | B13: =+Jul!B13 -> Position Title $XX.XX/hr | C13: =+Nov!C13 -> 0 | D13: =+Nov!D13 -> 0 | E13: =SUM(G13)+Nov!E13 -> 0 | F13: =SUM(H13)+Nov!F13 -> 0 | G13: =SUM(I13+K13+M13+O13+Q13) -> 0 | H13: =SUM(J13+L13+N13+P13+R13) -> 0 | T13: =+I13+Nov!T13 -> 0 | U13: =+J13+Nov!U13 -> 0 | V13: =+K13+Nov!V13 -> 0 | W13: =+L13+Nov!W13 -> 0 | X13: =+M13+Nov!X13 -> 0 | Y13: =+N13+Nov!Y13 -> 0 | Z13: =+O13+Nov!Z13 -> 0 | AA13: =+P13+Nov!AA13 -> 0 | AB13: =+Q13+Nov!AB13 -> 0 | AC13: =+R13+Nov!AC13 -> 0
A14: =+Nov!A14 -> Site/ HDM/MOW Coordinator | B14: =+Jul!B14 -> Position Title $XX.XX/hr | C14: =+Nov!C14 -> 0 | D14: =+Nov!D14 -> 0 | E14: =SUM(G14)+Nov!E14 -> 0 | F14: =SUM(H14)+Nov!F14 -> 0 | G14: =SUM(I14+K14+M14+O14+Q14) -> 0 | H14: =SUM(J14+L14+N14+P14+R14) -> 0 | T14: =+I14+Nov!T14 -> 0 | U14: =+J14+Nov!U14 -> 0 | V14: =+K14+Nov!V14 -> 0 | W14: =+L14+Nov!W14 -> 0 | X14: =+M14+Nov!X14 -> 0 | Y14: =+N14+Nov!Y14 -> 0 | Z14: =+O14+Nov!Z14 -> 0 | AA14: =+P14+Nov!AA14 -> 0 | AB14: =+Q14+Nov!AB14 -> 0 | AC14: =+R14+Nov!AC14 -> 0
A15: =+Nov!A15 -> Cook | B15: =+Jul!B15 -> Position Title $XX.XX/hr | C15: =+Nov!C15 -> 0 | D15: =+Nov!D15 -> 0 | E15: =SUM(G15)+Nov!E15 -> 0 | F15: =SUM(H15)+Nov!F15 -> 0 | G15: 0 | H15: 0 | T15: =+I15+Nov!T15 -> 0 | U15: =+J15+Nov!U15 -> 0 | V15: =+K15+Nov!V15 -> 0 | W15: =+L15+Nov!W15 -> 0 | X15: =+M15+Nov!X15 -> 0 | Y15: =+N15+Nov!Y15 -> 0 | Z15: =+O15+Nov!Z15 -> 0 | AA15: =+P15+Nov!AA15 -> 0 | AB15: =+Q15+Nov!AB15 -> 0 | AC15: =+R15+Nov!AC15 -> 0
A16: =+Nov!A16 -> Volunteers: | B16: =+Jul!B16 -> Position Title $XX.XX/hr | C16: =+Nov!C16 -> 0 | D16: =+Nov!D16 -> 0 | E16: =SUM(G16)+Nov!E16 -> 0 | F16: =SUM(H16)+Nov!F16 -> 0 | G16: 0 | H16: 0 | T16: =+I16+Nov!T16 -> 0 | U16: =+J16+Nov!U16 -> 0 | V16: =+K16+Nov!V16 -> 0 | W16: =+L16+Nov!W16 -> 0 | X16: =+M16+Nov!X16 -> 0 | Y16: =+N16+Nov!Y16 -> 0 | Z16: =+O16+Nov!Z16 -> 0 | AA16: =+P16+Nov!AA16 -> 0 | AB16: =+Q16+Nov!AB16 -> 0 | AC16: =+R16+Nov!AC16 -> 0
A17: =+Nov!A17 -> Volunteers: | B17: =+Jul!B17 -> Position Title $XX.XX/hr | C17: =+Nov!C17 -> 0 | D17: =+Nov!D17 -> 0 | E17: =SUM(G17)+Nov!E17 -> 0 | F17: =SUM(H17)+Nov!F17 -> 0 | G17: 0 | H17: 0 | T17: =+I17+Nov!T17 -> 0 | U17: =+J17+Nov!U17 -> 0 | V17: =+K17+Nov!V17 -> 0 | W17: =+L17+Nov!W17 -> 0 | X17: =+M17+Nov!X17 -> 0 | Y17: =+N17+Nov!Y17 -> 0 | Z17: =+O17+Nov!Z17 -> 0 | AA17: =+P17+Nov!AA17 -> 0 | AB17: =+Q17+Nov!AB17 -> 0 | AC17: =+R17+Nov!AC17 -> 0
A18: Volunteers | B18: =+Jul!B18 -> 0 | C18: =+Nov!C18 -> 0 | D18: =+Nov!D18 -> 0 | E18: =SUM(G18)+Nov!E18 -> 0 | F18: =SUM(H18)+Nov!F18 -> 0 | G18: 0 | H18: 0 | T18: =+I18+Nov!T18 -> 0 | U18: =+J18+Nov!U18 -> 0 | V18: =+K18+Nov!V18 -> 0 | W18: =+L18+Nov!W18 -> 0 | X18: =+M18+Nov!X18 -> 0 | Y18: =+N18+Nov!Y18 -> 0 | Z18: =+O18+Nov!Z18 -> 0 | AA18: =+P18+Nov!AA18 -> 0 | AB18: =+Q18+Nov!AB18 -> 0 | AC18: =+R18+Nov!AC18 -> 0
A19: Volunteers | B19: =+Jul!B19 -> 0 | C19: =+Nov!C19 -> 0 | D19: =+Nov!D19 -> 0 | E19: =SUM(G19)+Nov!E19 -> 0 | F19: =SUM(H19)+Nov!F19 -> 0 | G19: 0 | H19: 0 | T19: =+I19+Nov!T19 -> 0 | U19: =+J19+Nov!U19 -> 0 | V19: =+K19+Nov!V19 -> 0 | W19: =+L19+Nov!W19 -> 0 | X19: =+M19+Nov!X19 -> 0 | Y19: =+N19+Nov!Y19 -> 0 | Z19: =+O19+Nov!Z19 -> 0 | AA19: =+P19+Nov!AA19 -> 0 | AB19: =+Q19+Nov!AB19 -> 0 | AC19: =+R19+Nov!AC19 -> 0
A20: =+Nov!A20 -> 0 | B20: =+Jul!B20 -> 0 | C20: =+Nov!C20 -> 0 | D20: =+Nov!D20 -> 0 | E20: =SUM(G20)+Nov!E20 -> 0 | F20: =SUM(H20)+Nov!F20 -> 0 | G20: 0 | H20: 0 | T20: =+I20+Nov!T20 -> 0 | U20: =+J20+Nov!U20 -> 0 | V20: =+K20+Nov!V20 -> 0 | W20: =+L20+Nov!W20 -> 0 | X20: =+M20+Nov!X20 -> 0 | Y20: =+N20+Nov!Y20 -> 0 | Z20: =+O20+Nov!Z20 -> 0 | AA20: =+P20+Nov!AA20 -> 0 | AB20: =+Q20+Nov!AB20 -> 0 | AC20: =+R20+Nov!AC20 -> 0
A21: =+Nov!A21 -> 0 | B21: =+Jul!B21 -> 0 | C21: =+Nov!C21 -> 0 | D21: =+Nov!D21 -> 0 | E21: =SUM(G21)+Nov!E21 -> 0 | F21: =SUM(H21)+Nov!F21 -> 0 | G21: 0 | H21: 0 | T21: =+I21+Nov!T21 -> 0 | U21: =+J21+Nov!U21 -> 0 | V21: =+K21+Nov!V21 -> 0 | W21: =+L21+Nov!W21 -> 0 | X21: =+M21+Nov!X21 -> 0 | Y21: =+N21+Nov!Y21 -> 0 | Z21: =+O21+Nov!Z21 -> 0 | AA21: =+P21+Nov!AA21 -> 0 | AB21: =+Q21+Nov!AB21 -> 0 | AC21: =+R21+Nov!AC21 -> 0
A22: Total Personnel: | C22: =SUM(C13:C21) -> 0 | D22: 0 | E22: 0 | F22: 0 | G22: 0 | H22: 0 | I22: =SUM(I13:I21) -> 0 | J22: 0 | K22: 0 | L22: 0 | M22: 0 | N22: 0 | O22: 0 | P22: 0 | Q22: 0 | R22: 0
A23: B. TRAVEL & TRAINING
A24: =+Nov!A24 -> Travel/Mileage | C24: =+Nov!C24 -> 0 | D24: =+Nov!D24 -> 0 | E24: =SUM(G24)+Nov!E24 -> 0 | F24: =SUM(H24)+Nov!F24 -> 0 | G24: =SUM(I24+K24+M24+O24+Q24) -> 0 | H24: 0 | T24: =+I24+Nov!T24 -> 0 | U24: =+J24+Nov!U24 -> 0 | V24: =+K24+Nov!V24 -> 0 | W24: =+L24+Nov!W24 -> 0 | X24: =+M24+Nov!X24 -> 0 | Y24: =+N24+Nov!Y24 -> 0 | Z24: =+O24+Nov!Z24 -> 0 | AA24: =+P24+Nov!AA24 -> 0 | AB24: =+Q24+Nov!AB24 -> 0 | AC24: =+R24+Nov!AC24 -> 0
A25: =+Nov!A25 -> Training | C25: =+Nov!C25 -> 0 | D25: =+Nov!D25 -> 0 | E25: =SUM(G25)+Nov!E25 -> 0 | F25: =SUM(H25)+Nov!F25 -> 0 | G25: 0 | H25: 0 | T25: =+I25+Nov!T25 -> 0 | U25: =+J25+Nov!U25 -> 0 | V25: =+K25+Nov!V25 -> 0 | W25: =+L25+Nov!W25 -> 0 | X25: =+M25+Nov!X25 -> 0 | Y25: =+N25+Nov!Y25 -> 0 | Z25: =+O25+Nov!Z25 -> 0 | AA25: =+P25+Nov!AA25 -> 0 | AB25: =+Q25+Nov!AB25 -> 0 | AC25: =+R25+Nov!AC25 -> 0
A26: =+Nov!A26 -> 0 | C26: =+Nov!C26 -> 0 | D26: =+Nov!D26 -> 0 | E26: =SUM(G26)+Nov!E26 -> 0 | F26: =SUM(H26)+Nov!F26 -> 0 | G26: 0 | H26: 0 | T26: =+I26+Nov!T26 -> 0 | U26: =+J26+Nov!U26 -> 0 | V26: =+K26+Nov!V26 -> 0 | W26: =+L26+Nov!W26 -> 0 | X26: =+M26+Nov!X26 -> 0 | Y26: =+N26+Nov!Y26 -> 0 | Z26: =+O26+Nov!Z26 -> 0 | AA26: =+P26+Nov!AA26 -> 0 | AB26: =+Q26+Nov!AB26 -> 0 | AC26: =+R26+Nov!AC26 -> 0
A27: Total Travel & Training: | C27: =SUM(C24:C26) -> 0 | D27: 0 | E27: 0 | F27: 0 | G27: 0 | H27: 0 | I27: 0 | J27: 0 | K27: =SUM(K24:K26) -> 0 | L27: 0 | M27: 0 | N27: 0 | O27: 0 | P27: 0 | Q27: 0 | R27: 0
A28: C. EQUIPMENT
A29: =+Nov!A29 -> Equipment | C29: =+Nov!C29 -> 0 | D29: =+Nov!D29 -> 0 | E29: =SUM(G29)+Nov!E29 -> 0 | F29: =SUM(H29)+Nov!F29 -> 0 | G29: =SUM(I29+K29+M29+O29+Q29) -> 0 | H29: =SUM(J29+L29+N29+P29+R29) -> 0 | T29: =+I29+Nov!T29 -> 0 | U29: =+J29+Nov!U29 -> 0 | V29: =+K29+Nov!V29 -> 0 | W29: =+L29+Nov!W29 -> 0 | X29: =+M29+Nov!X29 -> 0 | Y29: =+N29+Nov!Y29 -> 0 | Z29: =+O29+Nov!Z29 -> 0 | AA29: =+P29+Nov!AA29 -> 0 | AB29: =+Q29+Nov!AB29 -> 0 | AC29: =+R29+Nov!AC29 -> 0
A30: =+Nov!A30 -> 0 | C30: =+Nov!C30 -> 0 | D30: =+Nov!D30 -> 0 | E30: =SUM(G30)+Nov!E30 -> 0 | F30: =SUM(H30)+Nov!F30 -> 0 | G30: =SUM(I30+K30+M30+O30+Q30) -> 0 | H30: =SUM(J30+L30+N30+P30+R30) -> 0 | T30: =+I30+Nov!T30 -> 0 | U30: =+J30+Nov!U30 -> 0 | V30: =+K30+Nov!V30 -> 0 | W30: =+L30+Nov!W30 -> 0 | X30: =+M30+Nov!X30 -> 0 | Y30: =+N30+Nov!Y30 -> 0 | Z30: =+O30+Nov!Z30 -> 0 | AA30: =+P30+Nov!AA30 -> 0 | AB30: =+Q30+Nov!AB30 -> 0 | AC30: =+R30+Nov!AC30 -> 0
A31: Total Equipment: | C31: =SUM(C29:C30) -> 0 | D31: 0 | E31: 0 | F31: 0 | G31: 0 | H31: 0 | I31: 0 | J31: 0 | K31: =SUM(K29:K30) -> 0 | L31: 0 | M31: 0 | N31: 0 | O31: 0 | P31: 0 | Q31: 0 | R31: 0
A32: D. CONSULTANTS
A33: =+Nov!A33 -> Congregate or HDM Meals | C33: =+Nov!C33 -> 0 | D33: =+Nov!D33 -> 0 | E33: =SUM(G33)+Nov!E33 -> 0 | F33: =SUM(H33)+Nov!F33 -> 0 | G33: =SUM(I33+K33+M33+O33+Q33) -> 0 | H33: =SUM(J33+L33+N33+P33+R33) -> 0 | T33: =+I33+Nov!T33 -> 0 | U33: =+J33+Nov!U33 -> 0 | V33: =+K33+Nov!V33 -> 0 | W33: =+L33+Nov!W33 -> 0 | X33: =+M33+Nov!X33 -> 0 | Y33: =+N33+Nov!Y33 -> 0 | Z33: =+O33+Nov!Z33 -> 0 | AA33: =+P33+Nov!AA33 -> 0 | AB33: =+Q33+Nov!AB33 -> 0 | AC33: =+R33+Nov!AC33 -> 0
A34: =+Nov!A34 -> Food Share Delivery Cost | C34: =+Nov!C34 -> 0 | D34: =+Nov!D34 -> 0 | E34: =SUM(G34)+Nov!E34 -> 0 | F34: =SUM(H34)+Nov!F34 -> 0 | G34: =SUM(I34+K34+M34+O34+Q34) -> 0 | H34: =SUM(J34+L34+N34+P34+R34) -> 0 | T34: =+I34+Nov!T34 -> 0 | U34: =+J34+Nov!U34 -> 0 | V34: =+K34+Nov!V34 -> 0 | W34: =+L34+Nov!W34 -> 0 | X34: =+M34+Nov!X34 -> 0 | Y34: =+N34+Nov!Y34 -> 0 | Z34: =+O34+Nov!Z34 -> 0 | AA34: =+P34+Nov!AA34 -> 0 | AB34: =+Q34+Nov!AB34 -> 0 | AC34: =+R34+Nov!AC34 -> 0
A35: Total Consultants: | C35: =SUM(C33:C34) -> 0 | D35: 0 | E35: 0 | F35: 0 | G35: 0 | H35: 0 | I35: 0 | J35: 0 | K35: =SUM(K33:K34) -> 0 | L35: 0 | M35: 0 | N35: 0 | O35: 0 | P35: 0 | Q35: 0 | R35: 0
A36: E. FOOD COSTS (Senior Nutrition Program Only)
A37: =+Nov!A37 -> Food Cost | C37: =+Nov!C37 -> 0 | D37: =+Nov!D37 -> 0 | E37: =SUM(G37)+Nov!E37 -> 0 | F37: =SUM(H37)+Nov!F37 -> 0 | G37: =SUM(I37+K37+M37+O37+Q37) -> 0 | H37: =SUM(J37+L37+N37+P37+R37) -> 0 | T37: =+I37+Nov!T37 -> 0 | U37: =+J37+Nov!U37 -> 0 | V37: =+K37+Nov!V37 -> 0 | W37: =+L37+Nov!W37 -> 0 | X37: =+M37+Nov!X37 -> 0 | Y37: =+N37+Nov!Y37 -> 0 | Z37: =+O37+Nov!Z37 -> 0 | AA37: =+P37+Nov!AA37 -> 0 | AB37: =+Q37+Nov!AB37 -> 0 | AC37: =+R37+Nov!AC37 -> 0
A38: Total Food Costs: | C38: =+C37 -> 0 | D38: =+D37 -> 0 | E38: =SUM(E37:E37) -> 0 | F38: 0 | G38: 0 | H38: 0 | I38: 0 | J38: 0 | K38: =SUM(K37:K37) -> 0 | L38: 0 | M38: 0 | N38: 0 | O38: 0 | P38: 0 | Q38: 0 | R38: 0
A39: F. OTHER COSTS
A40: =+Nov!A40 -> Supplies:Non food(Bags,liners etc) | C40: =+Nov!C40 -> 0 | D40: =+Nov!D40 -> 0 | E40: =SUM(G40)+Nov!E40 -> 0 | F40: =SUM(H40)+Nov!F40 -> 0 | G40: =SUM(I40+K40+M40+O40+Q40) -> 0 | H40: =SUM(J40+L40+N40+P40+R40) -> 0 | T40: =+I40+Nov!T40 -> 0 | U40: =+J40+Nov!U40 -> 0 | V40: =+K40+Nov!V40 -> 0 | W40: =+L40+Nov!W40 -> 0 | X40: =+M40+Nov!X40 -> 0 | Y40: =+N40+Nov!Y40 -> 0 | Z40: =+O40+Nov!Z40 -> 0 | AA40: =+P40+Nov!AA40 -> 0 | AB40: =+Q40+Nov!AB40 -> 0 | AC40: =+R40+Nov!AC40 -> 0
A41: =+Nov!A41 -> Health permit | C41: =+Nov!C41 -> 0 | D41: =+Nov!D41 -> 0 | E41: =SUM(G41)+Nov!E41 -> 0 | F41: =SUM(H41)+Nov!F41 -> 0 | G41: 0 | H41: 0 | T41: =+I41+Nov!T41 -> 0 | U41: =+J41+Nov!U41 -> 0 | V41: =+K41+Nov!V41 -> 0 | W41: =+L41+Nov!W41 -> 0 | X41: =+M41+Nov!X41 -> 0 | Y41: =+N41+Nov!Y41 -> 0 | Z41: =+O41+Nov!Z41 -> 0 | AA41: =+P41+Nov!AA41 -> 0 | AB41: =+Q41+Nov!AB41 -> 0 | AC41: =+R41+Nov!AC41 -> 0
A42: =+Nov!A42 -> Rent | C42: =+Nov!C42 -> 0 | D42: =+Nov!D42 -> 0 | E42: =SUM(G42)+Nov!E42 -> 0 | F42: =SUM(H42)+Nov!F42 -> 0 | G42: 0 | H42: 0 | T42: =+I42+Nov!T42 -> 0 | U42: =+J42+Nov!U42 -> 0 | V42: =+K42+Nov!V42 -> 0 | W42: =+L42+Nov!W42 -> 0 | X42: =+M42+Nov!X42 -> 0 | Y42: =+N42+Nov!Y42 -> 0 | Z42: =+O42+Nov!Z42 -> 0 | AA42: =+P42+Nov!AA42 -> 0 | AB42: =+Q42+Nov!AB42 -> 0 | AC42: =+R42+Nov!AC42 -> 0
A43: =+Nov!A43 -> Program Publicity | C43: =+Nov!C43 -> 0 | D43: =+Nov!D43 -> 0 | E43: =SUM(G43)+Nov!E43 -> 0 | F43: =SUM(H43)+Nov!F43 -> 0 | G43: 0 | H43: 0 | T43: =+I43+Nov!T43 -> 0 | U43: =+J43+Nov!U43 -> 0 | V43: =+K43+Nov!V43 -> 0 | W43: =+L43+Nov!W43 -> 0 | X43: =+M43+Nov!X43 -> 0 | Y43: =+N43+Nov!Y43 -> 0 | Z43: =+O43+Nov!Z43 -> 0 | AA43: =+P43+Nov!AA43 -> 0 | AB43: =+Q43+Nov!AB43 -> 0 | AC43: =+R43+Nov!AC43 -> 0
A44: =+Nov!A44 -> Other | C44: =+Nov!C44 -> 0 | D44: =+Nov!D44 -> 0 | E44: =SUM(G44)+Nov!E44 -> 0 | F44: =SUM(H44)+Nov!F44 -> 0 | G44: =SUM(I44+K44+M44+O44+Q44) -> 0 | H44: =SUM(J44+L44+N44+P44+R44) -> 0 | T44: =+I44+Nov!T44 -> 0 | U44: =+J44+Nov!U44 -> 0 | V44: =+K44+Nov!V44 -> 0 | W44: =+L44+Nov!W44 -> 0 | X44: =+M44+Nov!X44 -> 0 | Y44: =+N44+Nov!Y44 -> 0 | Z44: =+O44+Nov!Z44 -> 0 | AA44: =+P44+Nov!AA44 -> 0 | AB44: =+Q44+Nov!AB44 -> 0 | AC44: =+R44+Nov!AC44 -> 0
A45: =+Nov!A45 -> Other | C45: =+Nov!C45 -> 0 | D45: =+Nov!D45 -> 0 | E45: =SUM(G45)+Nov!E45 -> 0 | F45: =SUM(H45)+Nov!F45 -> 0 | G45: =SUM(I45+K45+M45+O45+Q45) -> 0 | H45: =SUM(J45+L45+N45+P45+R45) -> 0 | T45: =+I45+Nov!T45 -> 0 | U45: =+J45+Nov!U45 -> 0 | V45: =+K45+Nov!V45 -> 0 | W45: =+L45+Nov!W45 -> 0 | X45: =+M45+Nov!X45 -> 0 | Y45: =+N45+Nov!Y45 -> 0 | Z45: =+O45+Nov!Z45 -> 0 | AA45: =+P45+Nov!AA45 -> 0 | AB45: =+Q45+Nov!AB45 -> 0 | AC45: =+R45+Nov!AC45 -> 0
A46: =+Nov!A46 -> Indirect Costs (no more than 10% of grant funds) | T46: =+I46+Nov!T46 -> 0 | U46: =+J46+Nov!U46 -> 0 | V46: =+K46+Nov!V46 -> 0 | W46: =+L46+Nov!W46 -> 0 | X46: =+M46+Nov!X46 -> 0 | Y46: =+N46+Nov!Y46 -> 0 | Z46: =+O46+Nov!Z46 -> 0 | AA46: =+P46+Nov!AA46 -> 0 | AB46: =+Q46+Nov!AB46 -> 0 | AC46: =+R46+Nov!AC46 -> 0
T47: =+I47+Nov!T47 -> 0 | U47: =+J47+Nov!U47 -> 0 | V47: =+K47+Nov!V47 -> 0 | W47: =+L47+Nov!W47 -> 0 | X47: =+M47+Nov!X47 -> 0 | Y47: =+N47+Nov!Y47 -> 0 | Z47: =+O47+Nov!Z47 -> 0 | AA47: =+P47+Nov!AA47 -> 0 | AB47: =+Q47+Nov!AB47 -> 0 | AC47: =+R47+Nov!AC47 -> 0
T48: =+I48+Nov!T48 -> 0 | U48: =+J48+Nov!U48 -> 0 | V48: =+K48+Nov!V48 -> 0 | W48: =+L48+Nov!W48 -> 0 | X48: =+M48+Nov!X48 -> 0 | Y48: =+N48+Nov!Y48 -> 0 | Z48: =+O48+Nov!Z48 -> 0 | AA48: =+P48+Nov!AA48 -> 0 | AB48: =+Q48+Nov!AB48 -> 0 | AC48: =+R48+Nov!AC48 -> 0
A49: =+Nov!A49 -> 0 | C49: =+Nov!C49 -> 0 | D49: =+Nov!D49 -> 0 | E49: =SUM(G49)+Nov!E49 -> 0 | F49: =SUM(H49)+Nov!F49 -> 0 | G49: 0 | H49: 0 | T49: =+I49+Nov!T49 -> 0 | U49: =+J49+Nov!U49 -> 0 | V49: =+K49+Nov!V49 -> 0 | W49: =+L49+Nov!W49 -> 0 | X49: =+M49+Nov!X49 -> 0 | Y49: =+N49+Nov!Y49 -> 0 | Z49: =+O49+Nov!Z49 -> 0 | AA49: =+P49+Nov!AA49 -> 0 | AB49: =+Q49+Nov!AB49 -> 0 | AC49: =+R49+Nov!AC49 -> 0
A50: Total Other Costs: | C50: =SUM(C40:C49) -> 0 | D50: 0 | E50: 0 | F50: 0 | G50: 0 | H50: 0 | I50: 0 | J50: 0 | K50: 0 | L50: 0 | M50: 0 | N50: 0 | O50: 0 | P50: 0 | Q50: 0 | R50: 0
A52: 1. Current Month Total | G52: =SUM(G50,G38,G35,G31,G27,G22) -> 0 | H52: 0 | I52: 0 | J52: 0 | K52: 0 | L52: 0 | M52: 0 | N52: 0 | O52: 0 | P52: 0 | Q52: 0 | R52: 0
A53: 2. Year-to-Date Total** | C53: =+C50+C38+C35+C31+C27+C22 -> 0 | D53: =+D50+D38+D35+D31+D27+D22 -> 0 | E53: =+E22+E27+E31+E35+E38+E50 -> 0 | F53: =+F22+F27+F31+F35+F38+F50 -> 0 | I53: =+I52+Nov!I53 -> 0 | J53: =+J52+Nov!J53 -> 0 | K53: =+K52+Nov!K53 -> 0 | L53: =+L52+Nov!L53 -> 0 | M53: =+M52+Nov!M53 -> 0 | N53: =+N52+Nov!N53 -> 0 | O53: =+O52+Nov!O53 -> 0 | P53: =+P52+Nov!P53 -> 0 | Q53: =+Q52+Nov!Q53 -> 0 | R53: =+R52+Nov!R53 -> 0 | T53: =+I53+Nov!T53 -> 0 | U53: =+J53+Nov!U53 -> 0 | V53: =+K53+Nov!V53 -> 0 | W53: =+L53+Nov!W53 -> 0 | X53: =+M53+Nov!X53 -> 0 | Y53: =+N53+Nov!Y53 -> 0 | Z53: =+O53+Nov!Z53 -> 0 | AA53: =+P53+Nov!AA53 -> 0 | AB53: =+Q53+Nov!AB53 -> 0 | AC53: =+R53+Nov!AC53 -> 0
A54: 3. Grant Funds Remaining | I54: =+I8-I67 -> 0 | J54: =+J8-J67 -> 0 | K54: =+I54+J54 -> 0 | T54: =+T53/P1 ->  | U54: =+U53/R1 -> 
A55: EQUIPMENT INFO | I55: Date Acquired | N55: Equipment Location | T55: =+T53+U53 -> 0
A56: 1500 | B56: 1500
A58: *Equipment is property of the VCAAA. Consult VCAAA Contractor Manual for more information
A59: I hereby certify that the above figures and attached expenditure report are accurate to the best of my knowledge.
A60: Prepared By: | F60: Signature: | K60: Date: | P60: Title | Q60: Accounting Manager
A62: Authorized By: | F62: Signature: | P62: Title
A64: AAA USE ONLY
A65: Grants Management Approval | G65: Amount Requested - Month | I65: =+I52 -> 0 | J65: =+J52 -> 0 | K65: =+I65+J65 -> 0 | L65: Date Received | P65: Fiscal Approval
G66: Amount Approved - Month | I66: =+I65 -> 0 | J66: =+J65 -> 0 | K66: =+I66+J66 -> 0
G67: Amount Approved - YTD | I67: =+I66+Nov!I67 -> 0 | J67: =+J66+Nov!J67 -> 0 | K67: =+I67+J67 -> 0
J69: Check total: | K69: =+K67+K54 -> 0

Sheet Jan (hidden)
A1: =+Dec!A1 -> Contractor Name: | B1: =+Dec!B1 -> Agency Name | E1: Month: | F1: =+Dec!F1+31 -> 2021-01-02 | I1: PO# | J1: =+Dec!J1 -> 0 | M1: GRANT AWARD AMOUNT: | O1: C1: | P1: =+Budget!Z40 -> 0 | Q1: C2: | R1: =+Budget!AA40 -> 0
A2: =+Dec!A2 -> Project Name: | B2: =+Budget!B1 -> VCAAA Senior Nutrition Program | E2: Grant#: | F2: =+Dec!F2 -> 0 | I2: Contact: | J2: =+Dec!J2 -> First Last | L2: =+Dec!L2 -> Phone: | M2: =+Dec!M2 -> (XXX) XXX-XXXX | P2: Total C: | R2: =+P1+R1 -> 0
I3: Address: | J3: =+Dec!J3 -> Street Address, City, CA 93XXX
A4: Number of Meals Served | C4: C1 | D4: C2
B5: Month | I5: Current Month Expenditures by Funding Source
B6: YTD | C6: =+C5+Dec!C6 -> 0 | D6: =+D5+Dec!D6 -> 0
A7: Item Description | C7: Authorized Budget by Allocation C1 | D7: Authorized Budget by Allocation C2 | E7: YTD Actual Expenses C1 | F7: YTD Actual Expenses C2 | G7: Total Current Month Expenses C1 | H7: Total Current Month Expenses C2 | I7: Grant Share C1 | J7: Grant Share C2 | K7: Cash Match C1 | L7: Cash Match C2 | M7: In-Kind Match C1 | N7: In-Kind Match C2 | O7: Program Income C1 | P7: Program Income C2 | Q7: Cash Non-Match C1 | R7: Cash Non-Match C2 | T7: Grant Share C1 | U7: Grant Share C2 | V7: Cash Match C1 | W7: Cash Match C2 | X7: In-Kind Match C1 | Y7: In-Kind Match C2 | Z7: Program Income C1 | AA7: Program Income C2 | AB7: Cash Non-Match C1 | AC7: Cash Non-Match C2
A8: APPROVED BUDGET | C8: =+Dec!C8 -> 0 | D8: =+Dec!D8 -> 0 | E8: =+E53 -> 0 | F8: =+F53 -> 0 | G8: =+G52 -> 0 | H8: =+H52 -> 0 | I8: =+P1 -> 0 | J8: =+R1 -> 0 | K8: =+Budget!Z34 -> 0 | L8: =+Budget!AA34 -> 0 | M8: =+Budget!Z35 -> 0 | N8: =+Budget!AA35 -> 0 | O8: =+Budget!Z38 -> 0 | P8: =+Budget!AA39 -> 0 | Q8: =+Budget!Z36 -> 0 | R8: =+Jul!R9 -> 0
A9: % OF TOTAL | C9: =IFERROR(+C$8/($C8+$D8),0) -> 0 | D9: =IFERROR(+D$8/($C8+$D8),0) -> 0
A10: TOTAL BUDGET | C10: =+C8+D8 -> 0 | H10: ACT YTD--> | I10: =+I52 -> 0 | J10: =+J52 -> 0 | K10: =+K52 -> 0 | L10: 0 | M10: 0 | N10: 0 | O10: 0 | P10: 0 | Q10: 0 | R10: 0
A12: A. PERSONNEL (Title / Name)
A13: =+Dec!A13 -> Admin/Fiscal | B13: =+Jul!B13 -> Position Title $XX.XX/hr | C13: =+Dec!C13 -> 0 | D13: =+Dec!D13 -> 0 | E13: =SUM(G13)+Dec!E13 -> 0 | F13: =SUM(H13)+Dec!F13 -> 0 | G13: =SUM(I13+K13+M13+O13+Q13) -> 0 | H13: =SUM(J13+L13+N13+P13+R13) -> 0 | T13: =+I13+Dec!T13 -> 0 | U13: =+J13+Dec!U13 -> 0 | V13: =+K13+Dec!V13 -> 0 | W13: =+L13+Dec!W13 -> 0 | X13: =+M13+Dec!X13 -> 0 | Y13: =+N13+Dec!Y13 -> 0 | Z13: =+O13+Dec!Z13 -> 0 | AA13: =+P13+Dec!AA13 -> 0 | AB13: =+Q13+Dec!AB13 -> 0 | AC13: =+R13+Dec!AC13 -> 0
A14: =+Dec!A14 -> Site/ HDM/MOW Coordinator | B14: =+Jul!B14 -> Position Title $XX.XX/hr | C14: =+Dec!C14 -> 0 | D14: =+Dec!D14 -> 0 | E14: =SUM(G14)+Dec!E14 -> 0 | F14: =SUM(H14)+Dec!F14 -> 0 | G14: =SUM(I14+K14+M14+O14+Q14) -> 0 | H14: =SUM(J14+L14+N14+P14+R14) -> 0 | T14: =+I14+Dec!T14 -> 0 | U14: =+J14+Dec!U14 -> 0 | V14: =+K14+Dec!V14 -> 0 | W14: =+L14+Dec!W14 -> 0 | X14: =+M14+Dec!X14 -> 0 | Y14: =+N14+Dec!Y14 -> 0 | Z14: =+O14+Dec!Z14 -> 0 | AA14: =+P14+Dec!AA14 -> 0 | AB14: =+Q14+Dec!AB14 -> 0 | AC14: =+R14+Dec!AC14 -> 0
A15: =+Dec!A15 -> Cook | B15: =+Jul!B15 -> Position Title $XX.XX/hr | C15: =+Dec!C15 -> 0 | D15: =+Dec!D15 -> 0 | E15: =SUM(G15)+Dec!E15 -> 0 | F15: =SUM(H15)+Dec!F15 -> 0 | G15: 0 | H15: 0 | T15: =+I15+Dec!T15 -> 0 | U15: =+J15+Dec!U15 -> 0 | V15: =+K15+Dec!V15 -> 0 | W15: =+L15+Dec!W15 -> 0 | X15: =+M15+Dec!X15 -> 0 | Y15: =+N15+Dec!Y15 -> 0 | Z15: =+O15+Dec!Z15 -> 0 | AA15: =+P15+Dec!AA15 -> 0 | AB15: =+Q15+Dec!AB15 -> 0 | AC15: =+R15+Dec!AC15 -> 0
A16: =+Dec!A16 -> Volunteers: | B16: =+Jul!B16 -> Position Title $XX.XX/hr | C16: =+Dec!C16 -> 0 | D16: =+Dec!D16 -> 0 | E16: =SUM(G16)+Dec!E16 -> 0 | F16: =SUM(H16)+Dec!F16 -> 0 | G16: 0 | H16: 0 | T16: =+I16+Dec!T16 -> 0 | U16: =+J16+Dec!U16 -> 0 | V16: =+K16+Dec!V16 -> 0 | W16: =+L16+Dec!W16 -> 0 | X16: =+M16+Dec!X16 -> 0 | Y16: =+N16+Dec!Y16 -> 0 | Z16: =+O16+Dec!Z16 -> 0 | AA16: =+P16+Dec!AA16 -> 0 | AB16: =+Q16+Dec!AB16 -> 0 | AC16: =+R16+Dec!AC16 -> 0
A17: =+Dec!A17 -> Volunteers: | B17: =+Jul!B17 -> Position Title $XX.XX/hr | C17: =+Dec!C17 -> 0 | D17: =+Dec!D17 -> 0 | E17: =SUM(G17)+Dec!E17 -> 0 | F17: =SUM(H17)+Dec!F17 -> 0 | G17: 0 | H17: 0 | T17: =+I17+Dec!T17 -> 0 | U17: =+J17+Dec!U17 -> 0 | V17: =+K17+Dec!V17 -> 0 | W17: =+L17+Dec!W17 -> 0 | X17: =+M17+Dec!X17 -> 0 | Y17: =+N17+Dec!Y17 -> 0 | Z17: =+O17+Dec!Z17 -> 0 | AA17: =+P17+Dec!AA17 -> 0 | AB17: =+Q17+Dec!AB17 -> 0 | AC17: =+R17+Dec!AC17 -> 0
A18: Volunteers | B18: =+Jul!B18 -> 0 | C18: =+Dec!C18 -> 0 | D18: =+Dec!D18 -> 0 | E18: =SUM(G18)+Dec!E18 -> 0 | F18: =SUM(H18)+Dec!F18 -> 0 | G18: 0 | H18: 0 | T18: =+I18+Dec!T18 -> 0 | U18: =+J18+Dec!U18 -> 0 | V18: =+K18+Dec!V18 -> 0 | W18: =+L18+Dec!W18 -> 0 | X18: =+M18+Dec!X18 -> 0 | Y18: =+N18+Dec!Y18 -> 0 | Z18: =+O18+Dec!Z18 -> 0 | AA18: =+P18+Dec!AA18 -> 0 | AB18: =+Q18+Dec!AB18 -> 0 | AC18: =+R18+Dec!AC18 -> 0
A19: Volunteers | B19: =+Jul!B19 -> 0 | C19: =+Dec!C19 -> 0 | D19: =+Dec!D19 -> 0 | E19: =SUM(G19)+Dec!E19 -> 0 | F19: =SUM(H19)+Dec!F19 -> 0 | G19: 0 | H19: 0 | T19: =+I19+Dec!T19 -> 0 | U19: =+J19+Dec!U19 -> 0 | V19: =+K19+Dec!V19 -> 0 | W19: =+L19+Dec!W19 -> 0 | X19: =+M19+Dec!X19 -> 0 | Y19: =+N19+Dec!Y19 -> 0 | Z19: =+O19+Dec!Z19 -> 0 | AA19: =+P19+Dec!AA19 -> 0 | AB19: =+Q19+Dec!AB19 -> 0 | AC19: =+R19+Dec!AC19 -> 0
A20: =+Dec!A20 -> 0 | B20: =+Jul!B20 -> 0 | C20: =+Dec!C20 -> 0 | D20: =+Dec!D20 -> 0 | E20: =SUM(G20)+Dec!E20 -> 0 | F20: =SUM(H20)+Dec!F20 -> 0 | G20: 0 | H20: 0 | T20: =+I20+Dec!T20 -> 0 | U20: =+J20+Dec!U20 -> 0 | V20: =+K20+Dec!V20 -> 0 | W20: =+L20+Dec!W20 -> 0 | X20: =+M20+Dec!X20 -> 0 | Y20: =+N20+Dec!Y20 -> 0 | Z20: =+O20+Dec!Z20 -> 0 | AA20: =+P20+Dec!AA20 -> 0 | AB20: =+Q20+Dec!AB20 -> 0 | AC20: =+R20+Dec!AC20 -> 0
A21: =+Dec!A21 -> 0 | B21: =+Jul!B21 -> 0 | C21: =+Dec!C21 -> 0 | D21: =+Dec!D21 -> 0 | E21: =SUM(G21)+Dec!E21 -> 0 | F21: =SUM(H21)+Dec!F21 -> 0 | G21: 0 | H21: 0 | T21: =+I21+Dec!T21 -> 0 | U21: =+J21+Dec!U21 -> 0 | V21: =+K21+Dec!V21 -> 0 | W21: =+L21+Dec!W21 -> 0 | X21: =+M21+Dec!X21 -> 0 | Y21: =+N21+Dec!Y21 -> 0 | Z21: =+O21+Dec!Z21 -> 0 | AA21: =+P21+Dec!AA21 -> 0 | AB21: =+Q21+Dec!AB21 -> 0 | AC21: =+R21+Dec!AC21 -> 0
A22: Total Personnel: | C22: =SUM(C13:C21) -> 0 | D22: 0 | E22: 0 | F22: 0 | G22: 0 | H22: 0 | I22: =SUM(I13:I21) -> 0 | J22: 0 | K22: 0 | L22: 0 | M22: 0 | N22: 0 | O22: 0 | P22: 0 | Q22: 0 | R22: 0
A23: B. TRAVEL & TRAINING
A24: =+Dec!A24 -> Travel/Mileage | C24: =+Dec!C24 -> 0 | D24: =+Dec!D24 -> 0 | E24: =SUM(G24)+Dec!E24 -> 0 | F24: =SUM(H24)+Dec!F24 -> 0 | G24: =SUM(I24+K24+M24+O24+Q24) -> 0 | H24: 0 | T24: =+I24+Dec!T24 -> 0 | U24: =+J24+Dec!U24 -> 0 | V24: =+K24+Dec!V24 -> 0 | W24: =+L24+Dec!W24 -> 0 | X24: =+M24+Dec!X24 -> 0 | Y24: =+N24+Dec!Y24 -> 0 | Z24: =+O24+Dec!Z24 -> 0 | AA24: =+P24+Dec!AA24 -> 0 | AB24: =+Q24+Dec!AB24 -> 0 | AC24: =+R24+Dec!AC24 -> 0
A25: =+Dec!A25 -> Training | C25: =+Dec!C25 -> 0 | D25: =+Dec!D25 -> 0 | E25: =SUM(G25)+Dec!E25 -> 0 | F25: =SUM(H25)+Dec!F25 -> 0 | G25: 0 | H25: 0 | T25: =+I25+Dec!T25 -> 0 | U25: =+J25+Dec!U25 -> 0 | V25: =+K25+Dec!V25 -> 0 | W25: =+L25+Dec!W25 -> 0 | X25: =+M25+Dec!X25 -> 0 | Y25: =+N25+Dec!Y25 -> 0 | Z25: =+O25+Dec!Z25 -> 0 | AA25: =+P25+Dec!AA25 -> 0 | AB25: =+Q25+Dec!AB25 -> 0 | AC25: =+R25+Dec!AC25 -> 0
A26: =+Dec!A26 -> 0 | C26: =+Dec!C26 -> 0 | D26: =+Dec!D26 -> 0 | E26: =SUM(G26)+Dec!E26 -> 0 | F26: =SUM(H26)+Dec!F26 -> 0 | G26: 0 | H26: 0 | T26: =+I26+Dec!T26 -> 0 | U26: =+J26+Dec!U26 -> 0 | V26: =+K26+Dec!V26 -> 0 | W26: =+L26+Dec!W26 -> 0 | X26: =+M26+Dec!X26 -> 0 | Y26: =+N26+Dec!Y26 -> 0 | Z26: =+O26+Dec!Z26 -> 0 | AA26: =+P26+Dec!AA26 -> 0 | AB26: =+Q26+Dec!AB26 -> 0 | AC26: =+R26+Dec!AC26 -> 0
A27: Total Travel & Training: | C27: =SUM(C24:C26) -> 0 | D27: 0 | E27: 0 | F27: 0 | G27: 0 | H27: 0 | I27: 0 | J27: 0 | K27: =SUM(K24:K26) -> 0 | L27: 0 | M27: 0 | N27: 0 | O27: 0 | P27: 0 | Q27: 0 | R27: 0
A28: C. EQUIPMENT
A29: =+Dec!A29 -> Equipment | C29: =+Dec!C29 -> 0 | D29: =+Dec!D29 -> 0 | E29: =SUM(G29)+Dec!E29 -> 0 | F29: =SUM(H29)+Dec!F29 -> 0 | G29: =SUM(I29+K29+M29+O29+Q29) -> 0 | H29: =SUM(J29+L29+N29+P29+R29) -> 0 | T29: =+I29+Dec!T29 -> 0 | U29: =+J29+Dec!U29 -> 0 | V29: =+K29+Dec!V29 -> 0 | W29: =+L29+Dec!W29 -> 0 | X29: =+M29+Dec!X29 -> 0 | Y29: =+N29+Dec!Y29 -> 0 | Z29: =+O29+Dec!Z29 -> 0 | AA29: =+P29+Dec!AA29 -> 0 | AB29: =+Q29+Dec!AB29 -> 0 | AC29: =+R29+Dec!AC29 -> 0
A30: =+Dec!A30 -> 0 | C30: =+Dec!C30 -> 0 | D30: =+Dec!D30 -> 0 | E30: =SUM(G30)+Dec!E30 -> 0 | F30: =SUM(H30)+Dec!F30 -> 0 | G30: =SUM(I30+K30+M30+O30+Q30) -> 0 | H30: =SUM(J30+L30+N30+P30+R30) -> 0 | T30: =+I30+Dec!T30 -> 0 | U30: =+J30+Dec!U30 -> 0 | V30: =+K30+Dec!V30 -> 0 | W30: =+L30+Dec!W30 -> 0 | X30: =+M30+Dec!X30 -> 0 | Y30: =+N30+Dec!Y30 -> 0 | Z30: =+O30+Dec!Z30 -> 0 | AA30: =+P30+Dec!AA30 -> 0 | AB30: =+Q30+Dec!AB30 -> 0 | AC30: =+R30+Dec!AC30 -> 0
A31: Total Equipment: | C31: =SUM(C29:C30) -> 0 | D31: 0 | E31: 0 | F31: 0 | G31: 0 | H31: 0 | I31: 0 | J31: 0 | K31: =SUM(K29:K30) -> 0 | L31: 0 | M31: 0 | N31: 0 | O31: 0 | P31: 0 | Q31: 0 | R31: 0
A32: D. CONSULTANTS
A33: =+Dec!A33 -> Congregate or HDM Meals | C33: =+Dec!C33 -> 0 | D33: =+Dec!D33 -> 0 | E33: =SUM(G33)+Dec!E33 -> 0 | F33: =SUM(H33)+Dec!F33 -> 0 | G33: =SUM(I33+K33+M33+O33+Q33) -> 0 | H33: =SUM(J33+L33+N33+P33+R33) -> 0 | T33: =+I33+Dec!T33 -> 0 | U33: =+J33+Dec!U33 -> 0 | V33: =+K33+Dec!V33 -> 0 | W33: =+L33+Dec!W33 -> 0 | X33: =+M33+Dec!X33 -> 0 | Y33: =+N33+Dec!Y33 -> 0 | Z33: =+O33+Dec!Z33 -> 0 | AA33: =+P33+Dec!AA33 -> 0 | AB33: =+Q33+Dec!AB33 -> 0 | AC33: =+R33+Dec!AC33 -> 0
A34: =+Dec!A34 -> Food Share Delivery Cost | C34: =+Dec!C34 -> 0 | D34: =+Dec!D34 -> 0 | E34: =SUM(G34)+Dec!E34 -> 0 | F34: =SUM(H34)+Dec!F34 -> 0 | G34: =SUM(I34+K34+M34+O34+Q34) -> 0 | H34: =SUM(J34+L34+N34+P34+R34) -> 0 | T34: =+I34+Dec!T34 -> 0 | U34: =+J34+Dec!U34 -> 0 | V34: =+K34+Dec!V34 -> 0 | W34: =+L34+Dec!W34 -> 0 | X34: =+M34+Dec!X34 -> 0 | Y34: =+N34+Dec!Y34 -> 0 | Z34: =+O34+Dec!Z34 -> 0 | AA34: =+P34+Dec!AA34 -> 0 | AB34: =+Q34+Dec!AB34 -> 0 | AC34: =+R34+Dec!AC34 -> 0
A35: Total Consultants: | C35: =SUM(C33:C34) -> 0 | D35: 0 | E35: 0 | F35: 0 | G35: 0 | H35: 0 | I35: 0 | J35: 0 | K35: =SUM(K33:K34) -> 0 | L35: 0 | M35: 0 | N35: 0 | O35: 0 | P35: 0 | Q35: 0 | R35: 0
A36: E. FOOD COSTS (Senior Nutrition Program Only)
A37: =+Dec!A37 -> Food Cost | C37: =+Dec!C37 -> 0 | D37: =+Dec!D37 -> 0 | E37: =SUM(G37)+Dec!E37 -> 0 | F37: =SUM(H37)+Dec!F37 -> 0 | G37: =SUM(I37+K37+M37+O37+Q37) -> 0 | H37: =SUM(J37+L37+N37+P37+R37) -> 0 | T37: =+I37+Dec!T37 -> 0 | U37: =+J37+Dec!U37 -> 0 | V37: =+K37+Dec!V37 -> 0 | W37: =+L37+Dec!W37 -> 0 | X37: =+M37+Dec!X37 -> 0 | Y37: =+N37+Dec!Y37 -> 0 | Z37: =+O37+Dec!Z37 -> 0 | AA37: =+P37+Dec!AA37 -> 0 | AB37: =+Q37+Dec!AB37 -> 0 | AC37: =+R37+Dec!AC37 -> 0
A38: Total Food Costs: | C38: =+C37 -> 0 | D38: =+D37 -> 0 | E38: =SUM(E37:E37) -> 0 | F38: 0 | G38: 0 | H38: 0 | I38: 0 | J38: 0 | K38: =SUM(K37:K37) -> 0 | L38: 0 | M38: 0 | N38: 0 | O38: 0 | P38: 0 | Q38: 0 | R38: 0
A39: F. OTHER COSTS
A40: =+Dec!A40 -> Supplies:Non food(Bags,liners etc) | C40: =+Dec!C40 -> 0 | D40: =+Dec!D40 -> 0 | E40: =SUM(G40)+Dec!E40 -> 0 | F40: =SUM(H40)+Dec!F40 -> 0 | G40: =SUM(I40+K40+M40+O40+Q40) -> 0 | H40: =SUM(J40+L40+N40+P40+R40) -> 0 | T40: =+I40+Dec!T40 -> 0 | U40: =+J40+Dec!U40 -> 0 | V40: =+K40+Dec!V40 -> 0 | W40: =+L40+Dec!W40 -> 0 | X40: =+M40+Dec!X40 -> 0 | Y40: =+N40+Dec!Y40 -> 0 | Z40: =+O40+Dec!Z40 -> 0 | AA40: =+P40+Dec!AA40 -> 0 | AB40: =+Q40+Dec!AB40 -> 0 | AC40: =+R40+Dec!AC40 -> 0
A41: =+Dec!A41 -> Health permit | C41: =+Dec!C41 -> 0 | D41: =+Dec!D41 -> 0 | E41: =SUM(G41)+Dec!E41 -> 0 | F41: =SUM(H41)+Dec!F41 -> 0 | G41: 0 | H41: 0 | T41: =+I41+Dec!T41 -> 0 | U41: =+J41+Dec!U41 -> 0 | V41: =+K41+Dec!V41 -> 0 | W41: =+L41+Dec!W41 -> 0 | X41: =+M41+Dec!X41 -> 0 | Y41: =+N41+Dec!Y41 -> 0 | Z41: =+O41+Dec!Z41 -> 0 | AA41: =+P41+Dec!AA41 -> 0 | AB41: =+Q41+Dec!AB41 -> 0 | AC41: =+R41+Dec!AC41 -> 0
A42: =+Dec!A42 -> Rent | C42: =+Dec!C42 -> 0 | D42: =+Dec!D42 -> 0 | E42: =SUM(G42)+Dec!E42 -> 0 | F42: =SUM(H42)+Dec!F42 -> 0 | G42: 0 | H42: 0 | T42: =+I42+Dec!T42 -> 0 | U42: =+J42+Dec!U42 -> 0 | V42: =+K42+Dec!V42 -> 0 | W42: =+L42+Dec!W42 -> 0 | X42: =+M42+Dec!X42 -> 0 | Y42: =+N42+Dec!Y42 -> 0 | Z42: =+O42+Dec!Z42 -> 0 | AA42: =+P42+Dec!AA42 -> 0 | AB42: =+Q42+Dec!AB42 -> 0 | AC42: =+R42+Dec!AC42 -> 0
A43: =+Dec!A43 -> Program Publicity | C43: =+Dec!C43 -> 0 | D43: =+Dec!D43 -> 0 | E43: =SUM(G43)+Dec!E43 -> 0 | F43: =SUM(H43)+Dec!F43 -> 0 | G43: 0 | H43: 0 | T43: =+I43+Dec!T43 -> 0 | U43: =+J43+Dec!U43 -> 0 | V43: =+K43+Dec!V43 -> 0 | W43: =+L43+Dec!W43 -> 0 | X43: =+M43+Dec!X43 -> 0 | Y43: =+N43+Dec!Y43 -> 0 | Z43: =+O43+Dec!Z43 -> 0 | AA43: =+P43+Dec!AA43 -> 0 | AB43: =+Q43+Dec!AB43 -> 0 | AC43: =+R43+Dec!AC43 -> 0
A44: =+Dec!A44 -> Other | C44: =+Dec!C44 -> 0 | D44: =+Dec!D44 -> 0 | E44: =SUM(G44)+Dec!E44 -> 0 | F44: =SUM(H44)+Dec!F44 -> 0 | G44: =SUM(I44+K44+M44+O44+Q44) -> 0 | H44: =SUM(J44+L44+N44+P44+R44) -> 0 | T44: =+I44+Dec!T44 -> 0 | U44: =+J44+Dec!U44 -> 0 | V44: =+K44+Dec!V44 -> 0 | W44: =+L44+Dec!W44 -> 0 | X44: =+M44+Dec!X44 -> 0 | Y44: =+N44+Dec!Y44 -> 0 | Z44: =+O44+Dec!Z44 -> 0 | AA44: =+P44+Dec!AA44 -> 0 | AB44: =+Q44+Dec!AB44 -> 0 | AC44: =+R44+Dec!AC44 -> 0
A45: =+Dec!A45 -> Other | C45: =+Dec!C45 -> 0 | D45: =+Dec!D45 -> 0 | E45: =SUM(G45)+Dec!E45 -> 0 | F45: =SUM(H45)+Dec!F45 -> 0 | G45: =SUM(I45+K45+M45+O45+Q45) -> 0 | H45: =SUM(J45+L45+N45+P45+R45) -> 0 | T45: =+I45+Dec!T45 -> 0 | U45: =+J45+Dec!U45 -> 0 | V45: =+K45+Dec!V45 -> 0 | W45: =+L45+Dec!W45 -> 0 | X45: =+M45+Dec!X45 -> 0 | Y45: =+N45+Dec!Y45 -> 0 | Z45: =+O45+Dec!Z45 -> 0 | AA45: =+P45+Dec!AA45 -> 0 | AB45: =+Q45+Dec!AB45 -> 0 | AC45: =+R45+Dec!AC45 -> 0
A46: =+Dec!A46 -> Indirect Costs (no more than 10% of grant funds) | T46: =+I46+Dec!T46 -> 0 | U46: =+J46+Dec!U46 -> 0 | V46: =+K46+Dec!V46 -> 0 | W46: =+L46+Dec!W46 -> 0 | X46: =+M46+Dec!X46 -> 0 | Y46: =+N46+Dec!Y46 -> 0 | Z46: =+O46+Dec!Z46 -> 0 | AA46: =+P46+Dec!AA46 -> 0 | AB46: =+Q46+Dec!AB46 -> 0 | AC46: =+R46+Dec!AC46 -> 0
T47: =+I47+Dec!T47 -> 0 | U47: =+J47+Dec!U47 -> 0 | V47: =+K47+Dec!V47 -> 0 | W47: =+L47+Dec!W47 -> 0 | X47: =+M47+Dec!X47 -> 0 | Y47: =+N47+Dec!Y47 -> 0 | Z47: =+O47+Dec!Z47 -> 0 | AA47: =+P47+Dec!AA47 -> 0 | AB47: =+Q47+Dec!AB47 -> 0 | AC47: =+R47+Dec!AC47 -> 0
T48: =+I48+Dec!T48 -> 0 | U48: =+J48+Dec!U48 -> 0 | V48: =+K48+Dec!V48 -> 0 | W48: =+L48+Dec!W48 -> 0 | X48: =+M48+Dec!X48 -> 0 | Y48: =+N48+Dec!Y48 -> 0 | Z48: =+O48+Dec!Z48 -> 0 | AA48: =+P48+Dec!AA48 -> 0 | AB48: =+Q48+Dec!AB48 -> 0 | AC48: =+R48+Dec!AC48 -> 0
A49: =+Dec!A49 -> 0 | B49: Janitorial | C49: =+Dec!C49 -> 0 | D49: =+Dec!D49 -> 0 | E49: =SUM(G49)+Dec!E49 -> 0 | F49: =SUM(H49)+Dec!F49 -> 0 | G49: 0 | H49: 0 | T49: =+I49+Dec!T49 -> 0 | U49: =+J49+Dec!U49 -> 0 | V49: =+K49+Dec!V49 -> 0 | W49: =+L49+Dec!W49 -> 0 | X49: =+M49+Dec!X49 -> 0 | Y49: =+N49+Dec!Y49 -> 0 | Z49: =+O49+Dec!Z49 -> 0 | AA49: =+P49+Dec!AA49 -> 0 | AB49: =+Q49+Dec!AB49 -> 0 | AC49: =+R49+Dec!AC49 -> 0
A50: Total Other Costs: | C50: =SUM(C40:C49) -> 0 | D50: 0 | E50: 0 | F50: 0 | G50: 0 | H50: 0 | I50: 0 | J50: 0 | K50: 0 | L50: 0 | M50: 0 | N50: 0 | O50: 0 | P50: 0 | Q50: 0 | R50: 0
A52: 1. Current Month Total | G52: =SUM(G50,G38,G35,G31,G27,G22) -> 0 | H52: 0 | I52: 0 | J52: 0 | K52: 0 | L52: 0 | M52: 0 | N52: 0 | O52: 0 | P52: 0 | Q52: 0 | R52: 0
A53: 2. Year-to-Date Total** | C53: =+C50+C38+C35+C31+C27+C22 -> 0 | D53: =+D50+D38+D35+D31+D27+D22 -> 0 | E53: =+E22+E27+E31+E35+E38+E50 -> 0 | F53: =+F22+F27+F31+F35+F38+F50 -> 0 | I53: =+I52+Dec!I53 -> 0 | J53: =+J52+Dec!J53 -> 0 | K53: =+K52+Dec!K53 -> 0 | L53: =+L52+Dec!L53 -> 0 | M53: =+M52+Dec!M53 -> 0 | N53: =+N52+Dec!N53 -> 0 | O53: =+O52+Dec!O53 -> 0 | P53: =+P52+Dec!P53 -> 0 | Q53: =+Q52+Dec!Q53 -> 0 | R53: =+R52+Dec!R53 -> 0 | T53: =SUM(T13:T52) -> 0 | U53: =SUM(U13:U52) -> 0 | V53: 0 | W53: 0 | X53: 0 | Y53: 0 | Z53: 0 | AA53: 0 | AB53: 0 | AC53: 0
A54: 3. Grant Funds Remaining | I54: =+I8-I67 -> 0 | J54: =+J8-J67 -> 0 | K54: =+I54+J54 -> 0 | T54: =+T53/P1 ->  | U54: =+U53/R1 -> 
A55: EQUIPMENT INFO | I55: Date Acquired | N55: Equipment Location | T55: =+T53+U53 -> 0
A56: 1500 | B56: 1500
A58: *Equipment is property of the VCAAA. Consult VCAAA Contractor Manual for more information
A59: I hereby certify that the above figures and attached expenditure report are accurate to the best of my knowledge.
A60: Prepared By: | F60: Signature: | K60: Date: | P60: Title | Q60: Accounting Manager
A62: Authorized By: | F62: Signature: | P62: Title
A64: AAA USE ONLY
A65: Grants Management Approval | G65: Amount Requested - Month | I65: =+I52 -> 0 | J65: =+J52 -> 0 | K65: =+I65+J65 -> 0 | L65: Date Received | P65: Fiscal Approval
G66: Amount Approved - Month | I66: =+I65 -> 0 | J66: =+J65 -> 0 | K66: =+I66+J66 -> 0
G67: Amount Approved - YTD | I67: =+I66+Dec!I67 -> 0 | J67: =+J66+Dec!J67 -> 0 | K67: =+I67+J67 -> 0
J69: Check total: | K69: =+K67+K54 -> 0

Sheet Feb (hidden)
A1: =+Jan!A1 -> Contractor Name: | B1: =+Jan!B1 -> Agency Name | E1: Month: | F1: =+Jan!F1+31 -> 2021-02-02 | I1: PO# | J1: =+Jan!J1 -> 0 | M1: GRANT AWARD AMOUNT: | O1: C1: | P1: =+Budget!Z40 -> 0 | Q1: C2: | R1: =+Budget!AA40 -> 0
A2: =+Jan!A2 -> Project Name: | B2: =+Budget!B1 -> VCAAA Senior Nutrition Program | E2: Grant#: | F2: =+Jan!F2 -> 0 | I2: Contact: | J2: =+Jan!J2 -> First Last | L2: =+Jan!L2 -> Phone: | M2: =+Jan!M2 -> (XXX) XXX-XXXX | P2: Total C: | R2: =+P1+R1 -> 0
I3: Address: | J3: =+Jan!J3 -> Street Address, City, CA 93XXX
A4: Number of Meals Served | C4: C1 | D4: C2
B5: Month | I5: Current Month Expenditures by Funding Source
B6: YTD | C6: =+C5+Jan!C6 -> 0 | D6: =+D5+Jan!D6 -> 0
A7: Item Description | C7: Authorized Budget by Allocation C1 | D7: Authorized Budget by Allocation C2 | E7: YTD Actual Expenses C1 | F7: YTD Actual Expenses C2 | G7: Total Current Month Expenses C1 | H7: Total Current Month Expenses C2 | I7: Grant Share C1 | J7: Grant Share C2 | K7: Cash Match C1 | L7: Cash Match C2 | M7: In-Kind Match C1 | N7: In-Kind Match C2 | O7: Program Income C1 | P7: Program Income C2 | Q7: Cash Non-Match C1 | R7: Cash Non-Match C2 | T7: Grant Share C1 | U7: Grant Share C2 | V7: Cash Match C1 | W7: Cash Match C2 | X7: In-Kind Match C1 | Y7: In-Kind Match C2 | Z7: Program Income C1 | AA7: Program Income C2 | AB7: Cash Non-Match C1 | AC7: Cash Non-Match C2
A8: APPROVED BUDGET | C8: =+Jan!C8 -> 0 | D8: =+Jan!D8 -> 0 | E8: =+E53 -> 0 | F8: =+F53 -> 0 | G8: =+G52 -> 0 | H8: =+H52 -> 0 | I8: =+P1 -> 0 | J8: =+R1 -> 0 | K8: =+Budget!Z34 -> 0 | L8: =+Budget!AA34 -> 0 | M8: =+Budget!Z35 -> 0 | N8: =+Budget!AA35 -> 0 | O8: =+Budget!Z38 -> 0 | P8: =+Budget!AA39 -> 0 | Q8: =+Budget!Z36 -> 0 | R8: =+Jul!R9 -> 0
A9: % OF TOTAL | C9: =IFERROR(+C$8/($C8+$D8),0) -> 0 | D9: =IFERROR(+D$8/($C8+$D8),0) -> 0
A10: TOTAL BUDGET | C10: =+C8+D8 -> 0 | H10: ACT YTD--> | I10: =+I52 -> 0 | J10: =+J52 -> 0 | K10: =+K52 -> 0 | L10: 0 | M10: 0 | N10: 0 | O10: 0 | P10: 0 | Q10: 0 | R10: 0
A12: A. PERSONNEL (Title / Name)
A13: =+Jan!A13 -> Admin/Fiscal | B13: =+Jul!B13 -> Position Title $XX.XX/hr | C13: =+Jan!C13 -> 0 | D13: =+Jan!D13 -> 0 | E13: =SUM(G13)+Jan!E13 -> 0 | F13: =SUM(H13)+Jan!F13 -> 0 | G13: =SUM(I13+K13+M13+O13+Q13) -> 0 | H13: =SUM(J13+L13+N13+P13+R13) -> 0 | T13: =+I13+Jan!T13 -> 0 | U13: =+J13+Jan!U13 -> 0 | V13: =+K13+Jan!V13 -> 0 | W13: =+L13+Jan!W13 -> 0 | X13: =+M13+Jan!X13 -> 0 | Y13: =+N13+Jan!Y13 -> 0 | Z13: =+O13+Jan!Z13 -> 0 | AA13: =+P13+Jan!AA13 -> 0 | AB13: =+Q13+Jan!AB13 -> 0 | AC13: =+R13+Jan!AC13 -> 0
A14: =+Jan!A14 -> Site/ HDM/MOW Coordinator | B14: =+Jul!B14 -> Position Title $XX.XX/hr | C14: =+Jan!C14 -> 0 | D14: =+Jan!D14 -> 0 | E14: =SUM(G14)+Jan!E14 -> 0 | F14: =SUM(H14)+Jan!F14 -> 0 | G14: =SUM(I14+K14+M14+O14+Q14) -> 0 | H14: 0 | T14: =+I14+Jan!T14 -> 0 | U14: =+J14+Jan!U14 -> 0 | V14: =+K14+Jan!V14 -> 0 | W14: =+L14+Jan!W14 -> 0 | X14: =+M14+Jan!X14 -> 0 | Y14: =+N14+Jan!Y14 -> 0 | Z14: =+O14+Jan!Z14 -> 0 | AA14: =+P14+Jan!AA14 -> 0 | AB14: =+Q14+Jan!AB14 -> 0 | AC14: =+R14+Jan!AC14 -> 0
A15: =+Jan!A15 -> Cook | B15: =+Jul!B15 -> Position Title $XX.XX/hr | C15: =+Jan!C15 -> 0 | D15: =+Jan!D15 -> 0 | E15: =SUM(G15)+Jan!E15 -> 0 | F15: =SUM(H15)+Jan!F15 -> 0 | G15: 0 | H15: 0 | T15: =+I15+Jan!T15 -> 0 | U15: =+J15+Jan!U15 -> 0 | V15: =+K15+Jan!V15 -> 0 | W15: =+L15+Jan!W15 -> 0 | X15: =+M15+Jan!X15 -> 0 | Y15: =+N15+Jan!Y15 -> 0 | Z15: =+O15+Jan!Z15 -> 0 | AA15: =+P15+Jan!AA15 -> 0 | AB15: =+Q15+Jan!AB15 -> 0 | AC15: =+R15+Jan!AC15 -> 0
A16: =+Jan!A16 -> Volunteers: | B16: =+Jul!B16 -> Position Title $XX.XX/hr | C16: =+Jan!C16 -> 0 | D16: =+Jan!D16 -> 0 | E16: =SUM(G16)+Jan!E16 -> 0 | F16: =SUM(H16)+Jan!F16 -> 0 | G16: 0 | H16: 0 | T16: =+I16+Jan!T16 -> 0 | U16: =+J16+Jan!U16 -> 0 | V16: =+K16+Jan!V16 -> 0 | W16: =+L16+Jan!W16 -> 0 | X16: =+M16+Jan!X16 -> 0 | Y16: =+N16+Jan!Y16 -> 0 | Z16: =+O16+Jan!Z16 -> 0 | AA16: =+P16+Jan!AA16 -> 0 | AB16: =+Q16+Jan!AB16 -> 0 | AC16: =+R16+Jan!AC16 -> 0
A17: =+Jan!A17 -> Volunteers: | B17: =+Jul!B17 -> Position Title $XX.XX/hr | C17: =+Jan!C17 -> 0 | D17: =+Jan!D17 -> 0 | E17: =SUM(G17)+Jan!E17 -> 0 | F17: =SUM(H17)+Jan!F17 -> 0 | G17: 0 | H17: 0 | T17: =+I17+Jan!T17 -> 0 | U17: =+J17+Jan!U17 -> 0 | V17: =+K17+Jan!V17 -> 0 | W17: =+L17+Jan!W17 -> 0 | X17: =+M17+Jan!X17 -> 0 | Y17: =+N17+Jan!Y17 -> 0 | Z17: =+O17+Jan!Z17 -> 0 | AA17: =+P17+Jan!AA17 -> 0 | AB17: =+Q17+Jan!AB17 -> 0 | AC17: =+R17+Jan!AC17 -> 0
A18: Volunteers | B18: =+Jul!B18 -> 0 | C18: =+Jan!C18 -> 0 | D18: =+Jan!D18 -> 0 | E18: =SUM(G18)+Jan!E18 -> 0 | F18: =SUM(H18)+Jan!F18 -> 0 | G18: =M18 -> 0 | T18: =+I18+Jan!T18 -> 0 | U18: =+J18+Jan!U18 -> 0 | V18: =+K18+Jan!V18 -> 0 | W18: =+L18+Jan!W18 -> 0 | X18: =+M18+Jan!X18 -> 0 | Y18: =+N18+Jan!Y18 -> 0 | Z18: =+O18+Jan!Z18 -> 0 | AA18: =+P18+Jan!AA18 -> 0 | AB18: =+Q18+Jan!AB18 -> 0 | AC18: =+R18+Jan!AC18 -> 0
A19: Volunteers | B19: =+Jul!B19 -> 0 | C19: =+Jan!C19 -> 0 | D19: =+Jan!D19 -> 0 | E19: =SUM(G19)+Jan!E19 -> 0 | F19: =SUM(H19)+Jan!F19 -> 0 | G19: =M19 -> 0 | H19: =N19 -> 0 | T19: =+I19+Jan!T19 -> 0 | U19: =+J19+Jan!U19 -> 0 | V19: =+K19+Jan!V19 -> 0 | W19: =+L19+Jan!W19 -> 0 | X19: =+M19+Jan!X19 -> 0 | Y19: =+N19+Jan!Y19 -> 0 | Z19: =+O19+Jan!Z19 -> 0 | AA19: =+P19+Jan!AA19 -> 0 | AB19: =+Q19+Jan!AB19 -> 0 | AC19: =+R19+Jan!AC19 -> 0
A20: =+Jan!A20 -> 0 | B20: =+Jul!B20 -> 0 | C20: =+Jan!C20 -> 0 | D20: =+Jan!D20 -> 0 | E20: =SUM(G20)+Jan!E20 -> 0 | F20: =SUM(H20)+Jan!F20 -> 0 | G20: =SUM(I20+K20+M20+O20+Q20) -> 0 | H20: =N20 -> 0 | T20: =+I20+Jan!T20 -> 0 | U20: =+J20+Jan!U20 -> 0 | V20: =+K20+Jan!V20 -> 0 | W20: =+L20+Jan!W20 -> 0 | X20: =+M20+Jan!X20 -> 0 | Y20: =+N20+Jan!Y20 -> 0 | Z20: =+O20+Jan!Z20 -> 0 | AA20: =+P20+Jan!AA20 -> 0 | AB20: =+Q20+Jan!AB20 -> 0 | AC20: =+R20+Jan!AC20 -> 0
A21: =+Jan!A21 -> 0 | B21: =+Jul!B21 -> 0 | C21: =+Jan!C21 -> 0 | D21: =+Jan!D21 -> 0 | E21: =SUM(G21)+Jan!E21 -> 0 | F21: =SUM(H21)+Jan!F21 -> 0 | G21: 0 | H21: 0 | T21: =+I21+Jan!T21 -> 0 | U21: =+J21+Jan!U21 -> 0 | V21: =+K21+Jan!V21 -> 0 | W21: =+L21+Jan!W21 -> 0 | X21: =+M21+Jan!X21 -> 0 | Y21: =+N21+Jan!Y21 -> 0 | Z21: =+O21+Jan!Z21 -> 0 | AA21: =+P21+Jan!AA21 -> 0 | AB21: =+Q21+Jan!AB21 -> 0 | AC21: =+R21+Jan!AC21 -> 0
A22: Total Personnel: | C22: =SUM(C13:C21) -> 0 | D22: 0 | E22: 0 | F22: 0 | G22: 0 | H22: 0 | I22: =SUM(I13:I21) -> 0 | J22: 0 | K22: 0 | L22: 0 | M22: 0 | N22: 0 | O22: 0 | P22: 0 | Q22: 0 | R22: 0
A23: B. TRAVEL & TRAINING
A24: =+Jan!A24 -> Travel/Mileage | C24: =+Jan!C24 -> 0 | D24: =+Jan!D24 -> 0 | E24: =SUM(G24)+Jan!E24 -> 0 | F24: =SUM(H24)+Jan!F24 -> 0 | G24: =SUM(I24+K24+M24+O24+Q24) -> 0 | H24: 0 | T24: =+I24+Jan!T24 -> 0 | U24: =+J24+Jan!U24 -> 0 | V24: =+K24+Jan!V24 -> 0 | W24: =+L24+Jan!W24 -> 0 | X24: =+M24+Jan!X24 -> 0 | Y24: =+N24+Jan!Y24 -> 0 | Z24: =+O24+Jan!Z24 -> 0 | AA24: =+P24+Jan!AA24 -> 0 | AB24: =+Q24+Jan!AB24 -> 0 | AC24: =+R24+Jan!AC24 -> 0
A25: =+Jan!A25 -> Training | C25: =+Jan!C25 -> 0 | D25: =+Jan!D25 -> 0 | E25: =SUM(G25)+Jan!E25 -> 0 | F25: =SUM(H25)+Jan!F25 -> 0 | G25: 0 | H25: 0 | T25: =+I25+Jan!T25 -> 0 | U25: =+J25+Jan!U25 -> 0 | V25: =+K25+Jan!V25 -> 0 | W25: =+L25+Jan!W25 -> 0 | X25: =+M25+Jan!X25 -> 0 | Y25: =+N25+Jan!Y25 -> 0 | Z25: =+O25+Jan!Z25 -> 0 | AA25: =+P25+Jan!AA25 -> 0 | AB25: =+Q25+Jan!AB25 -> 0 | AC25: =+R25+Jan!AC25 -> 0
A26: =+Jan!A26 -> 0 | C26: =+Jan!C26 -> 0 | D26: =+Jan!D26 -> 0 | E26: =SUM(G26)+Jan!E26 -> 0 | F26: =SUM(H26)+Jan!F26 -> 0 | G26: 0 | H26: 0 | T26: =+I26+Jan!T26 -> 0 | U26: =+J26+Jan!U26 -> 0 | V26: =+K26+Jan!V26 -> 0 | W26: =+L26+Jan!W26 -> 0 | X26: =+M26+Jan!X26 -> 0 | Y26: =+N26+Jan!Y26 -> 0 | Z26: =+O26+Jan!Z26 -> 0 | AA26: =+P26+Jan!AA26 -> 0 | AB26: =+Q26+Jan!AB26 -> 0 | AC26: =+R26+Jan!AC26 -> 0
A27: Total Travel & Training: | C27: =SUM(C24:C26) -> 0 | D27: 0 | E27: 0 | F27: 0 | G27: 0 | H27: 0 | I27: 0 | J27: 0 | K27: =SUM(K24:K26) -> 0 | L27: 0 | M27: 0 | N27: 0 | O27: 0 | P27: 0 | Q27: 0 | R27: 0
A28: C. EQUIPMENT
A29: =+Jan!A29 -> Equipment | C29: =+Jan!C29 -> 0 | D29: =+Jan!D29 -> 0 | E29: =SUM(G29)+Jan!E29 -> 0 | F29: =SUM(H29)+Jan!F29 -> 0 | G29: =SUM(I29+K29+M29+O29+Q29) -> 0 | H29: =SUM(J29+L29+N29+P29+R29) -> 0 | T29: =+I29+Jan!T29 -> 0 | U29: =+J29+Jan!U29 -> 0 | V29: =+K29+Jan!V29 -> 0 | W29: =+L29+Jan!W29 -> 0 | X29: =+M29+Jan!X29 -> 0 | Y29: =+N29+Jan!Y29 -> 0 | Z29: =+O29+Jan!Z29 -> 0 | AA29: =+P29+Jan!AA29 -> 0 | AB29: =+Q29+Jan!AB29 -> 0 | AC29: =+R29+Jan!AC29 -> 0
A30: =+Jan!A30 -> 0 | C30: =+Jan!C30 -> 0 | D30: =+Jan!D30 -> 0 | E30: =SUM(G30)+Jan!E30 -> 0 | F30: =SUM(H30)+Jan!F30 -> 0 | G30: =SUM(I30+K30+M30+O30+Q30) -> 0 | H30: =SUM(J30+L30+N30+P30+R30) -> 0 | T30: =+I30+Jan!T30 -> 0 | U30: =+J30+Jan!U30 -> 0 | V30: =+K30+Jan!V30 -> 0 | W30: =+L30+Jan!W30 -> 0 | X30: =+M30+Jan!X30 -> 0 | Y30: =+N30+Jan!Y30 -> 0 | Z30: =+O30+Jan!Z30 -> 0 | AA30: =+P30+Jan!AA30 -> 0 | AB30: =+Q30+Jan!AB30 -> 0 | AC30: =+R30+Jan!AC30 -> 0
A31: Total Equipment: | C31: =SUM(C29:C30) -> 0 | D31: 0 | E31: 0 | F31: 0 | G31: 0 | H31: 0 | I31: 0 | J31: 0 | K31: =SUM(K29:K30) -> 0 | L31: 0 | M31: 0 | N31: 0 | O31: 0 | P31: 0 | Q31: 0 | R31: 0
A32: D. CONSULTANTS
A33: =+Jan!A33 -> Congregate or HDM Meals | C33: =+Jan!C33 -> 0 | D33: =+Jan!D33 -> 0 | E33: =SUM(G33)+Jan!E33 -> 0 | F33: =SUM(H33)+Jan!F33 -> 0 | G33: =SUM(I33+K33+M33+O33+Q33) -> 0 | H33: =SUM(J33+L33+N33+P33+R33) -> 0 | T33: =+I33+Jan!T33 -> 0 | U33: =+J33+Jan!U33 -> 0 | V33: =+K33+Jan!V33 -> 0 | W33: =+L33+Jan!W33 -> 0 | X33: =+M33+Jan!X33 -> 0 | Y33: =+N33+Jan!Y33 -> 0 | Z33: =+O33+Jan!Z33 -> 0 | AA33: =+P33+Jan!AA33 -> 0 | AB33: =+Q33+Jan!AB33 -> 0 | AC33: =+R33+Jan!AC33 -> 0
A34: =+Jan!A34 -> Food Share Delivery Cost | C34: =+Jan!C34 -> 0 | D34: =+Jan!D34 -> 0 | E34: =SUM(G34)+Jan!E34 -> 0 | F34: =SUM(H34)+Jan!F34 -> 0 | G34: =SUM(I34+K34+M34+O34+Q34) -> 0 | H34: =SUM(J34+L34+N34+P34+R34) -> 0 | T34: =+I34+Jan!T34 -> 0 | U34: =+J34+Jan!U34 -> 0 | V34: =+K34+Jan!V34 -> 0 | W34: =+L34+Jan!W34 -> 0 | X34: =+M34+Jan!X34 -> 0 | Y34: =+N34+Jan!Y34 -> 0 | Z34: =+O34+Jan!Z34 -> 0 | AA34: =+P34+Jan!AA34 -> 0 | AB34: =+Q34+Jan!AB34 -> 0 | AC34: =+R34+Jan!AC34 -> 0
A35: Total Consultants: | C35: =SUM(C33:C34) -> 0 | D35: 0 | E35: 0 | F35: 0 | G35: 0 | H35: 0 | I35: 0 | J35: 0 | K35: =SUM(K33:K34) -> 0 | L35: 0 | M35: 0 | N35: 0 | O35: 0 | P35: 0 | Q35: 0 | R35: 0
A36: E. FOOD COSTS (Senior Nutrition Program Only)
A37: =+Jan!A37 -> Food Cost | C37: =+Jan!C37 -> 0 | D37: =+Jan!D37 -> 0 | E37: =SUM(G37)+Jan!E37 -> 0 | F37: =SUM(H37)+Jan!F37 -> 0 | G37: =SUM(I37+K37+M37+O37+Q37) -> 0 | H37: =SUM(J37+L37+N37+P37+R37) -> 0 | T37: =+I37+Jan!T37 -> 0 | U37: =+J37+Jan!U37 -> 0 | V37: =+K37+Jan!V37 -> 0 | W37: =+L37+Jan!W37 -> 0 | X37: =+M37+Jan!X37 -> 0 | Y37: =+N37+Jan!Y37 -> 0 | Z37: =+O37+Jan!Z37 -> 0 | AA37: =+P37+Jan!AA37 -> 0 | AB37: =+Q37+Jan!AB37 -> 0 | AC37: =+R37+Jan!AC37 -> 0
A38: Total Food Costs: | C38: =+C37 -> 0 | D38: =+D37 -> 0 | E38: =SUM(E37:E37) -> 0 | F38: 0 | G38: 0 | H38: 0 | I38: 0 | J38: 0 | K38: =SUM(K37:K37) -> 0 | L38: 0 | M38: 0 | N38: 0 | O38: 0 | P38: 0 | Q38: 0 | R38: 0
A39: F. OTHER COSTS
A40: =+Jan!A40 -> Supplies:Non food(Bags,liners etc) | C40: =+Jan!C40 -> 0 | D40: =+Jan!D40 -> 0 | E40: =SUM(G40)+Jan!E40 -> 0 | F40: =SUM(H40)+Jan!F40 -> 0 | G40: =SUM(I40+K40+M40+O40+Q40) -> 0 | H40: =SUM(J40+L40+N40+P40+R40) -> 0 | T40: =+I40+Jan!T40 -> 0 | U40: =+J40+Jan!U40 -> 0 | V40: =+K40+Jan!V40 -> 0 | W40: =+L40+Jan!W40 -> 0 | X40: =+M40+Jan!X40 -> 0 | Y40: =+N40+Jan!Y40 -> 0 | Z40: =+O40+Jan!Z40 -> 0 | AA40: =+P40+Jan!AA40 -> 0 | AB40: =+Q40+Jan!AB40 -> 0 | AC40: =+R40+Jan!AC40 -> 0
A41: =+Jan!A41 -> Health permit | C41: =+Jan!C41 -> 0 | D41: =+Jan!D41 -> 0 | E41: =SUM(G41)+Jan!E41 -> 0 | F41: =SUM(H41)+Jan!F41 -> 0 | G41: 0 | H41: 0 | T41: =+I41+Jan!T41 -> 0 | U41: =+J41+Jan!U41 -> 0 | V41: =+K41+Jan!V41 -> 0 | W41: =+L41+Jan!W41 -> 0 | X41: =+M41+Jan!X41 -> 0 | Y41: =+N41+Jan!Y41 -> 0 | Z41: =+O41+Jan!Z41 -> 0 | AA41: =+P41+Jan!AA41 -> 0 | AB41: =+Q41+Jan!AB41 -> 0 | AC41: =+R41+Jan!AC41 -> 0
A42: =+Jan!A42 -> Rent | C42: =+Jan!C42 -> 0 | D42: =+Jan!D42 -> 0 | E42: =SUM(G42)+Jan!E42 -> 0 | F42: =SUM(H42)+Jan!F42 -> 0 | G42: 0 | H42: 0 | T42: =+I42+Jan!T42 -> 0 | U42: =+J42+Jan!U42 -> 0 | V42: =+K42+Jan!V42 -> 0 | W42: =+L42+Jan!W42 -> 0 | X42: =+M42+Jan!X42 -> 0 | Y42: =+N42+Jan!Y42 -> 0 | Z42: =+O42+Jan!Z42 -> 0 | AA42: =+P42+Jan!AA42 -> 0 | AB42: =+Q42+Jan!AB42 -> 0 | AC42: =+R42+Jan!AC42 -> 0
A43: =+Jan!A43 -> Program Publicity | C43: =+Jan!C43 -> 0 | D43: =+Jan!D43 -> 0 | E43: =SUM(G43)+Jan!E43 -> 0 | F43: =SUM(H43)+Jan!F43 -> 0 | G43: 0 | H43: 0 | T43: =+I43+Jan!T43 -> 0 | U43: =+J43+Jan!U43 -> 0 | V43: =+K43+Jan!V43 -> 0 | W43: =+L43+Jan!W43 -> 0 | X43: =+M43+Jan!X43 -> 0 | Y43: =+N43+Jan!Y43 -> 0 | Z43: =+O43+Jan!Z43 -> 0 | AA43: =+P43+Jan!AA43 -> 0 | AB43: =+Q43+Jan!AB43 -> 0 | AC43: =+R43+Jan!AC43 -> 0
A44: =+Jan!A44 -> Other | C44: =+Jan!C44 -> 0 | D44: =+Jan!D44 -> 0 | E44: =SUM(G44)+Jan!E44 -> 0 | F44: =SUM(H44)+Jan!F44 -> 0 | G44: =SUM(I44+K44+M44+O44+Q44) -> 0 | H44: =SUM(J44+L44+N44+P44+R44) -> 0 | T44: =+I44+Jan!T44 -> 0 | U44: =+J44+Jan!U44 -> 0 | V44: =+K44+Jan!V44 -> 0 | W44: =+L44+Jan!W44 -> 0 | X44: =+M44+Jan!X44 -> 0 | Y44: =+N44+Jan!Y44 -> 0 | Z44: =+O44+Jan!Z44 -> 0 | AA44: =+P44+Jan!AA44 -> 0 | AB44: =+Q44+Jan!AB44 -> 0 | AC44: =+R44+Jan!AC44 -> 0
A45: =+Jan!A45 -> Other | C45: =+Jan!C45 -> 0 | D45: =+Jan!D45 -> 0 | E45: =SUM(G45)+Jan!E45 -> 0 | F45: =SUM(H45)+Jan!F45 -> 0 | G45: =SUM(I45+K45+M45+O45+Q45) -> 0 | H45: =SUM(J45+L45+N45+P45+R45) -> 0 | T45: =+I45+Jan!T45 -> 0 | U45: =+J45+Jan!U45 -> 0 | V45: =+K45+Jan!V45 -> 0 | W45: =+L45+Jan!W45 -> 0 | X45: =+M45+Jan!X45 -> 0 | Y45: =+N45+Jan!Y45 -> 0 | Z45: =+O45+Jan!Z45 -> 0 | AA45: =+P45+Jan!AA45 -> 0 | AB45: =+Q45+Jan!AB45 -> 0 | AC45: =+R45+Jan!AC45 -> 0
A46: =+Jan!A46 -> Indirect Costs (no more than 10% of grant funds) | T46: =+I46+Jan!T46 -> 0 | U46: =+J46+Jan!U46 -> 0 | V46: =+K46+Jan!V46 -> 0 | W46: =+L46+Jan!W46 -> 0 | X46: =+M46+Jan!X46 -> 0 | Y46: =+N46+Jan!Y46 -> 0 | Z46: =+O46+Jan!Z46 -> 0 | AA46: =+P46+Jan!AA46 -> 0 | AB46: =+Q46+Jan!AB46 -> 0 | AC46: =+R46+Jan!AC46 -> 0
T47: =+I47+Jan!T47 -> 0 | U47: =+J47+Jan!U47 -> 0 | V47: =+K47+Jan!V47 -> 0 | W47: =+L47+Jan!W47 -> 0 | X47: =+M47+Jan!X47 -> 0 | Y47: =+N47+Jan!Y47 -> 0 | Z47: =+O47+Jan!Z47 -> 0 | AA47: =+P47+Jan!AA47 -> 0 | AB47: =+Q47+Jan!AB47 -> 0 | AC47: =+R47+Jan!AC47 -> 0
T48: =+I48+Jan!T48 -> 0 | U48: =+J48+Jan!U48 -> 0 | V48: =+K48+Jan!V48 -> 0 | W48: =+L48+Jan!W48 -> 0 | X48: =+M48+Jan!X48 -> 0 | Y48: =+N48+Jan!Y48 -> 0 | Z48: =+O48+Jan!Z48 -> 0 | AA48: =+P48+Jan!AA48 -> 0 | AB48: =+Q48+Jan!AB48 -> 0 | AC48: =+R48+Jan!AC48 -> 0
A49: =+Jan!A49 -> 0 | C49: =+Jan!C49 -> 0 | D49: =+Jan!D49 -> 0 | E49: =SUM(G49)+Jan!E49 -> 0 | F49: =SUM(H49)+Jan!F49 -> 0 | G49: 0 | H49: 0 | T49: =+I49+Jan!T49 -> 0 | U49: =+J49+Jan!U49 -> 0 | V49: =+K49+Jan!V49 -> 0 | W49: =+L49+Jan!W49 -> 0 | X49: =+M49+Jan!X49 -> 0 | Y49: =+N49+Jan!Y49 -> 0 | Z49: =+O49+Jan!Z49 -> 0 | AA49: =+P49+Jan!AA49 -> 0 | AB49: =+Q49+Jan!AB49 -> 0 | AC49: =+R49+Jan!AC49 -> 0
A50: Total Other Costs: | C50: =SUM(C40:C49) -> 0 | D50: 0 | E50: 0 | F50: 0 | G50: 0 | H50: 0 | I50: 0 | J50: 0 | K50: 0 | L50: 0 | M50: 0 | N50: 0 | O50: 0 | P50: 0 | Q50: 0 | R50: 0
A52: 1. Current Month Total | G52: =SUM(G50,G38,G35,G31,G27,G22) -> 0 | H52: 0 | I52: 0 | J52: 0 | K52: 0 | L52: 0 | M52: 0 | N52: 0 | O52: 0 | P52: 0 | Q52: 0 | R52: 0
A53: 2. Year-to-Date Total** | C53: =+C50+C38+C35+C31+C27+C22 -> 0 | D53: =+D50+D38+D35+D31+D27+D22 -> 0 | E53: =+E22+E27+E31+E35+E38+E50 -> 0 | F53: =+F22+F27+F31+F35+F38+F50 -> 0 | I53: =+I52+Jan!I53 -> 0 | J53: =+J52+Jan!J53 -> 0 | K53: =+K52+Jan!K53 -> 0 | L53: =+L52+Jan!L53 -> 0 | M53: =+M52+Jan!M53 -> 0 | N53: =+N52+Jan!N53 -> 0 | O53: =+O52+Jan!O53 -> 0 | P53: =+P52+Jan!P53 -> 0 | Q53: =+Q52+Jan!Q53 -> 0 | R53: =+R52+Jan!R53 -> 0 | T53: =SUM(T13:T52) -> 0 | U53: =SUM(U13:U52) -> 0 | V53: 0 | W53: 0 | X53: 0 | Y53: 0 | Z53: 0 | AA53: 0 | AB53: 0 | AC53: 0
A54: 3. Grant Funds Remaining | I54: =+I8-I67 -> 0 | J54: =+J8-J67 -> 0 | K54: =+I54+J54 -> 0 | T54: =+T53/P1 ->  | U54: =+U53/R1 -> 
A55: EQUIPMENT INFO | I55: Date Acquired | N55: Equipment Location | T55: =+T53+U53 -> 0
A56: 1500 | B56: 1500
A58: *Equipment is property of the VCAAA. Consult VCAAA Contractor Manual for more information
A59: I hereby certify that the above figures and attached expenditure report are accurate to the best of my knowledge.
A60: Prepared By: | F60: Signature: | K60: Date: | P60: Title | Q60: Accounting Manager
A62: Authorized By: | F62: Signature: | P62: Title
A64: AAA USE ONLY
A65: Grants Management Approval | G65: Amount Requested - Month | I65: =+I52 -> 0 | J65: =+J52 -> 0 | K65: =+I65+J65 -> 0 | L65: Date Received | P65: Fiscal Approval
G66: Amount Approved - Month | I66: =+I65 -> 0 | J66: =+J65 -> 0 | K66: =+I66+J66 -> 0
G67: Amount Approved - YTD | I67: =+I66+Jan!I67 -> 0 | J67: =+J66+Jan!J67 -> 0 | K67: =+I67+J67 -> 0
J69: Check total: | K69: =+K67+K54 -> 0

Sheet Mar (hidden)
A1: =+Feb!A1 -> Contractor Name: | B1: =+Feb!B1 -> Agency Name | E1: Month: | F1: =+Feb!F1+31 -> 2021-03-05 | I1: PO# | J1: =+Feb!J1 -> 0 | M1: GRANT AWARD AMOUNT: | O1: C1: | P1: =+Budget!Z40 -> 0 | Q1: C2: | R1: =+Budget!AA40 -> 0
A2: =+Feb!A2 -> Project Name: | B2: =+Budget!B1 -> VCAAA Senior Nutrition Program | E2: Grant#: | F2: =+Feb!F2 -> 0 | I2: Contact: | J2: =+Feb!J2 -> First Last | L2: =+Feb!L2 -> Phone: | M2: =+Feb!M2 -> (XXX) XXX-XXXX | P2: Total C: | R2: =+P1+R1 -> 0
I3: Address: | J3: =+Feb!J3 -> Street Address, City, CA 93XXX
A4: Number of Meals Served | C4: C1 | D4: C2
B5: Month | I5: Current Month Expenditures by Funding Source
B6: YTD | C6: =+C5+Feb!C6 -> 0 | D6: =+D5+Feb!D6 -> 0
A7: Item Description | C7: Authorized Budget by Allocation C1 | D7: Authorized Budget by Allocation C2 | E7: YTD Actual Expenses C1 | F7: YTD Actual Expenses C2 | G7: Total Current Month Expenses C1 | H7: Total Current Month Expenses C2 | I7: Grant Share C1 | J7: Grant Share C2 | K7: Cash Match C1 | L7: Cash Match C2 | M7: In-Kind Match C1 | N7: In-Kind Match C2 | O7: Program Income C1 | P7: Program Income C2 | Q7: Cash Non-Match C1 | R7: Cash Non-Match C2 | T7: Grant Share C1 | U7: Grant Share C2 | V7: Cash Match C1 | W7: Cash Match C2 | X7: In-Kind Match C1 | Y7: In-Kind Match C2 | Z7: Program Income C1 | AA7: Program Income C2 | AB7: Cash Non-Match C1 | AC7: Cash Non-Match C2
A8: APPROVED BUDGET | C8: =+Feb!C8 -> 0 | D8: =+Feb!D8 -> 0 | E8: =+E53 -> 0 | F8: =+F53 -> 0 | G8: =+G52 -> 0 | H8: =+H52 -> 0 | I8: =+P1 -> 0 | J8: =+R1 -> 0 | K8: =+Budget!Z34 -> 0 | L8: =+Budget!AA34 -> 0 | M8: =+Budget!Z35 -> 0 | N8: =+Budget!AA35 -> 0 | O8: =+Budget!Z38 -> 0 | P8: =+Budget!AA39 -> 0 | Q8: =+Budget!Z36 -> 0 | R8: =+Jul!R9 -> 0
A9: % OF TOTAL | C9: =IFERROR(+C$8/($C8+$D8),0) -> 0 | D9: =IFERROR(+D$8/($C8+$D8),0) -> 0
A10: TOTAL BUDGET | C10: =+C8+D8 -> 0 | H10: ACT YTD--> | I10: =+I52 -> 0 | J10: =+J52 -> 0 | K10: =+K52 -> 0 | L10: 0 | M10: 0 | N10: 0 | O10: 0 | P10: 0 | Q10: 0 | R10: 0
A12: A. PERSONNEL (Title / Name)
A13: =+Feb!A13 -> Admin/Fiscal | B13: =+Jul!B13 -> Position Title $XX.XX/hr | C13: =+Feb!C13 -> 0 | D13: =+Feb!D13 -> 0 | E13: =SUM(G13)+Feb!E13 -> 0 | F13: =SUM(H13)+Feb!F13 -> 0 | G13: =SUM(I13+K13+M13+O13+Q13) -> 0 | H13: =SUM(J13+L13+N13+P13+R13) -> 0 | T13: =+I13+Feb!T13 -> 0 | U13: =+J13+Feb!U13 -> 0 | V13: =+K13+Feb!V13 -> 0 | W13: =+L13+Feb!W13 -> 0 | X13: =+M13+Feb!X13 -> 0 | Y13: =+N13+Feb!Y13 -> 0 | Z13: =+O13+Feb!Z13 -> 0 | AA13: =+P13+Feb!AA13 -> 0 | AB13: =+Q13+Feb!AB13 -> 0 | AC13: =+R13+Feb!AC13 -> 0
A14: =+Feb!A14 -> Site/ HDM/MOW Coordinator | B14: =+Jul!B14 -> Position Title $XX.XX/hr | C14: =+Feb!C14 -> 0 | D14: =+Feb!D14 -> 0 | E14: =SUM(G14)+Feb!E14 -> 0 | F14: =SUM(H14)+Feb!F14 -> 0 | G14: =SUM(I14+K14+M14+O14+Q14) -> 0 | H14: 0 | T14: =+I14+Feb!T14 -> 0 | U14: =+J14+Feb!U14 -> 0 | V14: =+K14+Feb!V14 -> 0 | W14: =+L14+Feb!W14 -> 0 | X14: =+M14+Feb!X14 -> 0 | Y14: =+N14+Feb!Y14 -> 0 | Z14: =+O14+Feb!Z14 -> 0 | AA14: =+P14+Feb!AA14 -> 0 | AB14: =+Q14+Feb!AB14 -> 0 | AC14: =+R14+Feb!AC14 -> 0
A15: =+Feb!A15 -> Cook | B15: =+Jul!B15 -> Position Title $XX.XX/hr | C15: =+Feb!C15 -> 0 | D15: =+Feb!D15 -> 0 | E15: =SUM(G15)+Feb!E15 -> 0 | F15: =SUM(H15)+Feb!F15 -> 0 | G15: 0 | H15: 0 | T15: =+I15+Feb!T15 -> 0 | U15: =+J15+Feb!U15 -> 0 | V15: =+K15+Feb!V15 -> 0 | W15: =+L15+Feb!W15 -> 0 | X15: =+M15+Feb!X15 -> 0 | Y15: =+N15+Feb!Y15 -> 0 | Z15: =+O15+Feb!Z15 -> 0 | AA15: =+P15+Feb!AA15 -> 0 | AB15: =+Q15+Feb!AB15 -> 0 | AC15: =+R15+Feb!AC15 -> 0
A16: =+Feb!A16 -> Volunteers: | B16: =+Jul!B16 -> Position Title $XX.XX/hr | C16: =+Feb!C16 -> 0 | D16: =+Feb!D16 -> 0 | E16: =SUM(G16)+Feb!E16 -> 0 | F16: =SUM(H16)+Feb!F16 -> 0 | G16: 0 | H16: 0 | T16: =+I16+Feb!T16 -> 0 | U16: =+J16+Feb!U16 -> 0 | V16: =+K16+Feb!V16 -> 0 | W16: =+L16+Feb!W16 -> 0 | X16: =+M16+Feb!X16 -> 0 | Y16: =+N16+Feb!Y16 -> 0 | Z16: =+O16+Feb!Z16 -> 0 | AA16: =+P16+Feb!AA16 -> 0 | AB16: =+Q16+Feb!AB16 -> 0 | AC16: =+R16+Feb!AC16 -> 0
A17: =+Feb!A17 -> Volunteers: | B17: =+Jul!B17 -> Position Title $XX.XX/hr | C17: =+Feb!C17 -> 0 | D17: =+Feb!D17 -> 0 | E17: =SUM(G17)+Feb!E17 -> 0 | F17: =SUM(H17)+Feb!F17 -> 0 | G17: 0 | H17: 0 | T17: =+I17+Feb!T17 -> 0 | U17: =+J17+Feb!U17 -> 0 | V17: =+K17+Feb!V17 -> 0 | W17: =+L17+Feb!W17 -> 0 | X17: =+M17+Feb!X17 -> 0 | Y17: =+N17+Feb!Y17 -> 0 | Z17: =+O17+Feb!Z17 -> 0 | AA17: =+P17+Feb!AA17 -> 0 | AB17: =+Q17+Feb!AB17 -> 0 | AC17: =+R17+Feb!AC17 -> 0
A18: Volunteers | B18: =+Jul!B18 -> 0 | C18: =+Feb!C18 -> 0 | D18: =+Feb!D18 -> 0 | E18: =SUM(G18)+Feb!E18 -> 0 | F18: =SUM(H18)+Feb!F18 -> 0 | G18: =M18 -> 0 | T18: =+I18+Feb!T18 -> 0 | U18: =+J18+Feb!U18 -> 0 | V18: =+K18+Feb!V18 -> 0 | W18: =+L18+Feb!W18 -> 0 | X18: =+M18+Feb!X18 -> 0 | Y18: =+N18+Feb!Y18 -> 0 | Z18: =+O18+Feb!Z18 -> 0 | AA18: =+P18+Feb!AA18 -> 0 | AB18: =+Q18+Feb!AB18 -> 0 | AC18: =+R18+Feb!AC18 -> 0
A19: Volunteers | B19: =+Jul!B19 -> 0 | C19: =+Feb!C19 -> 0 | D19: =+Feb!D19 -> 0 | E19: =SUM(G19)+Feb!E19 -> 0 | F19: =SUM(H19)+Feb!F19 -> 0 | G19: =M19 -> 0 | H19: =N19 -> 0 | T19: =+I19+Feb!T19 -> 0 | U19: =+J19+Feb!U19 -> 0 | V19: =+K19+Feb!V19 -> 0 | W19: =+L19+Feb!W19 -> 0 | X19: =+M19+Feb!X19 -> 0 | Y19: =+N19+Feb!Y19 -> 0 | Z19: =+O19+Feb!Z19 -> 0 | AA19: =+P19+Feb!AA19 -> 0 | AB19: =+Q19+Feb!AB19 -> 0 | AC19: =+R19+Feb!AC19 -> 0
A20: =+Feb!A20 -> 0 | B20: =+Jul!B20 -> 0 | C20: =+Feb!C20 -> 0 | D20: =+Feb!D20 -> 0 | E20: =SUM(G20)+Feb!E20 -> 0 | F20: =SUM(H20)+Feb!F20 -> 0 | G20: =SUM(I20+K20+M20+O20+Q20) -> 0 | H20: =N20 -> 0 | T20: =+I20+Feb!T20 -> 0 | U20: =+J20+Feb!U20 -> 0 | V20: =+K20+Feb!V20 -> 0 | W20: =+L20+Feb!W20 -> 0 | X20: =+M20+Feb!X20 -> 0 | Y20: =+N20+Feb!Y20 -> 0 | Z20: =+O20+Feb!Z20 -> 0 | AA20: =+P20+Feb!AA20 -> 0 | AB20: =+Q20+Feb!AB20 -> 0 | AC20: =+R20+Feb!AC20 -> 0
A21: =+Feb!A21 -> 0 | B21: =+Jul!B21 -> 0 | C21: =+Feb!C21 -> 0 | D21: =+Feb!D21 -> 0 | E21: =SUM(G21)+Feb!E21 -> 0 | F21: =SUM(H21)+Feb!F21 -> 0 | G21: 0 | H21: 0 | T21: =+I21+Feb!T21 -> 0 | U21: =+J21+Feb!U21 -> 0 | V21: =+K21+Feb!V21 -> 0 | W21: =+L21+Feb!W21 -> 0 | X21: =+M21+Feb!X21 -> 0 | Y21: =+N21+Feb!Y21 -> 0 | Z21: =+O21+Feb!Z21 -> 0 | AA21: =+P21+Feb!AA21 -> 0 | AB21: =+Q21+Feb!AB21 -> 0 | AC21: =+R21+Feb!AC21 -> 0
A22: Total Personnel: | C22: =SUM(C13:C21) -> 0 | D22: 0 | E22: 0 | F22: 0 | G22: 0 | H22: 0 | I22: =SUM(I13:I21) -> 0 | J22: 0 | K22: 0 | L22: 0 | M22: 0 | N22: 0 | O22: 0 | P22: 0 | Q22: 0 | R22: 0
A23: B. TRAVEL & TRAINING
A24: =+Feb!A24 -> Travel/Mileage | C24: =+Feb!C24 -> 0 | D24: =+Feb!D24 -> 0 | E24: =SUM(G24)+Feb!E24 -> 0 | F24: =SUM(H24)+Feb!F24 -> 0 | G24: =SUM(I24+K24+M24+O24+Q24) -> 0 | H24: 0 | T24: =+I24+Feb!T24 -> 0 | U24: =+J24+Feb!U24 -> 0 | V24: =+K24+Feb!V24 -> 0 | W24: =+L24+Feb!W24 -> 0 | X24: =+M24+Feb!X24 -> 0 | Y24: =+N24+Feb!Y24 -> 0 | Z24: =+O24+Feb!Z24 -> 0 | AA24: =+P24+Feb!AA24 -> 0 | AB24: =+Q24+Feb!AB24 -> 0 | AC24: =+R24+Feb!AC24 -> 0
A25: =+Feb!A25 -> Training | C25: =+Feb!C25 -> 0 | D25: =+Feb!D25 -> 0 | E25: =SUM(G25)+Feb!E25 -> 0 | F25: =SUM(H25)+Feb!F25 -> 0 | G25: 0 | H25: 0 | T25: =+I25+Feb!T25 -> 0 | U25: =+J25+Feb!U25 -> 0 | V25: =+K25+Feb!V25 -> 0 | W25: =+L25+Feb!W25 -> 0 | X25: =+M25+Feb!X25 -> 0 | Y25: =+N25+Feb!Y25 -> 0 | Z25: =+O25+Feb!Z25 -> 0 | AA25: =+P25+Feb!AA25 -> 0 | AB25: =+Q25+Feb!AB25 -> 0 | AC25: =+R25+Feb!AC25 -> 0
A26: =+Feb!A26 -> 0 | C26: =+Feb!C26 -> 0 | D26: =+Feb!D26 -> 0 | E26: =SUM(G26)+Feb!E26 -> 0 | F26: =SUM(H26)+Feb!F26 -> 0 | G26: 0 | H26: 0 | T26: =+I26+Feb!T26 -> 0 | U26: =+J26+Feb!U26 -> 0 | V26: =+K26+Feb!V26 -> 0 | W26: =+L26+Feb!W26 -> 0 | X26: =+M26+Feb!X26 -> 0 | Y26: =+N26+Feb!Y26 -> 0 | Z26: =+O26+Feb!Z26 -> 0 | AA26: =+P26+Feb!AA26 -> 0 | AB26: =+Q26+Feb!AB26 -> 0 | AC26: =+R26+Feb!AC26 -> 0
A27: Total Travel & Training: | C27: =SUM(C24:C26) -> 0 | D27: 0 | E27: 0 | F27: 0 | G27: 0 | H27: 0 | I27: 0 | J27: 0 | K27: =SUM(K24:K26) -> 0 | L27: 0 | M27: 0 | N27: 0 | O27: 0 | P27: 0 | Q27: 0 | R27: 0
A28: C. EQUIPMENT
A29: =+Feb!A29 -> Equipment | C29: =+Feb!C29 -> 0 | D29: =+Feb!D29 -> 0 | E29: =SUM(G29)+Feb!E29 -> 0 | F29: =SUM(H29)+Feb!F29 -> 0 | G29: =SUM(I29+K29+M29+O29+Q29) -> 0 | H29: =SUM(J29+L29+N29+P29+R29) -> 0 | T29: =+I29+Feb!T29 -> 0 | U29: =+J29+Feb!U29 -> 0 | V29: =+K29+Feb!V29 -> 0 | W29: =+L29+Feb!W29 -> 0 | X29: =+M29+Feb!X29 -> 0 | Y29: =+N29+Feb!Y29 -> 0 | Z29: =+O29+Feb!Z29 -> 0 | AA29: =+P29+Feb!AA29 -> 0 | AB29: =+Q29+Feb!AB29 -> 0 | AC29: =+R29+Feb!AC29 -> 0
A30: =+Feb!A30 -> 0 | C30: =+Feb!C30 -> 0 | D30: =+Feb!D30 -> 0 | E30: =SUM(G30)+Feb!E30 -> 0 | F30: =SUM(H30)+Feb!F30 -> 0 | G30: =SUM(I30+K30+M30+O30+Q30) -> 0 | H30: =SUM(J30+L30+N30+P30+R30) -> 0 | T30: =+I30+Feb!T30 -> 0 | U30: =+J30+Feb!U30 -> 0 | V30: =+K30+Feb!V30 -> 0 | W30: =+L30+Feb!W30 -> 0 | X30: =+M30+Feb!X30 -> 0 | Y30: =+N30+Feb!Y30 -> 0 | Z30: =+O30+Feb!Z30 -> 0 | AA30: =+P30+Feb!AA30 -> 0 | AB30: =+Q30+Feb!AB30 -> 0 | AC30: =+R30+Feb!AC30 -> 0
A31: Total Equipment: | C31: =SUM(C29:C30) -> 0 | D31: 0 | E31: 0 | F31: 0 | G31: 0 | H31: 0 | I31: 0 | J31: 0 | K31: =SUM(K29:K30) -> 0 | L31: 0 | M31: 0 | N31: 0 | O31: 0 | P31: 0 | Q31: 0 | R31: 0
A32: D. CONSULTANTS
A33: =+Feb!A33 -> Congregate or HDM Meals | C33: =+Feb!C33 -> 0 | D33: =+Feb!D33 -> 0 | E33: =SUM(G33)+Feb!E33 -> 0 | F33: =SUM(H33)+Feb!F33 -> 0 | G33: =SUM(I33+K33+M33+O33+Q33) -> 0 | H33: =SUM(J33+L33+N33+P33+R33) -> 0 | T33: =+I33+Feb!T33 -> 0 | U33: =+J33+Feb!U33 -> 0 | V33: =+K33+Feb!V33 -> 0 | W33: =+L33+Feb!W33 -> 0 | X33: =+M33+Feb!X33 -> 0 | Y33: =+N33+Feb!Y33 -> 0 | Z33: =+O33+Feb!Z33 -> 0 | AA33: =+P33+Feb!AA33 -> 0 | AB33: =+Q33+Feb!AB33 -> 0 | AC33: =+R33+Feb!AC33 -> 0
A34: =+Feb!A34 -> Food Share Delivery Cost | C34: =+Feb!C34 -> 0 | D34: =+Feb!D34 -> 0 | E34: =SUM(G34)+Feb!E34 -> 0 | F34: =SUM(H34)+Feb!F34 -> 0 | G34: =SUM(I34+K34+M34+O34+Q34) -> 0 | H34: =SUM(J34+L34+N34+P34+R34) -> 0 | T34: =+I34+Feb!T34 -> 0 | U34: =+J34+Feb!U34 -> 0 | V34: =+K34+Feb!V34 -> 0 | W34: =+L34+Feb!W34 -> 0 | X34: =+M34+Feb!X34 -> 0 | Y34: =+N34+Feb!Y34 -> 0 | Z34: =+O34+Feb!Z34 -> 0 | AA34: =+P34+Feb!AA34 -> 0 | AB34: =+Q34+Feb!AB34 -> 0 | AC34: =+R34+Feb!AC34 -> 0
A35: Total Consultants: | C35: =SUM(C33:C34) -> 0 | D35: 0 | E35: 0 | F35: 0 | G35: 0 | H35: 0 | I35: 0 | J35: 0 | K35: =SUM(K33:K34) -> 0 | L35: 0 | M35: 0 | N35: 0 | O35: 0 | P35: 0 | Q35: 0 | R35: 0
A36: E. FOOD COSTS (Senior Nutrition Program Only)
A37: =+Feb!A37 -> Food Cost | C37: =+Feb!C37 -> 0 | D37: =+Feb!D37 -> 0 | E37: =SUM(G37)+Feb!E37 -> 0 | F37: =SUM(H37)+Feb!F37 -> 0 | G37: =SUM(I37+K37+M37+O37+Q37) -> 0 | H37: =SUM(J37+L37+N37+P37+R37) -> 0 | T37: =+I37+Feb!T37 -> 0 | U37: =+J37+Feb!U37 -> 0 | V37: =+K37+Feb!V37 -> 0 | W37: =+L37+Feb!W37 -> 0 | X37: =+M37+Feb!X37 -> 0 | Y37: =+N37+Feb!Y37 -> 0 | Z37: =+O37+Feb!Z37 -> 0 | AA37: =+P37+Feb!AA37 -> 0 | AB37: =+Q37+Feb!AB37 -> 0 | AC37: =+R37+Feb!AC37 -> 0
A38: Total Food Costs: | C38: =+C37 -> 0 | D38: =+D37 -> 0 | E38: =SUM(E37:E37) -> 0 | F38: 0 | G38: 0 | H38: 0 | I38: 0 | J38: 0 | K38: =SUM(K37:K37) -> 0 | L38: 0 | M38: 0 | N38: 0 | O38: 0 | P38: 0 | Q38: 0 | R38: 0
A39: F. OTHER COSTS
A40: =+Feb!A40 -> Supplies:Non food(Bags,liners etc) | C40: =+Feb!C40 -> 0 | D40: =+Feb!D40 -> 0 | E40: =SUM(G40)+Feb!E40 -> 0 | F40: =SUM(H40)+Feb!F40 -> 0 | G40: =SUM(I40+K40+M40+O40+Q40) -> 0 | H40: =SUM(J40+L40+N40+P40+R40) -> 0 | T40: =+I40+Feb!T40 -> 0 | U40: =+J40+Feb!U40 -> 0 | V40: =+K40+Feb!V40 -> 0 | W40: =+L40+Feb!W40 -> 0 | X40: =+M40+Feb!X40 -> 0 | Y40: =+N40+Feb!Y40 -> 0 | Z40: =+O40+Feb!Z40 -> 0 | AA40: =+P40+Feb!AA40 -> 0 | AB40: =+Q40+Feb!AB40 -> 0 | AC40: =+R40+Feb!AC40 -> 0
A41: =+Feb!A41 -> Health permit | C41: =+Feb!C41 -> 0 | D41: =+Feb!D41 -> 0 | E41: =SUM(G41)+Feb!E41 -> 0 | F41: =SUM(H41)+Feb!F41 -> 0 | G41: 0 | H41: 0 | T41: =+I41+Feb!T41 -> 0 | U41: =+J41+Feb!U41 -> 0 | V41: =+K41+Feb!V41 -> 0 | W41: =+L41+Feb!W41 -> 0 | X41: =+M41+Feb!X41 -> 0 | Y41: =+N41+Feb!Y41 -> 0 | Z41: =+O41+Feb!Z41 -> 0 | AA41: =+P41+Feb!AA41 -> 0 | AB41: =+Q41+Feb!AB41 -> 0 | AC41: =+R41+Feb!AC41 -> 0
A42: =+Feb!A42 -> Rent | C42: =+Feb!C42 -> 0 | D42: =+Feb!D42 -> 0 | E42: =SUM(G42)+Feb!E42 -> 0 | F42: =SUM(H42)+Feb!F42 -> 0 | G42: 0 | H42: 0 | T42: =+I42+Feb!T42 -> 0 | U42: =+J42+Feb!U42 -> 0 | V42: =+K42+Feb!V42 -> 0 | W42: =+L42+Feb!W42 -> 0 | X42: =+M42+Feb!X42 -> 0 | Y42: =+N42+Feb!Y42 -> 0 | Z42: =+O42+Feb!Z42 -> 0 | AA42: =+P42+Feb!AA42 -> 0 | AB42: =+Q42+Feb!AB42 -> 0 | AC42: =+R42+Feb!AC42 -> 0
A43: =+Feb!A43 -> Program Publicity | C43: =+Feb!C43 -> 0 | D43: =+Feb!D43 -> 0 | E43: =SUM(G43)+Feb!E43 -> 0 | F43: =SUM(H43)+Feb!F43 -> 0 | G43: 0 | H43: 0 | T43: =+I43+Feb!T43 -> 0 | U43: =+J43+Feb!U43 -> 0 | V43: =+K43+Feb!V43 -> 0 | W43: =+L43+Feb!W43 -> 0 | X43: =+M43+Feb!X43 -> 0 | Y43: =+N43+Feb!Y43 -> 0 | Z43: =+O43+Feb!Z43 -> 0 | AA43: =+P43+Feb!AA43 -> 0 | AB43: =+Q43+Feb!AB43 -> 0 | AC43: =+R43+Feb!AC43 -> 0
A44: =+Feb!A44 -> Other | C44: =+Feb!C44 -> 0 | D44: =+Feb!D44 -> 0 | E44: =SUM(G44)+Feb!E44 -> 0 | F44: =SUM(H44)+Feb!F44 -> 0 | G44: =SUM(I44+K44+M44+O44+Q44) -> 0 | H44: =SUM(J44+L44+N44+P44+R44) -> 0 | T44: =+I44+Feb!T44 -> 0 | U44: =+J44+Feb!U44 -> 0 | V44: =+K44+Feb!V44 -> 0 | W44: =+L44+Feb!W44 -> 0 | X44: =+M44+Feb!X44 -> 0 | Y44: =+N44+Feb!Y44 -> 0 | Z44: =+O44+Feb!Z44 -> 0 | AA44: =+P44+Feb!AA44 -> 0 | AB44: =+Q44+Feb!AB44 -> 0 | AC44: =+R44+Feb!AC44 -> 0
A45: =+Feb!A45 -> Other | C45: =+Feb!C45 -> 0 | D45: =+Feb!D45 -> 0 | E45: =SUM(G45)+Feb!E45 -> 0 | F45: =SUM(H45)+Feb!F45 -> 0 | G45: =SUM(I45+K45+M45+O45+Q45) -> 0 | H45: =SUM(J45+L45+N45+P45+R45) -> 0 | T45: =+I45+Feb!T45 -> 0 | U45: =+J45+Feb!U45 -> 0 | V45: =+K45+Feb!V45 -> 0 | W45: =+L45+Feb!W45 -> 0 | X45: =+M45+Feb!X45 -> 0 | Y45: =+N45+Feb!Y45 -> 0 | Z45: =+O45+Feb!Z45 -> 0 | AA45: =+P45+Feb!AA45 -> 0 | AB45: =+Q45+Feb!AB45 -> 0 | AC45: =+R45+Feb!AC45 -> 0
A46: =+Feb!A46 -> Indirect Costs (no more than 10% of grant funds) | T46: =+I46+Feb!T46 -> 0 | U46: =+J46+Feb!U46 -> 0 | V46: =+K46+Feb!V46 -> 0 | W46: =+L46+Feb!W46 -> 0 | X46: =+M46+Feb!X46 -> 0 | Y46: =+N46+Feb!Y46 -> 0 | Z46: =+O46+Feb!Z46 -> 0 | AA46: =+P46+Feb!AA46 -> 0 | AB46: =+Q46+Feb!AB46 -> 0 | AC46: =+R46+Feb!AC46 -> 0
T47: =+I47+Feb!T47 -> 0 | U47: =+J47+Feb!U47 -> 0 | V47: =+K47+Feb!V47 -> 0 | W47: =+L47+Feb!W47 -> 0 | X47: =+M47+Feb!X47 -> 0 | Y47: =+N47+Feb!Y47 -> 0 | Z47: =+O47+Feb!Z47 -> 0 | AA47: =+P47+Feb!AA47 -> 0 | AB47: =+Q47+Feb!AB47 -> 0 | AC47: =+R47+Feb!AC47 -> 0
T48: =+I48+Feb!T48 -> 0 | U48: =+J48+Feb!U48 -> 0 | V48: =+K48+Feb!V48 -> 0 | W48: =+L48+Feb!W48 -> 0 | X48: =+M48+Feb!X48 -> 0 | Y48: =+N48+Feb!Y48 -> 0 | Z48: =+O48+Feb!Z48 -> 0 | AA48: =+P48+Feb!AA48 -> 0 | AB48: =+Q48+Feb!AB48 -> 0 | AC48: =+R48+Feb!AC48 -> 0
A49: =+Feb!A49 -> 0 | C49: =+Feb!C49 -> 0 | D49: =+Feb!D49 -> 0 | E49: =SUM(G49)+Feb!E49 -> 0 | F49: =SUM(H49)+Feb!F49 -> 0 | G49: 0 | H49: 0 | T49: =+I49+Feb!T49 -> 0 | U49: =+J49+Feb!U49 -> 0 | V49: =+K49+Feb!V49 -> 0 | W49: =+L49+Feb!W49 -> 0 | X49: =+M49+Feb!X49 -> 0 | Y49: =+N49+Feb!Y49 -> 0 | Z49: =+O49+Feb!Z49 -> 0 | AA49: =+P49+Feb!AA49 -> 0 | AB49: =+Q49+Feb!AB49 -> 0 | AC49: =+R49+Feb!AC49 -> 0
A50: Total Other Costs: | C50: =SUM(C40:C49) -> 0 | D50: 0 | E50: 0 | F50: 0 | G50: 0 | H50: 0 | I50: 0 | J50: 0 | K50: 0 | L50: 0 | M50: 0 | N50: 0 | O50: 0 | P50: 0 | Q50: 0 | R50: 0
A52: 1. Current Month Total | G52: =SUM(G50,G38,G35,G31,G27,G22) -> 0 | H52: 0 | I52: 0 | J52: 0 | K52: 0 | L52: 0 | M52: 0 | N52: 0 | O52: 0 | P52: 0 | Q52: 0 | R52: 0
A53: 2. Year-to-Date Total** | C53: =+C50+C38+C35+C31+C27+C22 -> 0 | D53: =+D50+D38+D35+D31+D27+D22 -> 0 | E53: =+E22+E27+E31+E35+E38+E50 -> 0 | F53: =+F22+F27+F31+F35+F38+F50 -> 0 | I53: =+I52+Feb!I53 -> 0 | J53: =+J52+Feb!J53 -> 0 | K53: =+K52+Feb!K53 -> 0 | L53: =+L52+Feb!L53 -> 0 | M53: =+M52+Feb!M53 -> 0 | N53: =+N52+Feb!N53 -> 0 | O53: =+O52+Feb!O53 -> 0 | P53: =+P52+Feb!P53 -> 0 | Q53: =+Q52+Feb!Q53 -> 0 | R53: =+R52+Feb!R53 -> 0 | T53: =SUM(T13:T52) -> 0 | U53: =SUM(U13:U52) -> 0 | V53: 0 | W53: 0 | X53: 0 | Y53: 0 | Z53: 0 | AA53: 0 | AB53: 0 | AC53: 0
A54: 3. Grant Funds Remaining | I54: =+I8-I67 -> 0 | J54: =+J8-J67 -> 0 | K54: =+I54+J54 -> 0 | T54: =+T53/P1 ->  | U54: =+U53/R1 -> 
A55: EQUIPMENT INFO | I55: Date Acquired | N55: Equipment Location | T55: =+T53+U53 -> 0
A56: 1500 | B56: 1500
A58: *Equipment is property of the VCAAA. Consult VCAAA Contractor Manual for more information
A59: I hereby certify that the above figures and attached expenditure report are accurate to the best of my knowledge.
A60: Prepared By: | F60: Signature: | K60: Date: | P60: Title | Q60: Accounting Manager
A62: Authorized By: | F62: Signature: | P62: Title
A64: AAA USE ONLY
A65: Grants Management Approval | G65: Amount Requested - Month | I65: =+I52 -> 0 | J65: =+J52 -> 0 | K65: =+I65+J65 -> 0 | L65: Date Received | P65: Fiscal Approval
G66: Amount Approved - Month | I66: =+I65 -> 0 | J66: =+J65 -> 0 | K66: =+I66+J66 -> 0
G67: Amount Approved - YTD | I67: =+I66+Feb!I67 -> 0 | J67: =+J66+Feb!J67 -> 0 | K67: =+I67+J67 -> 0
J69: Check total: | K69: =+K67+K54 -> 0

Sheet Apr (hidden)
A1: =+Mar!A1 -> Contractor Name: | B1: =+Mar!B1 -> Agency Name | E1: Month: | F1: =+Mar!F1+30 -> 2021-04-04 | I1: PO# | J1: =+Mar!J1 -> 0 | M1: GRANT AWARD AMOUNT: | O1: C1: | P1: =+Budget!Z40 -> 0 | Q1: C2: | R1: =+Budget!AA40 -> 0
A2: =+Mar!A2 -> Project Name: | B2: =+Budget!B1 -> VCAAA Senior Nutrition Program | E2: Grant#: | F2: =+Mar!F2 -> 0 | I2: Contact: | J2: =+Mar!J2 -> First Last | L2: =+Mar!L2 -> Phone: | M2: =+Mar!M2 -> (XXX) XXX-XXXX | P2: Total C: | R2: =+P1+R1 -> 0
I3: Address: | J3: =+Mar!J3 -> Street Address, City, CA 93XXX
A4: Number of Meals Served | C4: C1 | D4: C2
B5: Month | I5: Current Month Expenditures by Funding Source
B6: YTD | C6: =+C5+Mar!C6 -> 0 | D6: =+D5+Mar!D6 -> 0
A7: Item Description | C7: Authorized Budget by Allocation C1 | D7: Authorized Budget by Allocation C2 | E7: YTD Actual Expenses C1 | F7: YTD Actual Expenses C2 | G7: Total Current Month Expenses C1 | H7: Total Current Month Expenses C2 | I7: Grant Share C1 | J7: Grant Share C2 | K7: Cash Match C1 | L7: Cash Match C2 | M7: In-Kind Match C1 | N7: In-Kind Match C2 | O7: Program Income C1 | P7: Program Income C2 | Q7: Cash Non-Match C1 | R7: Cash Non-Match C2 | T7: Grant Share C1 | U7: Grant Share C2 | V7: Cash Match C1 | W7: Cash Match C2 | X7: In-Kind Match C1 | Y7: In-Kind Match C2 | Z7: Program Income C1 | AA7: Program Income C2 | AB7: Cash Non-Match C1 | AC7: Cash Non-Match C2
A8: APPROVED BUDGET | C8: =+Mar!C8 -> 0 | D8: =+Mar!D8 -> 0 | E8: =+E53 -> 0 | F8: =+F53 -> 0 | G8: =+G52 -> 0 | H8: =+H52 -> 0 | I8: =+P1 -> 0 | J8: =+R1 -> 0 | K8: =+Budget!Z34 -> 0 | L8: =+Budget!AA34 -> 0 | M8: =+Budget!Z35 -> 0 | N8: =+Budget!AA35 -> 0 | O8: =+Budget!Z38 -> 0 | P8: =+Budget!AA39 -> 0 | Q8: =+Budget!Z36 -> 0 | R8: =+Jul!R9 -> 0
A9: % OF TOTAL | C9: =IFERROR(+C$8/($C8+$D8),0) -> 0 | D9: =IFERROR(+D$8/($C8+$D8),0) -> 0
A10: TOTAL BUDGET | C10: =+C8+D8 -> 0 | H10: ACT YTD--> | I10: =+I52 -> 0 | J10: =+J52 -> 0 | K10: =+K52 -> 0 | L10: 0 | M10: 0 | N10: 0 | O10: 0 | P10: 0 | Q10: 0 | R10: 0
A12: A. PERSONNEL (Title / Name)
A13: =+Mar!A13 -> Admin/Fiscal | B13: =+Jul!B13 -> Position Title $XX.XX/hr | C13: =+Mar!C13 -> 0 | D13: =+Mar!D13 -> 0 | E13: =SUM(G13)+Mar!E13 -> 0 | F13: =SUM(H13)+Mar!F13 -> 0 | G13: =SUM(I13+K13+M13+O13+Q13) -> 0 | H13: =SUM(J13+L13+N13+P13+R13) -> 0 | T13: =+I13+Mar!T13 -> 0 | U13: =+J13+Mar!U13 -> 0 | V13: =+K13+Mar!V13 -> 0 | W13: =+L13+Mar!W13 -> 0 | X13: =+M13+Mar!X13 -> 0 | Y13: =+N13+Mar!Y13 -> 0 | Z13: =+O13+Mar!Z13 -> 0 | AA13: =+P13+Mar!AA13 -> 0 | AB13: =+Q13+Mar!AB13 -> 0 | AC13: =+R13+Mar!AC13 -> 0
A14: =+Mar!A14 -> Site/ HDM/MOW Coordinator | B14: =+Jul!B14 -> Position Title $XX.XX/hr | C14: =+Mar!C14 -> 0 | D14: =+Mar!D14 -> 0 | E14: =SUM(G14)+Mar!E14 -> 0 | F14: =SUM(H14)+Mar!F14 -> 0 | G14: =SUM(I14+K14+M14+O14+Q14) -> 0 | H14: 0 | T14: =+I14+Mar!T14 -> 0 | U14: =+J14+Mar!U14 -> 0 | V14: =+K14+Mar!V14 -> 0 | W14: =+L14+Mar!W14 -> 0 | X14: =+M14+Mar!X14 -> 0 | Y14: =+N14+Mar!Y14 -> 0 | Z14: =+O14+Mar!Z14 -> 0 | AA14: =+P14+Mar!AA14 -> 0 | AB14: =+Q14+Mar!AB14 -> 0 | AC14: =+R14+Mar!AC14 -> 0
A15: =+Mar!A15 -> Cook | B15: =+Jul!B15 -> Position Title $XX.XX/hr | C15: =+Mar!C15 -> 0 | D15: =+Mar!D15 -> 0 | E15: =SUM(G15)+Mar!E15 -> 0 | F15: =SUM(H15)+Mar!F15 -> 0 | G15: 0 | H15: 0 | T15: =+I15+Mar!T15 -> 0 | U15: =+J15+Mar!U15 -> 0 | V15: =+K15+Mar!V15 -> 0 | W15: =+L15+Mar!W15 -> 0 | X15: =+M15+Mar!X15 -> 0 | Y15: =+N15+Mar!Y15 -> 0 | Z15: =+O15+Mar!Z15 -> 0 | AA15: =+P15+Mar!AA15 -> 0 | AB15: =+Q15+Mar!AB15 -> 0 | AC15: =+R15+Mar!AC15 -> 0
A16: =+Mar!A16 -> Volunteers: | B16: =+Jul!B16 -> Position Title $XX.XX/hr | C16: =+Mar!C16 -> 0 | D16: =+Mar!D16 -> 0 | E16: =SUM(G16)+Mar!E16 -> 0 | F16: =SUM(H16)+Mar!F16 -> 0 | G16: 0 | H16: 0 | T16: =+I16+Mar!T16 -> 0 | U16: =+J16+Mar!U16 -> 0 | V16: =+K16+Mar!V16 -> 0 | W16: =+L16+Mar!W16 -> 0 | X16: =+M16+Mar!X16 -> 0 | Y16: =+N16+Mar!Y16 -> 0 | Z16: =+O16+Mar!Z16 -> 0 | AA16: =+P16+Mar!AA16 -> 0 | AB16: =+Q16+Mar!AB16 -> 0 | AC16: =+R16+Mar!AC16 -> 0
A17: =+Mar!A17 -> Volunteers: | B17: =+Jul!B17 -> Position Title $XX.XX/hr | C17: =+Mar!C17 -> 0 | D17: =+Mar!D17 -> 0 | E17: =SUM(G17)+Mar!E17 -> 0 | F17: =SUM(H17)+Mar!F17 -> 0 | G17: 0 | H17: 0 | T17: =+I17+Mar!T17 -> 0 | U17: =+J17+Mar!U17 -> 0 | V17: =+K17+Mar!V17 -> 0 | W17: =+L17+Mar!W17 -> 0 | X17: =+M17+Mar!X17 -> 0 | Y17: =+N17+Mar!Y17 -> 0 | Z17: =+O17+Mar!Z17 -> 0 | AA17: =+P17+Mar!AA17 -> 0 | AB17: =+Q17+Mar!AB17 -> 0 | AC17: =+R17+Mar!AC17 -> 0
A18: Volunteers | B18: =+Jul!B18 -> 0 | C18: =+Mar!C18 -> 0 | D18: =+Mar!D18 -> 0 | E18: =SUM(G18)+Mar!E18 -> 0 | F18: =SUM(H18)+Mar!F18 -> 0 | G18: =M18 -> 0 | T18: =+I18+Mar!T18 -> 0 | U18: =+J18+Mar!U18 -> 0 | V18: =+K18+Mar!V18 -> 0 | W18: =+L18+Mar!W18 -> 0 | X18: =+M18+Mar!X18 -> 0 | Y18: =+N18+Mar!Y18 -> 0 | Z18: =+O18+Mar!Z18 -> 0 | AA18: =+P18+Mar!AA18 -> 0 | AB18: =+Q18+Mar!AB18 -> 0 | AC18: =+R18+Mar!AC18 -> 0
A19: Volunteers | B19: =+Jul!B19 -> 0 | C19: =+Mar!C19 -> 0 | D19: =+Mar!D19 -> 0 | E19: =SUM(G19)+Mar!E19 -> 0 | F19: =SUM(H19)+Mar!F19 -> 0 | G19: =M19 -> 0 | H19: =N19 -> 0 | T19: =+I19+Mar!T19 -> 0 | U19: =+J19+Mar!U19 -> 0 | V19: =+K19+Mar!V19 -> 0 | W19: =+L19+Mar!W19 -> 0 | X19: =+M19+Mar!X19 -> 0 | Y19: =+N19+Mar!Y19 -> 0 | Z19: =+O19+Mar!Z19 -> 0 | AA19: =+P19+Mar!AA19 -> 0 | AB19: =+Q19+Mar!AB19 -> 0 | AC19: =+R19+Mar!AC19 -> 0
A20: =+Mar!A20 -> 0 | B20: =+Jul!B20 -> 0 | C20: =+Mar!C20 -> 0 | D20: =+Mar!D20 -> 0 | E20: =SUM(G20)+Mar!E20 -> 0 | F20: =SUM(H20)+Mar!F20 -> 0 | G20: =SUM(I20+K20+M20+O20+Q20) -> 0 | H20: =N20 -> 0 | T20: =+I20+Mar!T20 -> 0 | U20: =+J20+Mar!U20 -> 0 | V20: =+K20+Mar!V20 -> 0 | W20: =+L20+Mar!W20 -> 0 | X20: =+M20+Mar!X20 -> 0 | Y20: =+N20+Mar!Y20 -> 0 | Z20: =+O20+Mar!Z20 -> 0 | AA20: =+P20+Mar!AA20 -> 0 | AB20: =+Q20+Mar!AB20 -> 0 | AC20: =+R20+Mar!AC20 -> 0
A21: =+Mar!A21 -> 0 | B21: =+Jul!B21 -> 0 | C21: =+Mar!C21 -> 0 | D21: =+Mar!D21 -> 0 | E21: =SUM(G21)+Mar!E21 -> 0 | F21: =SUM(H21)+Mar!F21 -> 0 | G21: 0 | H21: 0 | T21: =+I21+Mar!T21 -> 0 | U21: =+J21+Mar!U21 -> 0 | V21: =+K21+Mar!V21 -> 0 | W21: =+L21+Mar!W21 -> 0 | X21: =+M21+Mar!X21 -> 0 | Y21: =+N21+Mar!Y21 -> 0 | Z21: =+O21+Mar!Z21 -> 0 | AA21: =+P21+Mar!AA21 -> 0 | AB21: =+Q21+Mar!AB21 -> 0 | AC21: =+R21+Mar!AC21 -> 0
A22: Total Personnel: | C22: =SUM(C13:C21) -> 0 | D22: 0 | E22: 0 | F22: 0 | G22: 0 | H22: 0 | I22: =SUM(I13:I21) -> 0 | J22: 0 | K22: 0 | L22: 0 | M22: 0 | N22: 0 | O22: 0 | P22: 0 | Q22: 0 | R22: 0
A23: B. TRAVEL & TRAINING
A24: =+Mar!A24 -> Travel/Mileage | C24: =+Mar!C24 -> 0 | D24: =+Mar!D24 -> 0 | E24: =SUM(G24)+Mar!E24 -> 0 | F24: =SUM(H24)+Mar!F24 -> 0 | G24: =SUM(I24+K24+M24+O24+Q24) -> 0 | H24: 0 | T24: =+I24+Mar!T24 -> 0 | U24: =+J24+Mar!U24 -> 0 | V24: =+K24+Mar!V24 -> 0 | W24: =+L24+Mar!W24 -> 0 | X24: =+M24+Mar!X24 -> 0 | Y24: =+N24+Mar!Y24 -> 0 | Z24: =+O24+Mar!Z24 -> 0 | AA24: =+P24+Mar!AA24 -> 0 | AB24: =+Q24+Mar!AB24 -> 0 | AC24: =+R24+Mar!AC24 -> 0
A25: =+Mar!A25 -> Training | C25: =+Mar!C25 -> 0 | D25: =+Mar!D25 -> 0 | E25: =SUM(G25)+Mar!E25 -> 0 | F25: =SUM(H25)+Mar!F25 -> 0 | G25: 0 | H25: 0 | T25: =+I25+Mar!T25 -> 0 | U25: =+J25+Mar!U25 -> 0 | V25: =+K25+Mar!V25 -> 0 | W25: =+L25+Mar!W25 -> 0 | X25: =+M25+Mar!X25 -> 0 | Y25: =+N25+Mar!Y25 -> 0 | Z25: =+O25+Mar!Z25 -> 0 | AA25: =+P25+Mar!AA25 -> 0 | AB25: =+Q25+Mar!AB25 -> 0 | AC25: =+R25+Mar!AC25 -> 0
A26: =+Mar!A26 -> 0 | C26: =+Mar!C26 -> 0 | D26: =+Mar!D26 -> 0 | E26: =SUM(G26)+Mar!E26 -> 0 | F26: =SUM(H26)+Mar!F26 -> 0 | G26: 0 | H26: 0 | T26: =+I26+Mar!T26 -> 0 | U26: =+J26+Mar!U26 -> 0 | V26: =+K26+Mar!V26 -> 0 | W26: =+L26+Mar!W26 -> 0 | X26: =+M26+Mar!X26 -> 0 | Y26: =+N26+Mar!Y26 -> 0 | Z26: =+O26+Mar!Z26 -> 0 | AA26: =+P26+Mar!AA26 -> 0 | AB26: =+Q26+Mar!AB26 -> 0 | AC26: =+R26+Mar!AC26 -> 0
A27: Total Travel & Training: | C27: =SUM(C24:C26) -> 0 | D27: 0 | E27: 0 | F27: 0 | G27: 0 | H27: 0 | I27: 0 | J27: 0 | K27: =SUM(K24:K26) -> 0 | L27: 0 | M27: 0 | N27: 0 | O27: 0 | P27: 0 | Q27: 0 | R27: 0
A28: C. EQUIPMENT
A29: =+Mar!A29 -> Equipment | C29: =+Mar!C29 -> 0 | D29: =+Mar!D29 -> 0 | E29: =SUM(G29)+Mar!E29 -> 0 | F29: =SUM(H29)+Mar!F29 -> 0 | G29: =SUM(I29+K29+M29+O29+Q29) -> 0 | H29: =SUM(J29+L29+N29+P29+R29) -> 0 | T29: =+I29+Mar!T29 -> 0 | U29: =+J29+Mar!U29 -> 0 | V29: =+K29+Mar!V29 -> 0 | W29: =+L29+Mar!W29 -> 0 | X29: =+M29+Mar!X29 -> 0 | Y29: =+N29+Mar!Y29 -> 0 | Z29: =+O29+Mar!Z29 -> 0 | AA29: =+P29+Mar!AA29 -> 0 | AB29: =+Q29+Mar!AB29 -> 0 | AC29: =+R29+Mar!AC29 -> 0
A30: =+Mar!A30 -> 0 | C30: =+Mar!C30 -> 0 | D30: =+Mar!D30 -> 0 | E30: =SUM(G30)+Mar!E30 -> 0 | F30: =SUM(H30)+Mar!F30 -> 0 | G30: =SUM(I30+K30+M30+O30+Q30) -> 0 | H30: =SUM(J30+L30+N30+P30+R30) -> 0 | T30: =+I30+Mar!T30 -> 0 | U30: =+J30+Mar!U30 -> 0 | V30: =+K30+Mar!V30 -> 0 | W30: =+L30+Mar!W30 -> 0 | X30: =+M30+Mar!X30 -> 0 | Y30: =+N30+Mar!Y30 -> 0 | Z30: =+O30+Mar!Z30 -> 0 | AA30: =+P30+Mar!AA30 -> 0 | AB30: =+Q30+Mar!AB30 -> 0 | AC30: =+R30+Mar!AC30 -> 0
A31: Total Equipment: | C31: =SUM(C29:C30) -> 0 | D31: =SUM(D29:D30) -> 0 | E31: =SUM(E29:E30) -> 0 | F31: =SUM(F29:F30) -> 0 | G31: =SUM(G29:G30) -> 0 | H31: 0 | I31: 0 | J31: 0 | K31: 0 | L31: 0 | M31: 0 | N31: 0 | O31: 0 | P31: 0 | Q31: 0 | R31: 0
A32: D. CONSULTANTS
A33: =+Mar!A33 -> Congregate or HDM Meals | C33: =+Mar!C33 -> 0 | D33: =+Mar!D33 -> 0 | E33: =SUM(G33)+Mar!E33 -> 0 | F33: =SUM(H33)+Mar!F33 -> 0 | G33: =SUM(I33+K33+M33+O33+Q33) -> 0 | H33: =SUM(J33+L33+N33+P33+R33) -> 0 | T33: =+I33+Mar!T33 -> 0 | U33: =+J33+Mar!U33 -> 0 | V33: =+K33+Mar!V33 -> 0 | W33: =+L33+Mar!W33 -> 0 | X33: =+M33+Mar!X33 -> 0 | Y33: =+N33+Mar!Y33 -> 0 | Z33: =+O33+Mar!Z33 -> 0 | AA33: =+P33+Mar!AA33 -> 0 | AB33: =+Q33+Mar!AB33 -> 0 | AC33: =+R33+Mar!AC33 -> 0
A34: =+Mar!A34 -> Food Share Delivery Cost | C34: =+Mar!C34 -> 0 | D34: =+Mar!D34 -> 0 | E34: =SUM(G34)+Mar!E34 -> 0 | F34: =SUM(H34)+Mar!F34 -> 0 | G34: =SUM(I34+K34+M34+O34+Q34) -> 0 | H34: =SUM(J34+L34+N34+P34+R34) -> 0 | T34: =+I34+Mar!T34 -> 0 | U34: =+J34+Mar!U34 -> 0 | V34: =+K34+Mar!V34 -> 0 | W34: =+L34+Mar!W34 -> 0 | X34: =+M34+Mar!X34 -> 0 | Y34: =+N34+Mar!Y34 -> 0 | Z34: =+O34+Mar!Z34 -> 0 | AA34: =+P34+Mar!AA34 -> 0 | AB34: =+Q34+Mar!AB34 -> 0 | AC34: =+R34+Mar!AC34 -> 0
A35: Total Consultants: | C35: =SUM(C33:C34) -> 0 | D35: 0 | E35: 0 | F35: 0 | G35: 0 | H35: 0 | I35: 0 | J35: 0 | K35: =SUM(K33:K34) -> 0 | L35: 0 | M35: 0 | N35: 0 | O35: 0 | P35: 0 | Q35: 0 | R35: 0
A36: E. FOOD COSTS (Senior Nutrition Program Only)
A37: =+Mar!A37 -> Food Cost | C37: =+Mar!C37 -> 0 | D37: =+Mar!D37 -> 0 | E37: =SUM(G37)+Mar!E37 -> 0 | F37: =SUM(H37)+Mar!F37 -> 0 | G37: =SUM(I37+K37+M37+O37+Q37) -> 0 | H37: =SUM(J37+L37+N37+P37+R37) -> 0 | T37: =+I37+Mar!T37 -> 0 | U37: =+J37+Mar!U37 -> 0 | V37: =+K37+Mar!V37 -> 0 | W37: =+L37+Mar!W37 -> 0 | X37: =+M37+Mar!X37 -> 0 | Y37: =+N37+Mar!Y37 -> 0 | Z37: =+O37+Mar!Z37 -> 0 | AA37: =+P37+Mar!AA37 -> 0 | AB37: =+Q37+Mar!AB37 -> 0 | AC37: =+R37+Mar!AC37 -> 0
A38: Total Food Costs: | C38: =+C37 -> 0 | D38: =+D37 -> 0 | E38: =SUM(E37:E37) -> 0 | F38: 0 | G38: 0 | H38: 0 | I38: 0 | J38: 0 | K38: =SUM(K37:K37) -> 0 | L38: 0 | M38: 0 | N38: 0 | O38: 0 | P38: 0 | Q38: 0 | R38: 0
A39: F. OTHER COSTS
A40: =+Mar!A40 -> Supplies:Non food(Bags,liners etc) | C40: =+Mar!C40 -> 0 | D40: =+Mar!D40 -> 0 | E40: =SUM(G40)+Mar!E40 -> 0 | F40: =SUM(H40)+Mar!F40 -> 0 | G40: =SUM(I40+K40+M40+O40+Q40) -> 0 | H40: =SUM(J40+L40+N40+P40+R40) -> 0 | T40: =+I40+Mar!T40 -> 0 | U40: =+J40+Mar!U40 -> 0 | V40: =+K40+Mar!V40 -> 0 | W40: =+L40+Mar!W40 -> 0 | X40: =+M40+Mar!X40 -> 0 | Y40: =+N40+Mar!Y40 -> 0 | Z40: =+O40+Mar!Z40 -> 0 | AA40: =+P40+Mar!AA40 -> 0 | AB40: =+Q40+Mar!AB40 -> 0 | AC40: =+R40+Mar!AC40 -> 0
A41: =+Mar!A41 -> Health permit | C41: =+Mar!C41 -> 0 | D41: =+Mar!D41 -> 0 | E41: =SUM(G41)+Mar!E41 -> 0 | F41: =SUM(H41)+Mar!F41 -> 0 | G41: 0 | H41: 0 | T41: =+I41+Mar!T41 -> 0 | U41: =+J41+Mar!U41 -> 0 | V41: =+K41+Mar!V41 -> 0 | W41: =+L41+Mar!W41 -> 0 | X41: =+M41+Mar!X41 -> 0 | Y41: =+N41+Mar!Y41 -> 0 | Z41: =+O41+Mar!Z41 -> 0 | AA41: =+P41+Mar!AA41 -> 0 | AB41: =+Q41+Mar!AB41 -> 0 | AC41: =+R41+Mar!AC41 -> 0
A42: =+Mar!A42 -> Rent | C42: =+Mar!C42 -> 0 | D42: =+Mar!D42 -> 0 | E42: =SUM(G42)+Mar!E42 -> 0 | F42: =SUM(H42)+Mar!F42 -> 0 | G42: 0 | H42: 0 | T42: =+I42+Mar!T42 -> 0 | U42: =+J42+Mar!U42 -> 0 | V42: =+K42+Mar!V42 -> 0 | W42: =+L42+Mar!W42 -> 0 | X42: =+M42+Mar!X42 -> 0 | Y42: =+N42+Mar!Y42 -> 0 | Z42: =+O42+Mar!Z42 -> 0 | AA42: =+P42+Mar!AA42 -> 0 | AB42: =+Q42+Mar!AB42 -> 0 | AC42: =+R42+Mar!AC42 -> 0
A43: =+Mar!A43 -> Program Publicity | C43: =+Mar!C43 -> 0 | D43: =+Mar!D43 -> 0 | E43: =SUM(G43)+Mar!E43 -> 0 | F43: =SUM(H43)+Mar!F43 -> 0 | G43: 0 | H43: 0 | T43: =+I43+Mar!T43 -> 0 | U43: =+J43+Mar!U43 -> 0 | V43: =+K43+Mar!V43 -> 0 | W43: =+L43+Mar!W43 -> 0 | X43: =+M43+Mar!X43 -> 0 | Y43: =+N43+Mar!Y43 -> 0 | Z43: =+O43+Mar!Z43 -> 0 | AA43: =+P43+Mar!AA43 -> 0 | AB43: =+Q43+Mar!AB43 -> 0 | AC43: =+R43+Mar!AC43 -> 0
A44: =+Mar!A44 -> Other | C44: =+Mar!C44 -> 0 | D44: =+Mar!D44 -> 0 | E44: =SUM(G44)+Mar!E44 -> 0 | F44: =SUM(H44)+Mar!F44 -> 0 | G44: =SUM(I44+K44+M44+O44+Q44) -> 0 | H44: =SUM(J44+L44+N44+P44+R44) -> 0 | T44: =+I44+Mar!T44 -> 0 | U44: =+J44+Mar!U44 -> 0 | V44: =+K44+Mar!V44 -> 0 | W44: =+L44+Mar!W44 -> 0 | X44: =+M44+Mar!X44 -> 0 | Y44: =+N44+Mar!Y44 -> 0 | Z44: =+O44+Mar!Z44 -> 0 | AA44: =+P44+Mar!AA44 -> 0 | AB44: =+Q44+Mar!AB44 -> 0 | AC44: =+R44+Mar!AC44 -> 0
A45: =+Mar!A45 -> Other | C45: =+Mar!C45 -> 0 | D45: =+Mar!D45 -> 0 | E45: =SUM(G45)+Mar!E45 -> 0 | F45: =SUM(H45)+Mar!F45 -> 0 | G45: =SUM(I45+K45+M45+O45+Q45) -> 0 | H45: =SUM(J45+L45+N45+P45+R45) -> 0 | T45: =+I45+Mar!T45 -> 0 | U45: =+J45+Mar!U45 -> 0 | V45: =+K45+Mar!V45 -> 0 | W45: =+L45+Mar!W45 -> 0 | X45: =+M45+Mar!X45 -> 0 | Y45: =+N45+Mar!Y45 -> 0 | Z45: =+O45+Mar!Z45 -> 0 | AA45: =+P45+Mar!AA45 -> 0 | AB45: =+Q45+Mar!AB45 -> 0 | AC45: =+R45+Mar!AC45 -> 0
A46: =+Mar!A46 -> Indirect Costs (no more than 10% of grant funds) | T46: =+I46+Mar!T46 -> 0 | U46: =+J46+Mar!U46 -> 0 | V46: =+K46+Mar!V46 -> 0 | W46: =+L46+Mar!W46 -> 0 | X46: =+M46+Mar!X46 -> 0 | Y46: =+N46+Mar!Y46 -> 0 | Z46: =+O46+Mar!Z46 -> 0 | AA46: =+P46+Mar!AA46 -> 0 | AB46: =+Q46+Mar!AB46 -> 0 | AC46: =+R46+Mar!AC46 -> 0
A47: =+Mar!A47 -> 0 | T47: =+I47+Mar!T47 -> 0 | U47: =+J47+Mar!U47 -> 0 | V47: =+K47+Mar!V47 -> 0 | W47: =+L47+Mar!W47 -> 0 | X47: =+M47+Mar!X47 -> 0 | Y47: =+N47+Mar!Y47 -> 0 | Z47: =+O47+Mar!Z47 -> 0 | AA47: =+P47+Mar!AA47 -> 0 | AB47: =+Q47+Mar!AB47 -> 0 | AC47: =+R47+Mar!AC47 -> 0
T48: =+I48+Mar!T48 -> 0 | U48: =+J48+Mar!U48 -> 0 | V48: =+K48+Mar!V48 -> 0 | W48: =+L48+Mar!W48 -> 0 | X48: =+M48+Mar!X48 -> 0 | Y48: =+N48+Mar!Y48 -> 0 | Z48: =+O48+Mar!Z48 -> 0 | AA48: =+P48+Mar!AA48 -> 0 | AB48: =+Q48+Mar!AB48 -> 0 | AC48: =+R48+Mar!AC48 -> 0
A49: =+Mar!A49 -> 0 | C49: =+Mar!C49 -> 0 | D49: =+Mar!D49 -> 0 | E49: =SUM(G49)+Mar!E49 -> 0 | F49: =SUM(H49)+Mar!F49 -> 0 | G49: 0 | H49: 0 | T49: =+I49+Mar!T49 -> 0 | U49: =+J49+Mar!U49 -> 0 | V49: =+K49+Mar!V49 -> 0 | W49: =+L49+Mar!W49 -> 0 | X49: =+M49+Mar!X49 -> 0 | Y49: =+N49+Mar!Y49 -> 0 | Z49: =+O49+Mar!Z49 -> 0 | AA49: =+P49+Mar!AA49 -> 0 | AB49: =+Q49+Mar!AB49 -> 0 | AC49: =+R49+Mar!AC49 -> 0
A50: Total Other Costs: | C50: =SUM(C40:C49) -> 0 | D50: 0 | E50: 0 | F50: 0 | G50: 0 | H50: 0 | I50: 0 | J50: 0 | K50: 0 | L50: 0 | M50: 0 | N50: 0 | O50: 0 | P50: 0 | Q50: 0 | R50: 0
A52: 1. Current Month Total | G52: =SUM(G50,G38,G35,G31,G27,G22) -> 0 | H52: 0 | I52: 0 | J52: 0 | K52: 0 | L52: 0 | M52: 0 | N52: 0 | O52: 0 | P52: 0 | Q52: 0 | R52: 0
A53: 2. Year-to-Date Total** | C53: =+C50+C38+C35+C31+C27+C22 -> 0 | D53: =+D50+D38+D35+D31+D27+D22 -> 0 | E53: =+E22+E27+E31+E35+E38+E50 -> 0 | F53: =+F22+F27+F31+F35+F38+F50 -> 0 | I53: =+I52+Mar!I53 -> 0 | J53: =+J52+Mar!J53 -> 0 | K53: =+K52+Mar!K53 -> 0 | L53: =+L52+Mar!L53 -> 0 | M53: =+M52+Mar!M53 -> 0 | N53: =+N52+Mar!N53 -> 0 | O53: =+O52+Mar!O53 -> 0 | P53: =+P52+Mar!P53 -> 0 | Q53: =+Q52+Mar!Q53 -> 0 | R53: =+R52+Mar!R53 -> 0 | T53: =SUM(T13:T52) -> 0 | U53: =SUM(U13:U52) -> 0 | V53: 0 | W53: 0 | X53: 0 | Y53: 0 | Z53: 0 | AA53: 0 | AB53: 0 | AC53: 0
A54: 3. Grant Funds Remaining | I54: =+I8-I67 -> 0 | J54: =+J8-J67 -> 0 | K54: =+I54+J54 -> 0 | T54: =+T53/P1 ->  | U54: =+U53/R1 -> 
A55: EQUIPMENT INFO | I55: Date Acquired | N55: Equipment Location | T55: =+T53+U53 -> 0
A56: 1500 | B56: 1500
A58: *Equipment is property of the VCAAA. Consult VCAAA Contractor Manual for more information
A59: I hereby certify that the above figures and attached expenditure report are accurate to the best of my knowledge.
A60: Prepared By: | F60: Signature: | K60: Date: | P60: Title | Q60: Accounting Manager
A62: Authorized By: | F62: Signature: | P62: Title
A64: AAA USE ONLY
A65: Grants Management Approval | G65: Amount Requested - Month | I65: =+I52 -> 0 | J65: =+J52 -> 0 | K65: =+I65+J65 -> 0 | L65: Date Received | P65: Fiscal Approval
G66: Amount Approved - Month | I66: =+I65 -> 0 | J66: =+J65 -> 0 | K66: =+I66+J66 -> 0
G67: Amount Approved - YTD | I67: =+I66+Mar!I67 -> 0 | J67: =+J66+Mar!J67 -> 0 | K67: =+I67+J67 -> 0
J69: Check total: | K69: =+K67+K54 -> 0

Sheet May (hidden)
A1: =+Apr!A1 -> Contractor Name: | B1: =+Apr!B1 -> Agency Name | E1: Month: | F1: =+Apr!F1+31 -> 2021-05-05 | I1: PO# | J1: =+Apr!J1 -> 0 | M1: GRANT AWARD AMOUNT: | O1: C1: | P1: =+Budget!Z40 -> 0 | Q1: C2: | R1: =+Budget!AA40 -> 0
A2: =+Apr!A2 -> Project Name: | B2: =+Budget!B1 -> VCAAA Senior Nutrition Program | E2: Grant#: | F2: =+Apr!F2 -> 0 | I2: Contact: | J2: =+Apr!J2 -> First Last | L2: =+Apr!L2 -> Phone: | M2: =+Apr!M2 -> (XXX) XXX-XXXX | P2: Total C: | R2: =+P1+R1 -> 0
I3: Address: | J3: =+Apr!J3 -> Street Address, City, CA 93XXX
A4: Number of Meals Served | C4: C1 | D4: C2
B5: Month | I5: Current Month Expenditures by Funding Source
B6: YTD | C6: =+C5+Apr!C6 -> 0 | D6: =+D5+Apr!D6 -> 0
A7: Item Description | C7: Authorized Budget by Allocation C1 | D7: Authorized Budget by Allocation C2 | E7: YTD Actual Expenses C1 | F7: YTD Actual Expenses C2 | G7: Total Current Month Expenses C1 | H7: Total Current Month Expenses C2 | I7: Grant Share C1 | J7: Grant Share C2 | K7: Cash Match C1 | L7: Cash Match C2 | M7: In-Kind Match C1 | N7: In-Kind Match C2 | O7: Program Income C1 | P7: Program Income C2 | Q7: Cash Non-Match C1 | R7: Cash Non-Match C2 | T7: Grant Share C1 | U7: Grant Share C2 | V7: Cash Match C1 | W7: Cash Match C2 | X7: In-Kind Match C1 | Y7: In-Kind Match C2 | Z7: Program Income C1 | AA7: Program Income C2 | AB7: Cash Non-Match C1 | AC7: Cash Non-Match C2
A8: APPROVED BUDGET | C8: =+Apr!C8 -> 0 | D8: =+Apr!D8 -> 0 | E8: =+E53 -> 0 | F8: =+F53 -> 0 | G8: =+G52 -> 0 | H8: =+H52 -> 0 | I8: =+P1 -> 0 | J8: =+R1 -> 0 | K8: =+Budget!Z34 -> 0 | L8: =+Budget!AA34 -> 0 | M8: =+Budget!Z35 -> 0 | N8: =+Budget!AA35 -> 0 | O8: =+Budget!Z38 -> 0 | P8: =+Budget!AA39 -> 0 | Q8: =+Budget!Z36 -> 0 | R8: =+Jul!R9 -> 0
A9: % OF TOTAL | C9: =IFERROR(+C$8/($C8+$D8),0) -> 0 | D9: =IFERROR(+D$8/($C8+$D8),0) -> 0
A10: TOTAL BUDGET | C10: =+C8+D8 -> 0 | H10: ACT YTD--> | I10: =+I52 -> 0 | J10: =+J52 -> 0 | K10: =+K52 -> 0 | L10: 0 | M10: 0 | N10: 0 | O10: 0 | P10: 0 | Q10: 0 | R10: 0
A12: A. PERSONNEL (Title / Name)
A13: =+Mar!A13 -> Admin/Fiscal | B13: =+Jul!B13 -> Position Title $XX.XX/hr | C13: =+Mar!C13 -> 0 | D13: =+Mar!D13 -> 0 | E13: =SUM(G13)+Apr!E13 -> 0 | F13: =SUM(H13)+Apr!F13 -> 0 | G13: =SUM(I13+K13+M13+O13+Q13) -> 0 | H13: =SUM(J13+L13+N13+P13+R13) -> 0 | T13: =+I13+Apr!T13 -> 0 | U13: =+J13+Apr!U13 -> 0 | V13: =+K13+Apr!V13 -> 0 | W13: =+L13+Apr!W13 -> 0 | X13: =+M13+Apr!X13 -> 0 | Y13: =+N13+Apr!Y13 -> 0 | Z13: =+O13+Apr!Z13 -> 0 | AA13: =+P13+Apr!AA13 -> 0 | AB13: =+Q13+Apr!AB13 -> 0 | AC13: =+R13+Apr!AC13 -> 0
A14: =+Mar!A14 -> Site/ HDM/MOW Coordinator | B14: =+Jul!B14 -> Position Title $XX.XX/hr | C14: =+Mar!C14 -> 0 | D14: =+Mar!D14 -> 0 | E14: =SUM(G14)+Apr!E14 -> 0 | F14: =SUM(H14)+Apr!F14 -> 0 | G14: =SUM(I14+K14+M14+O14+Q14) -> 0 | H14: 0 | T14: =+I14+Apr!T14 -> 0 | U14: =+J14+Apr!U14 -> 0 | V14: =+K14+Apr!V14 -> 0 | W14: =+L14+Apr!W14 -> 0 | X14: =+M14+Apr!X14 -> 0 | Y14: =+N14+Apr!Y14 -> 0 | Z14: =+O14+Apr!Z14 -> 0 | AA14: =+P14+Apr!AA14 -> 0 | AB14: =+Q14+Apr!AB14 -> 0 | AC14: =+R14+Apr!AC14 -> 0
A15: =+Mar!A15 -> Cook | B15: =+Jul!B15 -> Position Title $XX.XX/hr | C15: =+Mar!C15 -> 0 | D15: =+Mar!D15 -> 0 | E15: =SUM(G15)+Apr!E15 -> 0 | F15: =SUM(H15)+Apr!F15 -> 0 | G15: 0 | H15: 0 | T15: =+I15+Apr!T15 -> 0 | U15: =+J15+Apr!U15 -> 0 | V15: =+K15+Apr!V15 -> 0 | W15: =+L15+Apr!W15 -> 0 | X15: =+M15+Apr!X15 -> 0 | Y15: =+N15+Apr!Y15 -> 0 | Z15: =+O15+Apr!Z15 -> 0 | AA15: =+P15+Apr!AA15 -> 0 | AB15: =+Q15+Apr!AB15 -> 0 | AC15: =+R15+Apr!AC15 -> 0
A16: =+Mar!A16 -> Volunteers: | B16: =+Jul!B16 -> Position Title $XX.XX/hr | C16: =+Mar!C16 -> 0 | D16: =+Mar!D16 -> 0 | E16: =SUM(G16)+Apr!E16 -> 0 | F16: =SUM(H16)+Apr!F16 -> 0 | G16: 0 | H16: 0 | T16: =+I16+Apr!T16 -> 0 | U16: =+J16+Apr!U16 -> 0 | V16: =+K16+Apr!V16 -> 0 | W16: =+L16+Apr!W16 -> 0 | X16: =+M16+Apr!X16 -> 0 | Y16: =+N16+Apr!Y16 -> 0 | Z16: =+O16+Apr!Z16 -> 0 | AA16: =+P16+Apr!AA16 -> 0 | AB16: =+Q16+Apr!AB16 -> 0 | AC16: =+R16+Apr!AC16 -> 0
A17: =+Mar!A17 -> Volunteers: | B17: =+Jul!B17 -> Position Title $XX.XX/hr | C17: =+Mar!C17 -> 0 | D17: =+Mar!D17 -> 0 | E17: =SUM(G17)+Apr!E17 -> 0 | F17: =SUM(H17)+Apr!F17 -> 0 | G17: 0 | H17: 0 | T17: =+I17+Apr!T17 -> 0 | U17: =+J17+Apr!U17 -> 0 | V17: =+K17+Apr!V17 -> 0 | W17: =+L17+Apr!W17 -> 0 | X17: =+M17+Apr!X17 -> 0 | Y17: =+N17+Apr!Y17 -> 0 | Z17: =+O17+Apr!Z17 -> 0 | AA17: =+P17+Apr!AA17 -> 0 | AB17: =+Q17+Apr!AB17 -> 0 | AC17: =+R17+Apr!AC17 -> 0
A18: Volunteers | B18: =+Jul!B18 -> 0 | C18: =+Mar!C18 -> 0 | D18: =+Mar!D18 -> 0 | E18: =SUM(G18)+Apr!E18 -> 0 | F18: =SUM(H18)+Apr!F18 -> 0 | G18: =M18 -> 0 | T18: =+I18+Apr!T18 -> 0 | U18: =+J18+Apr!U18 -> 0 | V18: =+K18+Apr!V18 -> 0 | W18: =+L18+Apr!W18 -> 0 | X18: =+M18+Apr!X18 -> 0 | Y18: =+N18+Apr!Y18 -> 0 | Z18: =+O18+Apr!Z18 -> 0 | AA18: =+P18+Apr!AA18 -> 0 | AB18: =+Q18+Apr!AB18 -> 0 | AC18: =+R18+Apr!AC18 -> 0
A19: Volunteers | B19: =+Jul!B19 -> 0 | C19: =+Mar!C19 -> 0 | D19: =+Mar!D19 -> 0 | E19: =SUM(G19)+Apr!E19 -> 0 | F19: =SUM(H19)+Apr!F19 -> 0 | G19: =M19 -> 0 | H19: =N19 -> 0 | T19: =+I19+Apr!T19 -> 0 | U19: =+J19+Apr!U19 -> 0 | V19: =+K19+Apr!V19 -> 0 | W19: =+L19+Apr!W19 -> 0 | X19: =+M19+Apr!X19 -> 0 | Y19: =+N19+Apr!Y19 -> 0 | Z19: =+O19+Apr!Z19 -> 0 | AA19: =+P19+Apr!AA19 -> 0 | AB19: =+Q19+Apr!AB19 -> 0 | AC19: =+R19+Apr!AC19 -> 0
A20: =+Mar!A20 -> 0 | B20: =+Jul!B20 -> 0 | C20: =+Mar!C20 -> 0 | D20: =+Mar!D20 -> 0 | E20: =SUM(G20)+Apr!E20 -> 0 | F20: =SUM(H20)+Apr!F20 -> 0 | G20: =SUM(I20+K20+M20+O20+Q20) -> 0 | H20: =N20 -> 0 | T20: =+I20+Apr!T20 -> 0 | U20: =+J20+Apr!U20 -> 0 | V20: =+K20+Apr!V20 -> 0 | W20: =+L20+Apr!W20 -> 0 | X20: =+M20+Apr!X20 -> 0 | Y20: =+N20+Apr!Y20 -> 0 | Z20: =+O20+Apr!Z20 -> 0 | AA20: =+P20+Apr!AA20 -> 0 | AB20: =+Q20+Apr!AB20 -> 0 | AC20: =+R20+Apr!AC20 -> 0
A21: =+Mar!A21 -> 0 | B21: =+Jul!B21 -> 0 | C21: =+Mar!C21 -> 0 | D21: =+Mar!D21 -> 0 | E21: =SUM(G21)+Apr!E21 -> 0 | F21: =SUM(H21)+Apr!F21 -> 0 | G21: 0 | H21: 0 | T21: =+I21+Apr!T21 -> 0 | U21: =+J21+Apr!U21 -> 0 | V21: =+K21+Apr!V21 -> 0 | W21: =+L21+Apr!W21 -> 0 | X21: =+M21+Apr!X21 -> 0 | Y21: =+N21+Apr!Y21 -> 0 | Z21: =+O21+Apr!Z21 -> 0 | AA21: =+P21+Apr!AA21 -> 0 | AB21: =+Q21+Apr!AB21 -> 0 | AC21: =+R21+Apr!AC21 -> 0
A22: Total Personnel: | C22: =SUM(C13:C21) -> 0 | D22: 0 | E22: 0 | F22: 0 | G22: 0 | H22: 0 | I22: =SUM(I13:I21) -> 0 | J22: 0 | K22: 0 | L22: 0 | M22: 0 | N22: 0 | O22: 0 | P22: 0 | Q22: 0 | R22: 0
A23: B. TRAVEL & TRAINING
A24: =+Mar!A24 -> Travel/Mileage | C24: =+Mar!C24 -> 0 | D24: =+Mar!D24 -> 0 | E24: =SUM(G24)+Apr!E24 -> 0 | F24: =SUM(H24)+Apr!F24 -> 0 | G24: =SUM(I24+K24+M24+O24+Q24) -> 0 | H24: 0 | T24: =+I24+Apr!T24 -> 0 | U24: =+J24+Apr!U24 -> 0 | V24: =+K24+Apr!V24 -> 0 | W24: =+L24+Apr!W24 -> 0 | X24: =+M24+Apr!X24 -> 0 | Y24: =+N24+Apr!Y24 -> 0 | Z24: =+O24+Apr!Z24 -> 0 | AA24: =+P24+Apr!AA24 -> 0 | AB24: =+Q24+Apr!AB24 -> 0 | AC24: =+R24+Apr!AC24 -> 0
A25: =+Mar!A25 -> Training | C25: =+Mar!C25 -> 0 | D25: =+Mar!D25 -> 0 | E25: =SUM(G25)+Apr!E25 -> 0 | F25: =SUM(H25)+Apr!F25 -> 0 | G25: 0 | H25: 0 | T25: =+I25+Apr!T25 -> 0 | U25: =+J25+Apr!U25 -> 0 | V25: =+K25+Apr!V25 -> 0 | W25: =+L25+Apr!W25 -> 0 | X25: =+M25+Apr!X25 -> 0 | Y25: =+N25+Apr!Y25 -> 0 | Z25: =+O25+Apr!Z25 -> 0 | AA25: =+P25+Apr!AA25 -> 0 | AB25: =+Q25+Apr!AB25 -> 0 | AC25: =+R25+Apr!AC25 -> 0
A26: =+Mar!A26 -> 0 | C26: =+Mar!C26 -> 0 | D26: =+Mar!D26 -> 0 | E26: =SUM(G26)+Apr!E26 -> 0 | F26: =SUM(H26)+Apr!F26 -> 0 | G26: 0 | H26: 0 | T26: =+I26+Apr!T26 -> 0 | U26: =+J26+Apr!U26 -> 0 | V26: =+K26+Apr!V26 -> 0 | W26: =+L26+Apr!W26 -> 0 | X26: =+M26+Apr!X26 -> 0 | Y26: =+N26+Apr!Y26 -> 0 | Z26: =+O26+Apr!Z26 -> 0 | AA26: =+P26+Apr!AA26 -> 0 | AB26: =+Q26+Apr!AB26 -> 0 | AC26: =+R26+Apr!AC26 -> 0
A27: Total Travel & Training: | C27: =SUM(C24:C26) -> 0 | D27: 0 | E27: 0 | F27: 0 | G27: 0 | H27: 0 | I27: 0 | J27: 0 | K27: =SUM(K24:K26) -> 0 | L27: 0 | M27: 0 | N27: 0 | O27: 0 | P27: 0 | Q27: 0 | R27: 0
A28: C. EQUIPMENT
A29: =+Jul!A29 -> Equipment | C29: =+Mar!C29 -> 0 | D29: =+Mar!D29 -> 0 | E29: =SUM(G29)+Apr!E29 -> 0 | F29: =SUM(H29)+Apr!F29 -> 0 | G29: =SUM(I29+K29+M29+O29+Q29) -> 0 | H29: =SUM(J29+L29+N29+P29+R29) -> 0 | T29: =+I29+Apr!T29 -> 0 | U29: =+J29+Apr!U29 -> 0 | V29: =+K29+Apr!V29 -> 0 | W29: =+L29+Apr!W29 -> 0 | X29: =+M29+Apr!X29 -> 0 | Y29: =+N29+Apr!Y29 -> 0 | Z29: =+O29+Apr!Z29 -> 0 | AA29: =+P29+Apr!AA29 -> 0 | AB29: =+Q29+Apr!AB29 -> 0 | AC29: =+R29+Apr!AC29 -> 0
A30: =+Mar!A30 -> 0 | C30: =+Mar!C30 -> 0 | D30: =+Mar!D30 -> 0 | E30: =SUM(G30)+Apr!E30 -> 0 | F30: =SUM(H30)+Apr!F30 -> 0 | G30: =SUM(I30+K30+M30+O30+Q30) -> 0 | H30: =SUM(J30+L30+N30+P30+R30) -> 0 | T30: =+I30+Apr!T30 -> 0 | U30: =+J30+Apr!U30 -> 0 | V30: =+K30+Apr!V30 -> 0 | W30: =+L30+Apr!W30 -> 0 | X30: =+M30+Apr!X30 -> 0 | Y30: =+N30+Apr!Y30 -> 0 | Z30: =+O30+Apr!Z30 -> 0 | AA30: =+P30+Apr!AA30 -> 0 | AB30: =+Q30+Apr!AB30 -> 0 | AC30: =+R30+Apr!AC30 -> 0
A31: Total Equipment: | C31: =SUM(C29:C30) -> 0 | D31: 0 | E31: 0 | F31: 0 | G31: 0 | H31: 0 | I31: 0 | J31: 0 | K31: =SUM(K29:K30) -> 0 | L31: 0 | M31: 0 | N31: 0 | O31: 0 | P31: 0 | Q31: 0 | R31: 0
A32: D. CONSULTANTS
A33: =+Mar!A33 -> Congregate or HDM Meals | C33: =+Mar!C33 -> 0 | D33: =+Mar!D33 -> 0 | E33: =SUM(G33)+Apr!E33 -> 0 | F33: =SUM(H33)+Apr!F33 -> 0 | G33: =SUM(I33+K33+M33+O33+Q33) -> 0 | H33: =SUM(J33+L33+N33+P33+R33) -> 0 | T33: =+I33+Apr!T33 -> 0 | U33: =+J33+Apr!U33 -> 0 | V33: =+K33+Apr!V33 -> 0 | W33: =+L33+Apr!W33 -> 0 | X33: =+M33+Apr!X33 -> 0 | Y33: =+N33+Apr!Y33 -> 0 | Z33: =+O33+Apr!Z33 -> 0 | AA33: =+P33+Apr!AA33 -> 0 | AB33: =+Q33+Apr!AB33 -> 0 | AC33: =+R33+Apr!AC33 -> 0
A34: =+Mar!A34 -> Food Share Delivery Cost | C34: =+Mar!C34 -> 0 | D34: =+Mar!D34 -> 0 | E34: =SUM(G34)+Apr!E34 -> 0 | F34: =SUM(H34)+Apr!F34 -> 0 | G34: =SUM(I34+K34+M34+O34+Q34) -> 0 | H34: =SUM(J34+L34+N34+P34+R34) -> 0 | T34: =+I34+Apr!T34 -> 0 | U34: =+J34+Apr!U34 -> 0 | V34: =+K34+Apr!V34 -> 0 | W34: =+L34+Apr!W34 -> 0 | X34: =+M34+Apr!X34 -> 0 | Y34: =+N34+Apr!Y34 -> 0 | Z34: =+O34+Apr!Z34 -> 0 | AA34: =+P34+Apr!AA34 -> 0 | AB34: =+Q34+Apr!AB34 -> 0 | AC34: =+R34+Apr!AC34 -> 0
A35: Total Consultants: | C35: =SUM(C33:C34) -> 0 | D35: 0 | E35: 0 | F35: 0 | G35: 0 | H35: 0 | I35: 0 | J35: 0 | K35: =SUM(K33:K34) -> 0 | L35: 0 | M35: 0 | N35: 0 | O35: 0 | P35: 0 | Q35: 0 | R35: 0
A36: E. FOOD COSTS (Senior Nutrition Program Only)
A37: =+Mar!A37 -> Food Cost | C37: =+Mar!C37 -> 0 | D37: =+Mar!D37 -> 0 | E37: =SUM(G37)+Apr!E37 -> 0 | F37: =SUM(H37)+Apr!F37 -> 0 | G37: =SUM(I37+K37+M37+O37+Q37) -> 0 | H37: =SUM(J37+L37+N37+P37+R37) -> 0 | T37: =+I37+Apr!T37 -> 0 | U37: =+J37+Apr!U37 -> 0 | V37: =+K37+Apr!V37 -> 0 | W37: =+L37+Apr!W37 -> 0 | X37: =+M37+Apr!X37 -> 0 | Y37: =+N37+Apr!Y37 -> 0 | Z37: =+O37+Apr!Z37 -> 0 | AA37: =+P37+Apr!AA37 -> 0 | AB37: =+Q37+Apr!AB37 -> 0 | AC37: =+R37+Apr!AC37 -> 0
A38: Total Food Costs: | C38: =+C37 -> 0 | D38: =+D37 -> 0 | E38: =SUM(E37:E37) -> 0 | F38: 0 | G38: 0 | H38: 0 | I38: 0 | J38: 0 | K38: =SUM(K37:K37) -> 0 | L38: 0 | M38: 0 | N38: 0 | O38: 0 | P38: 0 | Q38: 0 | R38: 0
A39: F. OTHER COSTS
A40: =+Mar!A40 -> Supplies:Non food(Bags,liners etc) | C40: =+Mar!C40 -> 0 | D40: =+Mar!D40 -> 0 | E40: =SUM(G40)+Apr!E40 -> 0 | F40: =SUM(H40)+Apr!F40 -> 0 | G40: =SUM(I40+K40+M40+O40+Q40) -> 0 | H40: =SUM(J40+L40+N40+P40+R40) -> 0 | T40: =+I40+Apr!T40 -> 0 | U40: =+J40+Apr!U40 -> 0 | V40: =+K40+Apr!V40 -> 0 | W40: =+L40+Apr!W40 -> 0 | X40: =+M40+Apr!X40 -> 0 | Y40: =+N40+Apr!Y40 -> 0 | Z40: =+O40+Apr!Z40 -> 0 | AA40: =+P40+Apr!AA40 -> 0 | AB40: =+Q40+Apr!AB40 -> 0 | AC40: =+R40+Apr!AC40 -> 0
A41: =+Mar!A41 -> Health permit | C41: =+Mar!C41 -> 0 | D41: =+Mar!D41 -> 0 | E41: =SUM(G41)+Apr!E41 -> 0 | F41: =SUM(H41)+Apr!F41 -> 0 | G41: 0 | H41: 0 | T41: =+I41+Apr!T41 -> 0 | U41: =+J41+Apr!U41 -> 0 | V41: =+K41+Apr!V41 -> 0 | W41: =+L41+Apr!W41 -> 0 | X41: =+M41+Apr!X41 -> 0 | Y41: =+N41+Apr!Y41 -> 0 | Z41: =+O41+Apr!Z41 -> 0 | AA41: =+P41+Apr!AA41 -> 0 | AB41: =+Q41+Apr!AB41 -> 0 | AC41: =+R41+Apr!AC41 -> 0
A42: =+Mar!A42 -> Rent | C42: =+Mar!C42 -> 0 | D42: =+Mar!D42 -> 0 | E42: =SUM(G42)+Apr!E42 -> 0 | F42: =SUM(H42)+Apr!F42 -> 0 | G42: 0 | H42: 0 | T42: =+I42+Apr!T42 -> 0 | U42: =+J42+Apr!U42 -> 0 | V42: =+K42+Apr!V42 -> 0 | W42: =+L42+Apr!W42 -> 0 | X42: =+M42+Apr!X42 -> 0 | Y42: =+N42+Apr!Y42 -> 0 | Z42: =+O42+Apr!Z42 -> 0 | AA42: =+P42+Apr!AA42 -> 0 | AB42: =+Q42+Apr!AB42 -> 0 | AC42: =+R42+Apr!AC42 -> 0
A43: =+Mar!A43 -> Program Publicity | C43: =+Mar!C43 -> 0 | D43: =+Mar!D43 -> 0 | E43: =SUM(G43)+Apr!E43 -> 0 | F43: =SUM(H43)+Apr!F43 -> 0 | G43: 0 | H43: 0 | T43: =+I43+Apr!T43 -> 0 | U43: =+J43+Apr!U43 -> 0 | V43: =+K43+Apr!V43 -> 0 | W43: =+L43+Apr!W43 -> 0 | X43: =+M43+Apr!X43 -> 0 | Y43: =+N43+Apr!Y43 -> 0 | Z43: =+O43+Apr!Z43 -> 0 | AA43: =+P43+Apr!AA43 -> 0 | AB43: =+Q43+Apr!AB43 -> 0 | AC43: =+R43+Apr!AC43 -> 0
A44: =+Mar!A44 -> Other | C44: =+Mar!C44 -> 0 | D44: =+Mar!D44 -> 0 | E44: =SUM(G44)+Apr!E44 -> 0 | F44: =SUM(H44)+Apr!F44 -> 0 | G44: =SUM(I44+K44+M44+O44+Q44) -> 0 | H44: =SUM(J44+L44+N44+P44+R44) -> 0 | T44: =+I44+Apr!T44 -> 0 | U44: =+J44+Apr!U44 -> 0 | V44: =+K44+Apr!V44 -> 0 | W44: =+L44+Apr!W44 -> 0 | X44: =+M44+Apr!X44 -> 0 | Y44: =+N44+Apr!Y44 -> 0 | Z44: =+O44+Apr!Z44 -> 0 | AA44: =+P44+Apr!AA44 -> 0 | AB44: =+Q44+Apr!AB44 -> 0 | AC44: =+R44+Apr!AC44 -> 0
A45: =+Mar!A45 -> Other | C45: =+Mar!C45 -> 0 | D45: =+Mar!D45 -> 0 | E45: =SUM(G45)+Apr!E45 -> 0 | F45: =SUM(H45)+Apr!F45 -> 0 | G45: =SUM(I45+K45+M45+O45+Q45) -> 0 | H45: =SUM(J45+L45+N45+P45+R45) -> 0 | T45: =+I45+Apr!T45 -> 0 | U45: =+J45+Apr!U45 -> 0 | V45: =+K45+Apr!V45 -> 0 | W45: =+L45+Apr!W45 -> 0 | X45: =+M45+Apr!X45 -> 0 | Y45: =+N45+Apr!Y45 -> 0 | Z45: =+O45+Apr!Z45 -> 0 | AA45: =+P45+Apr!AA45 -> 0 | AB45: =+Q45+Apr!AB45 -> 0 | AC45: =+R45+Apr!AC45 -> 0
A46: =+Mar!A46 -> Indirect Costs (no more than 10% of grant funds) | T46: =+I46+Apr!T46 -> 0 | U46: =+J46+Apr!U46 -> 0 | V46: =+K46+Apr!V46 -> 0 | W46: =+L46+Apr!W46 -> 0 | X46: =+M46+Apr!X46 -> 0 | Y46: =+N46+Apr!Y46 -> 0 | Z46: =+O46+Apr!Z46 -> 0 | AA46: =+P46+Apr!AA46 -> 0 | AB46: =+Q46+Apr!AB46 -> 0 | AC46: =+R46+Apr!AC46 -> 0
T47: =+I47+Apr!T47 -> 0 | U47: =+J47+Apr!U47 -> 0 | V47: =+K47+Apr!V47 -> 0 | W47: =+L47+Apr!W47 -> 0 | X47: =+M47+Apr!X47 -> 0 | Y47: =+N47+Apr!Y47 -> 0 | Z47: =+O47+Apr!Z47 -> 0 | AA47: =+P47+Apr!AA47 -> 0 | AB47: =+Q47+Apr!AB47 -> 0 | AC47: =+R47+Apr!AC47 -> 0
T48: =+I48+Apr!T48 -> 0 | U48: =+J48+Apr!U48 -> 0 | V48: =+K48+Apr!V48 -> 0 | W48: =+L48+Apr!W48 -> 0 | X48: =+M48+Apr!X48 -> 0 | Y48: =+N48+Apr!Y48 -> 0 | Z48: =+O48+Apr!Z48 -> 0 | AA48: =+P48+Apr!AA48 -> 0 | AB48: =+Q48+Apr!AB48 -> 0 | AC48: =+R48+Apr!AC48 -> 0
A49: =+Mar!A49 -> 0 | C49: =+Mar!C49 -> 0 | D49: =+Mar!D49 -> 0 | E49: =SUM(G49)+Apr!E49 -> 0 | F49: =SUM(H49)+Apr!F49 -> 0 | G49: 0 | H49: 0 | T49: =+I49+Apr!T49 -> 0 | U49: =+J49+Apr!U49 -> 0 | V49: =+K49+Apr!V49 -> 0 | W49: =+L49+Apr!W49 -> 0 | X49: =+M49+Apr!X49 -> 0 | Y49: =+N49+Apr!Y49 -> 0 | Z49: =+O49+Apr!Z49 -> 0 | AA49: =+P49+Apr!AA49 -> 0 | AB49: =+Q49+Apr!AB49 -> 0 | AC49: =+R49+Apr!AC49 -> 0
A50: Total Other Costs: | C50: =SUM(C40:C49) -> 0 | D50: 0 | E50: 0 | F50: 0 | G50: 0 | H50: 0 | I50: 0 | J50: 0 | K50: 0 | L50: 0 | M50: 0 | N50: 0 | O50: 0 | P50: 0 | Q50: 0 | R50: 0
A52: 1. Current Month Total | G52: =SUM(G50,G38,G35,G31,G27,G22) -> 0 | H52: 0 | I52: 0 | J52: 0 | K52: 0 | L52: 0 | M52: 0 | N52: 0 | O52: 0 | P52: 0 | Q52: 0 | R52: 0
A53: 2. Year-to-Date Total** | C53: =+C50+C38+C35+C31+C27+C22 -> 0 | D53: =+D50+D38+D35+D31+D27+D22 -> 0 | E53: =+E22+E27+E31+E35+E38+E50 -> 0 | F53: =+F22+F27+F31+F35+F38+F50 -> 0 | I53: =+I52+Apr!I53 -> 0 | J53: =+J52+Apr!J53 -> 0 | K53: =+K52+Apr!K53 -> 0 | L53: =+L52+Apr!L53 -> 0 | M53: =+M52+Apr!M53 -> 0 | N53: =+N52+Apr!N53 -> 0 | O53: =+O52+Apr!O53 -> 0 | P53: =+P52+Apr!P53 -> 0 | Q53: =+Q52+Apr!Q53 -> 0 | R53: =+R52+Apr!R53 -> 0 | T53: =SUM(T13:T52) -> 0 | U53: =SUM(U13:U52) -> 0 | V53: 0 | W53: 0 | X53: 0 | Y53: 0 | Z53: 0 | AA53: 0 | AB53: 0 | AC53: 0
A54: 3. Grant Funds Remaining | I54: =+I8-I67 -> 0 | J54: =+J8-J67 -> 0 | K54: =+I54+J54 -> 0 | T54: =+T53/P1 ->  | U54: =+U53/R1 -> 
A55: EQUIPMENT INFO | I55: Date Acquired | N55: Equipment Location | T55: =+T53+U53 -> 0
A58: *Equipment is property of the VCAAA/CDA. Consult VCAAA Contractor Manual for more information
A59: I hereby certify that the above figures and attached expenditure report are accurate to the best of my knowledge.
A60: Prepared By: | F60: Signature: | K60: Date: | P60: Title | Q60: Accounting Manager
A62: Authorized By: | F62: Signature: | P62: Title
A64: AAA USE ONLY
A65: Grants Management Approval | G65: Amount Requested - Month | I65: =+I52 -> 0 | J65: =+J52 -> 0 | K65: =+I65+J65 -> 0 | L65: Date Received | P65: Fiscal Approval
G66: Amount Approved - Month | I66: =+I65 -> 0 | J66: =+J65 -> 0 | K66: =+I66+J66 -> 0
G67: Amount Approved - YTD | I67: =+I66+Apr!I67 -> 0 | J67: =+J66+Apr!J67 -> 0 | K67: =+I67+J67 -> 0
J69: Check total: | K69: =+K67+K54 -> 0

Sheet Jun (hidden)
A1: =+May!A1 -> Contractor Name: | B1: =+May!B1 -> Agency Name | E1: Month: | F1: =+May!F1+30 -> 2021-06-04 | I1: PO# | J1: =+May!J1 -> 0 | M1: GRANT AWARD AMOUNT: | O1: C1: | P1: =+Budget!Z40 -> 0 | Q1: C2: | R1: =+Budget!AA40 -> 0
A2: =+May!A2 -> Project Name: | B2: =+Budget!B1 -> VCAAA Senior Nutrition Program | E2: Grant#: | F2: =+May!F2 -> 0 | I2: Contact: | J2: =+May!J2 -> First Last | L2: =+May!L2 -> Phone: | M2: =+May!M2 -> (XXX) XXX-XXXX | P2: Total C: | R2: =+P1+R1 -> 0
I3: Address: | J3: =+May!J3 -> Street Address, City, CA 93XXX
A4: Number of Meals Served | C4: C1 | D4: C2
B5: Month | I5: Current Month Expenditures by Funding Source
B6: YTD | C6: =+C5+May!C6 -> 0 | D6: =+D5+May!D6 -> 0 | T6: YTD
A7: Item Description | C7: Authorized Budget by Allocation C1 | D7: Authorized Budget by Allocation C2 | E7: YTD Actual Expenses C1 | F7: YTD Actual Expenses C2 | G7: Total Current Month Expenses C1 | H7: Total Current Month Expenses C2 | I7: Grant Share C1 | J7: Grant Share C2 | K7: Cash Match C1 | L7: Cash Match C2 | M7: In-Kind Match C1 | N7: In-Kind Match C2 | O7: Program Income C1 | P7: Program Income C2 | Q7: Cash Non-Match C1 | R7: Cash Non-Match C2 | T7: Grant Share C1 | U7: Grant Share C2 | V7: Cash Match C1 | W7: Cash Match C2 | X7: In-Kind Match C1 | Y7: In-Kind Match C2 | Z7: Program Income C1 | AA7: Program Income C2 | AB7: Cash Non-Match C1 | AC7: Cash Non-Match C2
A8: APPROVED BUDGET | C8: =+May!C8 -> 0 | D8: =+May!D8 -> 0 | E8: =+E53 -> 0 | F8: =+F53 -> 0 | G8: =+G52 -> 0 | H8: =+H52 -> 0 | I8: =+P1 -> 0 | J8: =+R1 -> 0 | K8: =+Budget!Z34 -> 0 | L8: =+Budget!AA34 -> 0 | M8: =+Budget!Z35 -> 0 | N8: =+Budget!AA35 -> 0 | O8: =+Budget!Z38 -> 0 | P8: =+Budget!AA39 -> 0 | Q8: =+Budget!Z36 -> 0 | R8: =+Jul!R9 -> 0
A9: % OF TOTAL | C9: =IFERROR(+C$8/($C8+$D8),0) -> 0 | D9: =IFERROR(+D$8/($C8+$D8),0) -> 0
A10: TOTAL BUDGET | C10: =+C8+D8 -> 0 | H10: ACT YTD--> | I10: =+I52 -> 0 | J10: =+J52 -> 0 | K10: =+K52 -> 0 | L10: 0 | M10: 0 | N10: 0 | O10: 0 | P10: 0 | Q10: 0 | R10: 0
A12: A. PERSONNEL (Title / Name)
A13: =+May!A13 -> Admin/Fiscal | B13: =+Jul!B13 -> Position Title $XX.XX/hr | C13: =+May!C13 -> 0 | D13: =+May!D13 -> 0 | E13: =SUM(G13)+May!E13 -> 0 | F13: =SUM(H13)+May!F13 -> 0 | G13: =SUM(I13+K13+M13+O13+Q13) -> 0 | H13: =SUM(J13+L13+N13+P13+R13) -> 0 | T13: =+I13+May!T13 -> 0 | U13: =+J13+May!U13 -> 0 | V13: =+K13+May!V13 -> 0 | W13: =+L13+May!W13 -> 0 | X13: =+M13+May!X13 -> 0 | Y13: =+N13+May!Y13 -> 0 | Z13: =+O13+May!Z13 -> 0 | AA13: =+P13+May!AA13 -> 0 | AB13: =+Q13+May!AB13 -> 0 | AC13: =+R13+May!AC13 -> 0
A14: =+May!A14 -> Site/ HDM/MOW Coordinator | B14: =+Jul!B14 -> Position Title $XX.XX/hr | C14: =+May!C14 -> 0 | D14: =+May!D14 -> 0 | E14: =SUM(G14)+May!E14 -> 0 | F14: =SUM(H14)+May!F14 -> 0 | G14: =SUM(I14+K14+M14+O14+Q14) -> 0 | H14: 0 | T14: =+I14+May!T14 -> 0 | U14: =+J14+May!U14 -> 0 | V14: =+K14+May!V14 -> 0 | W14: =+L14+May!W14 -> 0 | X14: =+M14+May!X14 -> 0 | Y14: =+N14+May!Y14 -> 0 | Z14: =+O14+May!Z14 -> 0 | AA14: =+P14+May!AA14 -> 0 | AB14: =+Q14+May!AB14 -> 0 | AC14: =+R14+May!AC14 -> 0
A15: =+May!A15 -> Cook | B15: =+Jul!B15 -> Position Title $XX.XX/hr | C15: =+May!C15 -> 0 | D15: =+May!D15 -> 0 | E15: =SUM(G15)+May!E15 -> 0 | F15: =SUM(H15)+May!F15 -> 0 | G15: 0 | H15: 0 | T15: =+I15+May!T15 -> 0 | U15: =+J15+May!U15 -> 0 | V15: =+K15+May!V15 -> 0 | W15: =+L15+May!W15 -> 0 | X15: =+M15+May!X15 -> 0 | Y15: =+N15+May!Y15 -> 0 | Z15: =+O15+May!Z15 -> 0 | AA15: =+P15+May!AA15 -> 0 | AB15: =+Q15+May!AB15 -> 0 | AC15: =+R15+May!AC15 -> 0
A16: =+May!A16 -> Volunteers: | B16: =+Jul!B16 -> Position Title $XX.XX/hr | C16: =+May!C16 -> 0 | D16: =+May!D16 -> 0 | E16: =SUM(G16)+May!E16 -> 0 | F16: =SUM(H16)+May!F16 -> 0 | G16: 0 | H16: 0 | T16: =+I16+May!T16 -> 0 | U16: =+J16+May!U16 -> 0 | V16: =+K16+May!V16 -> 0 | W16: =+L16+May!W16 -> 0 | X16: =+M16+May!X16 -> 0 | Y16: =+N16+May!Y16 -> 0 | Z16: =+O16+May!Z16 -> 0 | AA16: =+P16+May!AA16 -> 0 | AB16: =+Q16+May!AB16 -> 0 | AC16: =+R16+May!AC16 -> 0
A17: =+May!A17 -> Volunteers: | B17: =+Jul!B17 -> Position Title $XX.XX/hr | C17: =+May!C17 -> 0 | D17: =+May!D17 -> 0 | E17: =SUM(G17)+May!E17 -> 0 | F17: =SUM(H17)+May!F17 -> 0 | G17: 0 | H17: 0 | T17: =+I17+May!T17 -> 0 | U17: =+J17+May!U17 -> 0 | V17: =+K17+May!V17 -> 0 | W17: =+L17+May!W17 -> 0 | X17: =+M17+May!X17 -> 0 | Y17: =+N17+May!Y17 -> 0 | Z17: =+O17+May!Z17 -> 0 | AA17: =+P17+May!AA17 -> 0 | AB17: =+Q17+May!AB17 -> 0 | AC17: =+R17+May!AC17 -> 0
A18: Volunteers | B18: =+Jul!B18 -> 0 | C18: =+May!C18 -> 0 | D18: =+May!D18 -> 0 | E18: =SUM(G18)+May!E18 -> 0 | F18: =SUM(H18)+May!F18 -> 0 | G18: =M18 -> 0 | T18: =+I18+May!T18 -> 0 | U18: =+J18+May!U18 -> 0 | V18: =+K18+May!V18 -> 0 | W18: =+L18+May!W18 -> 0 | X18: =+M18+May!X18 -> 0 | Y18: =+N18+May!Y18 -> 0 | Z18: =+O18+May!Z18 -> 0 | AA18: =+P18+May!AA18 -> 0 | AB18: =+Q18+May!AB18 -> 0 | AC18: =+R18+May!AC18 -> 0
A19: Volunteers | B19: =+Jul!B19 -> 0 | C19: =+May!C19 -> 0 | D19: =+May!D19 -> 0 | E19: =SUM(G19)+May!E19 -> 0 | F19: =SUM(H19)+May!F19 -> 0 | G19: =M19 -> 0 | H19: =N19 -> 0 | T19: =+I19+May!T19 -> 0 | U19: =+J19+May!U19 -> 0 | V19: =+K19+May!V19 -> 0 | W19: =+L19+May!W19 -> 0 | X19: =+M19+May!X19 -> 0 | Y19: =+N19+May!Y19 -> 0 | Z19: =+O19+May!Z19 -> 0 | AA19: =+P19+May!AA19 -> 0 | AB19: =+Q19+May!AB19 -> 0 | AC19: =+R19+May!AC19 -> 0
A20: =+May!A20 -> 0 | B20: =+Jul!B20 -> 0 | C20: =+May!C20 -> 0 | D20: =+May!D20 -> 0 | E20: =SUM(G20)+May!E20 -> 0 | F20: =SUM(H20)+May!F20 -> 0 | G20: =SUM(I20+K20+M20+O20+Q20) -> 0 | H20: =N20 -> 0 | T20: =+I20+May!T20 -> 0 | U20: =+J20+May!U20 -> 0 | V20: =+K20+May!V20 -> 0 | W20: =+L20+May!W20 -> 0 | X20: =+M20+May!X20 -> 0 | Y20: =+N20+May!Y20 -> 0 | Z20: =+O20+May!Z20 -> 0 | AA20: =+P20+May!AA20 -> 0 | AB20: =+Q20+May!AB20 -> 0 | AC20: =+R20+May!AC20 -> 0
A21: =+May!A21 -> 0 | B21: =+Jul!B21 -> 0 | C21: =+May!C21 -> 0 | D21: =+May!D21 -> 0 | E21: =SUM(G21)+May!E21 -> 0 | F21: =SUM(H21)+May!F21 -> 0 | G21: 0 | H21: 0 | T21: =+I21+May!T21 -> 0 | U21: =+J21+May!U21 -> 0 | V21: =+K21+May!V21 -> 0 | W21: =+L21+May!W21 -> 0 | X21: =+M21+May!X21 -> 0 | Y21: =+N21+May!Y21 -> 0 | Z21: =+O21+May!Z21 -> 0 | AA21: =+P21+May!AA21 -> 0 | AB21: =+Q21+May!AB21 -> 0 | AC21: =+R21+May!AC21 -> 0
A22: Total Personnel: | C22: =SUM(C13:C21) -> 0 | D22: 0 | E22: 0 | F22: 0 | G22: 0 | H22: 0 | I22: =SUM(I13:I21) -> 0 | J22: 0 | K22: 0 | L22: 0 | M22: 0 | N22: 0 | O22: 0 | P22: 0 | Q22: 0 | R22: 0
A23: B. TRAVEL & TRAINING
A24: =+May!A24 -> Travel/Mileage | C24: =+May!C24 -> 0 | D24: =+May!D24 -> 0 | E24: =SUM(G24)+May!E24 -> 0 | F24: =SUM(H24)+May!F24 -> 0 | G24: =SUM(I24+K24+M24+O24+Q24) -> 0 | H24: 0 | T24: =+I24+May!T24 -> 0 | U24: =+J24+May!U24 -> 0 | V24: =+K24+May!V24 -> 0 | W24: =+L24+May!W24 -> 0 | X24: =+M24+May!X24 -> 0 | Y24: =+N24+May!Y24 -> 0 | Z24: =+O24+May!Z24 -> 0 | AA24: =+P24+May!AA24 -> 0 | AB24: =+Q24+May!AB24 -> 0 | AC24: =+R24+May!AC24 -> 0
A25: =+May!A25 -> Training | C25: =+May!C25 -> 0 | D25: =+May!D25 -> 0 | E25: =SUM(G25)+May!E25 -> 0 | F25: =SUM(H25)+May!F25 -> 0 | G25: 0 | H25: 0 | T25: =+I25+May!T25 -> 0 | U25: =+J25+May!U25 -> 0 | V25: =+K25+May!V25 -> 0 | W25: =+L25+May!W25 -> 0 | X25: =+M25+May!X25 -> 0 | Y25: =+N25+May!Y25 -> 0 | Z25: =+O25+May!Z25 -> 0 | AA25: =+P25+May!AA25 -> 0 | AB25: =+Q25+May!AB25 -> 0 | AC25: =+R25+May!AC25 -> 0
A26: =+May!A26 -> 0 | C26: =+May!C26 -> 0 | D26: =+May!D26 -> 0 | E26: =SUM(G26)+May!E26 -> 0 | F26: =SUM(H26)+May!F26 -> 0 | G26: 0 | H26: 0 | T26: =+I26+May!T26 -> 0 | U26: =+J26+May!U26 -> 0 | V26: =+K26+May!V26 -> 0 | W26: =+L26+May!W26 -> 0 | X26: =+M26+May!X26 -> 0 | Y26: =+N26+May!Y26 -> 0 | Z26: =+O26+May!Z26 -> 0 | AA26: =+P26+May!AA26 -> 0 | AB26: =+Q26+May!AB26 -> 0 | AC26: =+R26+May!AC26 -> 0
A27: Total Travel & Training: | C27: =SUM(C24:C26) -> 0 | D27: 0 | E27: 0 | F27: 0 | G27: 0 | H27: 0 | I27: 0 | J27: 0 | K27: =SUM(K24:K26) -> 0 | L27: 0 | M27: 0 | N27: 0 | O27: 0 | P27: 0 | Q27: 0 | R27: 0
A28: C. EQUIPMENT
A29: =+May!A29 -> Equipment | C29: =+May!C29 -> 0 | D29: =+May!D29 -> 0 | E29: =SUM(G29)+May!E29 -> 0 | F29: =SUM(H29)+May!F29 -> 0 | G29: =SUM(I29+K29+M29+O29+Q29) -> 0 | H29: =SUM(J29+L29+N29+P29+R29) -> 0 | T29: =+I29+May!T29 -> 0 | U29: =+J29+May!U29 -> 0 | V29: =+K29+May!V29 -> 0 | W29: =+L29+May!W29 -> 0 | X29: =+M29+May!X29 -> 0 | Y29: =+N29+May!Y29 -> 0 | Z29: =+O29+May!Z29 -> 0 | AA29: =+P29+May!AA29 -> 0 | AB29: =+Q29+May!AB29 -> 0 | AC29: =+R29+May!AC29 -> 0
A30: =+May!A30 -> 0 | C30: =+May!C30 -> 0 | D30: =+May!D30 -> 0 | E30: =SUM(G30)+May!E30 -> 0 | F30: =SUM(H30)+May!F30 -> 0 | G30: =SUM(I30+K30+M30+O30+Q30) -> 0 | H30: =SUM(J30+L30+N30+P30+R30) -> 0 | T30: =+I30+May!T30 -> 0 | U30: =+J30+May!U30 -> 0 | V30: =+K30+May!V30 -> 0 | W30: =+L30+May!W30 -> 0 | X30: =+M30+May!X30 -> 0 | Y30: =+N30+May!Y30 -> 0 | Z30: =+O30+May!Z30 -> 0 | AA30: =+P30+May!AA30 -> 0 | AB30: =+Q30+May!AB30 -> 0 | AC30: =+R30+May!AC30 -> 0
A31: Total Equipment: | C31: =SUM(C29:C30) -> 0 | D31: =SUM(D29:D30) -> 0 | E31: =SUM(E29:E30) -> 0 | F31: =SUM(F29:F30) -> 0 | G31: =SUM(G29:G30) -> 0 | H31: 0 | I31: 0 | J31: 0 | K31: 0 | L31: 0 | M31: 0 | N31: 0 | O31: 0 | P31: 0 | Q31: 0 | R31: 0
A32: D. CONSULTANTS
A33: =+May!A33 -> Congregate or HDM Meals | C33: =+May!C33 -> 0 | D33: =+May!D33 -> 0 | E33: =SUM(G33)+May!E33 -> 0 | F33: =SUM(H33)+May!F33 -> 0 | G33: =SUM(I33+K33+M33+O33+Q33) -> 0 | H33: =SUM(J33+L33+N33+P33+R33) -> 0 | T33: =+I33+May!T33 -> 0 | U33: =+J33+May!U33 -> 0 | V33: =+K33+May!V33 -> 0 | W33: =+L33+May!W33 -> 0 | X33: =+M33+May!X33 -> 0 | Y33: =+N33+May!Y33 -> 0 | Z33: =+O33+May!Z33 -> 0 | AA33: =+P33+May!AA33 -> 0 | AB33: =+Q33+May!AB33 -> 0 | AC33: =+R33+May!AC33 -> 0
A34: =+May!A34 -> Food Share Delivery Cost | C34: =+May!C34 -> 0 | D34: =+May!D34 -> 0 | E34: =SUM(G34)+May!E34 -> 0 | F34: =SUM(H34)+May!F34 -> 0 | G34: =SUM(I34+K34+M34+O34+Q34) -> 0 | H34: =SUM(J34+L34+N34+P34+R34) -> 0 | T34: =+I34+May!T34 -> 0 | U34: =+J34+May!U34 -> 0 | V34: =+K34+May!V34 -> 0 | W34: =+L34+May!W34 -> 0 | X34: =+M34+May!X34 -> 0 | Y34: =+N34+May!Y34 -> 0 | Z34: =+O34+May!Z34 -> 0 | AA34: =+P34+May!AA34 -> 0 | AB34: =+Q34+May!AB34 -> 0 | AC34: =+R34+May!AC34 -> 0
A35: Total Consultants: | C35: =SUM(C33:C34) -> 0 | D35: 0 | E35: 0 | F35: 0 | G35: 0 | H35: 0 | I35: 0 | J35: 0 | K35: =SUM(K33:K34) -> 0 | L35: 0 | M35: 0 | N35: 0 | O35: 0 | P35: 0 | Q35: 0 | R35: 0
A36: E. FOOD COSTS (Senior Nutrition Program Only)
A37: =+May!A37 -> Food Cost | C37: =+May!C37 -> 0 | D37: =+May!D37 -> 0 | E37: =SUM(G37)+May!E37 -> 0 | F37: =SUM(H37)+May!F37 -> 0 | G37: =SUM(I37+K37+M37+O37+Q37) -> 0 | H37: =SUM(J37+L37+N37+P37+R37) -> 0 | T37: =+I37+May!T37 -> 0 | U37: =+J37+May!U37 -> 0 | V37: =+K37+May!V37 -> 0 | W37: =+L37+May!W37 -> 0 | X37: =+M37+May!X37 -> 0 | Y37: =+N37+May!Y37 -> 0 | Z37: =+O37+May!Z37 -> 0 | AA37: =+P37+May!AA37 -> 0 | AB37: =+Q37+May!AB37 -> 0 | AC37: =+R37+May!AC37 -> 0
A38: Total Food Costs: | C38: =+C37 -> 0 | D38: =+D37 -> 0 | E38: =SUM(E37:E37) -> 0 | F38: 0 | G38: 0 | H38: 0 | I38: 0 | J38: 0 | K38: =SUM(K37:K37) -> 0 | L38: 0 | M38: 0 | N38: 0 | O38: 0 | P38: 0 | Q38: 0 | R38: 0
A39: F. OTHER COSTS
A40: =+May!A40 -> Supplies:Non food(Bags,liners etc) | C40: =+May!C40 -> 0 | D40: =+May!D40 -> 0 | E40: =SUM(G40)+May!E40 -> 0 | F40: =SUM(H40)+May!F40 -> 0 | G40: =SUM(I40+K40+M40+O40+Q40) -> 0 | H40: =SUM(J40+L40+N40+P40+R40) -> 0 | T40: =+I40+May!T40 -> 0 | U40: =+J40+May!U40 -> 0 | V40: =+K40+May!V40 -> 0 | W40: =+L40+May!W40 -> 0 | X40: =+M40+May!X40 -> 0 | Y40: =+N40+May!Y40 -> 0 | Z40: =+O40+May!Z40 -> 0 | AA40: =+P40+May!AA40 -> 0 | AB40: =+Q40+May!AB40 -> 0 | AC40: =+R40+May!AC40 -> 0
A41: =+May!A41 -> Health permit | C41: =+May!C41 -> 0 | D41: =+May!D41 -> 0 | E41: =SUM(G41)+May!E41 -> 0 | F41: =SUM(H41)+May!F41 -> 0 | G41: 0 | H41: 0 | T41: =+I41+May!T41 -> 0 | U41: =+J41+May!U41 -> 0 | V41: =+K41+May!V41 -> 0 | W41: =+L41+May!W41 -> 0 | X41: =+M41+May!X41 -> 0 | Y41: =+N41+May!Y41 -> 0 | Z41: =+O41+May!Z41 -> 0 | AA41: =+P41+May!AA41 -> 0 | AB41: =+Q41+May!AB41 -> 0 | AC41: =+R41+May!AC41 -> 0
A42: =+May!A42 -> Rent | C42: =+May!C42 -> 0 | D42: =+May!D42 -> 0 | E42: =SUM(G42)+May!E42 -> 0 | F42: =SUM(H42)+May!F42 -> 0 | G42: 0 | H42: 0 | T42: =+I42+May!T42 -> 0 | U42: =+J42+May!U42 -> 0 | V42: =+K42+May!V42 -> 0 | W42: =+L42+May!W42 -> 0 | X42: =+M42+May!X42 -> 0 | Y42: =+N42+May!Y42 -> 0 | Z42: =+O42+May!Z42 -> 0 | AA42: =+P42+May!AA42 -> 0 | AB42: =+Q42+May!AB42 -> 0 | AC42: =+R42+May!AC42 -> 0
A43: =+May!A43 -> Program Publicity | C43: =+May!C43 -> 0 | D43: =+May!D43 -> 0 | E43: =SUM(G43)+May!E43 -> 0 | F43: =SUM(H43)+May!F43 -> 0 | G43: 0 | H43: 0 | T43: =+I43+May!T43 -> 0 | U43: =+J43+May!U43 -> 0 | V43: =+K43+May!V43 -> 0 | W43: =+L43+May!W43 -> 0 | X43: =+M43+May!X43 -> 0 | Y43: =+N43+May!Y43 -> 0 | Z43: =+O43+May!Z43 -> 0 | AA43: =+P43+May!AA43 -> 0 | AB43: =+Q43+May!AB43 -> 0 | AC43: =+R43+May!AC43 -> 0
A44: =+May!A44 -> Other | C44: =+May!C44 -> 0 | D44: =+May!D44 -> 0 | E44: =SUM(G44)+May!E44 -> 0 | F44: =SUM(H44)+May!F44 -> 0 | G44: =SUM(I44+K44+M44+O44+Q44) -> 0 | H44: =SUM(J44+L44+N44+P44+R44) -> 0 | T44: =+I44+May!T44 -> 0 | U44: =+J44+May!U44 -> 0 | V44: =+K44+May!V44 -> 0 | W44: =+L44+May!W44 -> 0 | X44: =+M44+May!X44 -> 0 | Y44: =+N44+May!Y44 -> 0 | Z44: =+O44+May!Z44 -> 0 | AA44: =+P44+May!AA44 -> 0 | AB44: =+Q44+May!AB44 -> 0 | AC44: =+R44+May!AC44 -> 0
A45: =+May!A45 -> Other | C45: =+May!C45 -> 0 | D45: =+May!D45 -> 0 | E45: =SUM(G45)+May!E45 -> 0 | F45: =SUM(H45)+May!F45 -> 0 | G45: =SUM(I45+K45+M45+O45+Q45) -> 0 | H45: =SUM(J45+L45+N45+P45+R45) -> 0 | T45: =+I45+May!T45 -> 0 | U45: =+J45+May!U45 -> 0 | V45: =+K45+May!V45 -> 0 | W45: =+L45+May!W45 -> 0 | X45: =+M45+May!X45 -> 0 | Y45: =+N45+May!Y45 -> 0 | Z45: =+O45+May!Z45 -> 0 | AA45: =+P45+May!AA45 -> 0 | AB45: =+Q45+May!AB45 -> 0 | AC45: =+R45+May!AC45 -> 0
A46: =+May!A46 -> Indirect Costs (no more than 10% of grant funds) | T46: =+I46+May!T46 -> 0 | U46: =+J46+May!U46 -> 0 | V46: =+K46+May!V46 -> 0 | W46: =+L46+May!W46 -> 0 | X46: =+M46+May!X46 -> 0 | Y46: =+N46+May!Y46 -> 0 | Z46: =+O46+May!Z46 -> 0 | AA46: =+P46+May!AA46 -> 0 | AB46: =+Q46+May!AB46 -> 0 | AC46: =+R46+May!AC46 -> 0
T47: =+I47+May!T47 -> 0 | U47: =+J47+May!U47 -> 0 | V47: =+K47+May!V47 -> 0 | W47: =+L47+May!W47 -> 0 | X47: =+M47+May!X47 -> 0 | Y47: =+N47+May!Y47 -> 0 | Z47: =+O47+May!Z47 -> 0 | AA47: =+P47+May!AA47 -> 0 | AB47: =+Q47+May!AB47 -> 0 | AC47: =+R47+May!AC47 -> 0
T48: =+I48+May!T48 -> 0 | U48: =+J48+May!U48 -> 0 | V48: =+K48+May!V48 -> 0 | W48: =+L48+May!W48 -> 0 | X48: =+M48+May!X48 -> 0 | Y48: =+N48+May!Y48 -> 0 | Z48: =+O48+May!Z48 -> 0 | AA48: =+P48+May!AA48 -> 0 | AB48: =+Q48+May!AB48 -> 0 | AC48: =+R48+May!AC48 -> 0
A49: =+May!A49 -> 0 | C49: =+May!C49 -> 0 | D49: =+May!D49 -> 0 | E49: =SUM(G49)+May!E49 -> 0 | F49: =SUM(H49)+May!F49 -> 0 | G49: 0 | H49: 0 | T49: =+I49+May!T49 -> 0 | U49: =+J49+May!U49 -> 0 | V49: =+K49+May!V49 -> 0 | W49: =+L49+May!W49 -> 0 | X49: =+M49+May!X49 -> 0 | Y49: =+N49+May!Y49 -> 0 | Z49: =+O49+May!Z49 -> 0 | AA49: =+P49+May!AA49 -> 0 | AB49: =+Q49+May!AB49 -> 0 | AC49: =+R49+May!AC49 -> 0
A50: Total Other Costs: | C50: =SUM(C40:C49) -> 0 | D50: 0 | E50: 0 | F50: 0 | G50: 0 | H50: 0 | I50: 0 | J50: 0 | K50: 0 | L50: 0 | M50: 0 | N50: 0 | O50: 0 | P50: 0 | Q50: 0 | R50: 0
A52: 1. Current Month Total | G52: =SUM(G50,G38,G35,G31,G27,G22) -> 0 | H52: 0 | I52: 0 | J52: 0 | K52: 0 | L52: 0 | M52: 0 | N52: 0 | O52: 0 | P52: 0 | Q52: 0 | R52: 0
A53: 2. Year-to-Date Total** | C53: =+C50+C38+C35+C31+C27+C22 -> 0 | D53: =+D50+D38+D35+D31+D27+D22 -> 0 | E53: =+E22+E27+E31+E35+E38+E50 -> 0 | F53: =+F22+F27+F31+F35+F38+F50 -> 0 | I53: =+I52+May!I53 -> 0 | J53: =+J52+May!J53 -> 0 | K53: =+K52+May!K53 -> 0 | L53: =+L52+May!L53 -> 0 | M53: =+M52+May!M53 -> 0 | N53: =+N52+May!N53 -> 0 | O53: =+O52+May!O53 -> 0 | P53: =+P52+May!P53 -> 0 | Q53: =+Q52+May!Q53 -> 0 | R53: =+R52+May!R53 -> 0 | T53: =SUM(T13:T52) -> 0 | U53: =SUM(U13:U52) -> 0 | V53: 0 | W53: 0 | X53: 0 | Y53: 0 | Z53: 0 | AA53: 0 | AB53: 0 | AC53: 0
A54: 3. Grant Funds Remaining | I54: =+I8-I67 -> 0 | J54: =+J8-J67 -> 0 | K54: =+I54+J54 -> 0 | T54: =+T53/P1 ->  | U54: =+U53/R1 -> 
A55: EQUIPMENT INFO | I55: Date Acquired | N55: Equipment Location | T55: =+T53+U53 -> 0
A56: 1500 | B56: 1500
A58: *Equipment is property of the VCAAA. Consult VCAAA Contractor Manual for more information
A59: I hereby certify that the above figures and attached expenditure report are accurate to the best of my knowledge.
A60: Prepared By: | F60: Signature: | K60: Date: | P60: Title
A62: Authorized By: | F62: Signature: | P62: Title
A64: AAA USE ONLY
A65: Grants Management Approval | G65: Amount Requested - Month | I65: =+I52 -> 0 | J65: =+J52 -> 0 | K65: =+I65+J65 -> 0 | L65: Date Received | P65: Fiscal Approval
G66: Amount Approved - Month | I66: =+I65 -> 0 | J66: =+J65 -> 0 | K66: =+I66+J66 -> 0
G67: Amount Approved - YTD | I67: =+I66+May!I67 -> 0 | J67: =+J66+May!J67 -> 0 | K67: =+I67+J67 -> 0
J69: Check total: | K69: =+K67+K54 -> 0

Sheet CloseOut (hidden)
A1: =+May!A1 -> Contractor Name: | B1: =+May!B1 -> Agency Name | E1: Month: | F1: =+May!F1+30 -> 2021-06-04 | I1: PO# | J1: =+Jun!J1 -> 0 | M1: GRANT AWARD AMOUNT: | O1: C1: | P1: =+Budget!Z40 -> 0 | Q1: C2: | R1: =+Budget!AA40 -> 0
A2: =+May!A2 -> Project Name: | B2: =+Budget!B1 -> VCAAA Senior Nutrition Program | E2: Grant#: | F2: =+Jun!F2 -> 0 | I2: Contact: | J2: =+Jun!J2 -> First Last | L2: =+May!L2 -> Phone: | M2: =+Jun!M2 -> (XXX) XXX-XXXX | O2: Total Award: | R2: =+P1+R1 -> 0
I3: =+Jun!I3 -> Address: | J3: =+Jun!J3 -> Street Address, City, CA 93XXX
M4: TOTAL PROJECT COST | Q4: =+E15+F15 -> 0
M5: LESS: NON-MATCH | Q5: =+Q17+R17 -> 0
M6: COSTS TO BE MATCHED | Q6: =+Q4-Q5 -> 0
A7: Number of Meals Served | C7: C1 | D7: C2 | E7: Total | M7: MATCHING CASH | P7: =+K17+L17 -> 0
B8: Actual YTD | C8: =+Jun!C6 -> 0 | D8: =+Jun!D6 -> 0 | E8: =+C8+D8 -> 0 | M8: MATCHING IN-KIND | P8: =+M17+N17 -> 0
B9: Budgeted | C9: =+Budget!C6 -> 1000 | D9: =+Budget!M6 -> 1000 | E9: =+C9+D9 -> 2000 | M9: PROGRAM INCOME | P9: =+O17+P17 -> 0 | Q9: =SUM(P7:P9) -> 0
M10: GRANT FUNDS REIMBURSED | Q10: =+Q6-Q9 -> 0 | R10: =IFERROR(+Q10/R2,0) -> 0
M11: GRANT SHARE REMAINING | Q11: =+R2-Q10 -> 0
G13: Expenditures | T13: YTD
A14: Item Description | C14: Authorized Budget by Allocation C1 | D14: Authorized Budget by Allocation C2 | E14: Total Expenditures C1 | F14: Total Expenditures C2 | G14: Additional Close-out Expenses - C1 | H14: Additional Close-out Expenses - C2 | I14: Grant Share C1 | J14: Grant Share C2 | K14: Cash Match C1 | L14: Cash Match C2 | M14: In-Kind Match C1 | N14: In-Kind Match C2 | O14: Program Income C1 | P14: Program Income C2 | Q14: Cash Non-Match C1 | R14: Cash Non-Match C2 | T14: Grant Share C1 | U14: Grant Share C2 | V14: Cash Match C1 | W14: Cash Match C2 | X14: In-Kind Match C1 | Y14: In-Kind Match C2 | Z14: Program Income C1 | AA14: Program Income C2 | AB14: Cash Non-Match C1 | AC14: Cash Non-Match C2
A15: APPROVED BUDGET | C15: =+Jun!C8 -> 0 | D15: =+Jun!D8 -> 0 | E15: =+E56 -> 0 | F15: =+F56 -> 0 | I15: =+P1 -> 0 | J15: =+R1 -> 0 | K15: =+Budget!Z34 -> 0 | L15: =+Budget!AA34 -> 0 | M15: =+Budget!Z35 -> 0 | N15: =+Budget!AA35 -> 0 | O15: =+Budget!Z38 -> 0 | P15: =+Budget!AA38 -> 0 | Q15: =+Budget!Z36 -> 0 | R15: =+Budget!AA36 -> 0
A16: % OF TOTAL | C16: =IFERROR(+C$15/($C15+$D15),0) -> 0 | D16: =IFERROR(+D$15/($C15+$D15),0) -> 0
A17: TOTAL BUDGET | C17: =+C15+D15 -> 0 | I17: =+I56 -> 0 | J17: =+J56 -> 0 | K17: 0 | L17: 0 | M17: 0 | N17: 0 | O17: 0 | P17: 0 | Q17: 0 | R17: 0
A18: A. PERSONNEL (Title / Name)
A19: =+Jun!A13 -> Admin/Fiscal | C19: =+Jun!C13 -> 0 | D19: =+Jun!D13 -> 0 | E19: =+Jun!E13+CloseOut!G19 -> 0 | F19: =+Jun!F13+CloseOut!H19 -> 0 | G19: =+I19+K19+M19+O19+Q19 -> 0 | H19: =+J19+L19+N19+P19+R19 -> 0 | T19: =IFERROR(+I19+Jun!T19,0) -> 0 | U19: =IFERROR(+J19+Jun!U19,0) -> 0 | V19: =IFERROR(+K19+Jun!V19,0) -> 0 | W19: =IFERROR(+L19+Jun!W19,0) -> 0 | X19: =IFERROR(+M19+Jun!X19,0) -> 0 | Y19: =IFERROR(+N19+Jun!Y19,0) -> 0 | Z19: =IFERROR(+O19+Jun!Z19,0) -> 0 | AA19: =IFERROR(+P19+Jun!AA19,0) -> 0 | AB19: =IFERROR(+Q19+Jun!AB19,0) -> 0 | AC19: =IFERROR(+R19+Jun!AC19,0) -> 0
A20: =+Jun!A14 -> Site/ HDM/MOW Coordinator | C20: =+Jun!C14 -> 0 | D20: =+Jun!D14 -> 0 | E20: =+Jun!E14+CloseOut!G20 -> 0 | F20: =+Jun!F14+CloseOut!H20 -> 0 | G20: =+I20+K20+M20+O20+Q20 -> 0 | H20: 0 | T20: =IFERROR(+I20+Jun!T20,0) -> 0 | U20: =IFERROR(+J20+Jun!U20,0) -> 0 | V20: =IFERROR(+K20+Jun!V20,0) -> 0 | W20: =IFERROR(+L20+Jun!W20,0) -> 0 | X20: =IFERROR(+M20+Jun!X20,0) -> 0 | Y20: =IFERROR(+N20+Jun!Y20,0) -> 0 | Z20: =IFERROR(+O20+Jun!Z20,0) -> 0 | AA20: =IFERROR(+P20+Jun!AA20,0) -> 0 | AB20: =IFERROR(+Q20+Jun!AB20,0) -> 0 | AC20: =IFERROR(+R20+Jun!AC20,0) -> 0
A21: =+Jun!A15 -> Cook | C21: =+Jun!C15 -> 0 | D21: =+Jun!D15 -> 0 | E21: =+Jun!E15+CloseOut!G21 -> 0 | F21: =+Jun!F15+CloseOut!H21 -> 0 | G21: 0 | H21: 0 | T21: =IFERROR(+I21+Jun!T21,0) -> 0 | U21: =IFERROR(+J21+Jun!U21,0) -> 0 | V21: =IFERROR(+K21+Jun!V21,0) -> 0 | W21: =IFERROR(+L21+Jun!W21,0) -> 0 | X21: =IFERROR(+M21+Jun!X21,0) -> 0 | Y21: =IFERROR(+N21+Jun!Y21,0) -> 0 | Z21: =IFERROR(+O21+Jun!Z21,0) -> 0 | AA21: =IFERROR(+P21+Jun!AA21,0) -> 0 | AB21: =IFERROR(+Q21+Jun!AB21,0) -> 0 | AC21: =IFERROR(+R21+Jun!AC21,0) -> 0
A22: =+Jun!A16 -> Volunteers: | C22: =+Jun!C16 -> 0 | D22: =+Jun!D16 -> 0 | E22: =+Jun!E16+CloseOut!G22 -> 0 | F22: =+Jun!F16+CloseOut!H22 -> 0 | G22: 0 | H22: 0 | T22: =IFERROR(+I22+Jun!T22,0) -> 0 | U22: =IFERROR(+J22+Jun!U22,0) -> 0 | V22: =IFERROR(+K22+Jun!V22,0) -> 0 | W22: =IFERROR(+L22+Jun!W22,0) -> 0 | X22: =IFERROR(+M22+Jun!X22,0) -> 0 | Y22: =IFERROR(+N22+Jun!Y22,0) -> 0 | Z22: =IFERROR(+O22+Jun!Z22,0) -> 0 | AA22: =IFERROR(+P22+Jun!AA22,0) -> 0 | AB22: =IFERROR(+Q22+Jun!AB22,0) -> 0 | AC22: =IFERROR(+R22+Jun!AC22,0) -> 0
A23: =+Jun!A17 -> Volunteers: | C23: =+Jun!C17 -> 0 | D23: =+Jun!D17 -> 0 | E23: =+Jun!E17+CloseOut!G23 -> 0 | F23: =+Jun!F17+CloseOut!H23 -> 0 | G23: 0 | H23: 0 | T23: =IFERROR(+I23+Jun!T23,0) -> 0 | U23: =IFERROR(+J23+Jun!U23,0) -> 0 | V23: =IFERROR(+K23+Jun!V23,0) -> 0 | W23: =IFERROR(+L23+Jun!W23,0) -> 0 | X23: =IFERROR(+M23+Jun!X23,0) -> 0 | Y23: =IFERROR(+N23+Jun!Y23,0) -> 0 | Z23: =IFERROR(+O23+Jun!Z23,0) -> 0 | AA23: =IFERROR(+P23+Jun!AA23,0) -> 0 | AB23: =IFERROR(+Q23+Jun!AB23,0) -> 0 | AC23: =IFERROR(+R23+Jun!AC23,0) -> 0
A24: Volunteers | C24: =+Jun!C18 -> 0 | D24: =+Jun!D18 -> 0 | E24: =+Jun!E18+CloseOut!G24 -> 0 | F24: =+Jun!F18+CloseOut!H24 -> 0 | G24: =M24 -> 0 | T24: =IFERROR(+I24+Jun!T24,0) -> 0 | U24: =IFERROR(+J24+Jun!U24,0) -> 0 | V24: =IFERROR(+K24+Jun!V24,0) -> 0 | W24: =IFERROR(+L24+Jun!W24,0) -> 0 | X24: =IFERROR(+M24+Jun!X24,0) -> 0 | Y24: =IFERROR(+N24+Jun!Y24,0) -> 0 | Z24: =IFERROR(+O24+Jun!Z24,0) -> 0 | AA24: =IFERROR(+P24+Jun!AA24,0) -> 0 | AB24: =IFERROR(+Q24+Jun!AB24,0) -> 0 | AC24: =IFERROR(+R24+Jun!AC24,0) -> 0
A25: Volunteers | C25: =+Jun!C19 -> 0 | D25: =+Jun!D19 -> 0 | E25: =+Jun!E19+CloseOut!G25 -> 0 | F25: =+Jun!F19+CloseOut!H25 -> 0 | G25: =M25 -> 0 | H25: =N25 -> 0 | T25: =IFERROR(+I25+Jun!T25,0) -> 0 | U25: =IFERROR(+J25+Jun!U25,0) -> 0 | V25: =IFERROR(+K25+Jun!V25,0) -> 0 | W25: =IFERROR(+L25+Jun!W25,0) -> 0 | X25: =IFERROR(+M25+Jun!X25,0) -> 0 | Y25: =IFERROR(+N25+Jun!Y25,0) -> 0 | Z25: =IFERROR(+O25+Jun!Z25,0) -> 0 | AA25: =IFERROR(+P25+Jun!AA25,0) -> 0 | AB25: =IFERROR(+Q25+Jun!AB25,0) -> 0 | AC25: =IFERROR(+R25+Jun!AC25,0) -> 0
A26: =+Jun!A20 -> 0 | C26: =+Jun!C20 -> 0 | D26: =+Jun!D20 -> 0 | E26: =+Jun!E20+CloseOut!G26 -> 0 | F26: =+Jun!F20+CloseOut!H26 -> 0 | G26: =SUM(I26+K26+M26+O26+Q26) -> 0 | H26: =N26 -> 0 | T26: =IFERROR(+I26+Jun!T26,0) -> 0 | U26: =IFERROR(+J26+Jun!U26,0) -> 0 | V26: =IFERROR(+K26+Jun!V26,0) -> 0 | W26: =IFERROR(+L26+Jun!W26,0) -> 0 | X26: =IFERROR(+M26+Jun!X26,0) -> 0 | Y26: =IFERROR(+N26+Jun!Y26,0) -> 0 | Z26: =IFERROR(+O26+Jun!Z26,0) -> 0 | AA26: =IFERROR(+P26+Jun!AA26,0) -> 0 | AB26: =IFERROR(+Q26+Jun!AB26,0) -> 0 | AC26: =IFERROR(+R26+Jun!AC26,0) -> 0
A27: =+Jun!A21 -> 0 | C27: =+Jun!C21 -> 0 | D27: =+Jun!D21 -> 0 | E27: =+Jun!E21+CloseOut!G27 -> 0 | F27: =+Jun!F21+CloseOut!H27 -> 0 | G27: 0 | H27: 0 | T27: =IFERROR(+I27+Jun!T27,0) -> 0 | U27: =IFERROR(+J27+Jun!U27,0) -> 0 | V27: =IFERROR(+K27+Jun!V27,0) -> 0 | W27: =IFERROR(+L27+Jun!W27,0) -> 0 | X27: =IFERROR(+M27+Jun!X27,0) -> 0 | Y27: =IFERROR(+N27+Jun!Y27,0) -> 0 | Z27: =IFERROR(+O27+Jun!Z27,0) -> 0 | AA27: =IFERROR(+P27+Jun!AA27,0) -> 0 | AB27: =IFERROR(+Q27+Jun!AB27,0) -> 0 | AC27: =IFERROR(+R27+Jun!AC27,0) -> 0
A28: Total Personnel: | C28: =+Jun!C22 -> 0 | D28: =+Jun!D22 -> 0 | E28: =SUM(E19:E27) -> 0 | F28: =SUM(F19:F27) -> 0 | G28: =SUM(G19:G27) -> 0 | H28: =SUM(H19:H27) -> 0 | I28: =SUM(I19:I27) -> 0 | J28: =SUM(J19:J27) -> 0 | K28: 0 | L28: 0 | M28: 0 | N28: 0 | O28: 0 | P28: 0 | Q28: 0 | R28: 0
A29: B. TRAVEL & TRAINING
A30: =+Jun!A24 -> Travel/Mileage | B30: =+Jun!B24 -> 0 | C30: =+Jun!C24 -> 0 | D30: =+Jun!D24 -> 0 | E30: =+Jun!E24+CloseOut!G30 -> 0 | F30: =+Jun!F24+CloseOut!H30 -> 0 | G30: =+I30+K30+M30+O30+Q30 -> 0 | H30: 0 | T30: =IFERROR(+I30+Jun!T30,0) -> 0 | U30: =IFERROR(+J30+Jun!U30,0) -> 0 | V30: =IFERROR(+K30+Jun!V30,0) -> 0 | W30: =IFERROR(+L30+Jun!W30,0) -> 0 | X30: =IFERROR(+M30+Jun!X30,0) -> 0 | Y30: =IFERROR(+N30+Jun!Y30,0) -> 0 | Z30: =IFERROR(+O30+Jun!Z30,0) -> 0 | AA30: =IFERROR(+P30+Jun!AA30,0) -> 0 | AB30: =IFERROR(+Q30+Jun!AB30,0) -> 0 | AC30: =IFERROR(+R30+Jun!AC30,0) -> 0
A31: =+Jun!A25 -> Training | B31: =+Jun!B25 -> 0 | C31: =+Jun!C25 -> 0 | D31: =+Jun!D25 -> 0 | E31: =+Jun!E25+CloseOut!G31 -> 0 | F31: =+Jun!F25+CloseOut!H31 -> 0 | G31: 0 | H31: 0 | T31: =IFERROR(+I31+Jun!T31,0) -> 0 | U31: =IFERROR(+J31+Jun!U31,0) -> 0 | V31: =IFERROR(+K31+Jun!V31,0) -> 0 | W31: =IFERROR(+L31+Jun!W31,0) -> 0 | X31: =IFERROR(+M31+Jun!X31,0) -> 0 | Y31: =IFERROR(+N31+Jun!Y31,0) -> 0 | Z31: =IFERROR(+O31+Jun!Z31,0) -> 0 | AA31: =IFERROR(+P31+Jun!AA31,0) -> 0 | AB31: =IFERROR(+Q31+Jun!AB31,0) -> 0 | AC31: =IFERROR(+R31+Jun!AC31,0) -> 0
A32: =+Jun!A26 -> 0 | B32: =+Jun!B26 -> 0 | C32: =+Jun!C26 -> 0 | D32: =+Jun!D26 -> 0 | E32: =+Jun!E26+CloseOut!G32 -> 0 | F32: =+Jun!F26+CloseOut!H32 -> 0 | G32: 0 | H32: 0 | T32: =IFERROR(+I32+Jun!T32,0) -> 0 | U32: =IFERROR(+J32+Jun!U32,0) -> 0 | V32: =IFERROR(+K32+Jun!V32,0) -> 0 | W32: =IFERROR(+L32+Jun!W32,0) -> 0 | X32: =IFERROR(+M32+Jun!X32,0) -> 0 | Y32: =IFERROR(+N32+Jun!Y32,0) -> 0 | Z32: =IFERROR(+O32+Jun!Z32,0) -> 0 | AA32: =IFERROR(+P32+Jun!AA32,0) -> 0 | AB32: =IFERROR(+Q32+Jun!AB32,0) -> 0 | AC32: =IFERROR(+R32+Jun!AC32,0) -> 0
A33: Total Travel & Training: | C33: =+Jun!C27 -> 0 | D33: =+Jun!D27 -> 0 | E33: =SUM(E30:E32) -> 0 | F33: =SUM(F30:F32) -> 0 | G33: =SUM(G30:G32) -> 0 | H33: =SUM(H30:H32) -> 0 | I33: =SUM(I30:I32) -> 0 | J33: =SUM(J30:J32) -> 0 | K33: 0 | L33: 0 | M33: 0 | N33: 0 | O33: 0 | P33: 0 | Q33: 0 | R33: 0
A34: C. EQUIPMENT*
A35: =+Jun!A29 -> Equipment | C35: =+Jun!C29 -> 0 | D35: =+Jun!D29 -> 0 | E35: =+Jun!E29+CloseOut!G35 -> 0 | F35: =+Jun!F29+CloseOut!H35 -> 0 | G35: =+I35+K35+M35+O35+Q35 -> 0 | H35: =+J35+L35+N35+P35+R35 -> 0 | T35: =IFERROR(+I35+Jun!T35,0) -> 0 | U35: =IFERROR(+J35+Jun!U35,0) -> 0 | V35: =IFERROR(+K35+Jun!V35,0) -> 0 | W35: =IFERROR(+L35+Jun!W35,0) -> 0 | X35: =IFERROR(+M35+Jun!X35,0) -> 0 | Y35: =IFERROR(+N35+Jun!Y35,0) -> 0 | Z35: =IFERROR(+O35+Jun!Z35,0) -> 0 | AA35: =IFERROR(+P35+Jun!AA35,0) -> 0 | AB35: =IFERROR(+Q35+Jun!AB35,0) -> 0 | AC35: =IFERROR(+R35+Jun!AC35,0) -> 0
A36: =+Jun!A30 -> 0 | C36: =+Jun!C30 -> 0 | D36: =+Jun!D30 -> 0 | E36: =+Jun!E30+CloseOut!G36 -> 0 | F36: =+Jun!F30+CloseOut!H36 -> 0 | G36: =+I36+K36+M36+O36+Q36 -> 0 | H36: =+J36+L36+N36+P36+R36 -> 0 | T36: =IFERROR(+I36+Jun!T36,0) -> 0 | U36: =IFERROR(+J36+Jun!U36,0) -> 0 | V36: =IFERROR(+K36+Jun!V36,0) -> 0 | W36: =IFERROR(+L36+Jun!W36,0) -> 0 | X36: =IFERROR(+M36+Jun!X36,0) -> 0 | Y36: =IFERROR(+N36+Jun!Y36,0) -> 0 | Z36: =IFERROR(+O36+Jun!Z36,0) -> 0 | AA36: =IFERROR(+P36+Jun!AA36,0) -> 0 | AB36: =IFERROR(+Q36+Jun!AB36,0) -> 0 | AC36: =IFERROR(+R36+Jun!AC36,0) -> 0
A37: Total Equipment: | C37: =+Jun!C31 -> 0 | D37: =+Jun!D31 -> 0 | E37: =SUM(E35:E36) -> 0 | F37: =SUM(F35:F36) -> 0 | I37: =SUM(I35:I36) -> 0 | J37: =SUM(J35:J36) -> 0 | K37: 0 | L37: 0 | M37: 0 | N37: 0 | O37: 0 | P37: 0 | Q37: 0 | R37: 0
A38: D. CONSULTANTS
A39: =+Jun!A33 -> Congregate or HDM Meals | C39: =+Jun!C33 -> 0 | D39: =+Jun!D33 -> 0 | E39: =+Jun!E33+CloseOut!G39 -> 0 | F39: =+Jun!F33+CloseOut!H39 -> 0 | G39: =+I39+K39+M39+O39+Q39 -> 0 | H39: =+J39+L39+N39+P39+R39 -> 0 | T39: =IFERROR(+I39+Jun!T39,0) -> 0 | U39: =IFERROR(+J39+Jun!U39,0) -> 0 | V39: =IFERROR(+K39+Jun!V39,0) -> 0 | W39: =IFERROR(+L39+Jun!W39,0) -> 0 | X39: =IFERROR(+M39+Jun!X39,0) -> 0 | Y39: =IFERROR(+N39+Jun!Y39,0) -> 0 | Z39: =IFERROR(+O39+Jun!Z39,0) -> 0 | AA39: =IFERROR(+P39+Jun!AA39,0) -> 0 | AB39: =IFERROR(+Q39+Jun!AB39,0) -> 0 | AC39: =IFERROR(+R39+Jun!AC39,0) -> 0
A40: =+Jun!A34 -> Food Share Delivery Cost | C40: =+Jun!C34 -> 0 | D40: =+Jun!D34 -> 0 | E40: =+Jun!E34+CloseOut!G40 -> 0 | F40: =+Jun!F34+CloseOut!H40 -> 0 | G40: =+I40+K40+M40+O40+Q40 -> 0 | H40: =+J40+L40+N40+P40+R40 -> 0 | T40: =IFERROR(+I40+Jun!T40,0) -> 0 | U40: =IFERROR(+J40+Jun!U40,0) -> 0 | V40: =IFERROR(+K40+Jun!V40,0) -> 0 | W40: =IFERROR(+L40+Jun!W40,0) -> 0 | X40: =IFERROR(+M40+Jun!X40,0) -> 0 | Y40: =IFERROR(+N40+Jun!Y40,0) -> 0 | Z40: =IFERROR(+O40+Jun!Z40,0) -> 0 | AA40: =IFERROR(+P40+Jun!AA40,0) -> 0 | AB40: =IFERROR(+Q40+Jun!AB40,0) -> 0 | AC40: =IFERROR(+R40+Jun!AC40,0) -> 0
A41: Total Consultants: | C41: =+Jun!C35 -> 0 | D41: =+Jun!D35 -> 0 | E41: =SUM(E39:E40) -> 0 | F41: =SUM(F39:F40) -> 0 | I41: =SUM(I39:I40) -> 0 | J41: 0 | K41: 0 | L41: 0 | M41: 0 | N41: 0 | O41: 0 | P41: 0 | Q41: 0 | R41: 0
A42: E. FOOD COSTS (Senior Nutrition Program Only)
A43: =+Jun!A37 -> Food Cost | C43: =+Jun!C37 -> 0 | D43: =+Jun!D37 -> 0 | E43: =+Jun!E37+CloseOut!G43 -> 0 | F43: =+Jun!F37+CloseOut!H43 -> 0 | G43: =+I43+K43+M43+O43+Q43 -> 0 | H43: =+J43+L43+N43+P43+R43 -> 0 | T43: =IFERROR(+I43+Jun!T43,0) -> 0 | U43: =IFERROR(+J43+Jun!U43,0) -> 0 | V43: =IFERROR(+K43+Jun!V43,0) -> 0 | W43: =IFERROR(+L43+Jun!W43,0) -> 0 | X43: =IFERROR(+M43+Jun!X43,0) -> 0 | Y43: =IFERROR(+N43+Jun!Y43,0) -> 0 | Z43: =IFERROR(+O43+Jun!Z43,0) -> 0 | AA43: =IFERROR(+P43+Jun!AA43,0) -> 0 | AB43: =IFERROR(+Q43+Jun!AB43,0) -> 0 | AC43: =IFERROR(+R43+Jun!AC43,0) -> 0
A44: Total Food Costs: | C44: =+Jun!C38 -> 0 | D44: =+Jun!D38 -> 0 | E44: =SUM(E43:E43) -> 0 | F44: =SUM(F43:F43) -> 0 | I44: =+I43 -> 0 | J44: =+J43 -> 0 | K44: 0 | L44: 0 | M44: 0 | N44: 0 | O44: 0 | P44: 0 | Q44: 0 | R44: 0
A45: F. OTHER COSTS
A46: =+Jun!A40 -> Supplies:Non food(Bags,liners etc) | C46: =+Jun!C40 -> 0 | D46: =+Jun!D40 -> 0 | E46: =+Jun!E40+CloseOut!G46 -> 0 | F46: =+Jun!F40+CloseOut!H46 -> 0 | G46: =+I46+K46+M46+O46+Q46 -> 0 | H46: =+J46+L46+N46+P46+R46 -> 0 | T46: =IFERROR(+I46+Jun!T46,0) -> 0 | U46: =IFERROR(+J46+Jun!U46,0) -> 0 | V46: =IFERROR(+K46+Jun!V46,0) -> 0 | W46: =IFERROR(+L46+Jun!W46,0) -> 0 | X46: =IFERROR(+M46+Jun!X46,0) -> 0 | Y46: =IFERROR(+N46+Jun!Y46,0) -> 0 | Z46: =IFERROR(+O46+Jun!Z46,0) -> 0 | AA46: =IFERROR(+P46+Jun!AA46,0) -> 0 | AB46: =IFERROR(+Q46+Jun!AB46,0) -> 0 | AC46: =IFERROR(+R46+Jun!AC46,0) -> 0
A47: =+Jun!A41 -> Health permit | C47: =+Jun!C41 -> 0 | D47: =+Jun!D41 -> 0 | E47: =+Jun!E41+CloseOut!G47 -> 0 | F47: =+Jun!F41+CloseOut!H47 -> 0 | G47: 0 | H47: 0 | T47: =IFERROR(+I47+Jun!T47,0) -> 0 | U47: =IFERROR(+J47+Jun!U47,0) -> 0 | V47: =IFERROR(+K47+Jun!V47,0) -> 0 | W47: =IFERROR(+L47+Jun!W47,0) -> 0 | X47: =IFERROR(+M47+Jun!X47,0) -> 0 | Y47: =IFERROR(+N47+Jun!Y47,0) -> 0 | Z47: =IFERROR(+O47+Jun!Z47,0) -> 0 | AA47: =IFERROR(+P47+Jun!AA47,0) -> 0 | AB47: =IFERROR(+Q47+Jun!AB47,0) -> 0 | AC47: =IFERROR(+R47+Jun!AC47,0) -> 0
A48: =+Jun!A42 -> Rent | C48: =+Jun!C42 -> 0 | D48: =+Jun!D42 -> 0 | E48: =+Jun!E42+CloseOut!G48 -> 0 | F48: =+Jun!F42+CloseOut!H48 -> 0 | G48: 0 | H48: 0 | T48: =IFERROR(+I48+Jun!T48,0) -> 0 | U48: =IFERROR(+J48+Jun!U48,0) -> 0 | V48: =IFERROR(+K48+Jun!V48,0) -> 0 | W48: =IFERROR(+L48+Jun!W48,0) -> 0 | X48: =IFERROR(+M48+Jun!X48,0) -> 0 | Y48: =IFERROR(+N48+Jun!Y48,0) -> 0 | Z48: =IFERROR(+O48+Jun!Z48,0) -> 0 | AA48: =IFERROR(+P48+Jun!AA48,0) -> 0 | AB48: =IFERROR(+Q48+Jun!AB48,0) -> 0 | AC48: =IFERROR(+R48+Jun!AC48,0) -> 0
A49: =+Jun!A43 -> Program Publicity | C49: =+Jun!C43 -> 0 | D49: =+Jun!D43 -> 0 | E49: =+Jun!E43+CloseOut!G49 -> 0 | F49: =+Jun!F43+CloseOut!H49 -> 0 | G49: 0 | H49: 0 | T49: =IFERROR(+I49+Jun!T49,0) -> 0 | U49: =IFERROR(+J49+Jun!U49,0) -> 0 | V49: =IFERROR(+K49+Jun!V49,0) -> 0 | W49: =IFERROR(+L49+Jun!W49,0) -> 0 | X49: =IFERROR(+M49+Jun!X49,0) -> 0 | Y49: =IFERROR(+N49+Jun!Y49,0) -> 0 | Z49: =IFERROR(+O49+Jun!Z49,0) -> 0 | AA49: =IFERROR(+P49+Jun!AA49,0) -> 0 | AB49: =IFERROR(+Q49+Jun!AB49,0) -> 0 | AC49: =IFERROR(+R49+Jun!AC49,0) -> 0
A50: =+Jun!A44 -> Other | C50: =+Jun!C44 -> 0 | D50: =+Jun!D44 -> 0 | E50: =+Jun!E44+CloseOut!G50 -> 0 | F50: =+Jun!F44+CloseOut!H50 -> 0 | G50: =+I50+K50+M50+O50+Q50 -> 0 | H50: =+J50+L50+N50+P50+R50 -> 0 | T50: =IFERROR(+I50+Jun!T50,0) -> 0 | U50: =IFERROR(+J50+Jun!U50,0) -> 0 | V50: =IFERROR(+K50+Jun!V50,0) -> 0 | W50: =IFERROR(+L50+Jun!W50,0) -> 0 | X50: =IFERROR(+M50+Jun!X50,0) -> 0 | Y50: =IFERROR(+N50+Jun!Y50,0) -> 0 | Z50: =IFERROR(+O50+Jun!Z50,0) -> 0 | AA50: =IFERROR(+P50+Jun!AA50,0) -> 0 | AB50: =IFERROR(+Q50+Jun!AB50,0) -> 0 | AC50: =IFERROR(+R50+Jun!AC50,0) -> 0
A51: =+Jun!A45 -> Other | C51: =+Jun!C45 -> 0 | D51: =+Jun!D45 -> 0 | E51: =+Jun!E45+CloseOut!G51 -> 0 | F51: =+Jun!F45+CloseOut!H51 -> 0 | G51: =+I51+K51+M51+O51+Q51 -> 0 | H51: =+J51+L51+N51+P51+R51 -> 0 | T51: =IFERROR(+I51+Jun!T51,0) -> 0 | U51: =IFERROR(+J51+Jun!U51,0) -> 0 | V51: =IFERROR(+K51+Jun!V51,0) -> 0 | W51: =IFERROR(+L51+Jun!W51,0) -> 0 | X51: =IFERROR(+M51+Jun!X51,0) -> 0 | Y51: =IFERROR(+N51+Jun!Y51,0) -> 0 | Z51: =IFERROR(+O51+Jun!Z51,0) -> 0 | AA51: =IFERROR(+P51+Jun!AA51,0) -> 0 | AB51: =IFERROR(+Q51+Jun!AB51,0) -> 0 | AC51: =IFERROR(+R51+Jun!AC51,0) -> 0
A52: =+Jun!A46 -> Indirect Costs (no more than 10% of grant funds) | C52: =+Jun!C49 -> 0 | D52: =+Jun!D49 -> 0 | E52: =+Jun!E49+CloseOut!G52 -> 0 | F52: =+Jun!F49+CloseOut!H52 -> 0 | G52: 0 | H52: 0 | T52: =IFERROR(+I52+Jun!T52,0) -> 0 | U52: =IFERROR(+J52+Jun!U52,0) -> 0 | V52: =IFERROR(+K52+Jun!V52,0) -> 0 | W52: =IFERROR(+L52+Jun!W52,0) -> 0 | X52: =IFERROR(+M52+Jun!X52,0) -> 0 | Y52: =IFERROR(+N52+Jun!Y52,0) -> 0 | Z52: =IFERROR(+O52+Jun!Z52,0) -> 0 | AA52: =IFERROR(+P52+Jun!AA52,0) -> 0 | AB52: =IFERROR(+Q52+Jun!AB52,0) -> 0 | AC52: =IFERROR(+R52+Jun!AC52,0) -> 0
A53: Total Other Costs: | C53: =+Jun!C50 -> 0 | D53: =+Jun!D50 -> 0 | E53: =SUM(E46:E52) -> 0 | F53: 0 | G53: 0 | H53: 0 | I53: 0 | J53: 0 | K53: 0 | L53: 0 | M53: 0 | N53: 0 | O53: 0 | P53: 0 | Q53: 0 | R53: 0 | T53: =IFERROR(+I53+Jun!T53,0) -> 0 | U53: =IFERROR(+J53+Jun!U53,0) -> 0 | V53: =IFERROR(+K53+Jun!V53,0) -> 0 | W53: =IFERROR(+L53+Jun!W53,0) -> 0 | X53: =IFERROR(+M53+Jun!X53,0) -> 0 | Y53: =IFERROR(+N53+Jun!Y53,0) -> 0 | Z53: =IFERROR(+O53+Jun!Z53,0) -> 0 | AA53: =IFERROR(+P53+Jun!AA53,0) -> 0 | AB53: =IFERROR(+Q53+Jun!AB53,0) -> 0 | AC53: =IFERROR(+R53+Jun!AC53,0) -> 0
T54: =IFERROR(+I54+Jun!T54,0) -> 0 | U54: =IFERROR(+J54+Jun!U54,0) -> 0 | V54: =IFERROR(+K54+Jun!V54,0) -> 0 | W54: =IFERROR(+L54+Jun!W54,0) -> 0 | X54: =IFERROR(+M54+Jun!X54,0) -> 0 | Y54: =IFERROR(+N54+Jun!Y54,0) -> 0 | Z54: =IFERROR(+O54+Jun!Z54,0) -> 0 | AA54: =IFERROR(+P54+Jun!AA54,0) -> 0 | AB54: =IFERROR(+Q54+Jun!AB54,0) -> 0 | AC54: =IFERROR(+R54+Jun!AC54,0) -> 0
A55: 1. Close-out Amount | G55: =+G53+G44+G41+G37+G33+G28 -> 0 | H55: =+H53+H44+H41+H37+H33+H28 -> 0 | I55: =+I53+I44+I41+I37+I33+I28 -> 0 | J55: =+J53+J44+J41+J37+J33+J28 -> 0 | T55: =IFERROR(+I55+Jun!T55,0) -> 0 | U55: =IFERROR(+J55+Jun!U55,0) -> 0 | V55: =IFERROR(+K55+Jun!V55,0) -> 0 | W55: =IFERROR(+L55+Jun!W55,0) -> 0 | X55: =IFERROR(+M55+Jun!X55,0) -> 0 | Y55: =IFERROR(+N55+Jun!Y55,0) -> 0 | Z55: =IFERROR(+O55+Jun!Z55,0) -> 0 | AA55: =IFERROR(+P55+Jun!AA55,0) -> 0 | AB55: =IFERROR(+Q55+Jun!AB55,0) -> 0 | AC55: =IFERROR(+R55+Jun!AC55,0) -> 0
A56: 2. Year-to-Date Total** | C56: =+C53+C44+C41+C37+C33+C28 -> 0 | D56: =+D53+D44+D41+D37+D33+D28 -> 0 | E56: =+E53+E44+E41+E37+E33+E28 -> 0 | F56: =+F53+F44+F41+F37+F33+F28 -> 0 | I56: =+I55+Jun!I53 -> 0 | J56: =+J55+Jun!J53 -> 0 | K56: =+K55+Jun!K53 -> 0 | L56: =+L55+Jun!L53 -> 0 | M56: =+M55+Jun!M53 -> 0 | N56: =+N55+Jun!N53 -> 0 | O56: =+O55+Jun!O53 -> 0 | P56: =+P55+Jun!P53 -> 0 | Q56: =+Q55+Jun!Q53 -> 0 | R56: =+R55+Jun!R53 -> 0
A57: 3. Grant Funds Remaining | I57: =+I15-I68 -> 0 | J57: =+J15-J68 -> 0
A58: EQUIPMENT INFO* | I58: Date Acquired | N58: Equipment Location
T59: =IFERROR(+I59+Jun!T59,0) -> 0 | U59: =IFERROR(+J59+Jun!U59,0) -> 0 | V59: =IFERROR(+K59+Jun!V59,0) -> 0 | W59: =IFERROR(+L59+Jun!W59,0) -> 0 | X59: =IFERROR(+M59+Jun!X59,0) -> 0 | Y59: =IFERROR(+N59+Jun!Y59,0) -> 0 | Z59: =IFERROR(+O59+Jun!Z59,0) -> 0 | AA59: =IFERROR(+P59+Jun!AA59,0) -> 0 | AB59: =IFERROR(+Q59+Jun!AB59,0) -> 0 | AC59: =IFERROR(+R59+Jun!AC59,0) -> 0
T60: =IFERROR(SUM(T20:T59),0) -> 0 | U60: =IFERROR(SUM(U20:U59),0) -> 0
A61: *Equipment is property of the VCAAA. Consult VCAAA Contractor Manual for more information | T61: =+T59+U59 -> 0
A62: I hereby certify that the above figures and any attachments are accurate to the best of my knowledge.
A63: Prepared By: | C63: Signature: | F63: Date: | H63: Authorized By: | K63: Signature: | N63: Date: | P63: Title
A65: AAA USE ONLY
A66: Grants Management Approval | G66: Amount Requested - Close-out | I66: =+I55 -> 0 | J66: =+J55 -> 0 | K66: =+I66+J66 -> 0 | L66: Date Received | P66: Fiscal Approval
G67: Amount Approved - Closeout | I67: =+I66 -> 0 | J67: =+J66 -> 0 | K67: =+I67+J67 -> 0
G68: Amount Approved - YTD | I68: =+I67+Jun!I67 -> 0 | J68: =+J67+Jun!J67 -> 0 | K68: =+I68+J68 -> 0

Sheet Sheet2 (hidden)
